Workbook

Sheet Analisis
H3: METODOLOGIA
H4: BASE 2015-2018
A6: Fuentes:
A12: Metodología:
A25: Análisis de la Estacionalidad de las Operaciones de ASEMPLEO (a través de las empresas asociadas), 2015-2019.
A43: Fuente: Cifras consolidadas del sector. ASEMPLEO ©. | H43: pág. 1 / 3
H47: INDICADORES
H48: GLOSARIO
A50: Glosario: | B50: Fuente: | D50: Detalle:
A52: "% i.a." | B52: n.a. (no aplica) | D52: Tasa de variación anual del mes respecto al mes del año anterior (interanual).
A53: "% i.a.12m" | B53: n.a. (no aplica)
A58: CPDs a 3M | B58: ASEMPLEO
A59: Facturación a 3M | B59: ASEMPLEO
A64: Afiliados | B64: Seguridad Social | D64: Número de afiliaciones de trabajadores a la seguridad social (coloquialmente Afiliados)
A66: Contratos | B66: SEPE | D66: Contrataciones gestionadas por los servicios públicos de empleo (totales (indefinidos y temporales))
A67: Ind. Ocupación | B67: INE | D67: Indice de ocupación del sector 78, actividades relacionadas con el empleo.
D68: Se mide con la muestra de empresas del directorio oficial.
D69: Permite hacer un foco de volumen más específico que la senda de afiliados totales.
B72: sector 78. Actividades relacionadas con el empleo
B73: European Comission
A74: Clima sector 12m | B74: Business and Consumer Surveys
A75: Empleo 3M sector
A76: 12m
A92: Fuente: Cifras consolidadas del sector. ASEMPLEO ©. | H92: pág. 2 / 3
H96: INDICADORES
H97: DEBATE
A99: Evolución de los Afiliados en media mensual y como dato de fin de mes | E99: Tasa de variación anual de las dos series de Afiliados (media y fin de mes)
A120: Debate:
A122: Ventajas y desventajas de usar la serie Afiliados media mensual vs. Fin de mes
A124: Media Mensual
A126: (+) sale en la Nota de prensa del Ministerio | E126: http://prensa.mitramiss.gob.es/WebPrensa/noticias/seguridadsocial/detalle/3596
A127: (-) tiene decimales de personas que obligan a redondeo
A128: (+) la media aritmética suaviza atípicos del fin de mes. No se aprecia tanto en los valores absolutos (afiliados) pero sí en las tasas de variación. La media genera un senda de evolución.
A129: (+) facilita un análisis de las tasas de variación de cara a la opinión pública
A131: Fin de Mes
A132: (+) es el dato real más cercano al mercado, con sus subidas y sus bajadas como pasa en las decisiones de los negocios y de la contratación de vuestro sector,
A133: (+) es el dato de las personas sin decimales
A134: (+) es el dato que se relaciona con las contrataciones vigentes del sector de las ETTs, pensando en un porcentaje importante de contratación temporal.
A135: (+) es el dato del mes que realmente esta cotizando y que realmente está ocupado en el mercado.
A138: Nota: por supuesto, una dato u otro (sea media del mes o fin de mes) es procesado de cara a la modelización extrayendo las señales principales.
A140: Fuente: Cifras consolidadas del sector. ASEMPLEO ©. | H140: pág. 3 / 3
A151: No se visualiza junto con los bloques de arriba, es una anotación complementaria de la Metodología.
A153: Cómo se construye el modelo ASEMPLEO para enlazar el mercado laboral con el sector ETTs
A176: Otro debate, sobre el uso inicial de la serie con datos corregidos

Sheet Dashboard
CV1: PANEL MÉTRICAS
CV2: Título Métrica | CW2: Valor | CX2: Comentarios
M3: 2020
M4: ENERO
B5: Nacional | C5: Último mes de información | E5: DICIEMBRE
B6: CPDs | C6: % i.a. | D6: % i.a.12m | H6: Facturación | I6: =C6 -> % i.a. | J6: =D6 -> % i.a.12m
A7: =Data!A52 -> 2018-12-01 | B7: =Data!B52 -> 249931 | C7: =Data!J52 -> 0.09578488627 | D7: =Data!P52 -> 0.08783031494 | G7: =A7 -> 2018-12-01 | H7: =Data!D52 -> 310586470.2 | I7: =Data!L52 -> -0.01766198467 | J7: =Data!Q52 -> 0.06251679922
A8: =Data!A53 -> 2019-01-01 | B8: =Data!B53 -> 249801 | C8: =Data!J53 -> 0.04757691146 | D8: =Data!P53 -> 0.08188266377 | G8: =A8 -> 2019-01-01 | H8: =Data!D53 -> 327669711.7 | I8: =Data!L53 -> 0.02970579362 | J8: =Data!Q53 -> 0.0504483055
A9: =Data!A54 -> 2019-02-01 | B9: =Data!B54 -> 201433 | C9: =Data!J54 -> 0.02609648006 | D9: =Data!P54 -> 0.07645359437 | G9: 2019-02-01 | H9: =Data!D54 -> 305837745.2 | I9: =Data!L54 -> 0.004888927465 | J9: =Data!Q54 -> 0.04026590892
A10: =Data!A55 -> 2019-03-01 | B10: =Data!B55 -> 224512 | C10: =Data!J55 -> 0.04133580705 | D10: =Data!P55 -> 0.07415669571 | G10: 2019-03-01 | H10: =Data!D55 -> 323862465 | I10: =Data!L55 -> -0.001715303962 | J10: =Data!Q55 -> 0.03503047769
A11: =Data!A56 -> 2019-04-01 | B11: =Data!B56 -> 253926 | C11: =Data!J56 -> 0.06770104068 | D11: =Data!P56 -> 0.06871403177 | G11: 2019-04-01 | H11: =Data!D56 -> 322516955.3 | I11: =Data!L56 -> -0.01558821712 | J11: =Data!Q56 -> 0.01972411421
A12: =Data!A57 -> 2019-05-01 | B12: =Data!B57 -> 271955 | C12: =Data!J57 -> 0.04064147796 | D12: =Data!P57 -> 0.07186250862 | G12: 2019-05-01 | H12: =Data!D57 -> 367643444.6 | I12: =Data!L57 -> 0.01580656557 | J12: =Data!Q57 -> 0.01492910269
A13: =Data!A58 -> 2019-06-01 | B13: =Data!B58 -> 274286 | C13: =Data!J58 -> 0.02029914927 | D13: =Data!P58 -> 0.06962484223 | G13: 2019-06-01 | H13: =Data!D58 -> 359918540.2 | I13: =Data!L58 -> -0.00948383273 | J13: =Data!Q58 -> 0.009251974479
A14: =Data!A59 -> 2019-07-01 | B14: =Data!B59 -> 291354 | C14: =Data!J59 -> 0.04888111284 | D14: =Data!P59 -> 0.06442255429 | G14: 2019-07-01 | H14: =Data!D59 -> 419298301.4 | I14: =Data!L59 -> 0.06960835036 | J14: =Data!Q59 -> 0.009878780103
A15: =Data!A60 -> 2019-08-01 | B15: =Data!B60 -> 230288 | C15: =Data!J60 -> -0.01416964186 | D15: =Data!P60 -> 0.05760340045 | G15: 2019-08-01 | H15: =Data!D60 -> 343156055.5 | I15: =Data!L60 -> 0.01827979593 | J15: =Data!Q60 -> 0.008788002151
A16: =Data!A61 -> 2019-09-01 | B16: =Data!B61 -> 266525 | C16: =Data!J61 -> 0.04781355779 | D16: =Data!P61 -> 0.05709648666 | G16: 2019-09-01 | H16: =Data!D61 -> 361129306.9 | I16: =Data!L61 -> 0.07894450307 | J16: =Data!Q61 -> 0.01723137166
A17: =Data!A62 -> 2019-10-01 | B17: =Data!B62 -> 290990 | C17: =Data!J62 -> -0.002194561602 | D17: =Data!P62 -> 0.04639557408 | G17: 2019-10-01 | H17: =Data!D62 -> 382719372.7 | I17: =Data!L62 -> 0.05686405763 | J17: =Data!Q62 -> 0.01879585157
A18: =Data!A63 -> 2019-11-01 | B18: =Data!B63 -> 282389 | C18: =Data!J63 -> 0.03849647508 | D18: =Data!P63 -> 0.0375249603 | G18: 2019-11-01 | H18: =Data!D63 -> 364556187.9 | I18: =Data!L63 -> 0.02608337421 | J18: =Data!Q63 -> 0.02238056224
A19: =Data!A64 -> 2019-12-01 | B19: =Data!B64 -> 269180.7006 | C19: =Data!J64 -> 0.07702005976 | D19: =Data!P64 -> 0.03638500232 | G19: =A19 -> 2019-12-01 | H19: =Data!D64 -> 341645940.3 | I19: =Data!L64 -> 0.1000026499 | J19: =Data!Q64 -> 0.03136690848
A20: =Data!A65 -> 2020-01-01 | B20: =Data!C65 -> 260667.8285 | C20: =Data!K65 -> 0.04350194158 | D20: =Data!P65 -> 0.0360888961 | G20: =A20 -> 2020-01-01 | H20: =Data!E65 -> 329087398.6 | I20: =Data!M65 -> 0.004326572814 | J20: =Data!Q65 -> 0.02933531353
A21: =Data!A66 -> 2020-02-01 | B21: =Data!C66 -> 213743.0961 | C21: =Data!K66 -> 0.06111260841 | D21: =Data!P66 -> 0.03841209364 | G21: =A21 -> 2020-02-01 | H21: =Data!E66 -> 311934445.9 | I21: =Data!M66 -> 0.01993442854 | J21: =Data!Q66 -> 0.03044806128
A22: =Data!A67 -> 2020-03-01 | B22: =Data!C67 -> 237564.1733 | C22: =Data!K67 -> 0.05813574925 | D22: =Data!P67 -> 0.03966842966 | G22: =A22 -> 2020-03-01 | H22: =Data!E67 -> 337243855.2 | I22: =Data!M67 -> 0.04131812629 | J22: =Data!Q67 -> 0.0338500166
B29: Cifras de CONTRATACIÓN (Num. Contratos y % i.a.) | I29: Cifras de FACTURACIÓN (en €uros y % i.a.)
A45: Fuente: Cifras consolidadas del sector. ASEMPLEO ©. | M45: pág .1 / 2
A46: Nota técnica: Las previsiones se realizan para el horizonte anual y se van mostrando los tres meses inmediatos.
M49: =M3 -> 2020
M50: =M4 -> ENERO
B51: =B5 -> Nacional
A52: Número de Afiliados a las Seguridad Social (Trabajadores y % i.a.) | H52: Número de Contratos en los Servicios Públicos de Empleo (Contratos y % i.a.)
A69: Índice de Ocupación (INE) del sector 78 (actividades relacionadas con el empleo) | H69: Datos de clima y expectativas del sector desde la opinión de las empresas (CE)
A87: Fuente: INE. SEPE. Comisión Europea. Ministerio de Trabajo y ASEMPLEO ©. | M87: pág .2 / 2
A88: Nota técnica: Las previsiones se realizan sobre las base de variables explicativas seleccionadas.

Sheet Ayuda y Version (hidden)
G2: Versión de plantilla: | H2: 2.5

Sheet pBlock (hidden)
B4: Block Test
B5: Info1 | C5: Info2

Sheet pAccel1 (hidden)
A1: Gauge Configuration | X1: Gauge Configuration | AE1: Gauge Configuration
F2: Decal | AC2: Decal | AJ2: Decal
A3: Title: | B3: CPDs | F3: 100 | X3: Title: | Y3: CPDs a 3M | AC3: 100 | AE3: Title: | AF3: Facturación a 3M | AJ3: 100
A4: Real Value: | B4: =Dashboard!#REF! ->  | C4: =Dashboard!#REF! ->  | X4: Real Value: | Y4: =Data!T67 -> 0.05361348479 | AE4: Real Value: | AF4: =Data!U67 -> 0.02182623173
A6: Color bands
A7: Red: | B7: -50
A8: Yellow: | B8: 0
A9: Green: | B9: 50
A11: Advanced Parameters | X11: Advanced Parameters | AE11: Advanced Parameters
B12: Value to 100% | C12: =IF(ISERROR((B4-F3/100)*B27),0,(B4-F3/100)*B27) -> 0 | E12: =IF(ISERROR((C4-F3/100)*B27),0,(C4-F3/100)*B27) -> 0 | Y12: Value to 100% | Z12: =IF(ISERROR((Y4-AC3/100)*Y27),0,(Y4-AC3/100)*Y27) -> -3.785546061 | AF12: Value to 100% | AG12: =IF(ISERROR((AF4-AJ3/100)*AF27),0,(AF4-AJ3/100)*AF27) -> -3.912695073
B13: Relative value | C13: =IF(B4<-100%,-100%,IF(B4>100%,100%,2*B4/1)) ->  | D13: ojo1, todo en porcentaje, por 2, y con 1 al final en lugar de 100. | E13: =IF(C4<-100%,-100%,IF(C4>100%,100%,2*C4/1)) ->  | I13: Todos los negritas tienen dato 50, en lugar de 100 para que la escala recorra menos. | Y13: Relative value | Z13: =IF(Y4<-100%,-100%,IF(Y4>100%,100%,4*Y4/1)) -> 0.2144539392 | AF13: Relative value | AG13: =IF(AF4<-100%,-100%,IF(AF4>100%,100%,4*AF4/1)) -> 0.08730492694
A15: Angle | C15: =C13*PI()/2 ->  | E15: =E13*PI()/2 ->  | X15: Angle | Z15: =Z13*PI()/2 -> 0.3368634599 | AE15: Angle | AG15: =AG13*PI()/2 -> 0.1371382585
A16: x | B16: 0 | C16: =SIN(C15) ->  | D16: =B16 -> 0 | E16: =SIN(E15) ->  | X16: x | Y16: 0 | Z16: =SIN(Z15) -> 0.3305284688 | AE16: x | AF16: 0 | AG16: =SIN(AG15) -> 0.136708805
A17: y | B17: 0 | C17: =-COS(C15) ->  | D17: =B17 -> 0 | E17: =-COS(E15) ->  | X17: y | Y17: 0 | Z17: =-COS(Z15) -> -0.9437960221 | AE17: y | AF17: 0 | AG17: =-COS(AG15) -> -0.9906112773
D19: Value | E19: Label
C20: =B25 -> 25 | D20: 0 | E20: =B25 -> 25
C21: =E21 -> 20 | D21: =D31/D33 -> 2.5 | E21: =E20+$B$26 -> 20
C22: =E22 -> 15 | D22: =D21 -> 2.5 | E22: =E21+$B$26 -> 15
C23: 10 | D23: =D22 -> 2.5 | E23: 10
A24: White | C24: 5 | D24: 2.5 | E24: 5 | X24: White | AE24: White
A25: Total | B25: 25 | C25: 0 | D25: 2.5 | E25: 0 | X25: Total | Y25: =B25 -> 25 | AE25: Total | AF25: =Y25 -> 25
A26: Increment | B26: -5 | C26: -5 | D26: 2.5 | E26: -5 | X26: Increment | Y26: =B26 -> -5 | AE26: Increment | AF26: =Y26 -> -5
A27: Conversion | B27: =100/B25 -> 4 | C27: -10 | D27: 2.5 | E27: -10 | X27: Conversion | Y27: =100/Y25 -> 4 | AE27: Conversion | AF27: =100/AF25 -> 4
C28: -15 | D28: 2.5 | E28: -15
C29: -20 | D29: 2.5 | E29: -20
C30: -25 | D30: 2.5 | E30: -25
D31: =B25 -> 25
D33: 10
D35: =SUM(D20:D30) -> 25

Sheet Data (hidden)
B3: Unidades | D3: en Euros | G3: Estacionalidad | AT3: Seg. Social | AX3: IASS_INE | BB3: SEPE | BF3: Mº | BJ3: CE | BL3: INE | BM3: Mº e INE | BN3: Mº y SEPE
B4: CDPs | C4: pry | D4: Facturación € | E4: pry | F4: =B4 -> CDPs | G4: =D4 -> Facturación € | J4: CPDs % i.a. | K4: pry | L4: Facturación % i.a. | M4: pry | AT4: Afiliados_Seg.Social | AU4: pry | AV4: % i.a. | AW4: pry | AX4: Ind_Ocupación_INE_s.78 | AY4: pry | AZ4: % i.a. | BA4: pry | BB4: Contratos SEPE | BC4: pry | BD4: % i.a. | BE4: pry | BF4: CDPs_ETT | BG4: pry | BH4: % i.a. | BI4: pry | BJ4: Clima_Sector_12m | BK4: Empleo3M_Sector_12m | BL4: Cuota Temporalidad (INE) | BM4: Ratio Personas DNIs s/Asalariados Temporales | BN4: Cuota CPDs ETT s/ Contratos Temporales | BO4: pry
A5: 2015-01-01 | B5: 160218 | D5: 199796888.3 | F5: =(AVERAGE(B5,B17,B29,B41,B53)/AVERAGE(B$5:B$64)) -> 0.9266021364 | G5: =(AVERAGE(D5,D17,D29,D41,D53)/AVERAGE(D$5:D$64)) -> 0.8719210031 | H5: ene | I5: =A5 -> 2015-01-01 | R5: =B5 -> 160218 | S5: =D5 -> 199796888.3 | AS5: =A5 -> 2015-01-01 | AT5: =consolida!U159 -> 16589693 | AX5: =consolida!F159 -> 90.395 | BB5: =consolida!B159 -> 1367795 | BF5: =consolida!P159 -> 231337 | BJ5: =consolida!I159 -> 14.9 | BK5: =consolida!N159 -> 11.43333333 | BL5: =consolida!AQ159 -> 23.51235123 | BM5: =consolida!AS159 -> 1.401792222 | BN5: =consolida!AT159 -> 18.5432157
A6: 2015-02-01 | B6: 144598 | D6: 205269817 | F6: =(AVERAGE(B6,B18,B30,B42,B54)/AVERAGE(B$5:B$64)) -> 0.7916362002 | G6: =(AVERAGE(D6,D18,D30,D42,D54)/AVERAGE(D$5:D$64)) -> 0.8612112965 | H6: feb | R6: 144598 | S6: 205269817 | AS6: =A6 -> 2015-02-01 | AT6: =consolida!U160 -> 16705373 | AX6: =consolida!F160 -> 89.092 | BB6: =consolida!B160 -> 1226950 | BF6: =consolida!P160 -> 209171 | BJ6: =consolida!I160 -> 17.75 | BK6: =consolida!N160 -> 14.98333333 | BL6: =consolida!AQ160 -> 23.46932636 | BM6: =consolida!AS160 -> 1.153547623 | BN6: =consolida!AT160 -> 18.90095412
A7: 2015-03-01 | B7: 172644 | D7: 228958857 | F7: 0.8918856561 | G7: 0.9338122634 | H7: mar | R7: 172644 | S7: 228958857 | AS7: 2015-03-01 | AT7: =consolida!U161 -> 16826434 | AX7: =consolida!F161 -> 93.722 | BB7: =consolida!B161 -> 1441775 | BF7: =consolida!P161 -> 247535 | BJ7: =consolida!I161 -> 20.11666667 | BK7: =consolida!N161 -> 18.53333333 | BL7: =consolida!AQ161 -> 23.80945327 | BM7: =consolida!AS161 -> 1.223959379 | BN7: =consolida!AT161 -> 19.07807726
A8: 2015-04-01 | B8: 169105 | D8: 222199034 | F8: 0.9462620291 | G8: 0.9180909925 | H8: abr | R8: 169105 | S8: 222199034 | AS8: 2015-04-01 | AT8: =consolida!U162 -> 16980816 | AX8: =consolida!F162 -> 96.703 | BB8: =consolida!B162 -> 1440381 | BF8: =consolida!P162 -> 236995 | BJ8: =consolida!I162 -> 22.375 | BK8: =consolida!N162 -> 22 | BL8: =consolida!AQ162 -> 24.5190602 | BM8: =consolida!AS162 -> 1.209271916 | BN8: =consolida!AT162 -> 17.99613037
A9: 2015-05-01 | B9: 183107 | D9: 243556211.6 | F9: 1.06142151 | G9: 1.030166318 | H9: may | R9: 183107 | S9: 243556211.6 | AS9: 2015-05-01 | AT9: =consolida!U163 -> 17248258 | AX9: =consolida!F163 -> 103.064 | BB9: =consolida!B163 -> 1573293 | BF9: =consolida!P163 -> 271494 | BJ9: =consolida!I163 -> 26.33333333 | BK9: =consolida!N163 -> 22.78333333 | BL9: =consolida!AQ163 -> 25.12206612 | BM9: =consolida!AS163 -> 1.278806333 | BN9: =consolida!AT163 -> 18.74068122
A10: 2015-06-01 | B10: 200905 | D10: 270713085.8 | F10: 1.089783088 | G10: 1.061212086 | H10: jun | R10: 200905 | S10: 270713085.8 | AS10: 2015-06-01 | AT10: =consolida!U164 -> 17075016 | AX10: =consolida!F164 -> 104.929 | BB10: =consolida!B164 -> 1726117 | BF10: =consolida!P164 -> 286927 | BJ10: =consolida!I164 -> 28.83333333 | BK10: =consolida!N164 -> 20.79166667 | BL10: =consolida!AQ164 -> 25.62709 | BM10: =consolida!AS164 -> 1.282793515 | BN10: =consolida!AT164 -> 17.9412241
A11: 2015-07-01 | B11: 193688 | D11: 301814967.8 | F11: 1.089363062 | G11: 1.16517125 | H11: jul | R11: 193688 | S11: 301814967.8 | AS11: 2015-07-01 | AT11: =consolida!U165 -> 17127908 | AX11: =consolida!F165 -> 104.613 | BB11: =consolida!B165 -> 1795713 | BF11: =consolida!P165 -> 265407 | BJ11: =consolida!I165 -> 31.60833333 | BK11: =consolida!N165 -> 25.93333333 | BL11: =consolida!AQ165 -> 26.04065494 | BM11: =consolida!AS165 -> 1.312325305 | BN11: =consolida!AT165 -> 15.87482071
A12: 2015-08-01 | B12: 174696 | D12: 242881829.1 | F12: 0.9427123635 | G12: 0.9986081605 | H12: ago | R12: 174696 | S12: 242881829.1 | AS12: 2015-08-01 | AT12: =consolida!U166 -> 16983303 | AX12: =consolida!F166 -> 94.74 | BB12: =consolida!B166 -> 1248146 | BF12: =consolida!P166 -> 229251 | BJ12: =consolida!I166 -> 35.85833333 | BK12: =consolida!N166 -> 26.68333333 | BL12: =consolida!AQ166 -> 26.22829388 | BM12: =consolida!AS166 -> 1.062474854 | BN12: =consolida!AT166 -> 19.63007426
A13: 2015-09-01 | B13: 185882 | D13: 268733230.1 | F13: 1.03324671 | G13: 1.047470263 | H13: sep | R13: 185882 | S13: 268733230.1 | AS13: 2015-09-01 | AT13: =consolida!U167 -> 17072551 | AX13: =consolida!F167 -> 102.219 | BB13: =consolida!B167 -> 1795742 | BF13: =consolida!P167 -> 260489 | BJ13: =consolida!I167 -> 34.45833333 | BK13: =consolida!N167 -> 26.25833333 | BL13: =consolida!AQ167 -> 26.19198875 | BM13: =consolida!AS167 -> 1.257951637 | BN13: =consolida!AT167 -> 15.85626857
A14: 2015-10-01 | B14: 199180 | D14: 261992577.1 | F14: 1.134876889 | G14: 1.06653825 | H14: oct | R14: 199180 | S14: 261992577.1 | AS14: 2015-10-01 | AT14: =consolida!U168 -> 17209036 | AX14: =consolida!F168 -> 107.047 | BB14: =consolida!B168 -> 1760610 | BF14: =consolida!P168 -> 298803 | BJ14: =consolida!I168 -> 34.70833333 | BK14: =consolida!N168 -> 28.15833333 | BL14: =consolida!AQ168 -> 25.93297296 | BM14: =consolida!AS168 -> 1.351907379 | BN14: =consolida!AT168 -> 18.57121193
A15: 2015-11-01 | B15: 192380 | D15: 260565964.7 | F15: 1.075721158 | G15: 1.071014837 | H15: nov | J15: MES | N15: SUMA | P15: ACUM | R15: 192380 | S15: 260565964.7 | AS15: 2015-11-01 | AT15: =consolida!U169 -> 17208793 | AX15: =consolida!F169 -> 107.937 | BB15: =consolida!B169 -> 1604843 | BF15: =consolida!P169 -> 296266 | BJ15: =consolida!I169 -> 38.78333333 | BK15: =consolida!N169 -> 30.16666667 | BL15: =consolida!AQ169 -> 25.6640435 | BM15: =consolida!AS169 -> 1.314147656 | BN15: =consolida!AT169 -> 20.12709446
A16: 2015-12-01 | B16: 182052 | D16: 250421099.1 | F16: 1.016489197 | G16: 0.9747832787 | H16: dic | J16: =J4 -> CPDs % i.a. | L16: =L4 -> Facturación % i.a. | N16: =J16 -> CPDs % i.a. | O16: =L16 -> Facturación % i.a. | P16: =N16 -> CPDs % i.a. | Q16: =O16 -> Facturación % i.a. | R16: 182052 | S16: 250421099.1 | T16: =pAccel1!Y3 -> CPDs a 3M | U16: =pAccel1!AF3 -> Facturación a 3M | AS16: 2015-12-01 | AT16: =consolida!U170 -> 17180590 | AX16: =consolida!F170 -> 105.538 | BB16: =consolida!B170 -> 1594915 | BF16: =consolida!P170 -> 275116 | BJ16: =consolida!I170 -> 41.76666667 | BK16: =consolida!N170 -> 31.85 | BL16: =consolida!AQ170 -> 25.38385468 | BM16: =consolida!AS170 -> 1.291342502 | BN16: =consolida!AT170 -> 18.50070307
A17: 2016-01-01 | B17: 175552 | D17: 227000351.3 | F17: =F5 -> 0.9266021364 | G17: =G5 -> 0.8719210031 | I17: =A17 -> 2016-01-01 | J17: =((R17/R5)-1) -> 0.09570709908 | L17: =((S17/S5)-1) -> 0.1361555886 | R17: =B17 -> 175552 | S17: =D17 -> 227000351.3 | AS17: 2016-01-01 | AT17: =consolida!U171 -> 17112224 | AV17: =AT17/AT5-1 -> 0.03149732789 | AX17: =consolida!F171 -> 100.075 | AZ17: =AX17/AX5-1 -> 0.1070855689 | BB17: =consolida!B171 -> 1396929 | BD17: =BB17/BB5-1 -> 0.02129997551 | BF17: =consolida!P171 -> 264702 | BH17: =BF17/BF5-1 -> 0.1442268206 | BJ17: =consolida!I171 -> 45.40833333 | BK17: =consolida!N171 -> 33.25 | BL17: =consolida!AQ171 -> 25.09094241 | BM17: =consolida!AS171 -> 1.344962834 | BN17: =consolida!AT171 -> 20.82108554
A18: 2016-02-01 | B18: 165959 | D18: 241066786.2 | F18: =F6 -> 0.7916362002 | G18: 0.8612112965 | I18: 2016-02-01 | J18: 0.1477268012 | L18: 0.1743898332 | R18: =B18 -> 165959 | S18: =D18 -> 241066786.2 | AS18: 2016-02-01 | AT18: =consolida!U172 -> 17136666 | AV18: =AT18/AT6-1 -> 0.02581762167 | AX18: =consolida!F172 -> 97.505 | AZ18: =AX18/AX6-1 -> 0.09443047636 | BB18: =consolida!B172 -> 1377480 | BD18: =BB18/BB6-1 -> 0.122686336 | BF18: =consolida!P172 -> 243391 | BH18: =BF18/BF6-1 -> 0.1635982043 | BJ18: =consolida!I172 -> 46.55833333 | BK18: =consolida!N172 -> 32.60833333 | BL18: =consolida!AQ172 -> 24.98147371 | BM18: =consolida!AS172 -> 1.14982212 | BN18: =consolida!AT172 -> 19.65817419
A19: 2016-03-01 | B19: 183929 | D19: 250361676.6 | F19: =F7 -> 0.8918856561 | G19: 0.9338122634 | I19: 2016-03-01 | J19: 0.06536572369 | L19: 0.09347888937 | R19: 183929 | S19: 250361676.6 | T19: =(AVERAGE(R17:R19)/AVERAGE(R5:R7))-1 -> 0.1004900934 | U19: =(AVERAGE(S17:S19)/AVERAGE(S5:S7))-1 -> 0.1331227899 | AS19: 2016-03-01 | AT19: =consolida!U173 -> 17263972 | AV19: 0.02600301407 | AX19: =consolida!F173 -> 101.212 | AZ19: 0.07991720194 | BB19: =consolida!B173 -> 1508881 | BD19: 0.04654401692 | BF19: =consolida!P173 -> 266262 | BH19: 0.07565394793 | BJ19: =consolida!I173 -> 46.15 | BK19: =consolida!N173 -> 32.01666667 | BL19: =consolida!AQ173 -> 25.05659626 | BM19: =consolida!AS173 -> 1.216394372 | BN19: =consolida!AT173 -> 19.6046843 | BX19: Aquí salen 4 puntos en la segunda Serie
A20: 2016-04-01 | B20: 189564 | D20: 263007210.8 | F20: =F8 -> 0.9462620291 | G20: 0.9180909925 | I20: 2016-04-01 | J20: 0.120984004 | L20: 0.1836559594 | R20: 189564 | S20: 263007210.8 | T20: =(AVERAGE(R18:R20)/AVERAGE(R6:R8))-1 -> 0.1091915854 | U20: 0.1493050406 | AS20: 2016-04-01 | AT20: =consolida!U174 -> 17536670 | AV20: 0.03273423374 | AX20: =consolida!F174 -> 104.853 | AZ20: 0.08427866767 | BB20: =consolida!B174 -> 1541729 | BD20: 0.07036193896 | BF20: =consolida!P174 -> 273915 | BH20: 0.1557838773 | BJ20: =consolida!I174 -> 44.90833333 | BK20: =consolida!N174 -> 33.49166667 | BL20: =consolida!AQ174 -> 25.31335019 | BM20: =consolida!AS174 -> 1.261871624 | BN20: =consolida!AT174 -> 19.62376588 | BX20: pero en dashboard salen solo los Tres ultimos, Ok.
A21: 2016-05-01 | B21: 211534 | D21: 270004703.6 | F21: =F9 -> 1.06142151 | G21: 1.030166318 | I21: 2016-05-01 | J21: 0.1552480244 | L21: 0.1085929683 | R21: 211534 | S21: 270004703.6 | T21: =(AVERAGE(R19:R21)/AVERAGE(R7:R9))-1 -> 0.1146428735 | U21: 0.1276201074 | AS21: 2016-05-01 | AT21: =consolida!U175 -> 17598892 | AV21: 0.0203286616 | AX21: =consolida!F175 -> 111.403 | AZ21: 0.08091089032 | BB21: =consolida!B175 -> 1748449 | BD21: 0.1113308201 | BF21: =consolida!P175 -> 311082 | BH21: 0.1458153771 | BJ21: =consolida!I175 -> 43.11666667 | BK21: =consolida!N175 -> 33.73333333 | BL21: =consolida!AQ175 -> 25.68202163 | BM21: =consolida!AS175 -> 1.308302187 | BN21: =consolida!AT175 -> 19.41000406
A22: 2016-06-01 | B22: 217649 | D22: 290023474.2 | F22: =F10 -> 1.089783088 | G22: 1.061212086 | I22: 2016-06-01 | J22: 0.0833428735 | L22: =((S22/S10)-1) -> 0.07133156623 | R22: 217649 | S22: 290023474.2 | T22: =(AVERAGE(R20:R22)/AVERAGE(R8:R10))-1 -> 0.1186548235 | U22: 0.1175434889 | AS22: 2016-06-01 | AT22: =consolida!U176 -> 17569070 | AV22: 0.02893432135 | AX22: =consolida!F176 -> 114.262 | AZ22: 0.08894585863 | BB22: =consolida!B176 -> 1920340 | BD22: 0.1125201826 | BF22: =consolida!P176 -> 318281 | BH22: 0.1092751815 | BJ22: =consolida!I176 -> 39.99166667 | BK22: =consolida!N176 -> 34.475 | BL22: =consolida!AQ176 -> 26.16111077 | BM22: =consolida!AS176 -> 1.356816122 | BN22: =consolida!AT176 -> 17.96223923
A23: 2016-07-01 | B23: 205096 | D23: 306913963.3 | F23: =F11 -> 1.089363062 | G23: 1.16517125 | I23: 2016-07-01 | J23: 0.05889884763 | L23: 0.01689444198 | R23: 205096 | S23: 306913963.3 | T23: =(AVERAGE(R21:R23)/AVERAGE(R9:R11))-1 -> 0.09793837632 | U23: 0.06231939276 | AS23: 2016-07-01 | AT23: =consolida!U177 -> 17805681 | AV23: 0.0395712658 | AX23: =consolida!F177 -> 114.806 | AZ23: 0.09743530919 | BB23: =consolida!B177 -> 1816271 | BD23: 0.01144837733 | BF23: =consolida!P177 -> 285853 | BH23: 0.0770364007 | BJ23: =consolida!I177 -> 41.24166667 | BK23: =consolida!N177 -> 37.3 | BL23: =consolida!AQ177 -> 26.74961267 | BM23: =consolida!AS177 -> 1.32342059 | BN23: =consolida!AT177 -> 17.02640032
A24: 2016-08-01 | B24: 198154 | D24: 282512008.1 | F24: =F12 -> 0.9427123635 | G24: 0.9986081605 | I24: 2016-08-01 | J24: 0.134278976 | L24: 0.1631665043 | R24: 198154 | S24: 282512008.1 | T24: =(AVERAGE(R22:R24)/AVERAGE(R10:R12))-1 -> 0.09065694226 | U24: 0.07853665284 | AS24: 2016-08-01 | AT24: =consolida!U178 -> 17452445 | AV24: 0.0276237196 | AX24: =consolida!F178 -> 106.118 | AZ24: 0.1200971079 | BB24: =consolida!B178 -> 1451789 | BD24: 0.1631563936 | BF24: =consolida!P178 -> 258953 | BH24: 0.1295610488 | BJ24: =consolida!I178 -> 39.48333333 | BK24: =consolida!N178 -> 38.13333333 | BL24: =consolida!AQ178 -> 27.04936708 | BM24: =consolida!AS178 -> 1.168345126 | BN24: =consolida!AT178 -> 19.22927836
A25: 2016-09-01 | B25: 207943 | D25: 299676331.1 | F25: =F13 -> 1.03324671 | G25: 1.047470263 | I25: 2016-09-01 | J25: 0.1186828203 | L25: 0.1151443051 | R25: 207943 | S25: 299676331.1 | T25: =(AVERAGE(R23:R25)/AVERAGE(R11:R13))-1 -> 0.1027070035 | U25: 0.09302862323 | AS25: 2016-09-01 | AT25: =consolida!U179 -> 17603313 | AV25: 0.03108861704 | AX25: =consolida!F179 -> 114.053 | AZ25: 0.1157710406 | BB25: =consolida!B179 -> 1907000 | BD25: 0.06195656169 | BF25: =consolida!P179 -> 296811 | BH25: 0.1394377498 | BJ25: =consolida!I179 -> 38.95833333 | BK25: =consolida!N179 -> 41.39166667 | BL25: =consolida!AQ179 -> 27.06504509 | BM25: =consolida!AS179 -> 1.291221524 | BN25: =consolida!AT179 -> 17.09752602
A26: 2016-10-01 | B26: 225634 | D26: 281198921.8 | F26: =F14 -> 1.134876889 | G26: 1.06653825 | I26: 2016-10-01 | J26: 0.1328145396 | L26: 0.07330873594 | R26: 225634 | S26: 281198921.8 | T26: =(AVERAGE(R24:R26)/AVERAGE(R12:R14))-1 -> 0.1285787787 | U26: 0.116053178 | AS26: 2016-10-01 | AT26: =consolida!U180 -> 17666175 | AV26: 0.02656389353 | AX26: =consolida!F180 -> 115.544 | AZ26: 0.07937634871 | BB26: =consolida!B180 -> 1867360 | BD26: 0.06063239445 | BF26: =consolida!P180 -> 332326 | BH26: 0.1121909753 | BJ26: =consolida!I180 -> 38.875 | BK26: =consolida!N180 -> 41.60833333 | BL26: =consolida!AQ180 -> 26.79769011 | BM26: =consolida!AS180 -> 1.364824521 | BN26: =consolida!AT180 -> 19.54249557
A27: 2016-11-01 | B27: 220328 | D27: 302079308.2 | F27: =F15 -> 1.075721158 | G27: 1.071014837 | I27: 2016-11-01 | J27: 0.1452749766 | L27: 0.1593199002 | R27: 220328 | S27: 302079308.2 | T27: =(AVERAGE(R25:R27)/AVERAGE(R13:R15))-1 -> 0.1324167622 | U27: 0.1158394317 | AS27: 2016-11-01 | AT27: =consolida!U181 -> 17734106 | AV27: 0.03052584804 | AX27: =consolida!F181 -> 120.356 | AZ27: 0.1150578578 | BB27: =consolida!B181 -> 1743708 | BD27: 0.0865287134 | BF27: =consolida!P181 -> 323282 | BH27: 0.09118832401 | BJ27: =consolida!I181 -> 36.40833333 | BK27: =consolida!N181 -> 44.36666667 | BL27: =consolida!AQ181 -> 26.4868368 | BM27: =consolida!AS181 -> 1.460640697 | BN27: =consolida!AT181 -> 20.34686636
A28: 2016-12-01 | B28: 208182 | D28: 276641661.9 | F28: =F16 -> 1.016489197 | G28: =G16 -> 0.9747832787 | I28: 2016-12-01 | J28: 0.1435304199 | L28: 0.1047058848 | P28: =((SUM(R17:R28)/SUM(R5:R16))-1) -> 0.1163188484 | Q28: =((SUM(S17:S28)/SUM(S5:S16))-1) -> 0.1128149188 | R28: 208182 | S28: 276641661.9 | T28: =(AVERAGE(R26:R28)/AVERAGE(R14:R16))-1 -> 0.1403945524 | U28: 0.1124741795 | AS28: 2016-12-01 | AT28: =consolida!U182 -> 17741897 | AV28: 0.03267099675 | AX28: =consolida!F182 -> 115.708 | AZ28: 0.09636339518 | BB28: =consolida!B182 -> 1699018 | BD28: 0.06527181699 | BF28: =consolida!P182 -> 306679 | BH28: 0.1147261519 | BJ28: =consolida!I182 -> 37.10833333 | BK28: =consolida!N182 -> 44.84166667 | BL28: =consolida!AQ182 -> 26.13150398 | BM28: =consolida!AS182 -> 1.362362845 | BN28: =consolida!AT182 -> 19.45039208
A29: 2017-01-01 | B29: 212821 | D29: 264975684.5 | F29: =F17 -> 0.9266021364 | G29: =G17 -> 0.8719210031 | I29: 2017-01-01 | J29: =((R29/R17)-1) -> 0.2122960718 | L29: 0.1672919581 | N29: =((SUM($R$29:R29)/SUM($R$17:R17))-1) -> 0.2122960718 | O29: =((SUM($S$29:S29)/SUM($S$17:S17))-1) -> 0.1672919581 | P29: =((SUM(R18:R29)/SUM(R6:R17))-1) -> 0.1255890061 | Q29: =((SUM(S18:S29)/SUM(S6:S17))-1) -> 0.1153962317 | R29: 212821 | S29: 264975684.5 | T29: =(AVERAGE(R27:R29)/AVERAGE(R15:R17))-1 -> 0.1660902863 | U29: 0.1432398945 | AS29: 2017-01-01 | AT29: =consolida!U183 -> 17603835 | AV29: 0.02872864451 | AX29: =consolida!F183 -> 111.443 | AZ29: 0.1135948039 | BB29: =consolida!B183 -> 1633592 | BD29: 0.1694166275 | BF29: =consolida!P183 -> 316513 | BH29: 0.1957333152 | BJ29: =consolida!I183 -> 35.76666667 | BK29: =consolida!N183 -> 41.70833333 | BL29: =consolida!AQ183 -> 25.73048749 | BM29: =consolida!AS183 -> 1.474843094 | BN29: =consolida!AT183 -> 21.33656458
A30: 2017-02-01 | B30: 177524 | D30: 264704995.4 | F30: =F18 -> 0.7916362002 | G30: 0.8612112965 | I30: 2017-02-01 | J30: 0.06968588627 | L30: 0.09805668227 | N30: =((SUM($R$29:R30)/SUM($R$17:R18))-1) -> 0.1429939299 | O30: =((SUM($S$29:S30)/SUM($S$17:S18))-1) -> 0.1316339849 | P30: =((SUM(R19:R30)/SUM(R7:R18))-1) -> 0.1199043346 | Q30: 0.1100021545 | R30: 177524 | S30: 264704995.4 | T30: =(AVERAGE(R28:R30)/AVERAGE(R16:R18))-1 -> 0.1431804768 | U30: 0.1222484945 | AS30: 2017-02-01 | AT30: =consolida!U184 -> 17728908 | AV30: 0.03455993132 | AX30: =consolida!F184 -> 107.75 | AZ30: 0.1050715348 | BB30: =consolida!B184 -> 1452528 | BD30: 0.05448209774 | BF30: =consolida!P184 -> 266143 | BH30: 0.09347921657 | BJ30: =consolida!I184 -> 35.18333333 | BK30: =consolida!N184 -> 40.125 | BL30: =consolida!AQ184 -> 25.64489215 | BM30: =consolida!AS184 -> 1.217909434 | BN30: =consolida!AT184 -> 20.44963487
A31: 2017-03-01 | B31: 201316 | D31: 305008132.4 | F31: =F19 -> 0.8918856561 | G31: 0.9338122634 | I31: 2017-03-01 | J31: 0.09453104187 | L31: 0.2182700502 | N31: =((SUM($R$29:R31)/SUM($R$17:R19))-1) -> 0.1260296133 | O31: =((SUM($S$29:S31)/SUM($S$17:S19))-1) -> 0.1618253555 | P31: =((SUM(R20:R31)/SUM(R8:R19))-1) -> 0.1220566207 | Q31: 0.1201587358 | R31: 201316 | S31: 305008132.4 | T31: =(AVERAGE(R29:R31)/AVERAGE(R17:R19))-1 -> 0.1260296133 | U31: 0.1618253555 | AS31: 2017-03-01 | AT31: =consolida!U185 -> 17852834 | AV31: 0.03410929999 | AX31: =consolida!F185 -> 112.384 | AZ31: 0.1103821681 | BB31: =consolida!B185 -> 1732773 | BD31: 0.1483828082 | BF31: =consolida!P185 -> 296002 | BH31: 0.1116944964 | BJ31: =consolida!I185 -> 33.45 | BK31: =consolida!N185 -> 39.68333333 | BL31: =consolida!AQ185 -> 25.87471418 | BM31: =consolida!AS185 -> 1.336740333 | BN31: =consolida!AT185 -> 19.04351994
A32: 2017-04-01 | B32: 208427 | D32: 273144021.8 | F32: =F20 -> 0.9462620291 | G32: 0.9180909925 | I32: 2017-04-01 | J32: 0.09950729041 | L32: 0.03854195098 | N32: =((SUM($R$29:R32)/SUM($R$17:R20))-1) -> 0.1189979357 | O32: =((SUM($S$29:S32)/SUM($S$17:S20))-1) -> 0.1287876194 | P32: =((SUM(R21:R32)/SUM(R9:R20))-1) -> 0.1202185645 | Q32: 0.108616394 | R32: 208427 | S32: 273144021.8 | T32: =(AVERAGE(R30:R32)/AVERAGE(R18:R20))-1 -> 0.08863624567 | U32: 0.1172021408 | AS32: 2017-04-01 | AT32: =consolida!U186 -> 18184000 | AV32: 0.03691293729 | AX32: =consolida!F186 -> 113.543 | AZ32: 0.08287793387 | BB32: =consolida!B186 -> 1604476 | BD32: 0.04069911119 | BF32: =consolida!P186 -> 300996 | BH32: 0.09886643667 | BJ32: =consolida!I186 -> 33.26666667 | BK32: =consolida!N186 -> 41.80833333 | BL32: =consolida!AQ186 -> 26.41123109 | BM32: =consolida!AS186 -> 1.316908534 | BN32: =consolida!AT186 -> 20.71508601
A33: 2017-05-01 | B33: 259778 | D33: 337304801.4 | F33: =F21 -> 1.06142151 | G33: 1.030166318 | I33: 2017-05-01 | J33: 0.2280673556 | L33: 0.2492552791 | N33: =((SUM($R$29:R33)/SUM($R$17:R21))-1) -> 0.1438991169 | O33: =((SUM($S$29:S33)/SUM($S$17:S21))-1) -> 0.1547791299 | P33: =((SUM(R22:R33)/SUM(R10:R21))-1) -> 0.1274900557 | Q33: 0.1208338913 | R33: 259778 | S33: 337304801.4 | T33: =(AVERAGE(R31:R33)/AVERAGE(R19:R21))-1 -> 0.1444275221 | U33: 0.1686083958 | AS33: 2017-05-01 | AT33: =consolida!U187 -> 18261899 | AV33: 0.03767322397 | AX33: =consolida!F187 -> 124.492 | AZ33: 0.1174923476 | BB33: =consolida!B187 -> 2027569 | BD33: 0.1596386283 | BF33: =consolida!P187 -> 374096 | BH33: 0.2025639542 | BJ33: =consolida!I187 -> 33.84166667 | BK33: =consolida!N187 -> 41.30833333 | BL33: =consolida!AQ187 -> 26.83948192 | BM33: =consolida!AS187 -> 1.506328926 | BN33: =consolida!AT187 -> 20.10942309
A34: 2017-06-01 | B34: 257775 | D34: 344041052.3 | F34: =F22 -> 1.089783088 | G34: 1.061212086 | I34: 2017-06-01 | J34: 0.1843610584 | L34: 0.1862524344 | N34: =((SUM($R$29:R34)/SUM($R$17:R22))-1) -> 0.1515958493 | O34: =((SUM($S$29:S34)/SUM($S$17:S22))-1) -> 0.1607007705 | P34: =((SUM(R23:R34)/SUM(R11:R22))-1) -> 0.1368415956 | Q34: 0.1311840018 | R34: 257775 | S34: 344041052.3 | T34: =(AVERAGE(R32:R34)/AVERAGE(R20:R22))-1 -> 0.1733066989 | U34: 0.1597191187 | AS34: 2017-06-01 | AT34: =consolida!U188 -> 18196843 | AV34: 0.03573171488 | AX34: =consolida!F188 -> 128.18 | AZ34: 0.1218077751 | BB34: =consolida!B188 -> 2089520 | BD34: 0.08809898247 | BF34: =consolida!P188 -> 363611 | BH34: 0.1424213195 | BJ34: =consolida!I188 -> 31.10833333 | BK34: =consolida!N188 -> 39.3 | BL34: =consolida!AQ188 -> 27.16481633 | BM34: =consolida!AS188 -> 1.49590871 | BN34: =consolida!AT188 -> 18.90795805
A35: 2017-07-01 | B35: 251060 | D35: 367511664.9 | F35: =F23 -> 1.089363062 | G35: 1.16517125 | I35: 2017-07-01 | J35: 0.2241096852 | L35: 0.1974419834 | N35: =((SUM($R$29:R35)/SUM($R$17:R23))-1) -> 0.1626182202 | O35: =((SUM($S$29:S35)/SUM($S$17:S23))-1) -> 0.1668014654 | P35: =((SUM(R24:R35)/SUM(R12:R23))-1) -> 0.1512910378 | Q35: 0.1486848874 | R35: 251060 | S35: 367511664.9 | T35: =(AVERAGE(R33:R35)/AVERAGE(R21:R23))-1 -> 0.2117900798 | U35: 0.2098356613 | AS35: 2017-07-01 | AT35: =consolida!U189 -> 18276939 | AV35: 0.02646672149 | AX35: =consolida!F189 -> 124.773 | AZ35: 0.08681602007 | BB35: =consolida!B189 -> 1928639 | BD35: 0.06186741956 | BF35: =consolida!P189 -> 331594 | BH35: 0.1600158123 | BJ35: =consolida!I189 -> 30.29166667 | BK35: =consolida!N189 -> 38.725 | BL35: =consolida!AQ189 -> 27.39115027 | BM35: =consolida!AS189 -> 1.457589967 | BN35: =consolida!AT189 -> 18.66409702
A36: 2017-08-01 | B36: 218139 | D36: 326471103.6 | F36: =F24 -> 0.9427123635 | G36: 0.9986081605 | I36: 2017-08-01 | J36: 0.1008559 | L36: 0.1556008036 | N36: =((SUM($R$29:R36)/SUM($R$17:R24))-1) -> 0.1547093678 | O36: =((SUM($S$29:S36)/SUM($S$17:S24))-1) -> 0.1653164891 | P36: =((SUM(R25:R36)/SUM(R13:R24))-1) -> 0.1482471734 | Q36: 0.1481920768 | R36: 218139 | S36: 326471103.6 | T36: =(AVERAGE(R34:R36)/AVERAGE(R22:R24))-1 -> 0.1708409902 | U36: 0.1803109616 | AS36: 2017-08-01 | AT36: =consolida!U190 -> 18040193 | AV36: 0.03367711515 | AX36: =consolida!F190 -> 116.772 | AZ36: 0.1003976705 | BB36: =consolida!B190 -> 1536400 | BD36: 0.0582805077 | BF36: =consolida!P190 -> 285704 | BH36: 0.1033044607 | BJ36: =consolida!I190 -> 33.34166667 | BK36: =consolida!N190 -> 38.64166667 | BL36: =consolida!AQ190 -> 27.43824269 | BM36: =consolida!AS190 -> 1.27056108 | BN36: =consolida!AT190 -> 20.10558628
A37: 2017-09-01 | B37: 241468 | D37: 342733767.4 | F37: =F25 -> 1.03324671 | G37: 1.047470263 | I37: 2017-09-01 | J37: 0.1612220657 | L37: 0.1436798032 | N37: =((SUM($R$29:R37)/SUM($R$17:R25))-1) -> 0.1554808645 | O37: =((SUM($S$29:S37)/SUM($S$17:S25))-1) -> 0.1626487972 | P37: =((SUM(R26:R37)/SUM(R14:R25))-1) -> 0.1517652272 | Q37: 0.1505422265 | R37: 241468 | S37: 342733767.4 | T37: =(AVERAGE(R35:R37)/AVERAGE(R23:R25))-1 -> 0.1627538274 | U37: 0.1660261513 | AS37: 2017-09-01 | AT37: =consolida!U191 -> 18400141 | AV37: 0.04526579741 | AX37: =consolida!F191 -> 125.359 | AZ37: 0.09912935214 | BB37: =consolida!B191 -> 1993267 | BD37: 0.0452370215 | BF37: =consolida!P191 -> 325618 | BH37: 0.09705502828 | BJ37: =consolida!I191 -> 35.24166667 | BK37: =consolida!N191 -> 37.76666667 | BL37: =consolida!AQ191 -> 27.30788181 | BM37: =consolida!AS191 -> 1.429246846 | BN37: =consolida!AT191 -> 18.08409193
A38: 2017-10-01 | B38: 262469 | D38: 348193713.7 | F38: =F26 -> 1.134876889 | G38: 1.06653825 | I38: 2017-10-01 | J38: 0.1632511058 | L38: 0.2382469731 | N38: =((SUM($R$29:R38)/SUM($R$17:R26))-1) -> 0.1563658813 | O38: =((SUM($S$29:S38)/SUM($S$17:S26))-1) -> 0.1704880171 | P38: =((SUM(R27:R38)/SUM(R15:R26))-1) -> 0.1544679861 | Q38: 0.1644735108 | R38: 262469 | S38: 348193713.7 | T38: =(AVERAGE(R36:R38)/AVERAGE(R24:R26))-1 -> 0.1430118199 | U38: 0.1783803522 | AS38: 2017-10-01 | AT38: =consolida!U192 -> 18281362 | AV38: 0.03482287479 | AX38: =consolida!F192 -> 129.227 | AZ38: 0.1184224192 | BB38: =consolida!B192 -> 2032184 | BD38: 0.08826578699 | BF38: =consolida!P192 -> 362397 | BH38: 0.09048645005 | BJ38: =consolida!I192 -> 36.41666667 | BK38: =consolida!N192 -> 37.225 | BL38: =consolida!AQ192 -> 27.00081493 | BM38: =consolida!AS192 -> 1.502287301 | BN38: =consolida!AT192 -> 19.80698956
A39: 2017-11-01 | B39: 236691 | D39: 360609182.7 | F39: =F27 -> 1.075721158 | G39: 1.071014837 | I39: 2017-11-01 | J39: 0.07426654806 | L39: 0.1937566489 | N39: =((SUM($R$29:R39)/SUM($R$17:R27))-1) -> 0.1481487202 | O39: =((SUM($S$29:S39)/SUM($S$17:S27))-1) -> 0.1728202448 | P39: =((SUM(R28:R39)/SUM(R16:R27))-1) -> 0.1477959582 | Q39: 0.1675947902 | R39: 236691 | S39: 360609182.7 | T39: =(AVERAGE(R37:R39)/AVERAGE(R25:R27))-1 -> 0.1326232404 | U39: 0.1909295338 | AS39: 2017-11-01 | AT39: =consolida!U193 -> 18364819 | AV39: 0.03556497294 | AX39: =consolida!F193 -> 130.72 | AZ39: 0.08611120343 | BB39: =consolida!B193 -> 1818339 | BD39: 0.04280017067 | BF39: =consolida!P193 -> 335660 | BH39: 0.03828855303 | BJ39: =consolida!I193 -> 35.66666667 | BK39: =consolida!N193 -> 32.38333333 | BL39: =consolida!AQ193 -> 26.70268369 | BM39: =consolida!AS193 -> 1.490038326 | BN39: =consolida!AT193 -> 20.37257671
A40: 2017-12-01 | B40: 228084 | D40: 316170671.8 | F40: =F28 -> 1.016489197 | G40: =G28 -> 0.9747832787 | I40: 2017-12-01 | J40: 0.09559904314 | L40: 0.1428888535 | N40: =((SUM($R$29:R40)/SUM($R$17:R28))-1) -> 0.1436084471 | O40: =((SUM($S$29:S40)/SUM($S$17:S28))-1) -> 0.1703038175 | P40: =((SUM(R29:R40)/SUM(R17:R28))-1) -> 0.1436084471 | Q40: 0.1703038175 | R40: 228084 | S40: 316170671.8 | T40: =(AVERAGE(R38:R40)/AVERAGE(R26:R28))-1 -> 0.111749095 | U40: 0.1919407585 | AS40: 2017-12-01 | AT40: =consolida!U194 -> 18331107 | AV40: 0.03321009022 | AX40: =consolida!F194 -> 126.086 | AZ40: 0.08969129187 | BB40: =consolida!B194 -> 1652016 | BD40: -0.02766421545 | BF40: =consolida!P194 -> 314153 | BH40: 0.024370759 | BJ40: =consolida!I194 -> 35.49166667 | BK40: =consolida!N194 -> 31.01666667 | BL40: =consolida!AQ194 -> 26.41101431 | BM40: =consolida!AS194 -> 1.393346705 | BN40: =consolida!AT194 -> 20.6550647
A41: 2018-01-01 | B41: 238456 | D41: 318216828.3 | F41: =F29 -> 0.9266021364 | G41: 0.8719210031 | I41: 2018-01-01 | J41: 0.1204533387 | L41: 0.200928413 | N41: =((SUM($R$41:R41)/SUM($R$29:R29))-1) -> 0.1204533387 | O41: =((SUM($S$41:S41)/SUM($S$29:S29))-1) -> 0.200928413 | P41: =((SUM(R30:R41)/SUM(R18:R29))-1) -> 0.1366662403 | Q41: =((SUM(S30:S41)/SUM(S18:S29))-1) -> 0.1729472207 | R41: 238456 | S41: 318216828.3 | T41: =(AVERAGE(R39:R41)/AVERAGE(R27:R29))-1 -> 0.09651802267 | U41: 0.1793298898 | AS41: 2018-01-01 | AT41: =consolida!U195 -> 18211901 | AV41: 0.03454167799 | AX41: =consolida!F195 -> 121.174 | AZ41: 0.08731818059 | BB41: =consolida!B195 -> 1749911 | BD41: 0.07120443783 | BF41: =consolida!P195 -> 342985 | BH41: 0.08363637513 | BJ41: =consolida!I195 -> 35.58333333 | BK41: =consolida!N195 -> 31.58333333 | BL41: =consolida!AQ195 -> 26.1234124 | BM41: =consolida!AS195 -> 1.576942552 | BN41: =consolida!AT195 -> 21.74978661
A42: 2018-02-01 | B42: 196310 | D42: 304349801.1 | F42: =F30 -> 0.7916362002 | G42: 0.8612112965 | I42: 2018-02-01 | J42: 0.1058223113 | L42: 0.1497697676 | N42: =((SUM($R$41:R42)/SUM($R$29:R30))-1) -> 0.1137993314 | O42: =((SUM($S$41:S42)/SUM($S$29:S30))-1) -> 0.1753621624 | P42: 0.1389606396 | Q42: =((SUM(S31:S42)/SUM(S19:S30))-1) -> 0.1765027333 | R42: 196310 | S42: 304349801.1 | T42: =(AVERAGE(R40:R42)/AVERAGE(R28:R30))-1 -> 0.107468836 | U42: 0.1642208735 | AS42: 2018-02-01 | AT42: =consolida!U196 -> 18314467 | AV42: 0.03302848658 | AX42: =consolida!F196 -> 116.26 | AZ42: 0.07897911833 | BB42: =consolida!B196 -> 1546402 | BD42: 0.06462801406 | BF42: =consolida!P196 -> 280698 | BH42: 0.05468864483 | BJ42: =consolida!I196 -> 37.24166667 | BK42: =consolida!N196 -> 33.64166667 | BL42: =consolida!AQ196 -> 26.04070254 | BM42: =consolida!AS196 -> 1.27606815 | BN42: =consolida!AT196 -> 20.45732318
A43: 2018-03-01 | B43: 215600 | D43: 324418942.1 | F43: =F31 -> 0.8918856561 | G43: 0.9338122634 | I43: 2018-03-01 | J43: 0.07095312842 | L43: 0.0636403022 | N43: =((SUM($R$41:R43)/SUM($R$29:R31))-1) -> 0.09922066859 | O43: =((SUM($S$41:S43)/SUM($S$29:S31))-1) -> 0.134537276 | P43: 0.1367313677 | Q43: =((SUM(S32:S43)/SUM(S20:S31))-1) -> 0.1633286107 | R43: 215600 | S43: 324418942.1 | T43: =(AVERAGE(R41:R43)/AVERAGE(R29:R31))-1 -> 0.09922066859 | U43: 0.134537276 | AS43: 2018-03-01 | AT43: =consolida!U197 -> 18542644 | AV43: 0.03863868336 | AX43: =consolida!F197 -> 119.694 | AZ43: 0.06504484624 | BB43: =consolida!B197 -> 1646846 | BD43: -0.04958929993 | BF43: =consolida!P197 -> 306027 | BH43: 0.03386801441 | BJ43: =consolida!I197 -> 40.05 | BK43: =consolida!N197 -> 37.71666667 | BL43: =consolida!AQ197 -> 26.16464397 | BM43: =consolida!AS197 -> 1.361330695 | BN43: =consolida!AT197 -> 21.05596678
A44: 2018-04-01 | B44: 237825 | D44: 327624029.8 | F44: =F32 -> 0.9462620291 | G44: 0.9180909925 | I44: 2018-04-01 | J44: 0.1410469853 | L44: 0.199455246 | N44: =((SUM($R$41:R44)/SUM($R$29:R32))-1) -> 0.1101166372 | O44: =((SUM($S$41:S44)/SUM($S$29:S32))-1) -> 0.1505432607 | P44: 0.1399205807 | Q44: =((SUM(S33:S44)/SUM(S21:S32))-1) -> 0.1758217406 | R44: 237825 | S44: 327624029.8 | T44: =(AVERAGE(R42:R44)/AVERAGE(R30:R32))-1 -> 0.1063706968 | U44: 0.1347032809 | AS44: 2018-04-01 | AT44: =consolida!U198 -> 18659703 | AV44: 0.02616052574 | AX44: =consolida!F198 -> 122.977 | AZ44: 0.08308746466 | BB44: =consolida!B198 -> 1772557 | BD44: 0.1047575657 | BF44: =consolida!P198 -> 335215 | BH44: 0.1136858962 | BJ44: =consolida!I198 -> 40.28333333 | BK44: =consolida!N198 -> 36.25833333 | BL44: =consolida!AQ198 -> 26.48790287 | BM44: =consolida!AS198 -> 1.415975618 | BN44: =consolida!AT198 -> 21.17745687
A45: 2018-05-01 | B45: 261334 | D45: 361922689.8 | F45: =F33 -> 1.06142151 | G45: 1.030166318 | I45: 2018-05-01 | J45: 0.005989729692 | L45: 0.07298410326 | N45: =((SUM($R$41:R45)/SUM($R$29:R33))-1) -> 0.08459465631 | O45: =((SUM($S$41:S45)/SUM($S$29:S33))-1) -> 0.132440434 | P45: 0.1189054652 | Q45: =((SUM(S34:S45)/SUM(S22:S33))-1) -> 0.1601753108 | R45: 261334 | S45: 361922689.8 | T45: =(AVERAGE(R43:R45)/AVERAGE(R31:R33))-1 -> 0.06756770885 | U45: 0.1076060492 | AS45: 2018-05-01 | AT45: =consolida!U199 -> 18832943 | AV45: 0.03126969435 | AX45: =consolida!F199 -> 131.139 | AZ45: 0.05339298911 | BB45: =consolida!B199 -> 2058400 | BD45: 0.01520589435 | BF45: =consolida!P199 -> 375424 | BH45: 0.003549890937 | BJ45: =consolida!I199 -> 42.025 | BK45: =consolida!N199 -> 39.84166667 | BL45: =consolida!AQ199 -> 26.80064278 | BM45: =consolida!AS199 -> 1.527156836 | BN45: =consolida!AT199 -> 20.20231155
A46: 2018-06-01 | B46: 268829 | D46: 363364629.6 | F46: =F34 -> 1.089783088 | G46: 1.061212086 | I46: 2018-06-01 | J46: 0.04288235865 | L46: 0.0561664869 | N46: =((SUM($R$41:R46)/SUM($R$29:R34))-1) -> 0.07643432468 | O46: =((SUM($S$41:S46)/SUM($S$29:S34))-1) -> 0.1177737217 | P46: 0.1058030692 | Q46: =((SUM(S35:S46)/SUM(S23:S34))-1) -> 0.1479243717 | R46: 268829 | S46: 363364629.6 | T46: =(AVERAGE(R44:R46)/AVERAGE(R32:R34))-1 -> 0.057863853 | U46: 0.1031142145 | AS46: 2018-06-01 | AT46: =consolida!U200 -> 18967952 | AV46: 0.04237597698 | AX46: =consolida!F200 -> 134.836 | AZ46: =AX46/AX34-1 -> 0.05192697769 | BB46: =consolida!B200 -> 2055762 | BD46: -0.01615586355 | BF46: =consolida!P200 -> 368785 | BH46: 0.01422949251 | BJ46: =consolida!I200 -> 44.64166667 | BK46: =consolida!N200 -> 41.75833333 | BL46: =consolida!AQ200 -> 27.10710018 | BM46: =consolida!AS200 -> 1.539103525 | BN46: =consolida!AT200 -> 19.79745436
A47: 2018-07-01 | B47: 277776 | D47: 392011058.3 | F47: =F35 -> 1.089363062 | G47: 1.16517125 | I47: 2018-07-01 | J47: 0.1064128097 | L47: 0.06666290004 | N47: =((SUM($R$41:R47)/SUM($R$29:R35))-1) -> 0.08123217873 | O47: =((SUM($S$41:S47)/SUM($S$29:S35))-1) -> 0.1090641621 | P47: 0.09663164878 | Q47: =((SUM(S36:S47)/SUM(S24:S35))-1) -> 0.1354029193 | R47: 277776 | S47: 392011058.3 | T47: =(AVERAGE(R45:R47)/AVERAGE(R33:R35))-1 -> 0.05116489052 | U47: 0.06525277063 | AS47: 2018-07-01 | AT47: =consolida!U201 -> 18812915 | AV47: 0.02932526065 | AX47: =consolida!F201 -> 133.971 | AZ47: 0.07371787165 | BB47: =consolida!B201 -> 2086655 | BD47: 0.08193135159 | BF47: =consolida!P201 -> 354574 | BH47: 0.06930161583 | BJ47: =consolida!I201 -> 44.01666667 | BK47: =consolida!N201 -> 37.88333333 | BL47: =consolida!AQ201 -> 27.41121503 | BM47: =consolida!AS201 -> 1.504262435 | BN47: =consolida!AT201 -> 18.69619046
A48: 2018-08-01 | B48: 233598 | D48: 336995840.3 | F48: =F36 -> 0.9427123635 | G48: 0.9986081605 | I48: 2018-08-01 | J48: 0.07086765778 | L48: 0.03223788152 | N48: =((SUM($R$41:R48)/SUM($R$29:R36))-1) -> 0.07996686889 | O48: =((SUM($S$41:S48)/SUM($S$29:S36))-1) -> 0.09896350573 | P48: =((SUM(R37:R48)/SUM(R25:R36))-1) -> 0.09419398874 | Q48: 0.1245906304 | R48: 233598 | S48: 336995840.3 | T48: =(AVERAGE(R46:R48)/AVERAGE(R34:R36))-1 -> 0.07321995009 | U48: 0.05235689808 | AS48: 2018-08-01 | AT48: =consolida!U202 -> 18535422 | AV48: 0.02745142472 | AX48: =consolida!F202 -> 123.147 | AZ48: 0.05459356695 | BB48: =consolida!B202 -> 1602495 | BD48: 0.04301939599 | BF48: =consolida!P202 -> 291242 | BH48: 0.01938369781 | BJ48: =consolida!I202 -> 43.325 | BK48: =consolida!N202 -> 37.95833333 | BL48: =consolida!AQ202 -> 27.50181795 | BM48: =consolida!AS202 -> 1.322813565 | BN48: =consolida!AT202 -> 20.10542782
A49: 2018-09-01 | B49: 254363 | D49: 334706100.2 | F49: =F37 -> 1.03324671 | G49: 1.047470263 | I49: 2018-09-01 | J49: 0.05340252125 | L49: =((S49/S37)-1) -> -0.0234224579 | N49: =((SUM($R$41:R49)/SUM($R$29:R37))-1) -> 0.07680441038 | O49: =((SUM($S$41:S49)/SUM($S$29:S37))-1) -> 0.08412013786 | P49: =((SUM(R38:R49)/SUM(R26:R37))-1) -> 0.08532603752 | Q49: =((SUM(S38:S49)/SUM(S26:S37))-1) -> 0.1092752511 | R49: 254363 | S49: 334706100.2 | T49: =(AVERAGE(R47:R49)/AVERAGE(R35:R37))-1 -> 0.07749058279 | U49: 0.0260403514 | AS49: 2018-09-01 | AT49: =consolida!U203 -> 18956018 | AV49: 0.03021047502 | AX49: =consolida!F203 -> 128.864 | AZ49: 0.02795969974 | BB49: =consolida!B203 -> 1952397 | BD49: -0.02050402681 | BF49: =consolida!P203 -> 331276 | BH49: 0.01737618928 | BJ49: =consolida!I203 -> 38.79166667 | BK49: =consolida!N203 -> 37.35 | BL49: =consolida!AQ203 -> 27.37996403 | BM49: =consolida!AS203 -> 1.408614842 | BN49: =consolida!AT203 -> 19.26438784
A50: 2018-10-01 | B50: 291630 | D50: 362127342.7 | F50: =F38 -> 1.134876889 | G50: 1.06653825 | I50: 2018-10-01 | J50: 0.1111026445 | L50: 0.04001688822 | N50: =((SUM($R$41:R50)/SUM($R$29:R38))-1) -> 0.08073417884 | O50: =((SUM($S$41:S50)/SUM($S$29:S38))-1) -> 0.07928206476 | P50: =((SUM(R39:R50)/SUM(R27:R38))-1) -> 0.08134816222 | Q50: 0.0931854311 | R50: 291630 | S50: 362127342.7 | T50: =(AVERAGE(R48:R50)/AVERAGE(R36:R38))-1 -> 0.07965228037 | U50: 0.01614971624 | AS50: 2018-10-01 | AT50: =consolida!U204 -> 18792718 | AV50: 0.02797143889 | AX50: =consolida!F204 -> 135.498 | AZ50: 0.04852701061 | BB50: =consolida!B204 -> 2243453 | BD50: 0.1039615507 | BF50: =consolida!P204 -> 382899 | BH50: =BF50/BF38-1 -> 0.056573316 | BJ50: =consolida!I204 -> 32.98333333 | BK50: =consolida!N204 -> 37.725 | BL50: =consolida!AQ204 -> 27.04591907 | BM50: =consolida!AS204 -> 1.578993153 | BN50: =consolida!AT204 -> 19.13414877
A51: 2018-11-01 | B51: 271921 | D51: 355289050.6 | F51: =F39 -> 1.075721158 | G51: 1.071014837 | I51: 2018-11-01 | J51: 0.1488438513 | L51: -0.01475317964 | N51: =((SUM($R$41:R51)/SUM($R$29:R39))-1) -> 0.08711247778 | O51: =((SUM($S$41:S51)/SUM($S$29:S39))-1) -> 0.06968860827 | P51: =((SUM(R40:R51)/SUM(R28:R39))-1) -> 0.08775830241 | Q51: 0.07500176287 | R51: 271921 | S51: 355289050.6 | T51: =(AVERAGE(R49:R51)/AVERAGE(R37:R39))-1 -> 0.1043519824 | U51: 0.0005571176489 | AS51: 2018-11-01 | AT51: =consolida!U205 -> 18871968 | AV51: 0.0276152463 | AX51: =consolida!F205 -> 135.094 | AZ51: 0.03346083231 | BB51: =consolida!B205 -> 1867172 | BD51: 0.02685582831 | BF51: =consolida!P205 -> 375486 | BH51: 0.1186498242 | BJ51: =consolida!I205 -> 31.05 | BK51: =consolida!N205 -> 42.35833333 | BL51: =consolida!AQ205 -> 26.82327977 | BM51: =consolida!AS205 -> 1.545721786 | BN51: =consolida!AT205 -> 22.48959181
A52: 2018-12-01 | B52: 249931 | D52: 310586470.2 | F52: =F40 -> 1.016489197 | G52: 0.9747832787 | I52: 2018-12-01 | J52: 0.09578488627 | L52: -0.01766198467 | N52: =((SUM($R$41:R52)/SUM($R$29:R40))-1) -> 0.08783031494 | O52: =((SUM($S$41:S52)/SUM($S$29:S40))-1) -> 0.06251679922 | P52: =((SUM(R41:R52)/SUM(R29:R40))-1) -> 0.08783031494 | Q52: 0.06251679922 | R52: 249931 | S52: 310586470.2 | T52: =(AVERAGE(R50:R52)/AVERAGE(R38:R40))-1 -> 0.118581934 | U52: 0.002955486276 | W52: may-19.2 | Y52: may-19.1 | AA52: 2019-03-01 | AS52: 2018-12-01 | AT52: =consolida!U206 -> 18914563 | AV52: 0.03182873789 | AX52: =consolida!F206 -> 128.577 | AZ52: =AX52/AX40-1 -> 0.01975635677 | BB52: =consolida!B206 -> 1709631 | BD52: 0.03487557021 | BF52: =consolida!P206 -> 340020 | BH52: 0.08233886036 | BJ52: =consolida!I206 -> 25.775 | BK52: =consolida!N206 -> 44.56666667 | BL52: =consolida!AQ206 -> 26.71197732 | BM52: =consolida!AS206 -> 1.348044813 | BN52: =consolida!AT206 -> 21.72855853
A53: 2019-01-01 | B53: 249801 | D53: 327669711.7 | F53: 0.9266021364 | G53: 0.8719210031 | I53: 2019-01-01 | J53: 0.04757691146 | L53: 0.02970579362 | N53: =((SUM($R$53:R53)/SUM($R$41:R41))-1) -> 0.04757691146 | O53: =((SUM($S$53:S53)/SUM($S$41:S41))-1) -> 0.02970579362 | P53: =((SUM(R42:R53)/SUM(R30:R41))-1) -> 0.08188266377 | Q53: 0.0504483055 | R53: 249801 | S53: 327669711.7 | T53: =(AVERAGE(R51:R53)/AVERAGE(R39:R41))-1 -> 0.09729662088 | U53: -0.001458748764 | W53: 249801 | X53: 327669711.7 | Y53: 249801 | Z53: 327669711.7 | AA53: 249801 | AB53: 327669711.7 | AS53: 2019-01-01 | AT53: =consolida!U207 -> 18730629 | AV53: 0.02848291345 | AX53: =consolida!F207 -> 123.061 | AZ53: 0.0155726476 | BB53: =consolida!B207 -> 1858077 | BD53: 0.06181228645 | BF53: =consolida!P207 -> 354679 | BH53: 0.03409478549 | BJ53: =consolida!I207 -> 21.20833333 | BK53: =consolida!N207 -> 47.225 | BN53: =consolida!AT207 -> 21.15303069
A54: 2019-02-01 | B54: 201433 | D54: 305837745.2 | F54: 0.7916362002 | G54: 0.8612112965 | I54: 2019-02-01 | J54: 0.02609648006 | L54: 0.004888927465 | N54: =((SUM($R$53:R54)/SUM($R$41:R42))-1) -> 0.03787784693 | O54: =((SUM($S$53:S54)/SUM($S$41:S42))-1) -> 0.01757374554 | P54: =((SUM(R43:R54)/SUM(R31:R42))-1) -> 0.07645359437 | Q54: 0.04026590892 | R54: 201433 | S54: 305837745.2 | T54: =(AVERAGE(R52:R54)/AVERAGE(R40:R42))-1 -> 0.05780342461 | U54: 0.005706203392 | W54: 201433 | X54: 305837745.2 | Y54: 201433 | Z54: 305837745.2 | AA54: 201433 | AB54: 305837745.2 | AS54: 2019-02-01 | AT54: =consolida!U208 -> 18846671 | AV54: 0.02905921313 | AX54: =consolida!F208 -> 116.749 | AZ54: =AX54/AX42-1 -> 0.004206089799 | BB54: =consolida!B208 -> 1571017 | BD54: 0.01591759452 | BF54: =consolida!P208 -> 287155 | BH54: 0.02300337017 | BJ54: =consolida!I208 -> 18.16666667 | BK54: =consolida!N208 -> 46.33333333 | BN54: =consolida!AT208 -> 20.47713789
A55: 2019-03-01 | B55: 224512 | D55: 323862465 | F55: 0.8918856561 | G55: 0.9338122634 | I55: 2019-03-01 | J55: 0.04133580705 | L55: -0.001715303962 | N55: =((SUM($R$53:R55)/SUM($R$41:R43))-1) -> 0.03902418023 | O55: =((SUM($S$53:S55)/SUM($S$41:S43))-1) -> 0.01096569023 | P55: =((SUM(R44:R55)/SUM(R32:R43))-1) -> 0.07415669571 | Q55: 0.03503047769 | R55: 224512 | S55: 323862465 | T55: =(AVERAGE(R53:R55)/AVERAGE(R41:R43))-1 -> 0.03902418023 | U55: 0.01096569023 | W55: 224512 | X55: 323862465 | Y55: 224512 | Z55: 323862465 | AA55: 224512 | AB55: 323862465 | AS55: 2019-03-01 | AT55: =consolida!U209 -> 19096989 | AV55: 0.02989568262 | AX55: =consolida!F209 -> 121.078 | AZ55: 0.01156281852 | BB55: =consolida!B209 -> 1709848 | BD55: 0.03825615753 | BF55: =consolida!P209 -> 321344 | BH55: 0.05005113928 | BJ55: =consolida!I209 -> 16.76666667 | BK55: =consolida!N209 -> 43.93333333 | BN55: =consolida!AT209 -> 21.00250518
A56: 2019-04-01 | B56: 253926 | D56: 322516955.3 | F56: 0.9462620291 | G56: 0.9180909925 | I56: 2019-04-01 | J56: =((R56/R44)-1) -> 0.06770104068 | L56: =((S56/S44)-1) -> -0.01558821712 | N56: =((SUM($R$53:R56)/SUM($R$41:R44))-1) -> 0.04670279253 | O56: =((SUM($S$53:S56)/SUM($S$41:S44))-1) -> 0.004140307681 | P56: =((SUM(R45:R56)/SUM(R33:R44))-1) -> 0.06871403177 | Q56: 0.01972411421 | R56: =B56 -> 253926 | S56: 322516955.3 | T56: =(AVERAGE(R54:R56)/AVERAGE(R42:R44))-1 -> 0.0463819865 | U56: =(AVERAGE(S54:S56)/AVERAGE(S42:S44))-1 -> -0.004365996507 | W56: 243486.8823 | X56: 309258004 | Y56: 245128.9 | Z56: 357151100 | AA56: 253926 | AB56: 322516955.3 | AS56: 2019-04-01 | AT56: =consolida!U210 -> 19182644 | AV56: =AT56/AT44-1 -> 0.02802515131 | AX56: =consolida!F210 -> 122.229 | AZ56: =AX56/AX44-1 -> -0.006082438179 | BB56: =consolida!B210 -> 1765185 | BD56: -0.004158963576 | BF56: =consolida!P210 -> 353127 | BH56: =BF56/BF44-1 -> 0.05343436302 | BJ56: =consolida!I210 -> 12.21666667 | BK56: =consolida!N210 -> 40.23333333 | BN56: =consolida!AT210 -> 22.2063822
A57: 2019-05-01 | B57: 271955 | D57: 367643444.6 | F57: 1.06142151 | G57: =G45 -> 1.030166318 | I57: 2019-05-01 | J57: 0.04064147796 | L57: 0.01580656557 | N57: =((SUM($R$53:R57)/SUM($R$41:R45))-1) -> 0.04532480807 | O57: =((SUM($S$53:S57)/SUM($S$41:S45))-1) -> 0.006720326088 | P57: =((SUM(R46:R57)/SUM(R34:R45))-1) -> 0.07186250862 | Q57: =((SUM(S46:S57)/SUM(S34:S45))-1) -> 0.01492910269 | R57: 271955 | S57: =D57 -> 367643444.6 | T57: =(AVERAGE(R55:R57)/AVERAGE(R43:R45))-1 -> 0.04985456636 | U57: =(AVERAGE(S55:S57)/AVERAGE(S43:S45))-1 -> 5.64152444e-05 | W57: 275202.1545 | X57: 354711577.9 | Y57: 274212.8 | Z57: 385882600 | AA57: 285128.7 | AB57: 368493600 | AS57: 2019-05-01 | AT57: =consolida!U211 -> 19327792 | AV57: 0.02627571272 | AX57: =consolida!F211 -> 133.141 | AZ57: 0.01526624421 | BB57: =consolida!B211 -> 2075741 | BD57: 0.008424504469 | BF57: =consolida!P211 -> 393071 | BH57: 0.04700551909 | BJ57: =consolida!I211 -> 9.141666667 | BK57: =consolida!N211 -> 35.825 | BN57: =consolida!AT211 -> 20.78003574
A58: 2019-06-01 | B58: 274286 | D58: 359918540.2 | F58: =F46 -> 1.089783088 | G58: 1.061212086 | I58: 2019-06-01 | J58: 0.02029914927 | L58: -0.00948383273 | N58: =((SUM($R$53:R58)/SUM($R$41:R46))-1) -> 0.04058154734 | O58: =((SUM($S$53:S58)/SUM($S$41:S46))-1) -> 0.003776165263 | P58: 0.06962484223 | Q58: 0.009251974479 | R58: 274286 | S58: =D58 -> 359918540.2 | T58: =(AVERAGE(R56:R58)/AVERAGE(R44:R46))-1 -> 0.04190039428 | U58: -0.00269007372 | W58: 290450.5798 | X58: 376571415.4 | Y58: 289052.9 | Z58: 407798800 | AA58: 293334.8 | AB58: 385340000 | AS58: 2019-06-01 | AT58: =consolida!U212 -> 19458689 | AV58: 0.02587190225 | AX58: =consolida!F212 -> 136.696 | AZ58: 0.01379453558 | BB58: =consolida!B212 -> 2009011 | BD58: -0.02274144575 | BF58: =consolida!P212 -> 381685 | BH58: 0.03497973074 | BJ58: =consolida!I212 -> 7.05 | BK58: =consolida!N212 -> 34.75 | BN58: =consolida!AT212 -> 20.80195024
A59: 2019-07-01 | B59: 291354 | D59: 419298301.4 | F59: =F47 -> 1.089363062 | G59: 1.16517125 | I59: 2019-07-01 | J59: 0.04888111284 | L59: 0.06960835036 | N59: =((SUM($R$53:R59)/SUM($R$41:R47))-1) -> 0.04194077105 | O59: =((SUM($S$53:S59)/SUM($S$41:S47))-1) -> 0.01456543675 | P59: 0.06442255429 | Q59: 0.009878780103 | R59: 291354 | S59: 419298301.4 | T59: 0.0367057414 | U59: 0.02645838304 | W59: 295009.5098 | X59: 424394110.6 | Y59: 292815.2 | Z59: 448094200 | AA59: 296533.7 | AB59: 428012000 | AS59: 2019-07-01 | AT59: =consolida!U213 -> 19290343 | AV59: 0.02537767273 | AX59: =consolida!F213 -> 135.835 | AZ59: 0.01391345888 | BB59: =consolida!B213 -> 2179527 | BD59: 0.04450759709 | BF59: =consolida!P213 -> 379951 | BH59: 0.07157039151 | BJ59: =consolida!I213 -> 6.533333333 | BK59: =consolida!N213 -> 36.5 | BN59: =consolida!AT213 -> 19.05649173
A60: 2019-08-01 | B60: 230288 | D60: 343156055.5 | F60: =F48 -> 0.9427123635 | G60: 0.9986081605 | I60: 2019-08-01 | J60: -0.01416964186 | L60: 0.01827979593 | N60: =((SUM($R$53:R60)/SUM($R$41:R48))-1) -> 0.03514847688 | O60: =((SUM($S$53:S60)/SUM($S$41:S48))-1) -> 0.01502412774 | P60: 0.05760340045 | Q60: 0.008788002151 | R60: 230288 | S60: 343156055.5 | T60: 0.02015501094 | U60: 0.02746443691 | W60: 253055.4435 | X60: 360133709.6 | Y60: 249992.7 | Z60: 377947900 | AA60: 252390.6 | AB60: 362182600 | AS60: 2019-08-01 | AT60: =consolida!U214 -> 19254763 | AV60: 0.03880898962 | AX60: =consolida!F214 -> 122.768 | AZ60: -0.003077622679 | BB60: =consolida!B214 -> 1519922 | BD60: -0.05152777388 | BF60: =consolida!P214 -> 299075 | BH60: 0.02689515935 | BJ60: =consolida!I214 -> 8.8 | BK60: =consolida!N214 -> 40.55 | BN60: =consolida!AT214 -> 21.41381668
A61: 2019-09-01 | B61: 266525 | D61: 361129306.9 | F61: =F49 -> 1.03324671 | G61: 1.047470263 | I61: 2019-09-01 | J61: =((R61/R49)-1) -> 0.04781355779 | L61: 0.07894450307 | N61: =((SUM($R$53:R61)/SUM($R$41:R49))-1) -> 0.03662347402 | O61: =((SUM($S$53:S61)/SUM($S$41:S49))-1) -> 0.02200756888 | P61: 0.05709648666 | Q61: 0.01723137166 | R61: 266525 | S61: =D61 -> 361129306.9 | T61: 0.02929204152 | U61: =(AVERAGE(S59:S61)/AVERAGE(S47:S49))-1 -> 0.05628460412 | W61: 282464.2199 | X61: 376651311.5 | Y61: 280540 | Z61: 398381900 | AA61: 282775.1 | AB61: 381957400 | AS61: 2019-09-01 | AT61: =consolida!U215 -> 19223638 | AV61: 0.01411794397 | AX61: =consolida!F215 -> 129.251 | AZ61: 0.003003166129 | BB61: =consolida!B215 -> 2094635 | BD61: 0.07285301094 | BF61: =consolida!P215 -> 358585 | BH61: 0.08243579372 | BJ61: =consolida!I215 -> 9.091666667 | BK61: =consolida!N215 -> 40.73333333 | BN61: =consolida!AT215 -> 19.32122859
A62: 2019-10-01 | B62: 290990 | D62: 382719372.7 | F62: =F50 -> 1.134876889 | G62: 1.06653825 | I62: 2019-10-01 | J62: =((R62/R50)-1) -> -0.002194561602 | L62: =((S62/S50)-1) -> 0.05686405763 | N62: =((SUM($R$53:R62)/SUM($R$41:R50))-1) -> 0.03205086518 | O62: =((SUM($S$53:S62)/SUM($S$41:S50))-1) -> 0.02569217359 | P62: 0.04639557408 | Q62: 0.01879585157 | R62: =B62 -> 290990 | S62: =D62 -> 382719372.7 | T62: =(AVERAGE(R60:R62)/AVERAGE(R48:R50))-1 -> 0.01053372858 | U62: 0.05143542835 | V62: =I62 -> 2019-10-01 | W62: 320290.3299 | X62: 394441628 | Y62: 318663.4 | Z62: 420857900 | AA62: 320153.3 | AB62: 403007500 | AS62: 2019-10-01 | AT62: =consolida!U216 -> 19181445 | AV62: 0.02068498021 | AX62: =consolida!F216 -> 133.515 | AZ62: -0.01463490236 | BB62: =consolida!B216 -> 2224757 | BD62: -0.008333582206 | BF62: =consolida!P216 -> 391788 | BH62: 0.02321499926 | BJ62: =consolida!I216 -> 6.691666667 | BK62: =consolida!N216 -> 39.45833333 | BN62: =consolida!AT216 -> 19.71864586
A63: 2019-11-01 | B63: 282389 | D63: 364556187.9 | F63: =F51 -> 1.075721158 | G63: 1.071014837 | I63: 2019-11-01 | J63: =((R63/R51)-1) -> 0.03849647508 | L63: =((S63/S51)-1) -> 0.02608337421 | N63: =((SUM($R$53:R63)/SUM($R$41:R51))-1) -> 0.0326887564 | O63: =((SUM($S$53:S63)/SUM($S$41:S51))-1) -> 0.02572893326 | P63: =((SUM(R52:R63)/SUM(R40:R51))-1) -> 0.0375249603 | Q63: =((SUM(S52:S63)/SUM(S40:S51))-1) -> 0.02238056224 | R63: =B63 -> 282389 | S63: =D63 -> 364556187.9 | T63: =(AVERAGE(R61:R63)/AVERAGE(R49:R51))-1 -> 0.02688546718 | U63: =(AVERAGE(S61:S63)/AVERAGE(S49:S51))-1 -> 0.05349412682 | W63: 290113.3979 | X63: 381384619.3 | Y63: 288546.4 | Z63: 398927800 | AA63: 288451 | AB63: 382867600 | AS63: 2019-11-01 | AT63: =consolida!U217 -> 19415313 | AV63: 0.02879111495 | AX63: =consolida!F217 -> 134.35 | AZ63: -0.005507276415 | BB63: =consolida!B217 -> 1764169 | BD63: -0.05516524455 | BF63: =consolida!P217 -> 367946 | BH63: -0.02008064215 | BJ63: =consolida!I217 -> 6.941666667 | BK63: =consolida!N217 -> 35.94166667 | BN63: =consolida!AT217 -> 23.1041024
A64: 2019-12-01 | B64: 269180.7006 | C64: =B64 -> 269180.7006 | D64: 341645940.3 | E64: =D64 -> 341645940.3 | F64: =F52 -> 1.016489197 | G64: =G52 -> 0.9747832787 | I64: 2019-12-01 | J64: =((R64/R52)-1) -> 0.07702005976 | K64: =((R64/R52)-1) -> 0.07702005976 | L64: =((S64/S52)-1) -> 0.1000026499 | M64: =((S64/S52)-1) -> 0.1000026499 | N64: =((SUM($R$53:R64)/SUM($R$41:R52))-1) -> 0.03638500232 | O64: =((SUM($S$53:S64)/SUM($S$41:S52))-1) -> 0.03136690848 | P64: =((SUM(R53:R64)/SUM(R41:R52))-1) -> 0.03638500232 | Q64: 0.03136690848 | R64: =B64 -> 269180.7006 | S64: 341645940.3 | T64: 0.03574473751 | U64: 0.05925920983 | W64: 271304.5636 | X64: 347471620.2 | Y64: 270298.1 | Z64: 366129700 | AA64: 269924.4 | AB64: 352383900 | AS64: 2019-12-01 | AT64: =consolida!U218 -> 19261636 | AU64: =AT64 -> 19261636 | AV64: 0.01834951196 | AW64: =AV64 -> 0.01834951196 | AX64: =consolida!F218 -> 129.9827776 | AY64: =AX64 -> 129.9827776 | AZ64: 0.01093335202 | BA64: =AZ64 -> 0.01093335202 | BB64: =consolida!B218 -> 1740332 | BC64: =BB64 -> 1740332 | BD64: 0.01795767625 | BE64: =BD64 -> 0.01795767625 | BF64: =consolida!P218 -> 353689.7347 | BG64: =BF64 -> 353689.7347 | BH64: 0.04020273712 | BI64: =BH64 -> 0.04020273712 | BJ64: =consolida!I218 -> 9.025 | BK64: =consolida!N218 -> 31.49166667 | BN64: =consolida!AT218 -> 22.08828292 | BO64: =BN64 -> 22.08828292
A65: 2020-01-01 | C65: 260667.8285 | E65: 329087398.6 | F65: =F53 -> 0.9266021364 | G65: 0.8719210031 | I65: 2020-01-01 | K65: =((R65/R53)-1) -> 0.04350194158 | M65: =((S65/S53)-1) -> 0.004326572814 | N65: =((SUM($R$53:R65)/SUM($R$41:R53))-1) -> 0.03693246576 | O65: =((SUM($S$53:S65)/SUM($S$41:S53))-1) -> 0.02936199049 | P65: =((SUM(R54:R65)/SUM(R42:R53))-1) -> 0.0360888961 | Q65: =((SUM(S54:S65)/SUM(S42:S53))-1) -> 0.02933531353 | R65: =C65 -> 260667.8285 | S65: =E65 -> 329087398.6 | T65: =(AVERAGE(R63:R65)/AVERAGE(R51:R53))-1 -> 0.05259427368 | U65: 0.04201549442 | AS65: 2020-01-01 | AU65: =consolida!U219 -> 19074196.55 | AW65: =AU65/AT53-1 -> 0.01834255259 | AY65: =consolida!F219 -> 123.8120192 | BA65: =AY65/AX53-1 -> 0.006102820657 | BC65: =consolida!B219 -> 1764837 | BE65: =BC65/BB53-1 -> -0.05018091285 | BG65: =consolida!P219 -> 357575.7914 | BI65: =BG65/BF53-1 -> 0.008167361025 | BJ65: =consolida!I219 -> 8.683333333 | BK65: =consolida!N219 -> 30.075 | BO65: =consolida!AT219 -> 22.54776695
A66: 2020-02-01 | C66: 213743.0961 | E66: 311934445.9 | F66: =F54 -> 0.7916362002 | G66: 0.8612112965 | I66: 2020-02-01 | K66: =((R66/R54)-1) -> 0.06111260841 | M66: =((S66/S54)-1) -> 0.01993442854 | N66: =((SUM($R$53:R66)/SUM($R$41:R54))-1) -> 0.03834474504 | O66: =((SUM($S$53:S66)/SUM($S$41:S54))-1) -> 0.02875178289 | P66: =((SUM(R55:R66)/SUM(R43:R54))-1) -> 0.03841209364 | Q66: =((SUM(S55:S66)/SUM(S43:S54))-1) -> 0.03044806128 | R66: =C66 -> 213743.0961 | S66: 311934445.9 | T66: =(AVERAGE(R64:R66)/AVERAGE(R52:R54))-1 -> 0.06050876058 | U66: =(AVERAGE(S64:S66)/AVERAGE(S52:S54))-1 -> 0.04085807194 | AS66: 2020-02-01 | AU66: =consolida!U220 -> 19061918.77 | AW66: =AU66/AT54-1 -> 0.01142099696 | AY66: =consolida!F220 -> 118.1711768 | BA66: =AY66/AX54-1 -> 0.0121814906 | BC66: =consolida!B220 -> 1505774.335 | BE66: =BC66/BB54-1 -> -0.04152893648 | BG66: =consolida!P220 -> 296751.2067 | BI66: =BG66/BF54-1 -> 0.03341821222 | BO66: =consolida!AT220 -> 22.01862183
A67: 2020-03-01 | C67: 237564.1733 | E67: 337243855.2 | F67: 0.8918856561 | G67: 0.9338122634 | I67: 2020-03-01 | K67: =((R67/R55)-1) -> 0.05813574925 | M67: =((S67/S55)-1) -> 0.04131812629 | N67: =((SUM($R$53:R67)/SUM($R$41:R55))-1) -> 0.03955436445 | O67: =((SUM($S$53:S67)/SUM($S$41:S55))-1) -> 0.02955783971 | P67: =((SUM(R56:R67)/SUM(R44:R55))-1) -> 0.03966842966 | Q67: =((SUM(S56:S67)/SUM(S44:S55))-1) -> 0.0338500166 | R67: 237564.1733 | S67: 337243855.2 | T67: =(AVERAGE(R65:R67)/AVERAGE(R53:R55))-1 -> 0.05361348479 | U67: =(AVERAGE(S65:S67)/AVERAGE(S53:S55))-1 -> 0.02182623173 | AS67: 2020-03-01 | AU67: =consolida!U221 -> 19224622.65 | AW67: =AU67/AT55-1 -> 0.006683443433 | AY67: =consolida!F221 -> 122.8729997 | BA67: =AY67/AX55-1 -> 0.01482515171 | BC67: =consolida!B221 -> 1689434.237 | BE67: =BC67/BB55-1 -> -0.0119389341 | BG67: =consolida!P221 -> 332886.2798 | BI67: =BG67/BF55-1 -> 0.03591876565 | BO67: =consolida!AT221 -> 21.95930971
A68: 2020-04-01 | C68: 258850.1336 | E68: 336786267.8 | F68: 0.9462620291 | G68: 0.9180909925 | I68: 2020-04-01 | R68: 258850.1336 | S68: 336786267.8 | AS68: 2020-04-01
A69: 2020-05-01 | C69: 284932.5345 | E69: 379519027 | F69: 1.06142151 | G69: =G57 -> 1.030166318 | I69: 2020-05-01 | R69: 284932.5345 | S69: 379519027 | AS69: 2020-05-01
A70: 2020-06-01 | C70: 291213.736 | E70: 390749963.1 | F70: =F58 -> 1.089783088 | G70: 1.061212086 | I70: 2020-06-01 | R70: 291213.736 | S70: 390749963.1 | AS70: =A70 -> 2020-06-01
A71: 2020-07-01 | C71: 295401.9048 | E71: 437805530.6 | F71: =F59 -> 1.089363062 | G71: 1.16517125 | I71: 2020-07-01 | R71: 295401.9048 | S71: 437805530.6 | AS71: 2020-07-01
A72: 2020-08-01 | C72: 241516.7784 | E72: 361174169.4 | F72: =F60 -> 0.9427123635 | G72: 0.9986081605 | I72: 2020-08-01 | R72: 241516.7784 | S72: 361174169.4 | AS72: 2020-08-01
A73: 2020-09-01 | C73: 278036.3629 | E73: 387060347.7 | F73: =F61 -> 1.03324671 | G73: 1.047470263 | I73: 2020-09-01 | R73: 278036.3629 | S73: 387060347.7 | AS73: 2020-09-01
A74: 2020-10-01 | C74: 307865.8327 | E74: 408782160 | F74: =F62 -> 1.134876889 | G74: 1.06653825 | I74: 2020-10-01 | R74: 307865.8327 | S74: 408782160 | AS74: 2020-10-01
A75: 2020-11-01 | C75: 296723.2498 | E75: 396082385.7 | F75: =F63 -> 1.075721158 | G75: 1.071014837 | I75: 2020-11-01 | R75: 296723.2498 | S75: 396082385.7 | AS75: 2020-11-01
A76: 2020-12-01 | C76: 281132.1084 | E76: 375859688.5 | F76: =F64 -> 1.016489197 | G76: =G64 -> 0.9747832787 | I76: 2020-12-01 | R76: 281132.1084 | S76: 375859688.5 | AS76: 2020-12-01
B77: viene de Eviews
F78: factores Estacionalidad. | N78: =AVERAGE(J53:J64) -> 0.03662482237
F79: para 2019 no se calculan, se dejan heredadas de la parte 2015-2018
F80: mientras se llega al cierre del año | BI80: max | BJ80: =MAX(BJ5:BJ65) -> 46.55833333 | BK80: =MAX(BK5:BK65) -> 47.225
BI81: min. | BJ81: =MIN(BJ5:BJ65) -> 6.533333333 | BK81: =MIN(BK5:BK65) -> 11.43333333
BI82: avg. | BJ82: =AVERAGE(BJ5:BJ65) -> 30.34180328 | BK82: =AVERAGE(BK5:BK65) -> 35.21598361
BJ83: Este grafico no tiene prevision
BJ84: Aquí en BJ y BK termina la actualizacion de graficos
BJ85: Son seis graficos, se saltan dos, penultimo y antepenultimo.
BJ86: Tambien se actualizan sumando un dato mas al rango por la dcha.
BX97: ESTA LLEVA SOLO CIERRE OBSERVADO
BX98: QUE SUELE SER EL MISMO MES DE CIERRE DE CIFRAS ASEMPLEO
BX99: O, COMO MUCHO, EL SIGUIENTE.
C106: b | D106: a | E106: b | F106: a
A107: 2019-01-01 | C107: 249801 | E107: 327669711.7
A108: 2019-02-01 | C108: 201433 | E108: 305837745.2
A109: 2019-03-01 | C109: 224512 | E109: 323862465
A110: 2019-04-01 | C110: 253926 | E110: 322516955.3
A111: 2019-05-01 | C111: 271955 | E111: 367643444.6
A112: 2019-06-01 | C112: 274286 | E112: 359918540.2
A113: 2019-07-01 | C113: 291354 | E113: 419298301.4
A114: 2019-08-01 | C114: 230288 | E114: 343156055.5
A115: 2019-09-01 | C115: 266525 | E115: 361129306.9 | H115: a-b | I115: a-b
A116: 2019-10-01 | C116: 290990 | D116: 290990 | E116: 382719372.7 | F116: 382719372.7 | H116: =D116-C116 -> 0 | I116: =F116-E116 -> 0
A117: 2019-11-01 | C117: 263918.0148 | D117: 263918.0148 | E117: 360568692.2 | F117: 362070643.8 | H117: =D117-C117 -> 0 | I117: =F117-E117 -> 1501951.61
A118: 2019-12-01 | C118: 255642.7173 | D118: 255642.7173 | E118: 343141416.2 | F118: 345232144.8 | H118: =D118-C118 -> 0 | I118: 2090728.565
A119: 2020-01-01 | C119: 250354.2564 | D119: 250354.2564 | E119: 329524101.6 | F119: 330507381.8 | H119: 0 | I119: 983280.2278
A120: 2020-02-01 | C120: 207837.839 | D120: 207837.839 | E120: 313158321.8 | F120: 314116466.8 | H120: 0 | I120: 958144.9085
A121: 2020-03-01 | C121: 232264.8078 | D121: 232264.8078 | E121: 338558732.4 | F121: 340954914.3 | H121: 0 | I121: 2396181.903
A122: 2020-04-01 | C122: 255086.2905 | D122: 255086.2905 | E122: 340153186 | F122: 342267471.8 | H122: 0 | I122: 2114285.848
A123: 2020-05-01 | C123: 280905.8301 | D123: 280905.8301 | E123: 381805793.2 | F123: 385567040.4 | H123: 0 | I123: 3761247.248
A124: 2020-06-01 | C124: 288287.1338 | D124: 288287.1338 | E124: 393351626.3 | F124: 397954905.8 | H124: 0 | I124: 4603279.525
A125: 2020-07-01 | C125: 294085.8743 | D125: 294085.8743 | E125: 441093805.6 | F125: 440505556.8 | H125: 0 | I125: -588248.7914
A126: 2020-08-01 | C126: 240664.6627 | D126: 240664.6627 | E126: 363693438.6 | F126: 366613830.3 | H126: 0 | I126: 2920391.726
A127: 2020-09-01 | C127: 276808.7376 | D127: 276808.7376 | E127: 389093874.8 | F127: 391914977 | H127: 0 | I127: 2821102.227
A128: 2020-10-01 | C128: 305157.6209 | D128: 305157.6209 | E128: 408145102 | F128: 412104638.4 | H128: 0 | I128: 3959536.392
A129: 2020-11-01 | C129: 279663.1225 | D129: 279663.1225 | E129: 384477338.3 | F129: 388468928.7 | H129: 0 | I129: 3991590.435
A130: 2020-12-01 | C130: 269189.0896 | D130: 269189.0896 | E130: 370345696.6 | F130: 373748330.7 | H130: =D130-C130 -> 0 | I130: =F130-E130 -> 3402634.122
E132: =AVERAGE(E117:E130) -> 368365080.4 | I132: =AVERAGE(I117:I130) -> 2494007.568 | J132: =I132/E132 -> 0.006770477715
D133: 2019 | E133: =SUM(E107:E118) -> 4217462007
D134: 2020 | E134: =SUM(E119:E130) -> 4453401017 | F134: =SUM(F119:F130) -> 4484724443 | I134: =SUM(I119:I130) -> 31323425.77 | J134: =I134/E134 -> 0.007033596492
BX135: NO SE USAN
BX153: NO SE USAN

Sheet consolida (hidden)
B1: Sepe | E1: Iass | I1: CE | P1: ETT | S1: ASEMPLEO | U1: HFM-CEPREDE | V1: HFREG-CEPREDE | W1: Afi | Z1: Ine | AA1: Ine | AB1: Ine | AC1: Ine | AD1: Ine | AE1: Ine | AF1: Ine | AG1: Ine | AH1: Ine | AI1: Afi | AL1: HFM-CEPREDE | AQ1: RATIOS | AU1: ASEMPLEO
B2: contrat_tot | C2: contrat_indef. | D2: contrat_temp | E2: Cifra_Negocios | F2: Ind_ocupa | G2: Ratio_Produc_ind | H2: Ratio_Produc_tasa | I2: iclima | J2: negocio | K2: demanda1 | L2: demanda2 | M2: empleo1 | N2: empleo2 | O2: precios | P2: cpds_ett | Q2: dnis_ett | R2: fact_ett | S2: fact_asempleo | T2: cpds_asempleo | U2: afiliados_cep | V2: pib_cep | W2: ocupados_afi | X2: paroreg_afi | Y2: afiliados_afi | Z2: ocupados_ine_epa | AA2: asalariados_ine_epa | AB2: indefinidos_ine_epa | AC2: temporales_ine_epa | AD2: parados | AE2: t_paro | AF2: activos | AG2: t_activos | AH2: ectl | AI2: ocupados_% | AJ2: paroreg_% | AK2: afiliados_% | AL2: afiliados | AM2: pib | AN2: paroreg | AO2: paroreg_% | AP2: tasa_paro_reg | AQ2: cuota | AR2: cuota_cpds | AS2: personas | AT2: cuota_cpds | AU2: cuota_fact | AV2: cuota_cpds
A3: 2002-01-01 | B3: ='SEPE contratos'!E21 -> 1270019 | C3: ='SEPE contratos'!H21 -> 110318 | D3: ='SEPE contratos'!M21 -> 1159701 | E3: =Iass!B9 -> 55.812 | F3: =Iass!N9 -> 72.457 | G3: =Iass!Y9 -> 77.02775439 | H3: =Iass!Z9 -> . | P3: =ETT!C6 -> 145304 | Q3: =DNIs!B2 -> 45346.06371 | R3: =sabi!B2*1000 -> 97499107.42 | U3: 15727566 | V3: 84.72639089 | W3: =Z3 -> 16426200.67 | X3: =AN3 -> 2075022 | Y3: =U3 -> 15727566 | Z3: 16426200.67 | AA3: 13249612.75 | AB3: 9009077.29 | AC3: 4240684.555 | AL3: 3.443117081 | AM3: 3.181648718 | AN3: 2075022 | AO3: 2.856811453 | AP3: 11.6557323 | AQ3: =AC3/AA3*100 -> 32.00610188 | AR3: =D3/B3*100 -> 91.31367326 | AS3: =Q3/AC3*100 -> 1.069309993 | AT3: =P3/D3*100 -> 12.52943647 | AU3: =S3/R3*100 -> 0 | AV3: =T3/P3*100 -> 0
A4: 2002-02-01 | B4: ='SEPE contratos'!E22 -> 1139766 | C4: ='SEPE contratos'!H22 -> 114180 | D4: ='SEPE contratos'!M22 -> 1025586 | E4: =Iass!B10 -> 54.742 | F4: =Iass!N10 -> 72.336 | G4: =Iass!Y10 -> 75.67739438 | H4: =Iass!Z10 -> . | P4: =ETT!C7 -> 123434 | Q4: =DNIs!B3 -> 37597.77714 | R4: =sabi!B3*1000 -> 95629902.86 | U4: 15822158 | V4: 84.9088574 | W4: =Z4 -> 16468275.17 | X4: =AN4 -> 2149908 | Y4: =U4 -> 15822158 | Z4: 16468275.17 | AA4: 13289953.19 | AB4: 9031669.322 | AC4: 4258396.139 | AL4: 3.076391078 | AM4: 3.075715722 | AN4: 2149908 | AO4: 7.858126881 | AP4: 11.9624978 | AQ4: =AC4/AA4*100 -> 32.04222076 | AR4: =D4/B4*100 -> 89.98215423 | AS4: =Q4/AC4*100 -> 0.8829093377 | AT4: =P4/D4*100 -> 12.0354607 | AU4: =S4/R4*100 -> 0 | AV4: =T4/P4*100 -> 0
A5: 2002-03-01 | B5: ='SEPE contratos'!E23 -> 1000369 | C5: ='SEPE contratos'!H23 -> 106402 | D5: ='SEPE contratos'!M23 -> 893967 | E5: =Iass!B11 -> 55.961 | F5: =Iass!N11 -> 73.11 | G5: =Iass!Y11 -> 76.54356449 | H5: =Iass!Z11 -> . | P5: =ETT!C8 -> 133838 | Q5: =DNIs!B4 -> 40721.29281 | R5: =sabi!B4*1000 -> 97759398.53 | U5: 15912352 | V5: 85.13482179 | W5: 16552424.17 | X5: 2083103 | Y5: 15912352 | Z5: 16552424.17 | AA5: 13370634.07 | AB5: 9076853.388 | AC5: 4293819.306 | AL5: 2.564341877 | AM5: 3.050929172 | AN5: 2083103 | AO5: 5.153795597 | AP5: 11.57571731 | AQ5: 32.11380467 | AR5: 89.36372479 | AS5: 0.9483699687 | AT5: 14.97124614 | AU5: 0 | AV5: 0
A6: 2002-04-01 | B6: ='SEPE contratos'!E24 -> 1247220 | C6: ='SEPE contratos'!H24 -> 126442 | D6: ='SEPE contratos'!M24 -> 1120778 | E6: =Iass!B12 -> 60.623 | F6: =Iass!N12 -> 76.479 | G6: =Iass!Y12 -> 79.26751134 | H6: =Iass!Z12 -> . | P6: =ETT!C9 -> 154172 | Q6: =DNIs!B5 -> 42445.41668 | R6: =sabi!B5*1000 -> 105903540.3 | U6: 16023487 | V6: 85.41935286 | W6: 16678647.67 | X6: 2060070 | Y6: 16023487 | Z6: 16678647.67 | AA6: 13491655.38 | AB6: 9144629.486 | AC6: 4346954.058 | AL6: 3.004340155 | AM6: 3.114765927 | AN6: 2060070 | AO6: 7.831493368 | AP6: 11.39195126 | AQ6: 32.21957525 | AR6: 89.8620933 | AS6: 0.9764404251 | AT6: 13.75580177 | AU6: 0 | AV6: 0
A7: 2002-05-01 | B7: ='SEPE contratos'!E25 -> 1238066 | C7: ='SEPE contratos'!H25 -> 116370 | D7: ='SEPE contratos'!M25 -> 1121696 | E7: =Iass!B13 -> 63.323 | F7: =Iass!N13 -> 80.598 | G7: =Iass!Y13 -> 78.56646567 | H7: =Iass!Z13 -> . | P7: =ETT!C10 -> 162888 | Q7: =DNIs!B6 -> 47159.61848 | R7: =sabi!B6*1000 -> 110620224.7 | U7: 16154714 | V7: 85.64507511 | W7: 16776392.79 | X7: 2002924 | Y7: 16154714 | Z7: 16776392.79 | AA7: 13591994.17 | AB7: 9210076.396 | AC7: 4381797.202 | AL7: 3.028872894 | AM7: 3.088687297 | AN7: 2002924 | AO7: 5.512291358 | AP7: 11.03075191 | AQ7: 32.23807446 | AR7: 90.60066265 | AS7: 1.076262006 | AT7: 14.5215816 | AU7: 0 | AV7: 0
A8: 2002-06-01 | B8: ='SEPE contratos'!E26 -> 1074375 | C8: ='SEPE contratos'!H26 -> 95169 | D8: ='SEPE contratos'!M26 -> 979206 | E8: =Iass!B14 -> 61.137 | F8: =Iass!N14 -> 82.704 | G8: =Iass!Y14 -> 73.92266396 | H8: =Iass!Z14 -> . | P8: =ETT!C11 -> 165979 | Q8: =DNIs!B7 -> 48223.0224 | R8: =sabi!B7*1000 -> 106801457.2 | U8: 16290434 | V8: 85.8436737 | W8: 16845659.54 | X8: 1962963 | Y8: 16290434 | Z8: 16845659.54 | AA8: 13671650.44 | AB8: 9273194.118 | AC8: 4398348.74 | AL8: 2.925189912 | AM8: 2.973644905 | AN8: 1962963 | AO8: 6.534781032 | AP8: 10.75395993 | AQ8: 32.17130776 | AR8: 91.14191972 | AS8: 1.096389242 | AT8: 16.95036591 | AU8: 0 | AV8: 0
A9: 2002-07-01 | B9: ='SEPE contratos'!E27 -> 1317913 | C9: ='SEPE contratos'!H27 -> 101701 | D9: ='SEPE contratos'!M27 -> 1216212 | E9: =Iass!B15 -> 76.271 | F9: =Iass!N15 -> 88.973 | G9: =Iass!Y15 -> 85.72375889 | H9: =Iass!Z15 -> . | P9: =ETT!C12 -> 177192 | Q9: =DNIs!B8 -> 49179.94217 | R9: =sabi!B8*1000 -> 133239346.8 | U9: 16326631 | V9: 86.03408812 | W9: 16886447.9 | X9: 1961852 | Y9: 16326631 | Z9: 16886447.9 | AA9: 13730624.19 | AB9: 9333982.653 | AC9: 4396608.67 | AL9: 3.045233127 | AM9: 2.764980205 | AN9: 1961852 | AO9: 6.869934599 | AP9: 10.72725387 | AQ9: 32.02045741 | AR9: 92.28317802 | AS9: 1.118588118 | AT9: 14.56917051 | AU9: 0 | AV9: 0
A10: 2002-08-01 | B10: ='SEPE contratos'!E28 -> 1019106 | C10: ='SEPE contratos'!H28 -> 78792 | D10: ='SEPE contratos'!M28 -> 940314 | E10: =Iass!B16 -> 58.272 | F10: =Iass!N16 -> 82.082 | G10: =Iass!Y16 -> 70.99242221 | H10: =Iass!Z16 -> . | P10: =ETT!C13 -> 139394 | Q10: =DNIs!B9 -> 41901.28629 | R10: =sabi!B9*1000 -> 101796531 | U10: 16276570 | V10: 86.22696636 | W10: 16921284.06 | X10: 1983982 | Y10: 16276570 | Z10: 16921284.06 | AA10: 13780524.48 | AB10: 9379717.797 | AC10: 4400817.15 | AL10: 3.829348191 | AM10: 2.635630703 | AN10: 1983982 | AO10: 5.614494017 | AP10: 10.86485228 | AQ10: 31.9350483 | AR10: 92.2685177 | AS10: 0.9521251363 | AT10: 14.82419702 | AU10: 0 | AV10: 0
A11: 2002-09-01 | B11: ='SEPE contratos'!E29 -> 1186710 | C11: ='SEPE contratos'!H29 -> 104191 | D11: ='SEPE contratos'!M29 -> 1082519 | E11: =Iass!B17 -> 68.338 | F11: =Iass!N17 -> 86.221 | G11: =Iass!Y17 -> 79.25911321 | H11: =Iass!Z17 -> . | P11: =ETT!C14 -> 175118 | Q11: =DNIs!B10 -> 48180.10317 | R11: =sabi!B10*1000 -> 119381029.2 | U11: 16187368 | V11: 86.41391895 | W11: 16950168.04 | X11: 2006786 | Y11: 16187368 | Z11: 16950168.04 | AA11: 13821351.33 | AB11: 9410399.55 | AC11: 4410974.181 | AL11: 2.733419849 | AM11: 2.581347433 | AN11: 2006786 | AO11: 6.22495944 | AP11: 11.02983958 | AQ11: 31.91420343 | AR11: 91.22018016 | AS11: 1.092278059 | AT11: 16.17689851 | AU11: 0 | AV11: 0
A12: 2002-10-01 | B12: ='SEPE contratos'!E30 -> 1545378 | C12: ='SEPE contratos'!H30 -> 141657 | D12: ='SEPE contratos'!M30 -> 1403721 | E12: =Iass!B18 -> 72.236 | F12: =Iass!N18 -> 86.512 | G12: =Iass!Y18 -> 83.49824302 | H12: =Iass!Z18 -> . | P12: =ETT!C15 -> 172418 | Q12: =DNIs!B11 -> 51127.32735 | R12: =sabi!B11*1000 -> 126190524 | U12: 16236870 | V12: 86.5815875 | W12: 16973099.82 | X12: 2064512 | Y12: 16236870 | Z12: 16973099.82 | AA12: 13853104.74 | AB12: 9426027.913 | AC12: 4427079.762 | AL12: 2.991365896 | AM12: 2.599889362 | AN12: 2064512 | AO12: 6.368304748 | AP12: 11.28063444 | AQ12: 31.95731099 | AR12: 90.83350481 | AS12: 1.154877032 | AT12: 12.28292517 | AU12: 0 | AV12: 0
A13: 2002-11-01 | B13: ='SEPE contratos'!E31 -> 1181989 | C13: ='SEPE contratos'!H31 -> 106451 | D13: ='SEPE contratos'!M31 -> 1075538 | E13: =Iass!B19 -> 65.629 | F13: =Iass!N19 -> 83.317 | G13: =Iass!Y19 -> 78.77023897 | H13: =Iass!Z19 -> . | P13: =ETT!C16 -> 158138 | Q13: =DNIs!B12 -> 50042.71402 | R13: =sabi!B12*1000 -> 114648622.5 | U13: 16369029 | V13: 86.84149219 | W13: 16992932.9 | X13: 2117144 | Y13: 16369029 | Z13: 16992932.9 | AA13: 13873414.53 | AB13: 9450314.069 | AC13: 4423096.336 | AL13: 3.103615517 | AM13: 2.682279087 | AN13: 2117144 | AO13: 6.611100396 | AP13: 11.45258134 | AQ13: 31.88181485 | AR13: 90.99390942 | AS13: 1.131395525 | AT13: 14.70315321 | AU13: 0 | AV13: 0
A14: 2002-12-01 | B14: ='SEPE contratos'!E32 -> 958337 | C14: ='SEPE contratos'!H32 -> 81287 | D14: ='SEPE contratos'!M32 -> 877050 | E14: =Iass!B20 -> 68.444 | F14: =Iass!N20 -> 79.956 | G14: =Iass!Y20 -> 85.60208114 | H14: =Iass!Z20 -> . | P14: =ETT!C17 -> 141578 | Q14: =DNIs!B13 -> 47614.43578 | R14: =sabi!B13*1000 -> 119566202.8 | U14: 16188390 | V14: 87.17692493 | W14: 17009667.28 | X14: 2127018 | Y14: 16188390 | Z14: 17009667.28 | AA14: 13882280.73 | AB14: 9483258.018 | AC14: 4399023.903 | AL14: 2.79157358 | AM14: 2.828920307 | AN14: 2127018 | AO14: 6.954390146 | AP14: 11.61327119 | AQ14: 31.68804887 | AR14: 91.51791071 | AS14: 1.082386385 | AT14: 16.14252323 | AU14: 0 | AV14: 0
A15: 2003-01-01 | B15: ='SEPE contratos'!E33 -> 1355698 | C15: ='SEPE contratos'!H33 -> 121355 | D15: ='SEPE contratos'!M33 -> 1234343 | E15: =Iass!B21 -> 57.46 | F15: =Iass!N21 -> 74.243 | G15: =Iass!Y21 -> 77.39450184 | H15: =Iass!Z21 -> 0.5 | P15: =ETT!C18 -> 149560 | Q15: =DNIs!B14 -> 45496.0788 | R15: =sabi!B14*1000 -> 107562254.6 | U15: 16207199 | V15: 87.30694467 | W15: 17023302.96 | X15: 2185156 | Y15: 16207199 | Z15: 17023302.96 | AA15: 13879703.32 | AB15: 9524859.761 | AC15: 4354862.462 | AL15: 3.049632728 | AM15: 3.045293714 | AN15: 2185156 | AO15: 5.307606377 | AP15: 11.88078416 | AQ15: 31.37576043 | AR15: 91.04852261 | AS15: 1.044719074 | AT15: 12.11656728 | AU15: 0 | AV15: 0
A16: 2003-02-01 | B16: ='SEPE contratos'!E34 -> 1197509 | C16: ='SEPE contratos'!H34 -> 120089 | D16: ='SEPE contratos'!M34 -> 1077420 | E16: =Iass!B22 -> 58.865 | F16: =Iass!N22 -> 74.57 | G16: =Iass!Y22 -> 78.93925171 | H16: =Iass!Z22 -> 4.4 | P16: =ETT!C19 -> 125895 | Q16: =DNIs!B15 -> 37722.15914 | R16: =sabi!B15*1000 -> 110192344.5 | U16: 16335717 | V16: 87.59520445 | W16: 17078759.66 | X16: 2180216 | Y16: 16335717 | Z16: 17078759.66 | AA16: 13922931.48 | AB16: 9567615.376 | AC16: 4355325.255 | AL16: 3.245821461 | AM16: 3.163876315 | AN16: 2180216 | AO16: 1.409734742 | AP16: 11.77481038 | AQ16: 31.28166839 | AR16: 89.97176639 | AS16: 0.8661157762 | AT16: 11.68485827 | AU16: 0 | AV16: 0
A17: 2003-03-01 | B17: ='SEPE contratos'!E35 -> 1127638 | C17: ='SEPE contratos'!H35 -> 115826 | D17: ='SEPE contratos'!M35 -> 1011812 | E17: =Iass!B23 -> 62.755 | F17: =Iass!N23 -> 77.675 | G17: =Iass!Y23 -> 80.79176054 | H17: =Iass!Z23 -> 5.9 | P17: =ETT!C20 -> 145993 | Q17: =DNIs!B16 -> 40856.00811 | R17: =sabi!B16*1000 -> 117474230.6 | U17: 16455090 | V17: 87.84314712 | W17: 17176037.37 | X17: 2163498 | Y17: 16455090 | Z17: 17176037.37 | AA17: 14011965.2 | AB17: 9611524.863 | AC17: 4400412.282 | AL17: 3.410796845 | AM17: 3.181599632 | AN17: 2163498 | AO17: 3.859386694 | AP17: 11.62009708 | AQ17: 31.40467607 | AR17: 89.72844122 | AS17: 0.9284586418 | AT17: 14.42886623 | AU17: 0 | AV17: 0
A18: 2003-04-01 | B18: ='SEPE contratos'!E36 -> 1052755 | C18: ='SEPE contratos'!H36 -> 107626 | D18: ='SEPE contratos'!M36 -> 945129 | E18: =Iass!B24 -> 61.237 | F18: =Iass!N24 -> 78.301 | G18: =Iass!Y24 -> 78.20717488 | H18: =Iass!Z24 -> -1.4 | P18: =ETT!C21 -> 142840 | Q18: =DNIs!B17 -> 42585.83578 | R18: =sabi!B17*1000 -> 114632610.3 | U18: 16559933 | V18: 88.05509806 | W18: 17315136.1 | X18: 2104475 | Y18: 16559933 | Z18: 17315136.1 | AA18: 14146804.49 | AB18: 9656588.221 | AC18: 4490123.543 | AL18: 3.347873032 | AM18: 3.085616895 | AN18: 2104475 | AO18: 2.155509279 | AP18: 11.27533753 | AQ18: 31.73948962 | AR18: 89.77672868 | AS18: 0.9484334978 | AT18: 15.11328083 | AU18: 0 | AV18: 0
A19: 2003-05-01 | B19: ='SEPE contratos'!E37 -> 1196038 | C19: ='SEPE contratos'!H37 -> 108383 | D19: ='SEPE contratos'!M37 -> 1087655 | E19: =Iass!B25 -> 65.097 | F19: =Iass!N25 -> 82.5 | G19: =Iass!Y25 -> 78.90545455 | H19: =Iass!Z25 -> 0.4 | P19: =ETT!C22 -> 175205 | Q19: =DNIs!B18 -> 47315.63323 | R19: =sabi!B18*1000 -> 121858337.8 | U19: 16707449 | V19: 88.25199485 | W19: 17430958.71 | X19: 2035601 | Y19: 16707449 | Z19: 17430958.71 | AA19: 14259410.95 | AB19: 9701162.895 | AC19: 4558133.701 | AL19: 3.421509041 | AM19: 3.043773949 | AN19: 2035601 | AO19: 1.631464798 | AP19: 10.86056432 | AQ19: =AC19/AA19*100 -> 31.96579241 | AR19: 90.93816417 | AS19: =Q19/AC19*100 -> 1.038048384 | AT19: 16.10850867 | AU19: 0 | AV19: 0
A20: 2003-06-01 | B20: ='SEPE contratos'!E38 -> 1199220 | C20: ='SEPE contratos'!H38 -> 99440 | D20: ='SEPE contratos'!M38 -> 1099780 | E20: =Iass!B26 -> 69.174 | F20: =Iass!N26 -> 86.703 | G20: =Iass!Y26 -> 79.78270648 | H20: =Iass!Z26 -> 8.3 | P20: =ETT!C23 -> 189303 | Q20: =DNIs!B19 -> 48382.55512 | R20: =sabi!B19*1000 -> 129490278.5 | U20: 16734941 | V20: 88.45171048 | W20: 17523505.19 | X20: 2020367 | Y20: 16734941 | Z20: 17523505.19 | AA20: 14349784.56 | AB20: 9745248.883 | AC20: 4604442.756 | AL20: 2.728638169 | AM20: 3.038250207 | AN20: 2020367 | AO20: 2.924354662 | AP20: 10.77224112 | AQ20: 32.08719082 | AR20: 91.7079435 | AS20: 1.050779816 | AT20: 17.2128062 | AU20: 0 | AV20: 0
A21: 2003-07-01 | B21: ='SEPE contratos'!E39 -> 1301862 | C21: ='SEPE contratos'!H39 -> 95906 | D21: ='SEPE contratos'!M39 -> 1205956 | E21: =Iass!B27 -> 81.196 | F21: =Iass!N27 -> 91.002 | G21: =Iass!Y27 -> 89.22441265 | H21: =Iass!Z27 -> 4.2 | P21: =ETT!C24 -> 184615 | Q21: =DNIs!B20 -> 49342.6406 | R21: =sabi!B20*1000 -> 151994863 | U21: 16817780 | V21: 88.66192223 | W21: 17592775.55 | X21: 1995964 | Y21: 16817780 | Z21: 17592775.55 | AA21: 14417925.35 | AB21: 9788846.187 | AC21: 4629050.708 | AL21: 3.008269128 | AM21: 3.054520687 | AN21: 1995964 | AO21: 1.738765208 | AP21: 10.60907388 | AQ21: 32.10621914 | AR21: 92.63316696 | AS21: =Q21/AC21*100 -> 1.065934329 | AT21: 15.30860164 | AU21: 0 | AV21: 0
A22: 2003-08-01 | B22: ='SEPE contratos'!E40 -> 970553 | C22: ='SEPE contratos'!H40 -> 67539 | D22: ='SEPE contratos'!M40 -> 903014 | E22: =Iass!B28 -> 62.839 | F22: =Iass!N28 -> 84.427 | G22: =Iass!Y28 -> 74.42998093 | H22: =Iass!Z28 -> 4.9 | P22: =ETT!C25 -> 151573 | Q22: =DNIs!B21 -> 42039.90527 | R22: =sabi!B21*1000 -> 117631474.4 | U22: 16660731 | V22: 88.91784672 | W22: 17650011.48 | X22: 2016675 | Y22: 16660731 | Z22: 17650011.48 | AA22: 14472966.53 | AB22: 9820410.873 | AC22: 4652564.665 | AL22: 2.36020857 | AM22: 3.12072594 | AN22: 2016675 | AO22: 1.647847612 | AP22: 10.79740409 | AQ22: 32.14658622 | AR22: 93.04118374 | AS22: 0.90358562 | AT22: =P22/D22*100 -> 16.78523257 | AU22: 0 | AV22: 0
A23: 2003-09-01 | B23: ='SEPE contratos'!E41 -> 1283644 | C23: ='SEPE contratos'!H41 -> 103657 | D23: ='SEPE contratos'!M41 -> 1179987 | E23: =Iass!B29 -> 72.667 | F23: =Iass!N29 -> 90.222 | G23: =Iass!Y29 -> 80.54243976 | H23: =Iass!Z29 -> 1.7 | P23: =ETT!C26 -> 194014 | Q23: =DNIs!B22 -> 48339.49391 | R23: =sabi!B22*1000 -> 136029000.3 | U23: 16680559 | V23: 89.21555753 | W23: 17695212.98 | X23: 2039630 | Y23: 16680559 | Z23: 17695212.98 | AA23: 14514908.12 | AB23: 9839942.941 | AC23: 4674984.628 | AL23: 3.046764613 | AM23: 3.241973391 | AN23: 2039630 | AO23: 1.636646857 | AP23: 10.8953494 | AQ23: 32.2081586 | AR23: 91.924786 | AS23: 1.03400327 | AT23: 16.44204555 | AU23: 0 | AV23: 0
A24: 2003-10-01 | B24: ='SEPE contratos'!E42 -> 1557842 | C24: ='SEPE contratos'!H42 -> 132619 | D24: ='SEPE contratos'!M42 -> 1425223 | E24: =Iass!B30 -> 77.283 | F24: =Iass!N30 -> 90.811 | G24: =Iass!Y30 -> 85.10312627 | H24: =Iass!Z30 -> 2 | P24: =ETT!C27 -> 192802 | Q24: =DNIs!B23 -> 51296.46818 | R24: =sabi!B23*1000 -> 144669922.1 | U24: 16738305 | V24: 89.55169938 | W24: 17728380.04 | X24: 2096606 | Y24: 16738305 | Z24: 17728380.04 | AA24: 14543750.11 | AB24: 9847442.391 | AC24: 4696310.596 | AL24: 3.088249151 | AM24: 3.429940826 | AN24: 2096606 | AO24: 1.554556234 | AP24: 11.13148876 | AQ24: 32.2909192 | AR24: 91.48700574 | AS24: =Q24/AC24*100 -> 1.092271627 | AT24: 13.52784792 | AU24: 0 | AV24: 0
A25: 2003-11-01 | B25: ='SEPE contratos'!E43 -> 1288834 | C25: ='SEPE contratos'!H43 -> 107113 | D25: ='SEPE contratos'!M43 -> 1181721 | E25: =Iass!B31 -> 70.891 | F25: =Iass!N31 -> 87.816 | G25: =Iass!Y31 -> 80.72674683 | H25: =Iass!Z31 -> 2.6 | P25: =ETT!C28 -> 175510 | Q25: =DNIs!B24 -> 50208.26669 | R25: =sabi!B24*1000 -> 132704416.8 | U25: 16866901 | V25: 89.85296442 | W25: 17745761.78 | X25: 2143206 | Y25: 16866901 | Z25: 17745761.78 | AA25: 14552948.02 | AB25: 9857910.46 | AC25: 4695034.141 | AL25: 3.041548769 | AM25: 3.467806449 | AN25: 2143206 | AO25: 1.230997986 | AP25: 11.27403439 | AQ25: 32.26173922 | AR25: 91.68915469 | AS25: 1.069390875 | AT25: 14.85206745 | AU25: 0 | AV25: 0
A26: 2003-12-01 | B26: ='SEPE contratos'!E44 -> 1136470 | C26: ='SEPE contratos'!H44 -> 90215 | D26: ='SEPE contratos'!M44 -> 1046255 | E26: =Iass!B32 -> 67.657 | F26: =Iass!N32 -> 87.901 | G26: =Iass!Y32 -> 76.96954528 | H26: =Iass!Z32 -> -11 | P26: =ETT!C29 -> 163830 | Q26: =DNIs!B25 -> 47771.95516 | R26: =sabi!B25*1000 -> 126650530.1 | U26: 16589561 | V26: 90.11210732 | W26: 17747358.18 | X26: 2181248 | Y26: 16589561 | Z26: 17747358.18 | AA26: 14542501.87 | AB26: 9871347.148 | AC26: 4671155.263 | AL26: 2.478140198 | AM26: 3.367378682 | AN26: 2181248 | AO26: 2.5495788 | AP26: 11.62042616 | AQ26: 32.12071283 | AR26: 92.06182301 | AS26: 1.022701077 | AT26: 15.65870653 | AU26: 0 | AV26: 0
A27: 2004-01-01 | B27: ='SEPE contratos'!E45 -> 1390153 | C27: ='SEPE contratos'!H45 -> 113783 | D27: ='SEPE contratos'!M45 -> 1276370 | E27: =Iass!B33 -> 63.382 | F27: =Iass!N33 -> 79.492 | G27: =Iass!Y33 -> 79.73380969 | H27: =Iass!Z33 -> 3.2 | P27: =ETT!C30 -> 166701 | Q27: =DNIs!B26 -> 52501.65158 | R27: =sabi!B26*1000 -> 117285912.2 | U27: 16713457 | V27: 90.04757768 | W27: 17733169.24 | X27: 2232560 | Y27: 16713457 | Z27: 17733169.24 | AA27: 14512411.64 | AB27: 9887752.455 | AC27: 4624673.961 | AL27: 3.123661282 | AM27: 3.139399907 | AN27: 2232560 | AO27: 2.169364567 | AP27: 11.78379603 | AQ27: 31.86702581 | AR27: 91.81507359 | AS27: 1.135250874 | AT27: 13.06055454 | AU27: 0 | AV27: 0
A28: 2004-02-01 | B28: ='SEPE contratos'!E46 -> 1382830 | C28: ='SEPE contratos'!H46 -> 134326 | D28: ='SEPE contratos'!M46 -> 1248504 | E28: =Iass!B34 -> 65.44 | F28: =Iass!N34 -> 79.425 | G28: =Iass!Y34 -> 82.39219389 | H28: =Iass!Z34 -> 4.7 | P28: =ETT!C31 -> 154610 | Q28: =DNIs!B27 -> 43530.68899 | R28: =sabi!B27*1000 -> 121094160.7 | U28: 16839767 | V28: 90.22471809 | W28: 17757395.08 | X28: 2219300 | Y28: 16839767 | Z28: 17757395.08 | AA28: 14522280.35 | AB28: 9912214.441 | AC28: 4610073.165 | AL28: 3.085570104 | AM28: 3.001812347 | AN28: 2219300 | AO28: 1.792666415 | AP28: 11.64432656 | AQ28: 31.74482969 | AR28: 90.28615231 | AS28: 0.9442515862 | AT28: 12.38362072 | AU28: 0 | AV28: 0
A29: 2004-03-01 | B29: ='SEPE contratos'!E47 -> 1420641 | C29: ='SEPE contratos'!H47 -> 144848 | D29: ='SEPE contratos'!M47 -> 1275793 | E29: =Iass!B35 -> 72.731 | F29: =Iass!N35 -> 82.714 | G29: =Iass!Y35 -> 87.93070097 | H29: =Iass!Z35 -> 9.4 | P29: =ETT!C32 -> 179317 | Q29: =DNIs!B28 -> 47147.09398 | R29: =sabi!B28*1000 -> 134585871.1 | U29: 16894920 | V29: 90.44252388 | W29: 17820035.68 | X29: 2181546 | Y29: 16894920 | Z29: 17820035.68 | AA29: 14572108.01 | AB29: 9944733.104 | AC29: 4627352.874 | AL29: 2.672911543 | AM29: 2.958869492 | AN29: 2181546 | AO29: 0.8342046075 | AP29: 11.43579739 | AQ29: =AC29/AA29*100 -> 31.75486258 | AR29: 89.80403916 | AS29: 1.018878293 | AT29: 14.05533656 | AU29: 0 | AV29: 0
A30: 2004-04-01 | B30: ='SEPE contratos'!E48 -> 1256809 | C30: ='SEPE contratos'!H48 -> 126813 | D30: ='SEPE contratos'!M48 -> 1129996 | E30: =Iass!B36 -> 68.053 | F30: =Iass!N36 -> 83.26 | G30: =Iass!Y36 -> 81.73552726 | H30: =Iass!Z36 -> 4.8 | P30: =ETT!C33 -> 161139 | Q30: =DNIs!B29 -> 49143.2838 | R30: =sabi!B29*1000 -> 125929415 | U30: 16998997 | V30: 90.7049777 | W30: 17921091.04 | X30: 2162405 | Y30: 16998997 | Z30: 17921091.04 | AA30: 14661894.62 | AB30: 9985308.447 | AC30: 4676513.088 | AL30: 2.651363384 | AM30: 3.009465364 | AN30: 2162405 | AO30: 2.752705544 | AP30: 11.28521285 | AQ30: 31.89569431 | AR30: 89.90992267 | AS30: 1.050853122 | AT30: 14.26013897 | AU30: 0 | AV30: 0
A31: 2004-05-01 | B31: ='SEPE contratos'!E49 -> 1278684 | C31: ='SEPE contratos'!H49 -> 122697 | D31: ='SEPE contratos'!M49 -> 1155987 | E31: =Iass!B37 -> 74.452 | F31: =Iass!N37 -> 89.383 | G31: =Iass!Y37 -> 83.29548124 | H31: =Iass!Z37 -> 6.1 | P31: =ETT!C34 -> 189973 | Q31: =DNIs!B30 -> 54601.38447 | R31: =sabi!B30*1000 -> 137770514.2 | U31: 17135324 | V31: 91.00099495 | W31: 18019711.6 | X31: 2090702 | Y31: 17135324 | Z31: 18019711.6 | AA31: 14751845.31 | AB31: 10010745.95 | AC31: 4740993.326 | AL31: 2.560983427 | AM31: 3.114980937 | AN31: 2090702 | AO31: 2.706866424 | AP31: 10.87433253 | AQ31: 32.13830695 | AR31: 90.40443143 | AS31: 1.151686592 | AT31: 16.43383533 | AU31: 0 | AV31: 0
A32: 2004-06-01 | B32: ='SEPE contratos'!E50 -> 1391623 | C32: ='SEPE contratos'!H50 -> 117330 | D32: ='SEPE contratos'!M50 -> 1274293 | E32: =Iass!B38 -> 79.031 | F32: =Iass!N38 -> 94.708 | G32: =Iass!Y38 -> 83.44701609 | H32: =Iass!Z38 -> 5 | P32: =ETT!C35 -> 200129 | Q32: =DNIs!B31 -> 55832.59303 | R32: =sabi!B31*1000 -> 146243774.7 | U32: 17156672 | V32: 91.34579853 | W32: 18115897.36 | X32: 2054113 | Y32: 17156672 | Z32: 18115897.36 | AA32: 14841960.07 | AB32: 10021045.61 | AC32: 4820793.586 | AL32: 2.520062664 | AM32: 3.271781539 | AN32: 2054113 | AO32: 1.670290596 | AP32: 10.69249903 | AQ32: 32.4808419 | AR32: 91.56883725 | AS32: 1.158161868 | AT32: 15.70510079 | AU32: 0 | AV32: 0
A33: 2004-07-01 | B33: ='SEPE contratos'!E51 -> 1486989 | C33: ='SEPE contratos'!H51 -> 110801 | D33: ='SEPE contratos'!M51 -> 1376188 | E33: =Iass!B39 -> 92.392 | F33: =Iass!N39 -> 98.924 | G33: =Iass!Y39 -> 93.39695119 | H33: =Iass!Z39 -> 5.1 | P33: =ETT!C36 -> 199572 | Q33: =DNIs!B32 -> 56940.51429 | R33: =sabi!B32*1000 -> 170967782.6 | U33: 17280888 | V33: 91.74612992 | W33: 18209648.3 | X33: 2014218 | Y33: 17280888 | Z33: 18209648.3 | AA33: 14932238.91 | AB33: 10016207.42 | AC33: 4915913.87 | AL33: 2.753680926 | AM33: 3.478559991 | AN33: 2014218 | AO33: 0.9145455529 | AP33: 10.43900977 | AQ33: 32.92147881 | AR33: 92.54863351 | AS33: 1.158289502 | AT33: 14.50179772 | AU33: 0 | AV33: 0
A34: 2004-08-01 | B34: ='SEPE contratos'!E52 -> 1125142 | C34: ='SEPE contratos'!H52 -> 81385 | D34: ='SEPE contratos'!M52 -> 1043757 | E34: =Iass!B40 -> 73.225 | F34: =Iass!N40 -> 89.952 | G34: =Iass!Y40 -> 81.40452686 | H34: =Iass!Z40 -> 10 | P34: =ETT!C37 -> 174148 | Q34: =DNIs!B33 -> 48513.28988 | R34: =sabi!B33*1000 -> 135499998.7 | U34: 17073043 | V34: 92.04490861 | W34: 18292674.81 | X34: 2049639 | Y34: 17073043 | Z34: 18292674.81 | AA34: 15020854.44 | AB34: 10034342.31 | AC34: 4986408.538 | AL34: 2.474753359 | AM34: 3.51690284 | AN34: 2049639 | AO34: 1.634571758 | AP34: 10.71836576 | AQ34: 33.19657053 | AR34: 92.76669078 | AS34: 0.9729104527 | AT34: 16.68472643 | AU34: 0 | AV34: 0
A35: 2004-09-01 | B35: ='SEPE contratos'!E53 -> 1475755 | C35: ='SEPE contratos'!H53 -> 123422 | D35: ='SEPE contratos'!M53 -> 1352333 | E35: =Iass!B41 -> 84.225 | F35: =Iass!N41 -> 97.143 | G35: =Iass!Y41 -> 86.70207838 | H35: =Iass!Z41 -> 8.2 | P35: =ETT!C38 -> 204651 | Q35: =DNIs!B34 -> 55782.90117 | R35: =sabi!B34*1000 -> 155855068.5 | U35: 17143750 | V35: 92.23855646 | W35: 18364976.89 | X35: 2050514 | Y35: 17143750 | Z35: 18364976.89 | AA35: 15107806.65 | AB35: 10075450.27 | AC35: 5032277.592 | AL35: 2.7768314 | AM35: 3.388373255 | AN35: 2050514 | AO35: 0.5336261969 | AP35: 10.68295195 | AQ35: 33.30912096 | AR35: 91.63668766 | AS35: 1.108502068 | AT35: 15.13318095 | AU35: 0 | AV35: 0
A36: 2004-10-01 | B36: ='SEPE contratos'!E54 -> 1472055 | C36: ='SEPE contratos'!H54 -> 127838 | D36: ='SEPE contratos'!M54 -> 1344217 | E36: =Iass!B42 -> 79.144 | F36: =Iass!N42 -> 95.703 | G36: =Iass!Y42 -> 82.69751209 | H36: =Iass!Z42 -> -3 | P36: =ETT!C39 -> 210196 | Q36: =DNIs!B35 -> 59195.19595 | R36: =sabi!B35*1000 -> 146452876.7 | U36: 17264424 | V36: 92.32537343 | W36: 18426554.52 | X36: 2075811 | Y36: 17264424 | Z36: 18426554.52 | AA36: 15193095.54 | AB36: 10139531.29 | AC36: 5053521.03 | AL36: 3.143203568 | AM36: 3.097075631 | AN36: 2075811 | AO36: -0.9918410994 | AP36: 10.73312191 | AQ36: 33.26195781 | AR36: 91.31567774 | AS36: 1.171365383 | AT36: 15.6370586 | AU36: 0 | AV36: 0
A37: 2004-11-01 | B37: ='SEPE contratos'!E55 -> 1446781 | C37: ='SEPE contratos'!H55 -> 124812 | D37: ='SEPE contratos'!M55 -> 1321969 | E37: =Iass!B43 -> 81.789 | F37: =Iass!N43 -> 95.157 | G37: =Iass!Y43 -> 85.95163782 | H37: =Iass!Z43 -> 7 | P37: =ETT!C40 -> 195963 | Q37: =DNIs!B36 -> 57939.43114 | R37: =sabi!B36*1000 -> 151347345.8 | U37: 17318242 | V37: 92.53101679 | W37: 18490133.04 | X37: 2121089 | Y37: 17318242 | Z37: 18490133.04 | AA37: 15228296.11 | AB37: 10200153.08 | AC37: 5028141.117 | AL37: 2.675897606 | AM37: 2.980417729 | AN37: 2121089 | AO37: -1.031958664 | AP37: 10.91132714 | AQ37: 33.01840916 | AR37: 91.3731242 | AS37: 1.152303203 | AT37: 14.82356999 | AU37: 0 | AV37: 0
A38: 2004-12-01 | B38: ='SEPE contratos'!E56 -> 1223322 | C38: ='SEPE contratos'!H56 -> 91663 | D38: ='SEPE contratos'!M56 -> 1131659 | E38: =Iass!B44 -> 80.604 | F38: =Iass!N44 -> 93.045 | G38: =Iass!Y44 -> 86.62905046 | H38: =Iass!Z44 -> 13.2 | P38: =ETT!C41 -> 173078 | Q38: =DNIs!B37 -> 55127.97172 | R38: =sabi!B37*1000 -> 149154549.6 | U38: 17161920 | V38: 92.8523902 | W38: 18555712.44 | X38: 2112715 | Y38: 17161920 | Z38: 18555712.44 | AA38: 15213408.35 | AB38: 10257315.63 | AC38: 4956137.853 | AL38: 3.450115407 | AM38: 3.04124851 | AN38: 2112715 | AO38: -3.141916921 | AP38: 10.96111548 | AQ38: 32.57743262 | AR38: 92.5070423 | AS38: 1.112317158 | AT38: 15.29418314 | AU38: 0 | AV38: 0
A39: 2005-01-01 | B39: ='SEPE contratos'!E57 -> 1284958 | C39: ='SEPE contratos'!H57 -> 119535 | D39: ='SEPE contratos'!M57 -> 1165423 | E39: =Iass!B45 -> 70.33 | F39: =Iass!N45 -> 85.976 | G39: =Iass!Y45 -> 81.8018982 | H39: =Iass!Z45 -> 2.8 | P39: =ETT!C42 -> 181410 | Q39: =DNIs!B38 -> 56781.86768 | R39: =sabi!B38*1000 -> 129924847.5 | U39: 17188173 | V39: 93.00143557 | W39: 18623292.72 | X39: 2176599 | Y39: 17188173 | Z39: 18623292.72 | AA39: 15148432.25 | AB39: 10311018.94 | AC39: 4837511.236 | AL39: 2.840322023 | AM39: 3.280303937 | AN39: 2176599 | AO39: -2.50658437 | AP39: 11.23999291 | AQ39: 31.93407183 | AR39: 90.69736131 | AS39: 1.173782652 | AT39: 15.56602195 | AU39: 0 | AV39: 0
A40: 2005-02-01 | B40: ='SEPE contratos'!E58 -> 1230315 | C40: ='SEPE contratos'!H58 -> 135134 | D40: ='SEPE contratos'!M58 -> 1095181 | E40: =Iass!B46 -> 74.684 | F40: =Iass!N46 -> 87.076 | G40: =Iass!Y46 -> 85.76875373 | H40: =Iass!Z46 -> 4.5 | P40: =ETT!C43 -> 158141 | Q40: =DNIs!B39 -> 47079.54411 | R40: =sabi!B39*1000 -> 137968254.1 | U40: 17290315 | V40: 93.35544824 | W40: 18724793.25 | X40: 2165420 | Y40: 17290315 | Z40: 18724793.25 | AA40: 15179339.04 | AB40: 10359905.56 | AC40: 4819546.155 | AL40: 2.675500201 | AM40: 3.46993717 | AN40: 2165420 | AO40: -2.427792547 | AP40: 11.12998301 | AQ40: 31.75069838 | AR40: 89.01630883 | AS40: 0.9768460058 | AT40: 14.43971362 | AU40: 0 | AV40: 0
A41: 2005-03-01 | B41: ='SEPE contratos'!E59 -> 1307345 | C41: ='SEPE contratos'!H59 -> 140672 | D41: ='SEPE contratos'!M59 -> 1166673 | E41: =Iass!B47 -> 77.863 | F41: =Iass!N47 -> 88.836 | G41: =Iass!Y47 -> 87.64802558 | H41: =Iass!Z47 -> -0.3 | P41: =ETT!C44 -> 175944 | Q41: =DNIs!B40 -> 50990.77783 | R41: =sabi!B40*1000 -> 143841012.4 | U41: 17383847 | V41: 93.70684686 | W41: 18860214.04 | X41: 2144835 | Y41: 17383847 | Z41: 18860214.04 | AA41: 15306128.71 | AB41: 10403975.49 | AC41: 4902242.609 | AL41: 2.893929063 | AM41: 3.609293179 | AN41: 2144835 | AO41: -1.682797429 | AP41: 10.98299926 | AQ41: 32.02797194 | AR41: 89.23987165 | AS41: 1.040152067 | AT41: 15.08083242 | AU41: 0 | AV41: 0
A42: 2005-04-01 | B42: ='SEPE contratos'!E60 -> 1322797 | C42: ='SEPE contratos'!H60 -> 133147 | D42: ='SEPE contratos'!M60 -> 1189650 | E42: =Iass!B48 -> 81.827 | F42: =Iass!N48 -> 91.137 | G42: =Iass!Y48 -> 89.78460998 | H42: =Iass!Z48 -> 10.7 | P42: =ETT!C45 -> 186795 | Q42: =DNIs!B41 -> 53149.70775 | R42: =sabi!B41*1000 -> 151163948.5 | U42: 17576953 | V42: 94.05740151 | W42: 19029555.08 | X42: 2095945 | Y42: 17576953 | Z42: 19029555.08 | AA42: 15528801.26 | AB42: 10443228.72 | AC42: 5085600.597 | AL42: 3.399941773 | AM42: 3.696154896 | AN42: 2095945 | AO42: -3.073429815 | AP42: 10.65397177 | AQ42: 32.74947313 | AR42: 89.93443438 | AS42: 1.045101886 | AT42: 15.70167696 | AU42: 0 | AV42: 0
A43: 2005-05-01 | B43: ='SEPE contratos'!E61 -> 1429695 | C43: ='SEPE contratos'!H61 -> 134439 | D43: ='SEPE contratos'!M61 -> 1295256 | E43: =Iass!B49 -> 84.959 | F43: =Iass!N49 -> 96.147 | G43: =Iass!Y49 -> 88.36365149 | H43: =Iass!Z49 -> 6.5 | P43: =ETT!C46 -> 198525 | Q43: =DNIs!B42 -> 59052.78204 | R43: =sabi!B42*1000 -> 156949880.9 | U43: 17789125 | V43: 94.39000716 | W43: 19170174.03 | X43: 2007393 | Y43: 17789125 | Z43: 19170174.03 | AA43: 15705143.45 | AB43: 10463745.49 | AC43: 5241389.646 | AL43: 3.815515832 | AM43: 3.724130729 | AN43: 2007393 | AO43: -3.984738141 | AP43: 10.14013171 | AQ43: 33.37371392 | AR43: 90.59666572 | AS43: 1.126662699 | AT43: 15.32708592 | AU43: 0 | AV43: 0
A44: 2005-06-01 | B44: ='SEPE contratos'!E62 -> 1566969 | C44: ='SEPE contratos'!H62 -> 133022 | D44: ='SEPE contratos'!M62 -> 1433947 | E44: =Iass!B50 -> 90.446 | F44: =Iass!N50 -> 103.886 | G44: =Iass!Y50 -> 87.06274185 | H44: =Iass!Z50 -> 4.7 | P44: =ETT!C47 -> 215479 | Q44: =DNIs!B43 -> 60384.36532 | R44: =sabi!B43*1000 -> 167086346.6 | U44: 17942395 | V44: 94.71700749 | W44: 19282070.89 | X44: 1974860 | Y44: 17942395 | Z44: 19282070.89 | AA44: 15835155.28 | AB44: 10465525.79 | AC44: 5369609.757 | AL44: 4.579693544 | AM44: 3.69042844 | AN44: 1974860 | AO44: -3.858259015 | AP44: 9.915322167 | AQ44: 33.9094228 | AR44: 91.51087226 | AS44: 1.124557799 | AT44: 15.02698496 | AU44: 0 | AV44: 0
A45: 2005-07-01 | B45: ='SEPE contratos'!E63 -> 1570198 | C45: ='SEPE contratos'!H63 -> 116265 | D45: ='SEPE contratos'!M63 -> 1453933 | E45: =Iass!B51 -> 95.873 | F45: =Iass!N51 -> 104.637 | G45: =Iass!Y51 -> 91.62437761 | H45: =Iass!Z51 -> -2 | P45: =ETT!C48 -> 209069 | Q45: =DNIs!B44 -> 61582.61026 | R45: =sabi!B44*1000 -> 177111970.8 | U45: 18157011 | V45: 95.04368755 | W45: 19365245.66 | X45: 1989417 | Y45: 18157011 | Z45: 19365245.66 | AA45: 15918836.75 | AB45: 10448569.63 | AC45: 5470260.928 | AL45: 5.069895714 | AM45: 3.594237812 | AN45: 1989417 | AO45: -1.231296712 | AP45: 9.874787729 | AQ45: 34.36344636 | AR45: 92.5955198 | AS45: 1.125770984 | AT45: 14.37954844 | AU45: 0 | AV45: 0
A46: 2005-08-01 | B46: ='SEPE contratos'!E64 -> 1298453 | C46: ='SEPE contratos'!H64 -> 92117 | D46: ='SEPE contratos'!M64 -> 1206336 | E46: =Iass!B52 -> 82.469 | F46: =Iass!N52 -> 96.287 | G46: =Iass!Y52 -> 85.64915305 | H46: =Iass!Z52 -> 5.6 | P46: =ETT!C49 -> 183549 | Q46: =DNIs!B45 -> 52468.35335 | R46: =sabi!B45*1000 -> 152349953.8 | U46: 17968476 | V46: 95.36408368 | W46: 19428680.11 | X46: 2019110 | Y46: 17968476 | Z46: 19428680.11 | AA46: 15977604.55 | AB46: 10458303.37 | AC46: 5519303.025 | AL46: 5.244718238 | AM46: 3.606011685 | AN46: 2019110 | AO46: -1.489481806 | AP46: 10.1018202 | AQ46: 34.54399566 | AR46: 92.90563463 | AS46: 0.950633678 | AT46: 15.21541262 | AU46: 0 | AV46: 0
A47: 2005-09-01 | B47: ='SEPE contratos'!E65 -> 1617951 | C47: ='SEPE contratos'!H65 -> 138892 | D47: ='SEPE contratos'!M65 -> 1479059 | E47: =Iass!B53 -> 92.859 | F47: =Iass!N53 -> 105.875 | G47: =Iass!Y53 -> 87.70625738 | H47: =Iass!Z53 -> 1.3 | P47: =ETT!C50 -> 224343 | Q47: =DNIs!B46 -> 60330.62232 | R47: =sabi!B46*1000 -> 171544027 | U47: 18094408 | V47: 95.67686763 | W47: 19472374.23 | X47: 2013286 | Y47: 18094408 | Z47: 19472374.23 | AA47: 16011458.69 | AB47: 10494727 | AC47: 5516736.047 | AL47: 5.545216187 | AM47: 3.7276381 | AN47: 2013286 | AO47: -1.815544785 | AP47: 10.01251561 | AQ47: 34.45492477 | AR47: 91.41556203 | AS47: 1.093592693 | AT47: 15.16795476 | AU47: 0 | AV47: 0
A48: 2005-10-01 | B48: ='SEPE contratos'!E66 -> 1637186 | C48: ='SEPE contratos'!H66 -> 148234 | D48: ='SEPE contratos'!M66 -> 1488952 | E48: =Iass!B54 -> 90.717 | F48: =Iass!N54 -> 104.997 | G48: =Iass!Y54 -> 86.39961142 | H48: =Iass!Z54 -> 4.9 | P48: =ETT!C51 -> 226201 | Q48: =DNIs!B47 -> 64021.10567 | R48: =sabi!B47*1000 -> 167586981.3 | U48: 18194803 | V48: 95.97993443 | W48: 19496328.04 | X48: 2052861 | Y48: 18194803 | Z48: 19496328.04 | AA48: 16020399.17 | AB48: 10557840.54 | AC48: 5462559.996 | AL48: 5.388995312 | AM48: 3.958479689 | AN48: 2052861 | AO48: -1.105591983 | AP48: 10.13875477 | AQ48: 34.0975274 | AR48: 90.94580579 | AS48: 1.171998215 | AT48: 15.19196052 | AU48: 0 | AV48: 0
A49: 2005-11-01 | B49: ='SEPE contratos'!E67 -> 1569481 | C49: ='SEPE contratos'!H67 -> 142901 | D49: ='SEPE contratos'!M67 -> 1426580 | E49: =Iass!B55 -> 95.223 | F49: =Iass!N55 -> 105.252 | G49: =Iass!Y55 -> 90.47143997 | H49: =Iass!Z55 -> 5.8 | P49: =ETT!C52 -> 229273 | Q49: =DNIs!B48 -> 62662.96417 | R49: =sabi!B48*1000 -> 175911186.6 | U49: 18283385 | V49: 96.33675743 | W49: 19511970.46 | X49: 2095580 | Y49: 18283385 | Z49: 19511970.46 | AA49: 16026234.91 | AB49: 10615513.52 | AC49: 5410720.986 | AL49: 5.572984833 | AM49: 4.11297859 | AN49: 2095580 | AO49: -1.202636947 | AP49: 10.28305412 | AQ49: 33.7616478 | AR49: 90.89501561 | AS49: 1.158125956 | AT49: 16.07151369 | AU49: 0 | AV49: 0
A50: 2005-12-01 | B50: ='SEPE contratos'!E68 -> 1329617 | C50: ='SEPE contratos'!H68 -> 108480 | D50: ='SEPE contratos'!M68 -> 1221137 | E50: =Iass!B56 -> 88.311 | F50: =Iass!N56 -> 101.449 | G50: =Iass!Y56 -> 87.04965056 | H50: =Iass!Z56 -> 0.6 | P50: =ETT!C53 -> 195316 | Q50: =DNIs!B49 -> 59622.29951 | R50: =sabi!B49*1000 -> 163142232.5 | U50: 18156182 | V50: 96.73874018 | W50: 19519301.5 | X50: 2102937 | Y50: 18156182 | Z50: 19519301.5 | AA50: 16028965.92 | AB50: 10667745.94 | AC50: 5361219.018 | AL50: 5.793419384 | AM50: 4.185340541 | AN50: 2102937 | AO50: -0.4628168021 | AP50: 10.38019965 | AQ50: 33.44706729 | AR50: 91.84125955 | AS50: 1.11210341 | AT50: 15.99460175 | AU50: 0 | AV50: 0
A51: 2006-01-01 | B51: ='SEPE contratos'!E69 -> 1472539 | C51: ='SEPE contratos'!H69 -> 159739 | D51: ='SEPE contratos'!M69 -> 1312800 | E51: =Iass!B57 -> 83.461 | F51: =Iass!N57 -> 89.404 | G51: =Iass!Y57 -> 93.35264641 | H51: =Iass!Z57 -> 14.7 | P51: =ETT!C54 -> 195195 | Q51: =DNIs!B50 -> 62067.71299 | R51: =sabi!B50*1000 -> 162135122.7 | U51: 18123841 | V51: 96.87339179 | W51: 19518321.17 | X51: 2171503 | Y51: 18123841 | Z51: 19518321.17 | AA51: 16028592.21 | AB51: 10714537.81 | AC51: 5314054.092 | AL51: 5.443673391 | AM51: 4.163421554 | AN51: 2171503 | AO51: -0.2341267271 | AP51: 10.69951315 | AQ51: 33.15359218 | AR51: 89.15213791 | AS51: 1.167991743 | AT51: 14.86860146 | AU51: 0 | AV51: 0
A52: 2006-02-01 | B52: ='SEPE contratos'!E70 -> 1366664 | C52: ='SEPE contratos'!H70 -> 160557 | D52: ='SEPE contratos'!M70 -> 1206107 | E52: =Iass!B58 -> 85.32 | F52: =Iass!N58 -> 91.675 | G52: =Iass!Y58 -> 93.06790292 | H52: =Iass!Z58 -> 8.9 | P52: =ETT!C55 -> 172885 | Q52: =DNIs!B51 -> 51462.1965 | R52: =sabi!B51*1000 -> 165746500.4 | U52: 18238966 | V52: 97.23575386 | W52: 19563135.21 | X52: 2169277 | Y52: 18238966 | Z52: 19563135.21 | AA52: 16058429.62 | AB52: 10735357.42 | AC52: 5323072.291 | AL52: 5.486603338 | AM52: 4.156476029 | AN52: 2169277 | AO52: 0.1781178709 | AP52: 10.62941577 | AQ52: 33.14814971 | AR52: 88.25190391 | AS52: 0.9667762089 | AT52: 14.33413453 | AU52: 0 | AV52: 0
A53: 2006-03-01 | B53: ='SEPE contratos'!E71 -> 1555516 | C53: ='SEPE contratos'!H71 -> 176266 | D53: ='SEPE contratos'!M71 -> 1379250 | E53: =Iass!B59 -> 97.086 | F53: =Iass!N59 -> 98.607 | G53: =Iass!Y59 -> 98.45751316 | H53: =Iass!Z59 -> 13.7 | P53: =ETT!C56 -> 207018 | Q53: =DNIs!B52 -> 55737.52843 | R53: =sabi!B52*1000 -> 188603665.5 | U53: 18360036 | V53: 97.60396563 | W53: 19653743.62 | X53: 2148530 | Y53: 18360036 | Z53: 19653743.62 | AA53: 16118478.17 | AB53: 10730204.77 | AC53: 5388273.617 | AL53: 5.61549466 | AM53: 4.158758378 | AN53: 2148530 | AO53: 0.1722743241 | AP53: 10.4762566 | AQ53: 33.42917091 | AR53: 88.66832614 | AS53: 1.034422756 | AT53: 15.00946166 | AU53: 0 | AV53: 0
A54: 2006-04-01 | B54: ='SEPE contratos'!E72 -> 1304213 | C54: ='SEPE contratos'!H72 -> 145658 | D54: ='SEPE contratos'!M72 -> 1158555 | E54: =Iass!B60 -> 84.79 | F54: =Iass!N60 -> 96.907 | G54: =Iass!Y60 -> 87.4962593 | H54: =Iass!Z60 -> -2.7 | P54: =ETT!C57 -> 191129 | Q54: =DNIs!B53 -> 58097.43394 | R54: =sabi!B53*1000 -> 164716898.4 | U54: 18559178 | V54: 97.98144617 | W54: 19790146.4 | X54: 2075676 | Y54: 18559178 | Z54: 19790146.4 | AA54: 16208737.86 | AB54: 10699079.86 | AC54: 5509658.067 | AL54: 5.588141471 | AM54: 4.171749065 | AN54: 2075676 | AO54: -0.9670578188 | AP54: 10.05907771 | AQ54: 33.99190064 | AR54: 88.83173224 | AS54: 1.054465327 | AT54: 16.49718831 | AU54: 0 | AV54: 0
A55: 2006-05-01 | B55: ='SEPE contratos'!E73 -> 1637566 | C55: ='SEPE contratos'!H73 -> 166868 | D55: ='SEPE contratos'!M73 -> 1470698 | E55: =Iass!B61 -> 98.376 | F55: =Iass!N61 -> 107.47 | G55: =Iass!Y61 -> 91.53810366 | H55: =Iass!Z61 -> 4 | P55: =ETT!C58 -> 243270 | Q55: =DNIs!B54 -> 64550.02762 | R55: =sabi!B54*1000 -> 191109678 | U55: 18640331 | V55: 98.33850008 | W55: 19900337.3 | X55: 2004528 | Y55: 18640331 | Z55: 19900337.3 | AA55: 16299899.39 | AB55: 10696413.74 | AC55: 5603485.63 | AL55: 4.784979587 | AM55: 4.183243231 | AN55: 2004528 | AO55: -0.1427224266 | AP55: 9.709574669 | AQ55: 34.37742465 | AR55: 89.8099985 | AS55: 1.151962044 | AT55: 16.54112537 | AU55: 0 | AV55: 0
A56: 2006-06-01 | B56: ='SEPE contratos'!E74 -> 1655753 | C56: ='SEPE contratos'!H74 -> 152484 | D56: ='SEPE contratos'!M74 -> 1503269 | E56: =Iass!B62 -> 104.892 | F56: =Iass!N62 -> 110.154 | G56: =Iass!Y62 -> 95.22305136 | H56: =Iass!Z62 -> 10 | P56: =ETT!C59 -> 236201 | Q56: =DNIs!B55 -> 66005.56849 | R56: =sabi!B55*1000 -> 203767955 | U56: 18642858 | V56: 98.69542811 | W56: 19984316.3 | X56: 1959754 | Y56: 18642858 | Z56: 19984316.3 | AA56: 16391962.76 | AB56: 10722206.41 | AC56: 5669756.303 | AL56: 3.903954851 | AM56: 4.200467424 | AN56: 1959754 | AO56: -0.7649149813 | AP56: 9.512162827 | AQ56: 34.58863582 | AR56: 90.79065537 | AS56: 1.16416941 | AT56: 15.71249058 | AU56: 0 | AV56: 0
A57: 2006-07-01 | B57: ='SEPE contratos'!E75 -> 1670892 | C57: ='SEPE contratos'!H75 -> 168285 | D57: ='SEPE contratos'!M75 -> 1502607 | E57: =Iass!B63 -> 106.817 | F57: =Iass!N63 -> 111.633 | G57: =Iass!Y63 -> 95.6858635 | H57: =Iass!Z63 -> 4.7 | P57: =ETT!C60 -> 225327 | Q57: =DNIs!B56 -> 67315.35851 | R57: =sabi!B56*1000 -> 207507547.3 | U57: 18771167 | V57: 99.06759584 | W57: 20042083.41 | X57: 1954984 | Y57: 18771167 | Z57: 20042083.41 | AA57: 16484927.98 | AB57: 10776457.87 | AC57: 5708470.088 | AL57: 3.382473029 | AM57: 4.233355769 | AN57: 1954984 | AO57: -1.730808574 | AP57: 9.43245082 | AQ57: 34.62841995 | AR57: 89.92843344 | AS57: 1.179218906 | AT57: 14.99573741 | AU57: 0 | AV57: 0
A58: 2006-08-01 | B58: ='SEPE contratos'!E76 -> 1322920 | C58: ='SEPE contratos'!H76 -> 139997 | D58: ='SEPE contratos'!M76 -> 1182923 | E58: =Iass!B64 -> 90.139 | F58: =Iass!N64 -> 102.534 | G58: =Iass!Y64 -> 87.91132697 | H58: =Iass!Z64 -> 2.8 | P58: =ETT!C61 -> 193005 | Q58: =DNIs!B57 -> 57352.652 | R58: =sabi!B57*1000 -> 175108108.3 | U58: 18583552 | V58: 99.40208891 | W58: 20093212.63 | X58: 1983677 | Y58: 18583552 | Z58: 20093212.63 | AA58: 16555998.3 | AB58: 10831452.33 | AC58: 5724545.968 | AL58: 3.42308385 | AM58: 4.234265838 | AN58: 1983677 | AO58: -1.754882102 | AP58: 9.64484326 | AQ58: 34.57686975 | AR58: 89.41757627 | AS58: 1.001872503 | AT58: 16.31593941 | AU58: 0 | AV58: 0
A59: 2006-09-01 | B59: ='SEPE contratos'!E77 -> 1674735 | C59: ='SEPE contratos'!H77 -> 200688 | D59: ='SEPE contratos'!M77 -> 1474047 | E59: =Iass!B65 -> 103.129 | F59: =Iass!N65 -> 114.719 | G59: =Iass!Y65 -> 89.8970528 | H59: =Iass!Z65 -> 2.7 | P59: =ETT!C62 -> 236885 | Q59: =DNIs!B58 -> 65946.82253 | R59: =sabi!B58*1000 -> 200343071.3 | U59: 18814068 | V59: 99.70295444 | W59: 20137703.96 | X59: 1966166 | Y59: 18814068 | Z59: 20137703.96 | AA59: 16605173.73 | AB59: 10887189.8 | AC59: 5717983.944 | AL59: 3.977250872 | AM59: 4.208432798 | AN59: 1966166 | AO59: -2.340452375 | AP59: 9.46171251 | AQ59: 34.43495406 | AR59: 88.01673101 | AS59: 1.153322975 | AT59: 16.0703831 | AU59: 0 | AV59: 0
A60: 2006-10-01 | B60: ='SEPE contratos'!E78 -> 1819192 | C60: ='SEPE contratos'!H78 -> 239673 | D60: ='SEPE contratos'!M78 -> 1579519 | E60: =Iass!B66 -> 106.749 | F60: =Iass!N66 -> 115.989 | G60: =Iass!Y66 -> 92.03372734 | H60: =Iass!Z66 -> 7.2 | P60: =ETT!C63 -> 244931 | Q60: =DNIs!B59 -> 69980.85436 | R60: =sabi!B59*1000 -> 207375447.4 | U60: 18767751 | V60: 99.96632488 | W60: 20175557.4 | X60: 1992836 | Y60: 18767751 | Z60: 20175557.4 | AA60: 16632454.26 | AB60: 10943670.26 | AC60: 5688784.017 | AL60: 3.148965119 | AM60: 4.153615742 | AN60: 1992836 | AO60: -2.923968062 | AP60: 9.599131277 | AQ60: 34.20291394 | AR60: 86.82530486 | AS60: 1.230154883 | AT60: 15.50668273 | AU60: 0 | AV60: 0
A61: 2006-11-01 | B61: ='SEPE contratos'!E79 -> 1660499 | C61: ='SEPE contratos'!H79 -> 231908 | D61: ='SEPE contratos'!M79 -> 1428591 | E61: =Iass!B67 -> 109.921 | F61: =Iass!N67 -> 116.007 | G61: =Iass!Y67 -> 94.75376486 | H61: =Iass!Z67 -> 5.2 | P61: =ETT!C64 -> 221397 | Q61: =DNIs!B60 -> 68496.28296 | R61: =sabi!B60*1000 -> 213537518.4 | U61: 18884115 | V61: 100.3064324 | W61: 20199902.71 | X61: 2023164 | Y61: 18884115 | Z61: 20199902.71 | AA61: 16648608.7 | AB61: 11027712.68 | AC61: 5620896.022 | AL61: 3.285660724 | AM61: 4.120541275 | AN61: 2023164 | AO61: -3.455654282 | AP61: 9.6768403 | AQ61: 33.76195647 | AR61: 86.03383682 | AS61: 1.218600783 | AT61: 15.49757768 | AU61: 0 | AV61: 0
A62: 2006-12-01 | B62: ='SEPE contratos'!E80 -> 1386283 | C62: ='SEPE contratos'!H80 -> 235122 | D62: ='SEPE contratos'!M80 -> 1151161 | E62: =Iass!B68 -> 96.514 | F62: =Iass!N68 -> 109.78 | G62: =Iass!Y68 -> 87.91583166 | H62: =Iass!Z68 -> 1.1 | P62: =ETT!C65 -> 189854 | Q62: =DNIs!B61 -> 65172.56169 | R62: =sabi!B61*1000 -> 187492472.4 | U62: 18770259 | V62: 100.7111346 | W62: 20210739.89 | X62: 2022873 | Y62: 18770259 | Z62: 20210739.89 | AA62: 16653637.04 | AB62: 11139317.07 | AC62: 5514319.961 | AL62: 3.382192357 | AM62: 4.106136467 | AN62: 2022873 | AO62: -3.807246722 | AP62: 9.728563258 | AQ62: 33.11180583 | AR62: 83.03939383 | AS62: 1.181878494 | AT62: 16.49239333 | AU62: 0 | AV62: 0
A63: 2007-01-01 | B63: ='SEPE contratos'!E81 -> 1653150 | C63: ='SEPE contratos'!H81 -> 255422 | D63: ='SEPE contratos'!M81 -> 1397728 | E63: =Iass!B69 -> 99.537 | F63: =Iass!N69 -> 103.421 | G63: =Iass!Y69 -> 96.24447646 | H63: =Iass!Z69 -> 3.6 | P63: =ETT!C66 -> 221340 | Q63: =DNIs!B62 -> 64539.33129 | R63: =sabi!B62*1000 -> 196178731.8 | U63: 18757058 | V63: 100.8529628 | W63: 20208068.94 | X63: 2082508 | Y63: 18757058 | Z63: 20208068.94 | AA63: 16647539.3 | AB63: 11278483.41 | AC63: 5369055.834 | AL63: 3.493834447 | AM63: 4.108179699 | AN63: 2082508 | AO63: -4.098313472 | AP63: 9.9930488 | AQ63: 32.25134801 | AR63: 84.54937543 | AS63: 1.202061094 | AT63: 15.83569908 | AU63: 0 | AV63: 0
A64: 2007-02-01 | B64: ='SEPE contratos'!E82 -> 1408327 | C64: ='SEPE contratos'!H82 -> 175887 | D64: ='SEPE contratos'!M82 -> 1232440 | E64: =Iass!B70 -> 94.736 | F64: =Iass!N70 -> 103.408 | G64: =Iass!Y70 -> 91.61380164 | H64: =Iass!Z70 -> -1.8 | P64: =ETT!C67 -> 190278 | Q64: =DNIs!B63 -> 53511.48912 | R64: =sabi!B63*1000 -> 186716380.2 | U64: 18871589 | V64: 101.1984336 | W64: 20251974.5 | X64: 2075275 | Y64: 18871589 | Z64: 20251974.5 | AA64: 16686335.39 | AB64: 11393987.44 | AC64: 5292347.927 | AL64: 3.468524477 | AM64: 4.075362651 | AN64: 2075275 | AO64: -4.33333318 | AP64: 9.907330281 | AQ64: 31.71665799 | AR64: 87.51092608 | AS64: 1.011110567 | AT64: 15.43912888 | AU64: 0 | AV64: 0
A65: 2007-03-01 | B65: ='SEPE contratos'!E83 -> 1564432 | C65: ='SEPE contratos'!H83 -> 193165 | D65: ='SEPE contratos'!M83 -> 1371267 | E65: =Iass!B71 -> 106.574 | F65: =Iass!N71 -> 109.544 | G65: =Iass!Y71 -> 97.28876068 | H65: =Iass!Z71 -> -1.3 | P65: =ETT!C68 -> 219356 | Q65: =DNIs!B64 -> 57957.07041 | R65: =sabi!B64*1000 -> 210048044.1 | U65: 19085110 | V65: 101.5185928 | W65: 20342456.56 | X65: 2059451 | Y65: 19085110 | Z65: 20342456.56 | AA65: 16770025.31 | AB65: 11485829.14 | AC65: 5284196.239 | AL65: 3.94919705 | AM65: 4.010527621 | AN65: 2059451 | AO65: -4.146044039 | AP65: 9.739861707 | AQ65: 31.50976901 | AR65: 87.65270718 | AS65: 1.096800115 | AT65: 15.99659293 | AU65: 0 | AV65: 0
A66: 2007-04-01 | B66: ='SEPE contratos'!E84 -> 1385980 | C66: ='SEPE contratos'!H84 -> 168931 | D66: ='SEPE contratos'!M84 -> 1217049 | E66: =Iass!B72 -> 95.4 | F66: =Iass!N72 -> 104.617 | G66: =Iass!Y72 -> 91.18976839 | H66: =Iass!Z72 -> 4.5 | P66: =ETT!C69 -> 205890 | Q66: =DNIs!B65 -> 60410.95048 | R66: =sabi!B65*1000 -> 188025066.2 | U66: 19109008 | V66: 101.8127425 | W66: 20479515.11 | X66: 2023124 | Y66: 19109008 | Z66: 20479515.11 | AA66: 16898609.08 | AB66: 11554008.53 | AC66: 5344600.772 | AL66: 2.96257733 | AM66: 3.910378044 | AN66: 2023124 | AO66: -2.531801688 | AP66: 9.573686176 | AQ66: 31.62745968 | AR66: 87.81144028 | AS66: 1.130317362 | AT66: 16.9171496 | AU66: 0 | AV66: 0
A67: 2007-05-01 | B67: ='SEPE contratos'!E85 -> 1625492 | C67: ='SEPE contratos'!H85 -> 190378 | D67: ='SEPE contratos'!M85 -> 1435114 | E67: =Iass!B73 -> 108.911 | F67: =Iass!N73 -> 112.28 | G67: =Iass!Y73 -> 96.99946562 | H67: =Iass!Z73 -> 6.2 | P67: =ETT!C70 -> 241030 | Q67: =DNIs!B66 -> 67120.49496 | R67: =sabi!B66*1000 -> 214654066.9 | U67: 19234065 | V67: 102.0959526 | W67: 20589818.42 | X67: 1973231 | Y67: 19234065 | Z67: 20589818.42 | AA67: 16992848.21 | AB67: 11598646.98 | AC67: 5394201.326 | AL67: 3.185211679 | AM67: 3.82095464 | AN67: 1973231 | AO67: -1.561315182 | AP67: 9.304491247 | AQ67: 31.74395051 | AR67: 88.28797681 | AS67: 1.244308303 | AT67: 16.79518143 | AU67: 0 | AV67: 0
A68: 2007-06-01 | B68: ='SEPE contratos'!E86 -> 1582127 | C68: ='SEPE contratos'!H86 -> 178278 | D68: ='SEPE contratos'!M86 -> 1403849 | E68: =Iass!B74 -> 113.113 | F68: =Iass!N74 -> 114.938 | G68: =Iass!Y74 -> 98.41218744 | H68: =Iass!Z74 -> 3.5 | P68: =ETT!C71 -> 243203 | Q68: =DNIs!B67 -> 68633.99739 | R68: =sabi!B67*1000 -> 222935841.9 | U68: 19358772 | V68: 102.3886652 | W68: =Z68 -> 20673366.47 | X68: =AN68 -> 1965869 | Y68: =U68 -> 19358772 | Z68: 20673366.47 | AA68: 17052742.71 | AB68: 11619744.5 | AC68: 5432997.901 | AL68: 3.840151548 | AM68: 3.741886007 | AN68: 1965869 | AO68: 0.3120289587 | AP68: 9.218767153 | AQ68: =AC68/AA68*100 -> 31.85996525 | AR68: =D68/B68*100 -> 88.73175162 | AS68: =Q68/AC68*100 -> 1.263280396 | AT68: =P68/D68*100 -> 17.32401419 | AU68: =S68/R68*100 -> 0 | AV68: =T68/P68*100 -> 0
A69: 2007-07-01 | B69: ='SEPE contratos'!E87 -> 1754918 | C69: ='SEPE contratos'!H87 -> 180841 | D69: ='SEPE contratos'!M87 -> 1574077 | E69: =Iass!B75 -> 123.095 | F69: =Iass!N75 -> 117.743 | G69: =Iass!Y75 -> 104.5454932 | H69: =Iass!Z75 -> 9.7 | P69: =ETT!C72 -> 235606 | Q69: =DNIs!B68 -> 69995.94497 | R69: =sabi!B68*1000 -> 242609491.9 | U69: 19302685 | V69: 102.7041368 | W69: 20730159.27 | X69: 1970338 | Y69: 19302685 | Z69: 20730159.27 | AA69: 17078292.58 | AB69: 11617301.09 | AC69: 5460990.497 | AL69: 2.831566093 | AM69: 3.670855043 | AN69: 1970338 | AO69: 0.7853772716 | AP69: 9.26214389 | AQ69: 31.97620882 | AR69: 89.69518804 | AS69: 1.281744493 | AT69: 14.96788277 | AU69: 0 | AV69: 0
A70: 2007-08-01 | B70: ='SEPE contratos'!E88 -> 1287035 | C70: ='SEPE contratos'!H88 -> 127583 | D70: ='SEPE contratos'!M88 -> 1159452 | E70: =Iass!B76 -> 99.427 | F70: =Iass!N76 -> 108.464 | G70: =Iass!Y76 -> 91.66820327 | H70: =Iass!Z76 -> 4.5 | P70: =ETT!C73 -> 198431 | Q70: =DNIs!B69 -> 59636.51034 | R70: =sabi!B69*1000 -> 195961931.4 | U70: 19047968 | V70: 103.0136127 | W70: 20761788.02 | X70: 2028296 | Y70: 19047968 | Z70: 20761788.02 | AA70: 17096910.61 | AB70: 11643014.42 | AC70: 5453895.773 | AL70: 2.499070145 | AM70: 3.633283835 | AN70: 2028296 | AO70: 2.249307725 | AP70: 9.623603121 | AQ70: 31.89989055 | AR70: 90.08706057 | AS70: 1.093466264 | AT70: 17.11420568 | AU70: 0 | AV70: 0
A71: 2007-09-01 | B71: ='SEPE contratos'!E89 -> 1595921 | C71: ='SEPE contratos'!H89 -> 192289 | D71: ='SEPE contratos'!M89 -> 1403632 | E71: =Iass!B77 -> 107.25 | F71: =Iass!N77 -> 116.946 | G71: =Iass!Y77 -> 91.70899389 | H71: =Iass!Z77 -> 2.1 | P71: =ETT!C74 -> 241126 | Q71: =DNIs!B70 -> 68572.91209 | R71: =sabi!B70*1000 -> 211380381 | U71: 19307990 | V71: 103.3185493 | W71: 20768252.72 | X71: 2017363 | Y71: 19307990 | Z71: 20768252.72 | AA71: 17108596.81 | AB71: 11696884.49 | AC71: 5411713.73 | AL71: 2.625280189 | AM71: 3.626242652 | AN71: 2017363 | AO71: 2.603900179 | AP71: 9.459927815 | AQ71: 31.63154635 | AR71: 87.95122064 | AS71: 1.267120094 | AT71: 17.17871921 | AU71: 0 | AV71: 0
A72: 2007-10-01 | B72: ='SEPE contratos'!E90 -> 1911389 | C72: ='SEPE contratos'!H90 -> 233084 | D72: ='SEPE contratos'!M90 -> 1678305 | E72: =Iass!B78 -> 115.91 | F72: =Iass!N78 -> 118.872 | G72: =Iass!Y78 -> 97.50824416 | H72: =Iass!Z78 -> 6.1 | P72: =ETT!C75 -> 266761 | Q72: =DNIs!B71 -> 72767.58439 | R72: =sabi!B71*1000 -> 228448484.5 | U72: 19232271 | V72: 103.610815 | W72: 20749553.37 | X72: 2048577 | Y72: 19232271 | Z72: 20749553.37 | AA72: 17113351.18 | AB72: 11778911.3 | AC72: 5334444.367 | AL72: 2.475096776 | AM72: 3.645038314 | AN72: 2048577 | AO72: 2.797069102 | AP72: 9.626388009 | AQ72: 31.1712435 | AR72: 87.80551735 | AS72: 1.364108038 | AT72: 15.89466754 | AU72: 0 | AV72: 0
A73: 2007-11-01 | B73: ='SEPE contratos'!E91 -> 1592018 | C73: ='SEPE contratos'!H91 -> 190015 | D73: ='SEPE contratos'!M91 -> 1402003 | E73: =Iass!B79 -> 115.045 | F73: =Iass!N79 -> 117.027 | G73: =Iass!Y79 -> 98.30637374 | H73: =Iass!Z79 -> 3.8 | P73: =ETT!C76 -> 234417 | Q73: =DNIs!B72 -> 71223.8954 | R73: =sabi!B72*1000 -> 226743645.1 | U73: 19325697 | V73: 103.8985736 | W73: 20721138.5 | X73: 2094473 | Y73: 19325697 | Z73: 20721138.5 | AA73: 17100776.39 | AB73: 11834959.53 | AC73: 5265818.751 | AL73: 2.338378049 | AM73: 3.581234089 | AN73: 2094473 | AO73: 3.524627761 | AP73: 9.778040977 | AQ73: 30.79286362 | AR73: 88.06451937 | AS73: 1.352570204 | AT73: 16.72014967 | AU73: 0 | AV73: 0
A74: 2007-12-01 | B74: ='SEPE contratos'!E92 -> 1261319 | C74: ='SEPE contratos'!H92 -> 134511 | D74: ='SEPE contratos'!M92 -> 1126808 | E74: =Iass!B80 -> 100.347 | F74: =Iass!N80 -> 110.231 | G74: =Iass!Y80 -> 91.03337537 | H74: =Iass!Z80 -> 3.6 | P74: =ETT!C77 -> 207605 | Q74: =DNIs!B73 -> 67767.81916 | R74: =sabi!B73*1000 -> 197775171.1 | U74: 19195755 | V74: 104.1638872 | W74: 20683008.13 | X74: 2129547 | Y74: 19195755 | Z74: 20683008.13 | AA74: 17070872.43 | AB74: 11865029.18 | AC74: 5205836.882 | AL74: 2.2668627 | AM74: 3.428985084 | AN74: 2129547 | AO74: 5.273390865 | AP74: 9.986010984 | AQ74: 30.49543544 | AR74: 89.33568748 | AS74: 1.301766089 | AT74: 18.42416809 | AU74: 0 | AV74: 0
A75: 2008-01-01 | B75: ='SEPE contratos'!E93 -> 1581360 | C75: ='SEPE contratos'!H93 -> 196763 | D75: ='SEPE contratos'!M93 -> 1384597 | E75: =Iass!B81 -> 101.675 | F75: =Iass!N81 -> 105.203 | G75: =Iass!Y81 -> 96.64648347 | H75: =Iass!Z81 -> 0.4 | P75: =ETT!C78 -> 213690 | Q75: =DNIs!B74 -> 54357.03627 | R75: =sabi!B74*1000 -> 206299612.6 | U75: 19111058 | V75: 104.0662079 | W75: 20635162.24 | X75: 2261925 | Y75: 19111058 | Z75: 20635162.24 | AA75: 17023639.32 | AB75: 11869120.26 | AC75: 5154498.758 | AL75: 1.887289574 | AM75: 3.186023983 | AN75: 2261925 | AO75: 8.615429088 | AP75: 10.58310391 | AQ75: 30.27847725 | AR75: 87.55735569 | AS75: 1.054555231 | AT75: 15.43337159 | AU75: 0 | AV75: 0
A76: 2008-02-01 | B76: ='SEPE contratos'!E94 -> 1427302 | C76: ='SEPE contratos'!H94 -> 186135 | D76: ='SEPE contratos'!M94 -> 1241167 | E76: =Iass!B82 -> 98.666 | F76: =Iass!N82 -> 103.282 | G76: =Iass!Y82 -> 95.53068298 | H76: =Iass!Z82 -> 4.2 | P76: =ETT!C79 -> 181814 | Q76: =DNIs!B75 -> 45069.0439 | R76: =sabi!B75*1000 -> 200194320.8 | U76: 19176237 | V76: 104.1990501 | W76: 20611829.09 | X76: 2315331 | Y76: 19176237 | Z76: 20611829.09 | AA76: 17001676.55 | AB76: 11898327.83 | AC76: 5103340.159 | AL76: 1.614320871 | AM76: 2.964989986 | AN76: 2315331 | AO76: 11.56743082 | AP76: 10.7732065 | AQ76: 30.01668773 | AR76: 86.95896173 | AS76: 0.8831283531 | AT76: 14.6486331 | AU76: 0 | AV76: 0
A77: 2008-03-01 | B77: ='SEPE contratos'!E95 -> 1285644 | C77: ='SEPE contratos'!H95 -> 168133 | D77: ='SEPE contratos'!M95 -> 1117511 | E77: =Iass!B83 -> 95.42 | F77: =Iass!N83 -> 99.979 | G77: =Iass!Y83 -> 95.44004241 | H77: =Iass!Z83 -> -1.8 | P77: =ETT!C80 -> 186492 | Q77: =DNIs!B76 -> 48813.25101 | R77: =sabi!B76*1000 -> 193608153.7 | U77: 19224988 | V77: 104.3219405 | W77: 20613008.68 | X77: 2300975 | Y77: 19224988 | Z77: 20613008.68 | AA77: 17004984.13 | AB77: 11952651.91 | AC77: 5052361.083 | AL77: 0.732916918 | AM77: 2.761550211 | AN77: 2300975 | AO77: 11.72759148 | AP77: 10.6893011 | AQ77: 29.71106026 | AR77: 86.92227397 | AS77: 0.9661473163 | AT77: 16.68815788 | AU77: 0 | AV77: 0
A78: 2008-04-01 | B78: ='SEPE contratos'!E96 -> 1459666 | C78: ='SEPE contratos'!H96 -> 189283 | D78: ='SEPE contratos'!M96 -> 1270383 | E78: =Iass!B84 -> 102.266 | F78: =Iass!N84 -> 100.038 | G78: =Iass!Y84 -> 102.2271537 | H78: =Iass!Z84 -> 11.6 | P78: =ETT!C81 -> 182504 | Q78: =DNIs!B77 -> 50879.98528 | R78: =sabi!B77*1000 -> 207498757.6 | U78: 19251454 | V78: 104.4327596 | W78: 20638701 | X78: 2338517 | Y78: 19251454 | Z78: 20638701 | AA78: 17033562.06 | AB78: 12032092.49 | AC78: 5001561.53 | AL78: 0.7454390097 | AM78: 2.573087614 | AN78: 2338517 | AO78: 15.5894053 | AP78: 10.83149672 | AQ78: 29.36298065 | AR78: 87.03244441 | AS78: 1.017282002 | AT78: 14.36606126 | AU78: 0 | AV78: 0
A79: 2008-05-01 | B79: ='SEPE contratos'!E97 -> 1384915 | C79: ='SEPE contratos'!H97 -> 164464 | D79: ='SEPE contratos'!M97 -> 1220451 | E79: =Iass!B85 -> 99.093 | F79: =Iass!N85 -> 100.496 | G79: =Iass!Y85 -> 98.60392453 | H79: =Iass!Z85 -> 1.5 | P79: =ETT!C82 -> 198822 | Q79: =DNIs!B78 -> 56530.97276 | R79: =sabi!B78*1000 -> 201060708.2 | U79: 19384100 | V79: 104.3877292 | W79: 20651273.33 | X79: 2353575 | Y79: 19384100 | Z79: 20651273.33 | AA79: 17043660 | AB79: 12065683.27 | AC79: 4978090.494 | AL79: 0.7800483153 | AM79: 2.244821272 | AN79: 2353575 | AO79: 19.27518876 | AP79: 10.82716988 | AQ79: 29.20787258 | AR79: 88.12461415 | AS79: 1.135595522 | AT79: 16.29086297 | AU79: 0 | AV79: 0
A80: 2008-06-01 | B80: ='SEPE contratos'!E98 -> 1419348 | C80: ='SEPE contratos'!H98 -> 153986 | D80: ='SEPE contratos'!M98 -> 1265362 | E80: =Iass!B86 -> 97.103 | F80: =Iass!N86 -> 100.931 | G80: =Iass!Y86 -> 96.20730994 | H80: =Iass!Z86 -> -2 | P80: =ETT!C83 -> 207775 | Q80: =DNIs!B79 -> 57805.69168 | R80: =sabi!B79*1000 -> 197022977.9 | U80: 19184842 | V80: 104.2116973 | W80: 20650725.66 | X80: 2390424 | Y80: 19184842 | Z80: 20650725.66 | AA80: 17035277.95 | AB80: 12053424.24 | AC80: 4981947.976 | AL80: -0.8984557492 | AM80: 1.780689769 | AN80: 2390424 | AO80: 21.59630169 | AP80: 11.07946479 | AQ80: 29.24488812 | AR80: 89.15093409 | AS80: 1.160302997 | AT80: 16.42020228 | AU80: 0 | AV80: 0
A81: 2008-07-01 | B81: ='SEPE contratos'!E99 -> 1626466 | C81: ='SEPE contratos'!H99 -> 160363 | D81: ='SEPE contratos'!M99 -> 1466103 | E81: =Iass!B87 -> 112.983 | F81: =Iass!N87 -> 102.794 | G81: =Iass!Y87 -> 109.9120571 | H81: =Iass!Z87 -> 4.5 | P81: =ETT!C84 -> 202814 | Q81: =DNIs!B80 -> 58952.76638 | R81: =sabi!B80*1000 -> 229243659.9 | U81: 19169826 | V81: 103.9315064 | W81: 20637057.99 | X81: 2426916 | Y81: 19169826 | Z81: 20637057.99 | AA81: 17008415.91 | AB81: 11995315.41 | AC81: 5013133.974 | AL81: -0.6882928463 | AM81: 1.194799018 | AN81: 2426916 | AO81: 23.17257242 | AP81: 11.2374172 | AQ81: 29.47443196 | AR81: 90.14040257 | AS81: 1.175966305 | AT81: 13.83354376 | AU81: 0 | AV81: 0
A82: 2008-08-01 | B82: ='SEPE contratos'!E100 -> 1049939 | C82: ='SEPE contratos'!H100 -> 97584 | D82: ='SEPE contratos'!M100 -> 952355 | E82: =Iass!B88 -> 85.099 | F82: =Iass!N88 -> 91.953 | G82: =Iass!Y88 -> 92.54619208 | H82: =Iass!Z88 -> 0.8 | P82: =ETT!C85 -> 160363 | Q82: =DNIs!B81 -> 50227.72766 | R82: =sabi!B81*1000 -> 172666739.4 | U82: 19055340 | V82: 103.6444553 | W82: 20573147.58 | X82: 2530001 | Y82: 19055340 | Z82: 20573147.58 | AA82: 16935463.47 | AB82: 11950251.64 | AC82: 4985204.993 | AL82: 0.03870229097 | AM82: 0.612222944 | AN82: 2530001 | AO82: 24.73529505 | AP82: 11.72092208 | AQ82: 29.43648399 | AR82: 90.70574576 | AS82: 1.007535853 | AT82: 16.83857385 | AU82: 0 | AV82: 0
A83: 2008-09-01 | B83: ='SEPE contratos'!E101 -> 1501595 | C83: ='SEPE contratos'!H101 -> 173481 | D83: ='SEPE contratos'!M101 -> 1328114 | E83: =Iass!B89 -> 92.955 | F83: =Iass!N89 -> 94.144 | G83: =Iass!Y89 -> 98.73704113 | H83: =Iass!Z89 -> 6.2 | P83: =ETT!C86 -> 194685 | Q83: =DNIs!B82 -> 57754.24373 | R83: =sabi!B82*1000 -> 188606643.6 | U83: 18837302 | V83: 103.3453943 | W83: 20458994.42 | X83: 2625368 | Y83: 18837302 | Z83: 20458994.42 | AA83: 16816420.62 | AB83: 11918232.95 | AC83: 4898161.033 | AL83: -2.437788708 | AM83: 0.02640209221 | AN83: 2625368 | AO83: 30.13860173 | AP83: 12.23225256 | AQ83: 29.12725094 | AR83: 88.44688481 | AS83: 1.179100551 | AT83: 14.6587567 | AU83: 0 | AV83: 0
A84: 2008-10-01 | B84: ='SEPE contratos'!E102 -> 1584811 | C84: ='SEPE contratos'!H102 -> 180229 | D84: ='SEPE contratos'!M102 -> 1404582 | E84: =Iass!B90 -> 88.324 | F84: =Iass!N90 -> 91.036 | G84: =Iass!Y90 -> 97.02095874 | H84: =Iass!Z90 -> -0.4 | P84: =ETT!C87 -> 185088 | Q84: =DNIs!B83 -> 61287.12747 | R84: =sabi!B83*1000 -> 179210297.3 | U84: 18706423 | V84: 103.020118 | W84: 20294598.52 | X84: 2818026 | Y84: 18706423 | Z84: 20294598.52 | AA84: 16651287.37 | AB84: 11899259.32 | AC84: 4752002.094 | AL84: -2.734196081 | AM84: -0.569252535 | AN84: 2818026 | AO84: 37.56016982 | AP84: 13.0922097 | AQ84: 28.53834654 | AR84: 88.62772911 | AS84: 1.28971171 | AT84: 13.17744354 | AU84: 0 | AV84: 0
A85: 2008-11-01 | B85: ='SEPE contratos'!E103 -> 1162614 | C85: ='SEPE contratos'!H103 -> 129123 | D85: ='SEPE contratos'!M103 -> 1033491 | E85: =Iass!B91 -> 75.866 | F85: =Iass!N91 -> 78.858 | G85: =Iass!Y91 -> 96.20583834 | H85: =Iass!Z91 -> -1.5 | P85: =ETT!C88 -> 148194 | Q85: =DNIs!B84 -> 59986.9845 | R85: =sabi!B84*1000 -> 153932888.2 | U85: 18659607 | V85: 102.6141973 | W85: 20074025.66 | X85: 2989269 | Y85: 18659607 | Z85: 20074025.66 | AA85: 16479438.53 | AB85: 11900621.42 | AC85: 4578810.789 | AL85: -3.446654473 | AM85: -1.236181011 | AN85: 2989269 | AO85: 42.72177297 | AP85: 13.80796398 | AQ85: 27.78499268 | AR85: 88.89373429 | AS85: 1.310099658 | AT85: 14.33916696 | AU85: 0 | AV85: 0
A86: 2008-12-01 | B86: ='SEPE contratos'!E104 -> 1117577 | C86: ='SEPE contratos'!H104 -> 103061 | D86: ='SEPE contratos'!M104 -> 1014516 | E86: =Iass!B92 -> 71.725 | F86: =Iass!N92 -> 76.099 | G86: =Iass!Y92 -> 94.25222408 | H86: =Iass!Z92 -> 2.5 | P86: =ETT!C89 -> 145344 | Q86: =DNIs!B85 -> 57076.16937 | R86: =sabi!B85*1000 -> 145530756.9 | U86: 18305613 | V86: 102.133003 | W86: 19797275.82 | X86: 3128963 | Y86: 18305613 | Z86: 19797275.82 | AA86: 16300874.1 | AB86: 11922319.25 | AC86: 4378587.118 | AL86: -4.637181502 | AM86: -1.950561543 | AN86: 3128963 | AO86: 46.93092005 | AP86: 14.59773685 | AQ86: 26.86105721 | AR86: 90.77817457 | AS86: 1.303529377 | AT86: 14.32643743 | AU86: 0 | AV86: 0
A87: 2009-01-01 | B87: ='SEPE contratos'!E105 -> 1125773 | C87: ='SEPE contratos'!H105 -> 119201 | D87: ='SEPE contratos'!M105 -> 1006572 | E87: =Iass!B93 -> 60.394 | F87: =Iass!N93 -> 66.835 | G87: =Iass!Y93 -> 90.36283384 | H87: =Iass!Z93 -> -4.1 | P87: =ETT!C90 -> 128947 | Q87: =DNIs!B86 -> 35363.62378 | R87: =sabi!B86*1000 -> 141157808.3 | U87: 18150678 | V87: 101.2807275 | W87: 19464349.02 | X87: 3327801 | Y87: 18150678 | Z87: 19464349.02 | AA87: 16115594.07 | AB87: 11964352.81 | AC87: 4151331.081 | AL87: -5.025258152 | AM87: -2.676202219 | AN87: 3327801 | AO87: 47.12251732 | AP87: 15.49365297 | AQ87: 25.75971486 | AR87: 89.41163094 | AS87: 0.8518622844 | AT87: 12.81050933 | AU87: 0 | AV87: 0
A88: 2009-02-01 | B88: ='SEPE contratos'!E106 -> 1016678 | C88: ='SEPE contratos'!H106 -> 115683 | D88: ='SEPE contratos'!M106 -> 900995 | E88: =Iass!B94 -> 60.041 | F88: =Iass!N94 -> 62.365 | G88: =Iass!Y94 -> 96.27355087 | H88: =Iass!Z94 -> 0.5 | P88: =ETT!C91 -> 100722 | Q88: =DNIs!B87 -> 29321.03775 | R88: =sabi!B87*1000 -> 140332747.7 | U88: 18075777 | V88: 100.7445926 | W88: 19246155.55 | X88: 3481859 | Y88: 18075777 | Z88: 19246155.55 | AA88: 15992328.51 | AB88: 11987496.59 | AC88: 4004943.761 | AL88: -5.738664995 | AM88: -3.315173271 | AN88: 3481859 | AO88: 50.38277464 | AP88: 16.15139526 | AQ88: 25.04290578 | AR88: 88.6214711 | AS88: 0.7321210858 | AT88: 11.17897436 | AU88: 0 | AV88: 0
A89: 2009-03-01 | B89: ='SEPE contratos'!E107 -> 1061112 | C89: ='SEPE contratos'!H107 -> 121228 | D89: ='SEPE contratos'!M107 -> 939884 | E89: =Iass!B95 -> 62.121 | F89: =Iass!N95 -> 61.746 | G89: =Iass!Y95 -> 100.6073268 | H89: =Iass!Z95 -> 3.3 | P89: =ETT!C92 -> 111494 | Q89: =DNIs!B88 -> 31756.94561 | R89: =sabi!B88*1000 -> 145194294.2 | U89: 17967287 | V89: 100.3306296 | W89: 19142695.43 | X89: 3605402 | Y89: 17967287 | Z89: 19142695.43 | AA89: 15931077.41 | AB89: 11991750.59 | AC89: 3939425.158 | AL89: -6.542011886 | AM89: -3.826470969 | AN89: 3605402 | AO89: 56.69018568 | AP89: 16.71280757 | AQ89: 24.72792678 | AR89: 88.5753813 | AS89: 0.8061314616 | AT89: 11.86252772 | AU89: 0 | AV89: 0
A90: 2009-04-01 | B90: ='SEPE contratos'!E108 -> 1031420 | C90: ='SEPE contratos'!H108 -> 111474 | D90: ='SEPE contratos'!M108 -> 919946 | E90: =Iass!B96 -> 59.622 | F90: =Iass!N96 -> 61.904 | G90: =Iass!Y96 -> 96.31364694 | H90: =Iass!Z96 -> -3.6 | P90: =ETT!C93 -> 120636 | Q90: =DNIs!B89 -> 33101.52247 | R90: =sabi!B89*1000 -> 139353426.6 | U90: 17955064 | V90: 100.0732383 | W90: 19153968.63 | X90: 3644880 | Y90: 17955064 | Z90: 19153968.63 | AA90: 15931840.78 | AB90: 11977114.82 | AC90: 3954775.273 | AL90: -6.733984872 | AM90: -4.174618208 | AN90: 3644880 | AO90: 55.86288233 | AP90: 16.87448819 | AQ90: 24.82309062 | AR90: 89.19218165 | AS90: 0.8370013512 | AT90: 13.11337839 | AU90: 0 | AV90: 0
A91: 2009-05-01 | B91: ='SEPE contratos'!E109 -> 1110014 | C91: ='SEPE contratos'!H109 -> 109097 | D91: ='SEPE contratos'!M109 -> 1000917 | E91: =Iass!B97 -> 62.589 | F91: =Iass!N97 -> 64.359 | G91: =Iass!Y97 -> 97.24980189 | H91: =Iass!Z97 -> -0.8 | P91: =ETT!C94 -> 139572 | Q91: =DNIs!B90 -> 36777.94431 | R91: =sabi!B90*1000 -> 146288142.2 | U91: 18100171 | V91: 99.87076038 | W91: 19156960.46 | X91: 3620139 | Y91: 18100171 | Z91: 19156960.46 | AA91: 15925476.03 | AB91: 11943144.76 | AC91: 3982331.347 | AL91: -6.623619358 | AM91: -4.327168021 | AN91: 3620139 | AO91: 53.81447373 | AP91: 16.66706875 | AQ91: 25.00604276 | AR91: 90.1715654 | AS91: 0.9235279815 | AT91: 13.94441297 | AU91: 0 | AV91: 0
A92: 2009-06-01 | B92: ='SEPE contratos'!E110 -> 1274698 | C92: ='SEPE contratos'!H110 -> 107735 | D92: ='SEPE contratos'!M110 -> 1166963 | E92: =Iass!B98 -> 66.756 | F92: =Iass!N98 -> 68.121 | G92: =Iass!Y98 -> 97.99621262 | H92: =Iass!Z98 -> 1.2 | P92: =ETT!C95 -> 150409 | Q92: =DNIs!B91 -> 37607.25148 | R92: =sabi!B91*1000 -> 156027596.3 | U92: 17917981 | V92: 99.74473828 | W92: 19151670.91 | X92: 3564889 | Y92: 17917981 | Z92: 19151670.91 | AA92: 15911983.19 | AB92: 11889840.42 | AC92: 4022093.381 | AL92: -6.603447659 | AM92: -4.286225423 | AN92: 3564889 | AO92: 49.13207866 | AP92: 16.59410032 | AQ92: 25.27713442 | AR92: 91.54819416 | AS92: 0.9350168661 | AT92: 12.88892621 | AU92: 0 | AV92: 0
A93: 2009-07-01 | B93: ='SEPE contratos'!E111 -> 1403023 | C93: ='SEPE contratos'!H111 -> 111143 | D93: ='SEPE contratos'!M111 -> 1291880 | E93: =Iass!B99 -> 77.951 | F93: =Iass!N99 -> 70.722 | G93: =Iass!Y99 -> 110.2217132 | H93: =Iass!Z99 -> 0.2 | P93: =ETT!C96 -> 148784 | Q93: =DNIs!B92 -> 38353.51583 | R93: =sabi!B92*1000 -> 182193468.1 | U93: 17958362 | V93: 99.70274976 | W93: 19138099.97 | X93: 3544095 | Y93: 17958362 | Z93: 19138099.97 | AA93: 15891362.24 | AB93: 11817201.8 | AC93: 4074061.374 | AL93: -6.319640043 | AM93: -4.068766408 | AN93: 3544095 | AO93: 46.0328664 | AP93: 16.48227921 | AQ93: 25.63695492 | AR93: 92.07831946 | AS93: 0.941407414 | AT93: 11.51685915 | AU93: 0 | AV93: 0
A94: 2009-08-01 | B94: ='SEPE contratos'!E112 -> 944823 | C94: ='SEPE contratos'!H112 -> 68735 | D94: ='SEPE contratos'!M112 -> 876088 | E94: =Iass!B100 -> 62.953 | F94: =Iass!N100 -> 65.845 | G94: =Iass!Y100 -> 95.60786696 | H94: =Iass!Z100 -> 2.4 | P94: =ETT!C97 -> 130430 | Q94: =DNIs!B93 -> 32677.17643 | R94: =sabi!B93*1000 -> 147138912.9 | U94: 17796399 | V94: 99.67174419 | W94: 19104932.26 | X94: 3629080 | Y94: 17796399 | Z94: 19104932.26 | AA94: 15865535.32 | AB94: 11778865.8 | AC94: 4086557.342 | AL94: -6.606762199 | AM94: -3.832879958 | AN94: 3629080 | AO94: 43.44184054 | AP94: 16.93815107 | AQ94: 25.75745009 | AR94: 92.72509242 | AS94: 0.7996260347 | AT94: 14.88777383 | AU94: 0 | AV94: 0
A95: 2009-09-01 | B95: ='SEPE contratos'!E113 -> 1354836 | C95: ='SEPE contratos'!H113 -> 128374 | D95: ='SEPE contratos'!M113 -> 1226462 | E95: =Iass!B101 -> 69.998 | F95: =Iass!N101 -> 71.771 | G95: =Iass!Y101 -> 97.52964289 | H95: =Iass!Z101 -> -0.9 | P95: =ETT!C98 -> 153445 | Q95: =DNIs!B94 -> 37573.78045 | R95: =sabi!B94*1000 -> 163605064.4 | U95: 17791858 | V95: 99.62561716 | W95: 19052167.77 | X95: 3709447 | Y95: 17791858 | Z95: 19052167.77 | AA95: 15834502.43 | AB95: 11774832.4 | AC95: 4059581.284 | AL95: -5.54986059 | AM95: -3.59952812 | AN95: 3709447 | AO95: 41.29245881 | AP95: 17.25219469 | AQ95: 25.63756772 | AR95: 90.52475724 | AS95: 0.9255580274 | AT95: 12.51119073 | AU95: 0 | AV95: 0
A96: 2009-10-01 | B96: ='SEPE contratos'!E114 -> 1357868 | C96: ='SEPE contratos'!H114 -> 126497 | D96: ='SEPE contratos'!M114 -> 1231371 | E96: =Iass!B102 -> 70.544 | F96: =Iass!N102 -> 76.932 | G96: =Iass!Y102 -> 91.6965632 | H96: =Iass!Z102 -> -4.6 | P96: =ETT!C99 -> 183066 | Q96: =DNIs!B95 -> 39872.20546 | R96: =sabi!B95*1000 -> 164881220.4 | U96: 17870659 | V96: 99.53139803 | W96: 18979806.49 | X96: 3808353 | Y96: 17870659 | Z96: 18979806.49 | AA96: 15798263.57 | AB96: 11805101.62 | AC96: 3993133.201 | AL96: -4.467791624 | AM96: -3.386830953 | AN96: 3808353 | AO96: 35.14257853 | AP96: 17.56700444 | AQ96: 25.27577277 | AR96: 90.68414603 | AS96: 0.9985192944 | AT96: 14.86684354 | AU96: 0 | AV96: 0
A97: 2009-11-01 | B97: ='SEPE contratos'!E115 -> 1204027 | C97: ='SEPE contratos'!H115 -> 107420 | D97: ='SEPE contratos'!M115 -> 1096607 | E97: =Iass!B103 -> 70.494 | F97: =Iass!N103 -> 75.831 | G97: =Iass!Y103 -> 92.96198125 | H97: =Iass!Z103 -> -3.3 | P97: =ETT!C100 -> 162695 | Q97: =DNIs!B96 -> 39026.35789 | R97: =sabi!B96*1000 -> 164764356.3 | U97: 17777153 | V97: 99.56119671 | W97: 18894661.3 | X97: 3868946 | Y97: 17777153 | Z97: 18894661.3 | AA97: 15733956.18 | AB97: 11810867.71 | AC97: 3923096.279 | AL97: -4.729220717 | AM97: -2.975218543 | AN97: 3868946 | AO97: 29.42783001 | AP97: 17.87364088 | AQ97: 24.93394691 | AR97: 91.07827316 | AS97: 0.9947846066 | AT97: 14.83621753 | AU97: 0 | AV97: 0
A98: 2009-12-01 | B98: ='SEPE contratos'!E116 -> 1137565 | C98: ='SEPE contratos'!H116 -> 85827 | D98: ='SEPE contratos'!M116 -> 1051738 | E98: =Iass!B104 -> 72.301 | F98: =Iass!N104 -> 74.653 | G98: =Iass!Y104 -> 96.84942333 | H98: =Iass!Z104 -> 2.7 | P98: =ETT!C101 -> 160813 | Q98: =DNIs!B97 -> 37132.63855 | R98: =sabi!B97*1000 -> 168987824.9 | U98: 17640018 | V98: 99.6951215 | W98: 18796732.21 | X98: 3923603 | Y98: 17640018 | Z98: 18796732.21 | AA98: 15641580.25 | AB98: 11792130.67 | AC98: 3849470.52 | AL98: -3.636015904 | AM98: -2.38658562 | AN98: 3923603 | AO98: 25.39627346 | AP98: 18.19547376 | AQ98: 24.61049623 | AR98: 92.45520036 | AS98: 0.9646167793 | AT98: 15.29021486 | AU98: 0 | AV98: 0
A99: 2010-01-01 | B99: ='SEPE contratos'!E117 -> 1050233 | C99: ='SEPE contratos'!H117 -> 94595 | D99: ='SEPE contratos'!M117 -> 955638 | E99: =Iass!B105 -> 58.813 | F99: =Iass!N105 -> 68.503 | G99: =Iass!Y105 -> 85.8546341 | H99: =Iass!Z105 -> -5.1 | P99: =ETT!C102 -> 140222 | Q99: =DNIs!B98 -> 37371.49905 | R99: =sabi!B98*1000 -> 139752126 | U99: 17546714 | V99: 99.61887876 | W99: 18686019.2 | X99: 4048493 | Y99: 17546714 | Z99: 18686019.2 | AA99: 15521135.8 | AB99: 11748890.49 | AC99: 3772255.922 | AL99: -3.327501044 | AM99: -1.641370383 | AN99: 4048493 | AO99: 21.65670363 | AP99: 18.74718311 | AQ99: 24.30399405 | AR99: 90.99295109 | AS99: 0.990693628 | AT99: 14.67312936 | AU99: 0 | AV99: 0
A100: 2010-02-01 | B100: ='SEPE contratos'!E118 -> 1028222 | C100: ='SEPE contratos'!H118 -> 101211 | D100: ='SEPE contratos'!M118 -> 927011 | E100: =Iass!B106 -> 66.665 | F100: =Iass!N106 -> 66.723 | G100: =Iass!Y106 -> 99.91307345 | H100: =Iass!Z106 -> 4 | P100: =ETT!C103 -> 121387 | Q100: =DNIs!B99 -> 30985.82717 | R100: =sabi!B99*1000 -> 158410138.6 | U100: 17550412 | V100: 99.73995609 | W100: 18633501.55 | X100: 4130625 | Y100: 17550412 | Z100: 18633501.55 | AA100: 15467372.84 | AB100: 11728637.58 | AC100: 3738735.331 | AL100: -2.906458738 | AM100: -0.9972175231 | AN100: 4130625 | AO100: 18.63274762 | AP100: 19.05178705 | AQ100: 24.17175412 | AR100: 90.15669768 | AS100: 0.8287783013 | AT100: 13.09445087 | AU100: 0 | AV100: 0
A101: 2010-03-01 | B101: ='SEPE contratos'!E119 -> 1189327 | C101: ='SEPE contratos'!H119 -> 117934 | D101: ='SEPE contratos'!M119 -> 1071393 | E101: =Iass!B107 -> 69.465 | F101: =Iass!N107 -> 69.997 | G101: =Iass!Y107 -> 99.23996743 | H101: =Iass!Z107 -> -1.6 | P101: =ETT!C104 -> 143148 | Q101: =DNIs!B100 -> 33560.04096 | R101: =sabi!B100*1000 -> 165063530.8 | U101: 17479448 | V101: 99.84549865 | W101: 18639179.25 | X101: 4166613 | Y101: 17479448 | Z101: 18639179.25 | AA101: 15480291.36 | AB101: 11731371.93 | AC101: 3748908.747 | AL101: -2.715151152 | AM101: -0.482989906 | AN101: 4166613 | AO101: 15.56583704 | AP101: 19.24882777 | AQ101: 24.21730096 | AR101: 90.08397186 | AS101: 0.895194928 | AT101: 13.36092358 | AU101: 0 | AV101: 0
A102: 2010-04-01 | B102: ='SEPE contratos'!E120 -> 1078509 | C102: ='SEPE contratos'!H120 -> 102973 | D102: ='SEPE contratos'!M120 -> 975536 | E102: =Iass!B108 -> 68.844 | F102: =Iass!N108 -> 68.686 | G102: =Iass!Y108 -> 100.2300323 | H102: =Iass!Z108 -> 4.5 | P102: =ETT!C105 -> 141275 | Q102: =DNIs!B101 -> 34980.96019 | R102: =sabi!B101*1000 -> 163587903.4 | U102: 17604183 | V102: 99.93550644 | W102: 18703052.31 | X102: 4142425 | Y102: 17604183 | Z102: 18703052.31 | AA102: 15559891.36 | AB102: 11757093.54 | AC102: 3802776.171 | AL102: -1.954217484 | AM102: -0.1373359431 | AN102: 4142425 | AO102: 13.65051799 | AP102: 19.04860289 | AQ102: 24.43960618 | AR102: 90.45228181 | AS102: 0.9198795462 | AT102: 14.48178232 | AU102: 0 | AV102: 0
A103: 2010-05-01 | B103: ='SEPE contratos'!E121 -> 1182100 | C103: ='SEPE contratos'!H121 -> 108264 | D103: ='SEPE contratos'!M121 -> 1073836 | E103: =Iass!B109 -> 75.239 | F103: =Iass!N109 -> 73.002 | G103: =Iass!Y109 -> 103.0642996 | H103: =Iass!Z109 -> 6.8 | P103: =ETT!C106 -> 163868 | Q103: =DNIs!B102 -> 38866.12184 | R103: =sabi!B102*1000 -> 178783775.9 | U103: 17699572 | V103: 100.0099795 | W103: 18755056.34 | X103: 4066202 | Y103: 17699572 | Z103: 18755056.34 | AA103: 15624797.84 | AB103: 11765478.79 | AC103: 3859310.899 | AL103: -2.213233234 | AM103: 0.1393638121 | AN103: 4066202 | AO103: 12.32170919 | AP103: 18.68163292 | AQ103: 24.69990932 | AR103: 90.84138398 | AS103: 1.007074135 | AT103: 15.26005833 | AU103: 0 | AV103: 0
A104: 2010-06-01 | B104: ='SEPE contratos'!E122 -> 1297611 | C104: ='SEPE contratos'!H122 -> 98754 | D104: ='SEPE contratos'!M122 -> 1198857 | E104: =Iass!B110 -> 77.877 | F104: =Iass!N110 -> 74.71 | G104: =Iass!Y110 -> 104.2390577 | H104: =Iass!Z110 -> 7 | P104: =ETT!C107 -> 173966 | Q104: =DNIs!B103 -> 39742.51541 | R104: =sabi!B103*1000 -> 185052221.8 | U104: 17587252 | V104: 100.0689177 | W104: 18795191.35 | X104: 3982368 | Y104: 17587252 | Z104: 18795191.35 | AA104: 15675010.8 | AB104: 11756527.67 | AC104: 3918512.93 | AL104: -1.845793898 | AM104: 0.3247494111 | AN104: 3982368 | AO104: 11.71085551 | AP104: 18.46285655 | AQ104: 24.99847037 | AR104: 92.3895528 | AS104: 1.014224429 | AT104: 14.51098838 | AU104: 0 | AV104: 0
A105: 2010-07-01 | B105: ='SEPE contratos'!E123 -> 1397265 | C105: ='SEPE contratos'!H123 -> 95823 | D105: ='SEPE contratos'!M123 -> 1301442 | E105: =Iass!B111 -> 90.744 | F105: =Iass!N111 -> 76.707 | G105: =Iass!Y111 -> 118.2995033 | H105: =Iass!Z111 -> 7.9 | P105: =ETT!C108 -> 173253 | Q105: =DNIs!B104 -> 40531.15114 | R105: =sabi!B104*1000 -> 215626934.9 | U105: 17795844 | V105: 100.1123212 | W105: 18823457.33 | X105: 3908578 | Y105: 17795844 | Z105: 18823457.33 | AA105: 15710530.23 | AB105: 11730240.18 | AC105: 3980382.265 | AL105: -0.9049711772 | AM105: 0.4111517102 | AN105: 3908578 | AO105: 10.28423335 | AP105: 18.00821049 | AQ105: 25.3357602 | AR105: 93.14210261 | AS105: 1.01827283 | AT105: 13.31238734 | AU105: 0 | AV105: 0
A106: 2010-08-01 | B106: ='SEPE contratos'!E124 -> 1010216 | C106: ='SEPE contratos'!H124 -> 66846 | D106: ='SEPE contratos'!M124 -> 943370 | E106: =Iass!B112 -> 71.985 | F106: =Iass!N112 -> 72.215 | G106: =Iass!Y112 -> 99.68150661 | H106: =Iass!Z112 -> 4.6 | P106: =ETT!C109 -> 151630 | Q106: =DNIs!B105 -> 34532.52063 | R106: =sabi!B105*1000 -> 171051583.7 | U106: 17509439 | V106: 100.1401899 | W106: 18827180.83 | X106: 3969661 | Y106: 17509439 | Z106: 18827180.83 | AA106: 15715337.41 | AB106: 11719063.17 | AC106: 3996387.9 | AL106: -1.612461038 | AM106: 0.4699130446 | AN106: 3969661 | AO106: 9.384775205 | AP106: 18.48150528 | AQ106: 25.42985744 | AR106: 93.38299928 | AS106: 0.8640933137 | AT106: 16.07322684 | AU106: 0 | AV106: 0
A107: 2010-09-01 | B107: ='SEPE contratos'!E125 -> 1390283 | C107: ='SEPE contratos'!H125 -> 122090 | D107: ='SEPE contratos'!M125 -> 1268193 | E107: =Iass!B113 -> 81.918 | F107: =Iass!N113 -> 77.594 | G107: =Iass!Y113 -> 105.5725958 | H107: =Iass!Z113 -> 8.9 | P107: =ETT!C110 -> 174641 | Q107: =DNIs!B106 -> 39707.14396 | R107: =sabi!B106*1000 -> 194654492.4 | U107: 17554774 | V107: 100.1525239 | W107: 18806361.85 | X107: 4017763 | Y107: 17554774 | Z107: 18806361.85 | AA107: 15689432.36 | AB107: 11722996.65 | AC107: 3966529.835 | AL107: -1.33254211 | AM107: 0.5286031248 | AN107: 4017763 | AO107: 8.311643218 | AP107: 18.62443439 | AQ107: 25.2815382 | AR107: 91.21833468 | AS107: 1.001054968 | AT107: 13.77085349 | AU107: 0 | AV107: 0
A108: 2010-10-01 | B108: ='SEPE contratos'!E126 -> 1346087 | C108: ='SEPE contratos'!H126 -> 118422 | D108: ='SEPE contratos'!M126 -> 1227665 | E108: =Iass!B114 -> 80.783 | F108: =Iass!N114 -> 80.387 | G108: =Iass!Y114 -> 100.492617 | H108: =Iass!Z114 -> 10 | P108: =ETT!C111 -> 196542 | Q108: =DNIs!B107 -> 42136.06891 | R108: =sabi!B107*1000 -> 191957492.3 | U108: 17636975 | V108: 100.1493231 | W108: 18761000.39 | X108: 4085976 | Y108: 17636975 | Z108: 18761000.39 | AA108: 15632815.05 | AB108: 11742040.61 | AC108: 3890808.069 | AL108: -1.307640642 | AM108: 0.6214597921 | AN108: 4085976 | AO108: 7.289844192 | AP108: 18.80948864 | AQ108: 24.88872321 | AR108: 91.20250028 | AS108: 1.082964468 | AT108: 16.00941625 | AU108: 0 | AV108: 0
A109: 2010-11-01 | B109: ='SEPE contratos'!E127 -> 1257479 | C109: ='SEPE contratos'!H127 -> 108131 | D109: ='SEPE contratos'!M127 -> 1149348 | E109: =Iass!B115 -> 83.251 | F109: =Iass!N115 -> 83.027 | G109: =Iass!Y115 -> 100.2697918 | H109: =Iass!Z115 -> 8.6 | P109: =ETT!C112 -> 193061 | Q109: =DNIs!B108 -> 41242.19582 | R109: =sabi!B108*1000 -> 197821982.3 | U109: 17539607 | V109: 100.1305875 | W109: 18685084.73 | X109: 4110294 | Y109: 17539607 | Z109: 18685084.73 | AA109: 15560074.44 | AB109: 11729746.14 | AC109: 3830321.576 | AL109: -1.336243211 | AM109: 0.5719474895 | AN109: 4110294 | AO109: 6.238081379 | AP109: 18.9852785 | AQ109: 24.61634481 | AR109: 91.40096972 | AS109: 1.076729329 | AT109: 16.79743646 | AU109: 0 | AV109: 0
A110: 2010-12-01 | B110: ='SEPE contratos'!E128 -> 1189818 | C110: ='SEPE contratos'!H128 -> 93171 | D110: ='SEPE contratos'!M128 -> 1096647 | E110: =Iass!B116 -> 86.185 | F110: =Iass!N116 -> 85.144 | G110: =Iass!Y116 -> 101.2226346 | H110: =Iass!Z116 -> 5.1 | P110: =ETT!C113 -> 184571 | Q110: =DNIs!B109 -> 39240.95491 | R110: =sabi!B109*1000 -> 204793786.8 | U110: 17478095 | V110: 100.0963172 | W110: 18578614.87 | X110: 4100073 | Y110: 17478095 | Z110: 18578614.87 | AA110: 15471210.51 | AB110: 11686113.24 | AC110: 3785070.355 | AL110: -0.9179299023 | AM110: 0.4017499296 | AN110: 4100073 | AO110: 4.497651776 | AP110: 19.00102455 | AQ110: 24.46525017 | AR110: 92.16930657 | AS110: 1.036729869 | AT110: 16.83048419 | AU110: 0 | AV110: 0
A111: 2011-01-01 | B111: ='SEPE contratos'!E129 -> 1116019 | C111: ='SEPE contratos'!H129 -> 102733 | D111: ='SEPE contratos'!M129 -> 1013286 | E111: =Iass!B117 -> 68.361 | F111: =Iass!N117 -> 71.549 | G111: =Iass!Y117 -> 95.54431229 | H111: =Iass!Z117 -> 11.8 | P111: =ETT!C114 -> 161960 | Q111: =DNIs!B110 -> 37475.05732 | R111: =sabi!B110*1000 -> 163968522.6 | U111: 17276530 | V111: 99.736174 | W111: 18441590.81 | X111: 4231003 | Y111: 17276530 | Z111: 18441590.81 | AA111: 15366223.26 | AB111: 11611141.92 | AC111: 3755054.405 | AL111: -1.539798278 | AM111: 0.1170280734 | AN111: 4231003 | AO111: 4.50809721 | AP111: 19.67219113 | AQ111: 24.43706786 | AR111: 90.79469077 | AS111: 0.9979897299 | AT111: 15.98364134 | AU111: 0 | AV111: 0
A112: 2011-02-01 | B112: ='SEPE contratos'!E130 -> 1011418 | C112: ='SEPE contratos'!H130 -> 94363 | D112: ='SEPE contratos'!M130 -> 917055 | E112: =Iass!B118 -> 69.676 | F112: =Iass!N118 -> 73.385 | G112: =Iass!Y118 -> 94.94583362 | H112: =Iass!Z118 -> -5.5 | P112: =ETT!C115 -> 135105 | Q112: =DNIs!B111 -> 31071.69043 | R112: =sabi!B111*1000 -> 167122639.8 | U112: 17298626 | V112: 99.60258846 | W112: 18395791.69 | X112: 4299263 | Y112: 17298626 | Z112: 18395791.69 | AA112: 15340859 | AB112: 11578867.65 | AC112: 3761984.614 | AL112: -1.434644383 | AM112: -0.137699034 | AN112: 4299263 | AO112: 4.082626721 | AP112: 19.90594081 | AQ112: 24.52264644 | AR112: 90.67022734 | AS112: 0.825938796 | AT112: 14.73248606 | AU112: 0 | AV112: 0
A113: 2011-03-01 | B113: ='SEPE contratos'!E131 -> 1154903 | C113: ='SEPE contratos'!H131 -> 111118 | D113: ='SEPE contratos'!M131 -> 1043785 | E113: =Iass!B119 -> 79.611 | F113: =Iass!N119 -> 73.418 | G113: =Iass!Y119 -> 108.4352611 | H113: =Iass!Z119 -> 9.7 | P113: =ETT!C116 -> 155486 | Q113: =DNIs!B112 -> 33653.0375 | R113: =sabi!B112*1000 -> 190952415.1 | U113: 17325399 | V113: 99.46926745 | W113: 18441217.51 | X113: 4333669 | Y113: 17325399 | Z113: 18441217.51 | AA113: 15395117.74 | AB113: 11589290.44 | AC113: 3805860.98 | AL113: -0.8813150164 | AM113: -0.3761242011 | AN113: 4333669 | AO113: 4.009395641 | AP113: 20.00856639 | AQ113: 24.72122036 | AR113: 90.37858591 | AS113: 0.8842424269 | AT113: 14.89636276 | AU113: 0 | AV113: 0
A114: 2011-04-01 | B114: ='SEPE contratos'!E132 -> 1067046 | C114: ='SEPE contratos'!H132 -> 96242 | D114: ='SEPE contratos'!M132 -> 970804 | E114: =Iass!B120 -> 71.833 | F114: =Iass!N120 -> 73.359 | G114: =Iass!Y120 -> 97.91981897 | H114: =Iass!Z120 -> -2.5 | P114: =ETT!C117 -> 160420 | Q114: =DNIs!B113 -> 35077.89416 | R114: =sabi!B113*1000 -> 172296351.4 | U114: 17498964 | V114: 99.33453085 | W114: 18577868.27 | X114: 4269360 | Y114: 17498964 | Z114: 18577868.27 | AA114: 15528999.46 | AB114: 11642410.29 | AC114: 3886683.505 | AL114: -0.5976931733 | AM114: -0.6013138619 | AN114: 4269360 | AO114: 3.064267911 | AP114: 19.612718 | AQ114: 25.02855072 | AR114: 90.98052005 | AS114: 0.9025148077 | AT114: 16.52444778 | AU114: 0 | AV114: 0
A115: 2011-05-01 | B115: ='SEPE contratos'!E133 -> 1288914 | C115: ='SEPE contratos'!H133 -> 103176 | D115: ='SEPE contratos'!M133 -> 1185738 | E115: =Iass!B121 -> 80.057 | F115: =Iass!N121 -> 77.533 | G115: =Iass!Y121 -> 103.255388 | H115: =Iass!Z121 -> 0.2 | P115: =ETT!C118 -> 186685 | Q115: =DNIs!B114 -> 38973.82179 | R115: =sabi!B114*1000 -> 192022176.5 | U115: 17497250 | V115: 99.20689903 | W115: 18645129.76 | X115: 4189659 | Y115: 17497250 | Z115: 18645129.76 | AA115: 15600345.29 | AB115: 11649907.53 | AC115: 3950551.507 | AL115: -1.143089788 | AM115: -0.8030237937 | AN115: 4189659 | AO115: 3.036174789 | AP115: 19.31883884 | AQ115: 25.32348761 | AR115: 91.99512147 | AS115: 0.9865412897 | AT115: 15.74420319 | AU115: 0 | AV115: 0
A116: 2011-06-01 | B116: ='SEPE contratos'!E134 -> 1312519 | C116: ='SEPE contratos'!H134 -> 94924 | D116: ='SEPE contratos'!M134 -> 1217595 | E116: =Iass!B122 -> 83.214 | F116: =Iass!N122 -> 77.381 | G116: =Iass!Y122 -> 107.5380261 | H116: =Iass!Z122 -> 3.3 | P116: =ETT!C119 -> 180971 | Q116: =DNIs!B115 -> 39852.64389 | R116: =sabi!B115*1000 -> 199594456.4 | U116: 17362369 | V116: 99.09839954 | W116: 18643001.98 | X116: 4121801 | Y116: 17362369 | Z116: 18643001.98 | AA116: 15609155.25 | AB116: 11611782.18 | AC116: 3997464.988 | AL116: -1.278670482 | AM116: -0.9698758666 | AN116: 4121801 | AO116: 3.501258548 | AP116: 19.18529317 | AQ116: 25.60974585 | AR116: 92.76779993 | AS116: 0.9969479158 | AT116: 14.8629881 | AU116: 0 | AV116: 0
A117: 2011-07-01 | B117: ='SEPE contratos'!E135 -> 1349286 | C117: ='SEPE contratos'!H135 -> 89911 | D117: ='SEPE contratos'!M135 -> 1259375 | E117: =Iass!B123 -> 92.127 | F117: =Iass!N123 -> 77.163 | G117: =Iass!Y123 -> 119.3927141 | H117: =Iass!Z123 -> 0.9 | P117: =ETT!C120 -> 174466 | Q117: =DNIs!B116 -> 40643.46497 | R117: =sabi!B116*1000 -> 220972895 | U117: 17591403 | V117: 99.02139654 | W117: 18571484.92 | X117: 4079742 | Y117: 17591403 | Z117: 18571484.92 | AA117: 15555429.32 | AB117: 11528034.22 | AC117: 4027423.947 | AL117: -1.148813172 | AM117: -1.089758928 | AN117: 4079742 | AO117: 4.379188544 | AP117: 18.82568734 | AQ117: 25.89079263 | AR117: 93.33640162 | AS117: 1.009167783 | AT117: 13.85337965 | AU117: 0 | AV117: 0
A118: 2011-08-01 | B118: ='SEPE contratos'!E136 -> 1061303 | C118: ='SEPE contratos'!H136 -> 66118 | D118: ='SEPE contratos'!M136 -> 995185 | E118: =Iass!B124 -> 75.757 | F118: =Iass!N124 -> 72.141 | G118: =Iass!Y124 -> 105.0124063 | H118: =Iass!Z124 -> 5.3 | P118: =ETT!C121 -> 162579 | Q118: =DNIs!B117 -> 34628.21196 | R118: =sabi!B117*1000 -> 181708333.2 | U118: 17287084 | V118: 98.90738253 | W118: 18488366.97 | X118: 4130927 | Y118: 17287084 | Z118: 18488366.97 | AA118: 15484900.85 | AB118: 11469646.57 | AC118: 4015245.727 | AL118: -1.269915044 | AM118: -1.231103628 | AN118: 4130927 | AO118: 4.062462764 | AP118: 19.28716443 | AQ118: 25.93007063 | AR118: 93.77011089 | AS118: 0.8624182507 | AT118: 16.33656054 | AU118: 0 | AV118: 0
A119: 2011-09-01 | B119: ='SEPE contratos'!E137 -> 1393728 | C119: ='SEPE contratos'!H137 -> 104716 | D119: ='SEPE contratos'!M137 -> 1289012 | E119: =Iass!B125 -> 86.983 | F119: =Iass!N125 -> 77.331 | G119: =Iass!Y125 -> 112.4814111 | H119: =Iass!Z125 -> 6.5 | I119: ='Comision Europea'!R20 -> 8.533333333 | J119: ='Comision Europea'!S20 -> 10.65 | K119: ='Comision Europea'!T20 -> -2.175 | L119: ='Comision Europea'!U20 -> 17.125 | M119: ='Comision Europea'!V20 -> 5.45 | N119: ='Comision Europea'!W20 -> 8.366666667 | O119: ='Comision Europea'!X20 -> -1.691666667 | P119: =ETT!C122 -> 178077 | Q119: =DNIs!B118 -> 39817.17443 | R119: =sabi!B118*1000 -> 208634660.1 | U119: 17255382 | V119: 98.74407281 | W119: 18393648.11 | X119: 4226744 | Y119: 17255382 | Z119: 18393648.11 | AA119: 15397569.83 | AB119: 11436619.21 | AC119: 3960930.326 | AL119: -1.705473394 | AM119: -1.406225869 | AN119: 4226744 | AO119: 5.201426764 | AP119: 19.67563173 | AQ119: 25.72438618 | AR119: 92.4866258 | AS119: 1.005248039 | AT119: 13.81499939 | AU119: 0 | AV119: 0
A120: 2011-10-01 | B120: ='SEPE contratos'!E138 -> 1294801 | C120: ='SEPE contratos'!H138 -> 97265 | D120: ='SEPE contratos'!M138 -> 1197536 | E120: =Iass!B126 -> 80.976 | F120: =Iass!N126 -> 79.049 | G120: =Iass!Y126 -> 102.4377285 | H120: =Iass!Z126 -> 1.9 | I120: ='Comision Europea'!R21 -> 11.425 | J120: ='Comision Europea'!S21 -> 12.85833333 | K120: ='Comision Europea'!T21 -> 2.575 | L120: ='Comision Europea'!U21 -> 18.84166667 | M120: ='Comision Europea'!V21 -> 7.25 | N120: ='Comision Europea'!W21 -> 9.475 | O120: ='Comision Europea'!X21 -> -0.1583333333 | P120: =ETT!C123 -> 195470 | Q120: =DNIs!B119 -> 42252.83005 | R120: =sabi!B119*1000 -> 194226460.7 | U120: 17206525 | V120: 98.51674719 | W120: 18287328.34 | X120: 4360926 | Y120: 17206525 | Z120: 18287328.34 | AA120: 15293436.27 | AB120: 11428952.16 | AC120: 3864477.745 | AL120: -2.440611273 | AM120: -1.63042659 | AN120: 4360926 | AO120: 6.729114415 | AP120: 20.21994161 | AQ120: 25.26886487 | AR120: 92.48803484 | AS120: 1.093364559 | AT120: 16.32268257 | AU120: 0 | AV120: 0
A121: 2011-11-01 | B121: ='SEPE contratos'!E139 -> 1217830 | C121: ='SEPE contratos'!H139 -> 83919 | D121: ='SEPE contratos'!M139 -> 1133911 | E121: =Iass!B127 -> 79.504 | F121: =Iass!N127 -> 81.018 | G121: =Iass!Y127 -> 98.13127947 | H121: =Iass!Z127 -> -2.1 | I121: ='Comision Europea'!R22 -> 14 | J121: ='Comision Europea'!S22 -> 14.84166667 | K121: ='Comision Europea'!T22 -> 3.991666667 | L121: ='Comision Europea'!U22 -> 23.16666667 | M121: ='Comision Europea'!V22 -> 9.108333333 | N121: ='Comision Europea'!W22 -> 11.46666667 | O121: ='Comision Europea'!X22 -> 0.5833333333 | P121: =ETT!C124 -> 198459 | Q121: =DNIs!B120 -> 41356.47999 | R121: =sabi!B120*1000 -> 190695768.3 | U121: 17204030 | V121: 98.29284687 | W121: 18160002.14 | X121: 4420462 | Y121: 17204030 | Z121: 18160002.14 | AA121: 15160200.68 | AB121: 11400521.28 | AC121: 3759681.291 | AL121: -1.913252674 | AM121: -1.835370445 | AN121: 4420462 | AO121: 7.546126871 | AP121: 20.44192298 | AQ121: 24.79968023 | AR121: 93.10913674 | AS121: 1.099999622 | AT121: 17.50216728 | AU121: 0 | AV121: 0
A122: 2011-12-01 | B122: ='SEPE contratos'!E140 -> 1165465 | C122: ='SEPE contratos'!H140 -> 65678 | D122: ='SEPE contratos'!M140 -> 1099787 | E122: =Iass!B128 -> 76.402 | F122: =Iass!N128 -> 77.225 | G122: =Iass!Y128 -> 98.93428294 | H122: =Iass!Z128 -> -2.1 | I122: ='Comision Europea'!R23 -> 13.61666667 | J122: ='Comision Europea'!S23 -> 12.53333333 | K122: ='Comision Europea'!T23 -> 4.425 | L122: ='Comision Europea'!U23 -> 23.89166667 | M122: ='Comision Europea'!V23 -> 7.491666667 | N122: ='Comision Europea'!W23 -> 11.54166667 | O122: ='Comision Europea'!X23 -> -1.466666667 | P122: =ETT!C125 -> 172858 | Q122: =DNIs!B121 -> 39349.69354 | R122: =sabi!B121*1000 -> 183255409.7 | U122: 17111792 | V122: 98.07902709 | W122: 18011669.51 | X122: 4422359 | Y122: 17111792 | Z122: 18011669.51 | AA122: 14997863.05 | AB122: 11351326.56 | AC122: 3646540.964 | AL122: -2.095783322 | AM122: -2.015037567 | AN122: 4422359 | AO122: 7.860494191 | AP122: 20.53649108 | AQ122: 24.31373691 | AR122: 94.36465274 | AS122: 1.079096435 | AT122: 15.7174071 | AU122: 0 | AV122: 0
A123: 2012-01-01 | B123: ='SEPE contratos'!E141 -> 1042194 | C123: ='SEPE contratos'!H141 -> 78364 | D123: ='SEPE contratos'!M141 -> 963830 | E123: =Iass!B129 -> 66.504 | F123: =Iass!N129 -> 70.969 | G123: =Iass!Y129 -> 93.70852062 | H123: =Iass!Z129 -> -1.9 | I123: ='Comision Europea'!R24 -> 9.041666667 | J123: ='Comision Europea'!S24 -> 6.9 | K123: ='Comision Europea'!T24 -> -1.208333333 | L123: ='Comision Europea'!U24 -> 21.425 | M123: ='Comision Europea'!V24 -> -1.15 | N123: ='Comision Europea'!W24 -> 13.93333333 | O123: ='Comision Europea'!X24 -> -0.4833333333 | P123: =ETT!C126 -> 165277 | Q123: =DNIs!B122 -> 33883.68941 | R123: =sabi!B122*1000 -> 169100704 | U123: 16819725 | V123: 97.58232214 | W123: 17842330.44 | X123: 4599829 | Y123: 16819725 | Z123: 17842330.44 | AA123: 14806423.39 | AB123: 11281368.02 | AC123: 3525056.764 | AL123: -2.644078412 | AM123: -2.158810086 | AN123: 4599829 | AO123: 8.717223788 | AP123: 21.47490559 | AQ123: 23.80761829 | AR123: 92.48086249 | AS123: 0.9612239371 | AT123: 17.14794103 | AU123: 0 | AV123: 0
A124: 2012-02-01 | B124: ='SEPE contratos'!E142 -> 989988 | C124: ='SEPE contratos'!H142 -> 96448 | D124: ='SEPE contratos'!M142 -> 893540 | E124: =Iass!B130 -> 66.469 | F124: =Iass!N130 -> 67.548 | G124: =Iass!Y130 -> 98.4026174 | H124: =Iass!Z130 -> 3.4 | I124: ='Comision Europea'!R25 -> 10.05833333 | J124: ='Comision Europea'!S25 -> 6.866666667 | K124: ='Comision Europea'!T25 -> -0.05833333333 | L124: ='Comision Europea'!U25 -> 23.35 | M124: ='Comision Europea'!V25 -> 1.308333333 | N124: ='Comision Europea'!W25 -> 15.74166667 | O124: ='Comision Europea'!X25 -> 0 | P124: =ETT!C127 -> 140217 | Q124: =DNIs!B123 -> 28093.97992 | R124: =sabi!B123*1000 -> 169011709 | U124: 16809794 | V124: 97.28856555 | W124: 17742072.84 | X124: 4712098 | Y124: 16809794 | Z124: 17742072.84 | AA124: 14696520.93 | AB124: 11248227.37 | AC124: 3448293.141 | AL124: -2.825842931 | AM124: -2.323245912 | AN124: 4712098 | AO124: 9.60245977 | AP124: 21.89444125 | AQ124: 23.46332956 | AR124: 90.25765969 | AS124: 0.8147213352 | AT124: 15.69230253 | AU124: 0 | AV124: 0
A125: 2012-03-01 | B125: ='SEPE contratos'!E143 -> 1054717 | C125: ='SEPE contratos'!H143 -> 117531 | D125: ='SEPE contratos'!M143 -> 937186 | E125: =Iass!B131 -> 69.479 | F125: =Iass!N131 -> 67.812 | G125: =Iass!Y131 -> 102.458267 | H125: =Iass!Z131 -> -5.1 | I125: ='Comision Europea'!R26 -> 12.93333333 | J125: ='Comision Europea'!S26 -> 10.925 | K125: ='Comision Europea'!T26 -> 6.275 | L125: ='Comision Europea'!U26 -> 21.58333333 | M125: ='Comision Europea'!V26 -> 4.283333333 | N125: ='Comision Europea'!W26 -> 16.43333333 | O125: ='Comision Europea'!X26 -> -1.25 | P125: =ETT!C128 -> 150230 | Q125: =DNIs!B124 -> 30427.94733 | R125: =sabi!B124*1000 -> 176665280.5 | U125: 16885759 | V125: 96.98524517 | W125: 17710896.71 | X125: 4750867 | Y125: 16885759 | Z125: 17710896.71 | AA125: 14668155.68 | AB125: 11251904.61 | AC125: 3416250.096 | AL125: -2.537546177 | AM125: -2.498025258 | AN125: 4750867 | AO125: 9.626900439 | AP125: 21.9575224 | AQ125: 23.29024978 | AR125: 88.85663168 | AS125: 0.890682663 | AT125: 16.02990228 | AU125: 0 | AV125: 0
A126: 2012-04-01 | B126: ='SEPE contratos'!E144 -> 1038612 | C126: ='SEPE contratos'!H144 -> 115253 | D126: ='SEPE contratos'!M144 -> 923359 | E126: =Iass!B132 -> 63.59 | F126: =Iass!N132 -> 66.476 | G126: =Iass!Y132 -> 95.65858355 | H126: =Iass!Z132 -> -2.1 | I126: ='Comision Europea'!R27 -> 10.61666667 | J126: ='Comision Europea'!S27 -> 5.383333333 | K126: ='Comision Europea'!T27 -> 0.7083333333 | L126: ='Comision Europea'!U27 -> 25.74166667 | M126: ='Comision Europea'!V27 -> 6.808333333 | N126: ='Comision Europea'!W27 -> 21.05833333 | O126: ='Comision Europea'!X27 -> -0.975 | P126: =ETT!C129 -> 151949 | Q126: =DNIs!B125 -> 31716.25491 | R126: =sabi!B125*1000 -> 161691233.1 | U126: 16863390 | V126: 96.67830372 | W126: 17748802.05 | X126: 4744235 | Y126: 16863390 | Z126: 17748802.05 | AA126: 14721327.62 | AB126: 11292399.74 | AC126: 3428927.628 | AL126: -3.632066447 | AM126: -2.674037181 | AN126: 4744235 | AO126: 11.12286151 | AP126: 21.95630015 | AQ126: 23.29224453 | AR126: 88.90317077 | AS126: 0.9249613393 | AT126: 16.45611295 | AU126: 0 | AV126: 0
A127: 2012-05-01 | B127: ='SEPE contratos'!E145 -> 1247101 | C127: ='SEPE contratos'!H145 -> 126489 | D127: ='SEPE contratos'!M145 -> 1120612 | E127: =Iass!B133 -> 71.707 | F127: =Iass!N133 -> 70.346 | G127: =Iass!Y133 -> 101.9347227 | H127: =Iass!Z133 -> -1.1 | I127: ='Comision Europea'!R28 -> 6.816666667 | J127: ='Comision Europea'!S28 -> 0.01666666667 | K127: ='Comision Europea'!T28 -> 2.466666667 | L127: ='Comision Europea'!U28 -> 17.95 | M127: ='Comision Europea'!V28 -> 2.191666667 | N127: ='Comision Europea'!W28 -> 14.51666667 | O127: ='Comision Europea'!X28 -> -1.591666667 | P127: =ETT!C130 -> 179067 | Q127: =DNIs!B126 -> 35238.82195 | R127: =sabi!B126*1000 -> 182330449 | U127: 16893799 | V127: 96.42737271 | W127: 17765551.84 | X127: 4714122 | Y127: 16893799 | Z127: 17765551.84 | AA127: 14733849.89 | AB127: 11287073.72 | AC127: 3446776.29 | AL127: -3.448833388 | AM127: -2.801708716 | AN127: 4714122 | AO127: 12.51803548 | AP127: 21.81663844 | AQ127: 23.39358902 | AR127: 89.85735718 | AS127: 1.022370441 | AT127: 15.9793934 | AU127: 0 | AV127: 0
A128: 2012-06-01 | B128: ='SEPE contratos'!E146 -> 1386339 | C128: ='SEPE contratos'!H146 -> 168131 | D128: ='SEPE contratos'!M146 -> 1218208 | E128: =Iass!B134 -> 74.004 | F128: =Iass!N134 -> 71.034 | G128: =Iass!Y134 -> 104.1810964 | H128: =Iass!Z134 -> -2.9 | I128: ='Comision Europea'!R29 -> 5.45 | J128: ='Comision Europea'!S29 -> -4.808333333 | K128: ='Comision Europea'!T29 -> 0.675 | L128: ='Comision Europea'!U29 -> 20.45833333 | M128: ='Comision Europea'!V29 -> 2.766666667 | N128: ='Comision Europea'!W29 -> 15.95 | O128: ='Comision Europea'!X29 -> -8 | P128: =ETT!C131 -> 181965 | Q128: =DNIs!B127 -> 36033.4234 | R128: =sabi!B127*1000 -> 188171064.8 | U128: 16966420 | V128: 96.23029141 | W128: 17761146.11 | X128: 4615269 | Y128: 16966420 | Z128: 17761146.11 | AA128: 14705722.49 | AB128: 11235926.54 | AC128: 3469796.082 | AL128: -2.280501008 | AM128: -2.894225312 | AN128: 4615269 | AO128: 11.97214519 | AP128: 21.38511495 | AQ128: 23.59486985 | AR128: 87.87230252 | AS128: 1.038488215 | AT128: 14.93710434 | AU128: 0 | AV128: 0
A129: 2012-07-01 | B129: ='SEPE contratos'!E147 -> 1526758 | C129: ='SEPE contratos'!H147 -> 230460 | D129: ='SEPE contratos'!M147 -> 1296298 | E129: =Iass!B135 -> 77.613 | F129: =Iass!N135 -> 70.543 | G129: =Iass!Y135 -> 110.0222559 | H129: =Iass!Z135 -> -7.2 | I129: ='Comision Europea'!R30 -> 6.883333333 | J129: ='Comision Europea'!S30 -> 0.9833333333 | K129: ='Comision Europea'!T30 -> 1.566666667 | L129: ='Comision Europea'!U30 -> 18.05833333 | M129: ='Comision Europea'!V30 -> 7.383333333 | N129: ='Comision Europea'!W30 -> 14.55 | O129: ='Comision Europea'!X30 -> -5.65 | P129: =ETT!C132 -> 173336 | Q129: =DNIs!B128 -> 36748.45729 | R129: =sabi!B128*1000 -> 197347722.5 | U129: 16875350 | V129: 96.07221668 | W129: 17735584.84 | X129: 4587455 | Y129: 16875350 | Z129: 17735584.84 | AA129: 14636945.41 | AB129: 11138958.21 | AC129: 3497987.004 | AL129: -4.070471241 | AM129: -2.978667717 | AN129: 4587455 | AO129: 12.44473302 | AP129: 21.37397698 | AQ129: 23.89834016 | AR129: 84.90526986 | AS129: 1.050560144 | AT129: 13.37161671 | AU129: 0 | AV129: 0
A130: 2012-08-01 | B130: ='SEPE contratos'!E148 -> 1043794 | C130: ='SEPE contratos'!H148 -> 74440 | D130: ='SEPE contratos'!M148 -> 969354 | E130: =Iass!B136 -> 68.58 | F130: =Iass!N136 -> 66.029 | G130: =Iass!Y136 -> 103.8634539 | H130: =Iass!Z136 -> -1 | I130: ='Comision Europea'!R31 -> 7.916666667 | J130: ='Comision Europea'!S31 -> 4.916666667 | K130: ='Comision Europea'!T31 -> 4.016666667 | L130: ='Comision Europea'!U31 -> 14.775 | M130: ='Comision Europea'!V31 -> 7.258333333 | N130: ='Comision Europea'!W31 -> 9.575 | O130: ='Comision Europea'!X31 -> -4.95 | P130: =ETT!C133 -> 148812 | Q130: =DNIs!B129 -> 31309.66735 | R130: =sabi!B129*1000 -> 174379379.9 | U130: 16682422 | V130: 95.84063438 | W130: 17678280.89 | X130: 4625634 | Y130: 16682422 | Z130: 17678280.89 | AA130: 14562717.08 | AB130: 11075597.47 | AC130: 3487119.481 | AL130: -3.497767466 | AM130: -3.100547444 | AN130: 4625634 | AO130: 11.97568972 | AP130: 21.70838109 | AQ130: 23.94552789 | AR130: 92.86832459 | AS130: 0.8978662051 | AT130: 15.35166719 | AU130: 0 | AV130: 0
A131: 2012-09-01 | B131: ='SEPE contratos'!E149 -> 1274043 | C131: ='SEPE contratos'!H149 -> 117683 | D131: ='SEPE contratos'!M149 -> 1156360 | E131: =Iass!B137 -> 66.119 | F131: =Iass!N137 -> 69.541 | G131: =Iass!Y137 -> 95.07916193 | H131: =Iass!Z137 -> -13.9 | I131: ='Comision Europea'!R32 -> 4.55 | J131: ='Comision Europea'!S32 -> -0.55 | K131: ='Comision Europea'!T32 -> -0.8666666667 | L131: ='Comision Europea'!U32 -> 15.025 | M131: ='Comision Europea'!V32 -> 5.608333333 | N131: ='Comision Europea'!W32 -> 7.166666667 | O131: ='Comision Europea'!X32 -> -2.083333333 | P131: =ETT!C134 -> 167994 | Q131: =DNIs!B130 -> 36001.35311 | R131: =sabi!B130*1000 -> 168121758.8 | U131: 16793649 | V131: 95.52023755 | W131: 17589234.27 | X131: 4705279 | Y131: 16793649 | Z131: 17589234.27 | AA131: 14483037.5 | AB131: 11045844.32 | AC131: 3437193.515 | AL131: -2.675878169 | AM131: -3.264576093 | AN131: 4705279 | AO131: 11.32159885 | AP131: 21.88610986 | AQ131: 23.73254584 | AR131: 90.76302762 | AS131: 1.047405476 | AT131: 14.5278287 | AU131: 0 | AV131: 0
A132: 2012-10-01 | B132: ='SEPE contratos'!E150 -> 1427173 | C132: ='SEPE contratos'!H150 -> 130632 | D132: ='SEPE contratos'!M150 -> 1296541 | E132: =Iass!B138 -> 71.5 | F132: =Iass!N138 -> 76.764 | G132: =Iass!Y138 -> 93.14261894 | H132: =Iass!Z138 -> -8.8 | I132: ='Comision Europea'!R33 -> 4.375 | J132: ='Comision Europea'!S33 -> -0.4666666667 | K132: ='Comision Europea'!T33 -> -1.316666667 | L132: ='Comision Europea'!U33 -> 14.85 | M132: ='Comision Europea'!V33 -> 5.358333333 | N132: ='Comision Europea'!W33 -> 9.45 | O132: ='Comision Europea'!X33 -> -0.05833333333 | P132: =ETT!C135 -> 201881 | Q132: =DNIs!B131 -> 38203.5912 | R132: =sabi!B131*1000 -> 181804107 | U132: 16557981 | V132: 95.10853181 | W132: =Z132 -> 17468444.97 | X132: =AN132 -> 4833521 | Y132: =U132 -> 16557981 | Z132: 17468444.97 | AA132: 14397906.67 | AB132: 11049698.77 | AC132: 3348209.105 | AL132: -3.769174775 | AM132: -3.459173577 | AN132: 4833521 | AO132: 10.83703324 | AP132: 22.59551947 | AQ132: =AC132/AA132*100 -> 23.25483267 | AR132: =D132/B132*100 -> 90.84679993 | AS132: =Q132/AC132*100 -> 1.141015689 | AT132: =P132/D132*100 -> 15.57073783 | AU132: =S132/R132*100 -> 0 | AV132: =T132/P132*100 -> 0
A133: 2012-11-01 | B133: ='SEPE contratos'!E151 -> 1151771 | C133: ='SEPE contratos'!H151 -> 100179 | D133: ='SEPE contratos'!M151 -> 1051592 | E133: =Iass!B139 -> 72.047 | F133: =Iass!N139 -> 77.525 | G133: =Iass!Y139 -> 92.93389229 | H133: =Iass!Z139 -> -5.1 | I133: ='Comision Europea'!R34 -> 3.116666667 | J133: ='Comision Europea'!S34 -> -3.625 | K133: ='Comision Europea'!T34 -> -2.416666667 | L133: ='Comision Europea'!U34 -> 15.33333333 | M133: ='Comision Europea'!V34 -> 6.233333333 | N133: ='Comision Europea'!W34 -> 9.916666667 | O133: ='Comision Europea'!X34 -> -1.408333333 | P133: =ETT!C136 -> 187719 | Q133: =DNIs!B132 -> 37393.14155 | R133: =sabi!B132*1000 -> 183194972 | U133: 16381817 | V133: 94.81767342 | W133: 17341463.92 | X133: 4907817 | Y133: 16381817 | Z133: 17341463.92 | AA133: 14294718.96 | AB133: 11034913.3 | AC133: 3259806.174 | AL133: -4.779188365 | AM133: -3.535508292 | AN133: 4907817 | AO133: 11.02497884 | AP133: 23.0526133 | AQ133: 22.80426907 | AR133: 91.30217726 | AS133: 1.147097084 | AT133: 17.85093458 | AU133: 0 | AV133: 0
A134: 2012-12-01 | B134: ='SEPE contratos'!E152 -> 1058501 | C134: ='SEPE contratos'!H152 -> 77366 | D134: ='SEPE contratos'!M152 -> 981135 | E134: =Iass!B140 -> 66.775 | F134: =Iass!N140 -> 75.179 | G134: =Iass!Y140 -> 88.82134639 | H134: =Iass!Z140 -> -10 | I134: ='Comision Europea'!R35 -> 5.666666667 | J134: ='Comision Europea'!S35 -> 0.2 | K134: ='Comision Europea'!T35 -> 2.391666667 | L134: ='Comision Europea'!U35 -> 14.35 | M134: ='Comision Europea'!V35 -> 11.375 | N134: ='Comision Europea'!W35 -> 11.23333333 | O134: ='Comision Europea'!X35 -> -0.75 | P134: =ETT!C137 -> 174953 | Q134: =DNIs!B133 -> 35578.67258 | R134: =sabi!B133*1000 -> 169789779.7 | U134: 16332488 | V134: 94.67395788 | W134: 17208291.12 | X134: 4848723 | Y134: 16332488 | Z134: 17208291.12 | AA134: 14173474.37 | AB134: 11001487.92 | AC134: 3171984.721 | AL134: -4.554192805 | AM134: -3.472138234 | AN134: 4848723 | AO134: 9.641098789 | AP134: 22.89162315 | AQ134: 22.37972595 | AR134: 92.6909847 | AS134: 1.12165334 | AT134: 17.83169492 | AU134: 0 | AV134: 0
A135: 2013-01-01 | B135: ='SEPE contratos'!E153 -> 1101819 | C135: ='SEPE contratos'!H153 -> 100609 | D135: ='SEPE contratos'!M153 -> 1001210 | E135: =Iass!B141 -> 65.327 | F135: =Iass!N141 -> 68.177 | G135: =Iass!Y141 -> 95.81970459 | H135: =Iass!Z141 -> 2.1 | I135: ='Comision Europea'!R36 -> 7.516666667 | J135: ='Comision Europea'!S36 -> 2.241666667 | K135: ='Comision Europea'!T36 -> 1.9 | L135: ='Comision Europea'!U36 -> 18.35833333 | M135: ='Comision Europea'!V36 -> 15.54166667 | N135: ='Comision Europea'!W36 -> 10.05 | O135: ='Comision Europea'!X36 -> -4.133333333 | P135: =ETT!C138 -> 165871 | Q135: =DNIs!B134 -> 34867.61678 | R135: =sabi!B134*1000 -> 175109119.4 | U135: 16083780 | V135: 94.41542697 | W135: 17068926.57 | X135: 4980778 | Y135: 16083780 | Z135: 17068926.57 | AA135: 14034172.89 | AB135: 10949422.63 | AC135: 3084744.746 | AL135: -4.375487709 | AM135: -3.245851583 | AN135: 4980778 | AO135: 8.281807867 | AP135: 23.64530032 | AQ135: 21.98023902 | AR135: 90.86882691 | AS135: 1.130324213 | AT135: 16.56705386 | AU135: 0 | AV135: 0
A136: 2013-02-01 | B136: ='SEPE contratos'!E154 -> 949844 | C136: ='SEPE contratos'!H154 -> 91584 | D136: ='SEPE contratos'!M154 -> 858260 | E136: =Iass!B142 -> 62.616 | F136: =Iass!N142 -> 65.793 | G136: =Iass!Y142 -> 95.17121882 | H136: =Iass!Z142 -> -3.2 | I136: ='Comision Europea'!R37 -> 9.05 | J136: ='Comision Europea'!S37 -> 4.725 | K136: ='Comision Europea'!T37 -> 4.383333333 | L136: ='Comision Europea'!U37 -> 18.00833333 | M136: ='Comision Europea'!V37 -> 16.2 | N136: ='Comision Europea'!W37 -> 8.308333333 | O136: ='Comision Europea'!X37 -> -2.716666667 | P136: =ETT!C139 -> 151327 | Q136: =DNIs!B135 -> 28909.78352 | R136: =sabi!B135*1000 -> 167842279.9 | U136: 16094638 | V136: 94.37942251 | W136: 17005040.51 | X136: 5040222 | Y136: 16094638 | Z136: 17005040.51 | AA136: 13963967.85 | AB136: 10912539.33 | AC136: 3051426.193 | AL136: -4.254400738 | AM136: -2.990226146 | AN136: 5040222 | AO136: 6.963437518 | AP136: 23.84790815 | AQ136: 21.85214278 | AR136: 90.35799563 | AS136: 0.9474187378 | AT136: 17.63183651 | AU136: 0 | AV136: 0
A137: 2013-03-01 | B137: ='SEPE contratos'!E155 -> 969627 | C137: ='SEPE contratos'!H155 -> 98068 | D137: ='SEPE contratos'!M155 -> 871559 | E137: =Iass!B143 -> 63.23 | F137: =Iass!N143 -> 67.414 | G137: =Iass!Y143 -> 93.79357404 | H137: =Iass!Z143 -> -8.4 | I137: ='Comision Europea'!R38 -> 7.825 | J137: ='Comision Europea'!S38 -> 3.466666667 | K137: ='Comision Europea'!T38 -> -1.566666667 | L137: ='Comision Europea'!U38 -> 21.54166667 | M137: ='Comision Europea'!V38 -> 11.75833333 | N137: ='Comision Europea'!W38 -> 13.79166667 | O137: ='Comision Europea'!X38 -> -5.016666667 | P137: =ETT!C140 -> 152975 | Q137: =DNIs!B136 -> 31311.52555 | R137: =sabi!B136*1000 -> 169488107.8 | U137: 16169814 | V137: 94.36832369 | W137: 17016632.92 | X137: 5035243 | Y137: 16169814 | Z137: 17016632.92 | AA137: 13962859.25 | AB137: 10890838.04 | AC137: 3072029.061 | AL137: -4.239933781 | AM137: -2.69776828 | AN137: 5035243 | AO137: 5.985770597 | AP137: 23.74548203 | AQ137: 22.00143255 | AR137: 89.88600771 | AS137: 1.019245747 | AT137: 17.55188117 | AU137: 0 | AV137: 0
A138: 2013-04-01 | B138: ='SEPE contratos'!E156 -> 1153140 | C138: ='SEPE contratos'!H156 -> 98349 | D138: ='SEPE contratos'!M156 -> 1054791 | E138: =Iass!B144 -> 66.788 | F138: =Iass!N144 -> 66.987 | G138: =Iass!Y144 -> 99.70292743 | H138: =Iass!Z144 -> 4.2 | I138: ='Comision Europea'!R39 -> 8.425 | J138: ='Comision Europea'!S39 -> 2.966666667 | K138: ='Comision Europea'!T39 -> -3.241666667 | L138: ='Comision Europea'!U39 -> 25.5 | M138: ='Comision Europea'!V39 -> 6.458333333 | N138: ='Comision Europea'!W39 -> 14.9 | O138: ='Comision Europea'!X39 -> -3.908333333 | P138: =ETT!C141 -> 179034 | Q138: =DNIs!B137 -> 32637.2435 | R138: =sabi!B137*1000 -> 179025332 | U138: 16198707 | V138: 94.3836439 | W138: 17103703.81 | X138: 4989193 | Y138: 16198707 | Z138: 17103703.81 | AA138: 14030847.09 | AB138: 10884318.74 | AC138: 3146553.351 | AL138: -3.941574025 | AM138: -2.373932362 | AN138: 4989193 | AO138: 5.163277114 | AP138: 23.54736902 | AQ138: 22.42596851 | AR138: 91.47120037 | AS138: 1.037237887 | AT138: 16.9734099 | AU138: 0 | AV138: 0
A139: 2013-05-01 | B139: ='SEPE contratos'!E157 -> 1283261 | C139: ='SEPE contratos'!H157 -> 95856 | D139: ='SEPE contratos'!M157 -> 1187405 | E139: =Iass!B145 -> 71.955 | F139: =Iass!N145 -> 71.399 | G139: =Iass!Y145 -> 100.7787224 | H139: =Iass!Z145 -> -1.2 | I139: ='Comision Europea'!R40 -> 5.941666667 | J139: ='Comision Europea'!S40 -> 0.7 | K139: ='Comision Europea'!T40 -> -9.491666667 | L139: ='Comision Europea'!U40 -> 26.55833333 | M139: ='Comision Europea'!V40 -> 4.65 | N139: ='Comision Europea'!W40 -> 14.475 | O139: ='Comision Europea'!X40 -> -3.041666667 | P139: =ETT!C142 -> 195898 | Q139: =DNIs!B138 -> 36262.10018 | R139: =sabi!B138*1000 -> 192875483.1 | U139: 16281979 | V139: 94.39624547 | W139: 17168143.68 | X139: 4890928 | Y139: 16281979 | Z139: 17168143.68 | AA139: 14078858.73 | AB139: 10857849.86 | AC139: 3221019.41 | AL139: -3.621565522 | AM139: -2.106373497 | AN139: 4890928 | AO139: 3.75056055 | AP139: 23.09993616 | AQ139: 22.87841274 | AR139: 92.53028028 | AS139: 1.125795767 | AT139: 16.49799352 | AU139: 0 | AV139: 0
A140: 2013-06-01 | B140: ='SEPE contratos'!E158 -> 1277255 | C140: ='SEPE contratos'!H158 -> 87349 | D140: ='SEPE contratos'!M158 -> 1189906 | E140: =Iass!B146 -> 72.215 | F140: =Iass!N146 -> 71.64 | G140: =Iass!Y146 -> 100.8026242 | H140: =Iass!Z146 -> -3.3 | I140: ='Comision Europea'!R41 -> 2.866666667 | J140: ='Comision Europea'!S41 -> -3.966666667 | K140: ='Comision Europea'!T41 -> -14.04166667 | L140: ='Comision Europea'!U41 -> 26.56666667 | M140: ='Comision Europea'!V41 -> -0.55 | N140: ='Comision Europea'!W41 -> 16.15833333 | O140: ='Comision Europea'!X41 -> -0.5416666667 | P140: =ETT!C143 -> 189732 | Q140: =DNIs!B139 -> 37079.77556 | R140: =sabi!B139*1000 -> 193572413.5 | U140: 16346688 | V140: 94.39836507 | W140: 17209952.51 | X140: 4763680 | Y140: 16346688 | Z140: 17209952.51 | AA140: 14106894.18 | AB140: 10811431.41 | AC140: 3295427.239 | AL140: -3.652697505 | AM140: -1.903264687 | AN140: 4763680 | AO140: 3.215652219 | AP140: 22.56559431 | AQ140: 23.36040235 | AR140: 93.16119334 | AS140: 1.12518872 | AT140: 15.94512508 | AU140: 0 | AV140: 0
A141: 2013-07-01 | B141: ='SEPE contratos'!E159 -> 1507341 | C141: ='SEPE contratos'!H159 -> 96338 | D141: ='SEPE contratos'!M159 -> 1411003 | E141: =Iass!B147 -> 84.474 | F141: =Iass!N147 -> 73.002 | G141: =Iass!Y147 -> 115.714638 | H141: =Iass!Z147 -> 5.3 | I141: ='Comision Europea'!R42 -> 2.933333333 | J141: ='Comision Europea'!S42 -> -7.808333333 | K141: ='Comision Europea'!T42 -> -14.84166667 | L141: ='Comision Europea'!U42 -> 31.425 | M141: ='Comision Europea'!V42 -> -5.525 | N141: ='Comision Europea'!W42 -> 19.49166667 | O141: ='Comision Europea'!X42 -> -2.208333333 | P141: =ETT!C144 -> 197199 | Q141: =DNIs!B140 -> 37815.57287 | R141: =sabi!B140*1000 -> 226432680.9 | U141: 16284726 | V141: 94.37361105 | W141: 17229130.33 | X141: 4698814 | Y141: 16284726 | Z141: 17229130.33 | AA141: 14114953.42 | AB141: 10745063.38 | AC141: 3369776.837 | AL141: -3.499921483 | AM141: -1.767400959 | AN141: 4698814 | AO141: 2.427467953 | AP141: 22.3928565 | AQ141: 23.8738077 | AR141: 93.60874547 | AS141: 1.122198137 | AT141: 13.97580303 | AU141: 0 | AV141: 0
A142: 2013-08-01 | B142: ='SEPE contratos'!E160 -> 1043166 | C142: ='SEPE contratos'!H160 -> 62454 | D142: ='SEPE contratos'!M160 -> 980712 | E142: =Iass!B148 -> 70.807 | F142: =Iass!N148 -> 70.254 | G142: =Iass!Y148 -> 100.7871438 | H142: =Iass!Z148 -> -3.2 | I142: ='Comision Europea'!R43 -> 3.241666667 | J142: ='Comision Europea'!S43 -> -11.03333333 | K142: ='Comision Europea'!T43 -> -15.95833333 | L142: ='Comision Europea'!U43 -> 36.70833333 | M142: ='Comision Europea'!V43 -> -8.466666667 | N142: ='Comision Europea'!W43 -> 22.79166667 | O142: ='Comision Europea'!X43 -> -4.233333333 | P142: =ETT!C145 -> 156049 | Q142: =DNIs!B141 -> 32218.8493 | R142: =sabi!B141*1000 -> 189798267.4 | U142: 16271446 | V142: 94.39277524 | W142: 17234577.03 | X142: 4698783 | Y142: 16271446 | Z142: 17234577.03 | AA142: 14123678.17 | AB142: 10714548.84 | AC142: 3409006.609 | AL142: -2.463527178 | AM142: -1.510807674 | AN142: 4698783 | AO142: 1.581383222 | AP142: 22.40692269 | AQ142: 24.13681881 | AR142: 94.0130334 | AS142: 0.9451096168 | AT142: 15.91180693 | AU142: 0 | AV142: 0
A143: 2013-09-01 | B143: ='SEPE contratos'!E161 -> 1392429 | C143: ='SEPE contratos'!H161 -> 107136 | D143: ='SEPE contratos'!M161 -> 1285293 | E143: =Iass!B149 -> 75.023 | F143: =Iass!N149 -> 77.349 | G143: =Iass!Y149 -> 96.99285059 | H143: =Iass!Z149 -> 2.3 | I143: ='Comision Europea'!R44 -> 5.966666667 | J143: ='Comision Europea'!S44 -> -6.525 | K143: ='Comision Europea'!T44 -> -15.36666667 | L143: ='Comision Europea'!U44 -> 39.8 | M143: ='Comision Europea'!V44 -> -4.308333333 | N143: ='Comision Europea'!W44 -> 25.41666667 | O143: ='Comision Europea'!X44 -> -6.733333333 | P143: =ETT!C146 -> 196067 | Q143: =DNIs!B142 -> 37046.774 | R143: =sabi!B142*1000 -> 201099261.6 | U143: 16240307 | V143: 94.44830747 | W143: 17226292.64 | X143: 4724355 | Y143: 16240307 | Z143: 17226292.64 | AA143: 14133068.41 | AB143: 10719887.78 | AC143: 3413116.554 | AL143: -3.294947989 | AM143: -1.122738723 | AN143: 4724355 | AO143: 0.4054169795 | AP143: 22.53484936 | AQ143: 24.14986226 | AR143: 92.30581954 | AS143: 1.085423642 | AT143: 15.254654 | AU143: 0 | AV143: 0
A144: 2013-10-01 | B144: ='SEPE contratos'!E162 -> 1582400 | C144: ='SEPE contratos'!H162 -> 119400 | D144: ='SEPE contratos'!M162 -> 1463000 | E144: =Iass!B150 -> 81.346 | F144: =Iass!N150 -> 82.595 | G144: =Iass!Y150 -> 98.48780193 | H144: =Iass!Z150 -> 6.2 | I144: ='Comision Europea'!R45 -> 4.766666667 | J144: ='Comision Europea'!S45 -> -8.858333333 | K144: ='Comision Europea'!T45 -> -17.16666667 | L144: ='Comision Europea'!U45 -> 40.33333333 | M144: ='Comision Europea'!V45 -> -3.941666667 | N144: ='Comision Europea'!W45 -> 25.45833333 | O144: ='Comision Europea'!X45 -> -7.05 | P144: =ETT!C147 -> 223751 | Q144: =DNIs!B143 -> 39312.96151 | R144: =sabi!B143*1000 -> 218048072.4 | U144: 16190225 | V144: 94.53789868 | W144: 17204277.14 | X144: 4811383 | Y144: 16190225 | Z144: 17204277.14 | AA144: 14143124.15 | AB144: 10761080.22 | AC144: 3382106.672 | AL144: -2.22101958 | AM144: -0.6001108531 | AN144: 4811383 | AO144: -0.4580098028 | AP144: 22.9095934 | AQ144: 23.91343409 | AR144: 92.45449949 | AS144: 1.162380886 | AT144: 15.29398496 | AU144: 0 | AV144: 0
A145: 2013-11-01 | B145: ='SEPE contratos'!E163 -> 1241479 | C145: ='SEPE contratos'!H163 -> 94014 | D145: ='SEPE contratos'!M163 -> 1147465 | E145: =Iass!B151 -> 77.145 | F145: =Iass!N151 -> 83.06 | G145: =Iass!Y151 -> 92.87864195 | H145: =Iass!Z151 -> 0 | I145: ='Comision Europea'!R46 -> 7.966666667 | J145: ='Comision Europea'!S46 -> -5.075 | K145: ='Comision Europea'!T46 -> -13.025 | L145: ='Comision Europea'!U46 -> 42.01666667 | M145: ='Comision Europea'!V46 -> -2.216666667 | N145: ='Comision Europea'!W46 -> 26.36666667 | O145: ='Comision Europea'!X46 -> -5.641666667 | P145: =ETT!C148 -> 209015 | Q145: =DNIs!B144 -> 38478.97772 | R145: =sabi!B144*1000 -> 206787285.7 | U145: 16311593 | V145: 94.65055203 | W145: 17146965.41 | X145: 4808908 | Y145: 16311593 | Z145: 17146965.41 | AA145: 14108344.97 | AB145: 10769968.16 | AC145: 3338499.198 | AL145: -0.4286703972 | AM145: -0.1762780936 | AN145: 4808908 | AO145: -2.015335943 | AP145: 22.76891064 | AQ145: 23.66329434 | AR145: 92.42725813 | AS145: 1.152583105 | AT145: 18.2153704 | AU145: 0 | AV145: 0
A146: 2013-12-01 | B146: ='SEPE contratos'!E164 -> 1290853 | C146: ='SEPE contratos'!H164 -> 83792 | D146: ='SEPE contratos'!M164 -> 1207061 | E146: =Iass!B152 -> 75.327 | F146: =Iass!N152 -> 83.33 | G146: =Iass!Y152 -> 90.39601584 | H146: =Iass!Z152 -> 2 | I146: ='Comision Europea'!R47 -> 8.458333333 | J146: ='Comision Europea'!S47 -> -4.425 | K146: ='Comision Europea'!T47 -> -14.01666667 | L146: ='Comision Europea'!U47 -> 43.85 | M146: ='Comision Europea'!V47 -> -2.883333333 | N146: ='Comision Europea'!W47 -> 29.51666667 | O146: ='Comision Europea'!X47 -> -5.275 | P146: =ETT!C149 -> 215731 | Q146: =DNIs!B145 -> 36611.81951 | R146: =sabi!B145*1000 -> 201914134 | U146: 16258042 | V146: 94.81117831 | W146: 17054357.45 | X146: 4701338 | Y146: 16258042 | Z146: 17054357.45 | AA146: 14028730.88 | AB146: 10746551.62 | AC146: 3282294.13 | AL146: -0.4558154275 | AM146: 0.145092401 | AN146: 4701338 | AO146: -3.03966632 | AP146: 22.43071121 | AQ146: 23.39694273 | AR146: 93.50878837 | AS146: 1.115433842 | AT146: 17.87241904 | AU146: 0 | AV146: 0
A147: 2014-01-01 | B147: ='SEPE contratos'!E165 -> 1259240 | C147: ='SEPE contratos'!H165 -> 98366 | D147: ='SEPE contratos'!M165 -> 1160874 | E147: =Iass!B153 -> 71.411 | F147: =Iass!N153 -> 76.726 | G147: =Iass!Y153 -> 93.07275239 | H147: =Iass!Z153 -> -3.2 | I147: ='Comision Europea'!R48 -> 10.83333333 | J147: ='Comision Europea'!S48 -> -0.1333333333 | K147: ='Comision Europea'!T48 -> -7.191666667 | L147: ='Comision Europea'!U48 -> 39.84166667 | M147: ='Comision Europea'!V48 -> -2.866666667 | N147: ='Comision Europea'!W48 -> 29.59166667 | O147: ='Comision Europea'!X48 -> -4.458333333 | P147: =ETT!C150 -> 207531 | Q147: =DNIs!B146 -> 41027.34777 | R147: =sabi!B146*1000 -> 209319121.5 | U147: 16101625 | V147: 94.74532262 | W147: 16926453.27 | X147: 4814435 | Y147: 16101625 | Z147: 16926453.27 | AA147: 13904281.87 | AB147: 10690830.58 | AC147: 3213491.47 | AL147: 0.1109502866 | AM147: 0.3495237653 | AN147: 4814435 | AO147: -3.339699139 | AP147: 23.01788673 | AQ147: 23.1115242 | AR147: 92.18846288 | AS147: 1.276721851 | AT147: 17.87713395 | AU147: 0 | AV147: 0
A148: 2014-02-01 | B148: ='SEPE contratos'!E166 -> 1090879 | C148: ='SEPE contratos'!H166 -> 97804 | D148: ='SEPE contratos'!M166 -> 993075 | E148: =Iass!B154 -> 69.225 | F148: =Iass!N154 -> 75.062 | G148: =Iass!Y154 -> 92.22376169 | H148: =Iass!Z154 -> -3.5 | I148: ='Comision Europea'!R49 -> 8.233333333 | J148: ='Comision Europea'!S49 -> -3.5 | K148: ='Comision Europea'!T49 -> -9.591666667 | L148: ='Comision Europea'!U49 -> 37.79166667 | M148: ='Comision Europea'!V49 -> -4.966666667 | N148: ='Comision Europea'!W49 -> 29.5 | O148: ='Comision Europea'!X49 -> -5.441666667 | P148: =ETT!C151 -> 173810 | Q148: =DNIs!B147 -> 33652.45799 | R148: =sabi!B147*1000 -> 202911542.8 | U148: 16168480 | V148: 94.88926729 | W148: 16912587.27 | X148: 4812486 | Y148: 16168480 | Z148: 16912587.27 | AA148: 13892083.22 | AB148: 10689477.39 | AC148: 3202597.203 | AL148: 0.4587987627 | AM148: 0.540128042 | AN148: 4812486 | AO148: -4.518372405 | AP148: 22.93739001 | AQ148: 23.05339777 | AR148: 91.03438603 | AS148: 1.050786467 | AT148: 17.50220275 | AU148: 0 | AV148: 0
A149: 2014-03-01 | B149: ='SEPE contratos'!E167 -> 1216637 | C149: ='SEPE contratos'!H167 -> 113481 | D149: ='SEPE contratos'!M167 -> 1103156 | E149: =Iass!B155 -> 76.748 | F149: =Iass!N155 -> 78.791 | G149: =Iass!Y155 -> 97.40706426 | H149: =Iass!Z155 -> 4.5 | I149: ='Comision Europea'!R50 -> 9.283333333 | J149: ='Comision Europea'!S50 -> -0.475 | K149: ='Comision Europea'!T50 -> -4.741666667 | L149: ='Comision Europea'!U50 -> 33.075 | M149: ='Comision Europea'!V50 -> -0.5583333333 | N149: ='Comision Europea'!W50 -> 25.19166667 | O149: ='Comision Europea'!X50 -> -2.141666667 | P149: =ETT!C152 -> 200962 | Q149: =DNIs!B148 -> 36017.44679 | R149: =sabi!B148*1000 -> 224962876 | U149: 16269721 | V149: 95.02631259 | W149: 17012759.46 | X149: 4795866 | Y149: 16269721 | Z149: 17012759.46 | AA149: 13992134.91 | AB149: 10742492.03 | AC149: 3249611.327 | AL149: 0.6178611578 | AM149: 0.6972204956 | AN149: 4795866 | AO149: -4.754030739 | AP149: 22.76635348 | AQ149: 23.22455685 | AR149: 90.67256708 | AS149: 1.108361683 | AT149: 18.21700648 | AU149: 0 | AV149: 0
A150: 2014-04-01 | B150: ='SEPE contratos'!E168 -> 1296529 | C150: ='SEPE contratos'!H168 -> 122621 | D150: ='SEPE contratos'!M168 -> 1173908 | E150: =Iass!B156 -> 74.909 | F150: =Iass!N156 -> 83.105 | G150: =Iass!Y156 -> 90.13777751 | H150: =Iass!Z156 -> -11.9 | I150: ='Comision Europea'!R51 -> 8.966666667 | J150: ='Comision Europea'!S51 -> 1.433333333 | K150: ='Comision Europea'!T51 -> -1.058333333 | L150: ='Comision Europea'!U51 -> 26.53333333 | M150: ='Comision Europea'!V51 -> 2.833333333 | N150: ='Comision Europea'!W51 -> 19.15 | O150: ='Comision Europea'!X51 -> -3.066666667 | P150: =ETT!C153 -> 206839 | Q150: =DNIs!B149 -> 38460.17081 | R150: =sabi!B149*1000 -> 219572419.8 | U150: 16420853 | V150: 95.14204456 | W150: 17226969.84 | X150: 4684301 | Y150: 16420853 | Z150: 17226969.84 | AA150: 14204436.96 | AB150: 10849874.52 | AC150: 3354533.844 | AL150: 1.371381061 | AM150: 0.804313104 | AN150: 4684301 | AO150: -6.11104842 | AP150: 22.19505719 | AQ150: 23.61609864 | AR150: 90.5423635 | AS150: 1.146513125 | AT150: 17.61969422 | AU150: 0 | AV150: 0
A151: 2014-05-01 | B151: ='SEPE contratos'!E169 -> 1458577 | C151: ='SEPE contratos'!H169 -> 115935 | D151: ='SEPE contratos'!M169 -> 1342642 | E151: =Iass!B157 -> 85.651 | F151: =Iass!N157 -> 89.076 | G151: =Iass!Y157 -> 96.15496879 | H151: =Iass!Z157 -> -5.8 | I151: ='Comision Europea'!R52 -> 11.65 | J151: ='Comision Europea'!S52 -> 2.425 | K151: ='Comision Europea'!T52 -> 0.95 | L151: ='Comision Europea'!U52 -> 31.6 | M151: ='Comision Europea'!V52 -> 3.316666667 | N151: ='Comision Europea'!W52 -> 24.95 | O151: ='Comision Europea'!X52 -> -3.058333333 | P151: =ETT!C154 -> 240649 | Q151: =DNIs!B150 -> 43085.99087 | R151: =sabi!B150*1000 -> 251059249.6 | U151: 16643365 | V151: 95.32021638 | W151: 17375045.05 | X151: 4572385 | Y151: 16643365 | Z151: 17375045.05 | AA151: 14342309.75 | AB151: 10905164.25 | AC151: 3437139.09 | AL151: 2.219545916 | AM151: 0.9788177413 | AN151: 4572385 | AO151: -6.512935786 | AP151: 21.55184238 | AQ151: 23.96503178 | AR151: 92.05149951 | AS151: 1.253542255 | AT151: 17.92354179 | AU151: 0 | AV151: 0
A152: 2014-06-01 | B152: ='SEPE contratos'!E170 -> 1518873 | C152: ='SEPE contratos'!H170 -> 110258 | D152: ='SEPE contratos'!M170 -> 1408615 | E152: =Iass!B158 -> 86.5 | F152: =Iass!N158 -> 88.693 | G152: =Iass!Y158 -> 97.52742607 | H152: =Iass!Z158 -> -4 | I152: ='Comision Europea'!R53 -> 15.56666667 | J152: ='Comision Europea'!S53 -> 7.625 | K152: ='Comision Europea'!T53 -> 4.958333333 | L152: ='Comision Europea'!U53 -> 34.14166667 | M152: ='Comision Europea'!V53 -> 10.125 | N152: ='Comision Europea'!W53 -> 25.725 | O152: ='Comision Europea'!X53 -> -4.616666667 | P152: =ETT!C155 -> 243893 | Q152: =DNIs!B151 -> 42613.45263 | R152: =sabi!B151*1000 -> 253547828.9 | U152: 16555787 | V152: 95.55223984 | W152: 17456985.11 | X152: 4449701 | Y152: 16555787 | Z152: 17456985.11 | AA152: 14405753.29 | AB152: 10908361.23 | AC152: 3497427.066 | AL152: 1.279152083 | AM152: 1.221566724 | AN152: 4449701 | AO152: -6.591101837 | AP152: 21.18351642 | AQ152: 24.27798808 | AR152: 92.7408019 | AS152: 1.21842291 | AT152: 17.31438328 | AU152: 0 | AV152: 0
A153: 2014-07-01 | B153: ='SEPE contratos'!E171 -> 1645236 | C153: ='SEPE contratos'!H171 -> 114071 | D153: ='SEPE contratos'!M171 -> 1531165 | E153: =Iass!B159 -> 102.139 | F153: =Iass!N159 -> 91.694 | G153: =Iass!Y159 -> 111.3911488 | H153: =Iass!Z159 -> -4.7 | I153: ='Comision Europea'!R54 -> 13.71666667 | J153: ='Comision Europea'!S54 -> 6.675 | K153: ='Comision Europea'!T54 -> 4.233333333 | L153: ='Comision Europea'!U54 -> 30.26666667 | M153: ='Comision Europea'!V54 -> 10.10833333 | N153: ='Comision Europea'!W54 -> 20.59166667 | O153: ='Comision Europea'!X54 -> -3.65 | P153: =ETT!C156 -> 227113 | Q153: =DNIs!B152 -> 44716.51585 | R153: =sabi!B152*1000 -> 299388690.1 | U153: 16605098 | V153: 95.83094432 | W153: 17472790 | X153: 4419860 | Y153: 16605098 | Z153: 17472790 | AA153: 14394767.58 | AB153: 10859465.46 | AC153: 3535397.773 | AL153: 1.967315876 | AM153: 1.543483417 | AN153: 4419860 | AO153: -5.936689556 | AP153: 21.02196827 | AQ153: 24.56029772 | AR153: 93.06658741 | AS153: 1.264822765 | AT153: 14.83269275 | AU153: 0 | AV153: 0
A154: 2014-08-01 | B154: ='SEPE contratos'!E172 -> 1135109 | C154: ='SEPE contratos'!H172 -> 72955 | D154: ='SEPE contratos'!M172 -> 1062154 | E154: =Iass!B160 -> 81.275 | F154: =Iass!N160 -> 84.546 | G154: =Iass!Y160 -> 96.13110023 | H154: =Iass!Z160 -> -5.5 | I154: ='Comision Europea'!R55 -> 9.675 | J154: ='Comision Europea'!S55 -> 2.85 | K154: ='Comision Europea'!T55 -> 1.675 | L154: ='Comision Europea'!U55 -> 24.525 | M154: ='Comision Europea'!V55 -> 5.016666667 | N154: ='Comision Europea'!W55 -> 17.88333333 | O154: ='Comision Europea'!X55 -> -4.525 | P154: =ETT!C157 -> 184011 | Q154: =DNIs!B153 -> 36695.61958 | R154: =sabi!B153*1000 -> 238232367.5 | U154: 16611116 | V154: 96.0760754 | W154: 17500148.72 | X154: 4427930 | Y154: 16611116 | Z154: 17500148.72 | AA154: 14405770.47 | AB154: 10848467.42 | AC154: 3557417.12 | AL154: 2.087521908 | AM154: 1.783335699 | AN154: 4427930 | AO154: -5.764322379 | AP154: 21.04624896 | AQ154: 24.69438985 | AR154: 93.57286393 | AS154: 1.031524231 | AT154: 17.32432397 | AU154: 0 | AV154: 0
A155: 2014-09-01 | B155: ='SEPE contratos'!E173 -> 1634444 | C155: ='SEPE contratos'!H173 -> 138543 | D155: ='SEPE contratos'!M173 -> 1495901 | E155: =Iass!B161 -> 94.578 | F155: =Iass!N161 -> 90.787 | G155: =Iass!Y161 -> 104.175708 | H155: =Iass!Z161 -> 8.7 | I155: ='Comision Europea'!R56 -> 12.84166667 | J155: ='Comision Europea'!S56 -> 7.583333333 | K155: ='Comision Europea'!T56 -> 10.325 | L155: ='Comision Europea'!U56 -> 20.63333333 | M155: ='Comision Europea'!V56 -> 4.066666667 | N155: ='Comision Europea'!W56 -> 16.28333333 | O155: ='Comision Europea'!X56 -> -5.133333333 | P155: =ETT!C158 -> 235506 | Q155: =DNIs!B154 -> 43668.43063 | R155: =sabi!B154*1000 -> 277225971.8 | U155: 16565854 | V155: 96.28790746 | W155: 17539061.28 | X155: 4447650 | Y155: 16565854 | Z155: 17539061.28 | AA155: 14438761.96 | AB155: 10875367.12 | AC155: 3563485.108 | AL155: 2.00456186 | AM155: 1.948423325 | AN155: 4447650 | AO155: -5.856990002 | AP155: 21.16567518 | AQ155: 24.67999069 | AR155: 91.5235395 | AS155: 1.225441648 | AT155: 15.74342152 | AU155: 0 | AV155: 0
A156: 2014-10-01 | B156: ='SEPE contratos'!E174 -> 1702152 | C156: ='SEPE contratos'!H174 -> 148876 | D156: ='SEPE contratos'!M174 -> 1553276 | E156: =Iass!B162 -> 92.483 | F156: =Iass!N162 -> 97.127 | G156: =Iass!Y162 -> 95.21863128 | H156: =Iass!Z162 -> -3.9 | I156: ='Comision Europea'!R57 -> 18.2 | J156: ='Comision Europea'!S57 -> 14.875 | K156: ='Comision Europea'!T57 -> 18.35 | L156: ='Comision Europea'!U57 -> 21.40833333 | M156: ='Comision Europea'!V57 -> 7.15 | N156: ='Comision Europea'!W57 -> 14.24166667 | O156: ='Comision Europea'!X57 -> -4.85 | P156: =ETT!C159 -> 259463 | Q156: =DNIs!B155 -> 47725.59648 | R156: =sabi!B155*1000 -> 271085131.3 | U156: 16575092 | V156: 96.46960518 | W156: 17589527.67 | X156: 4526804 | Y156: 16575092 | Z156: 17589527.67 | AA156: 14493742.06 | AB156: 10940164.56 | AC156: 3553601.736 | AL156: 2.377156587 | AM156: 2.042979397 | AN156: 4526804 | AO156: -5.914702696 | AP156: 21.45211975 | AQ156: 24.5181798 | AR156: 91.25366007 | AS156: 1.343020406 | AT156: 16.70424316 | AU156: 0 | AV156: 0
A157: 2014-11-01 | B157: ='SEPE contratos'!E175 -> 1385351 | C157: ='SEPE contratos'!H175 -> 117568 | D157: ='SEPE contratos'!M175 -> 1267783 | E157: =Iass!B163 -> 86.315 | F157: =Iass!N163 -> 95.85 | G157: =Iass!Y163 -> 90.05216484 | H157: =Iass!Z163 -> -3.5 | I157: ='Comision Europea'!R58 -> 16.65833333 | J157: ='Comision Europea'!S58 -> 13.125 | K157: ='Comision Europea'!T58 -> 16.6 | L157: ='Comision Europea'!U58 -> 20.29166667 | M157: ='Comision Europea'!V58 -> 4.366666667 | N157: ='Comision Europea'!W58 -> 12.20833333 | O157: ='Comision Europea'!X58 -> -3.875 | P157: =ETT!C160 -> 238998 | Q157: =DNIs!B156 -> 44005.4109 | R157: =sabi!B156*1000 -> 253005559 | U157: 16731190 | V157: 96.73789136 | W157: 17586823.51 | X157: 4512116 | Y157: 16731190 | Z157: 17586823.51 | AA157: 14499505.54 | AB157: 10980240.5 | AC157: 3519254.591 | AL157: 2.572385174 | AM157: 2.205319028 | AN157: 4512116 | AO157: -6.171712996 | AP157: 21.24017796 | AQ157: 24.271549 | AR157: 91.51348647 | AS157: 1.250418512 | AT157: 18.8516489 | AU157: 0 | AV157: 0
A158: 2014-12-01 | B158: ='SEPE contratos'!E176 -> 1384062 | C158: ='SEPE contratos'!H176 -> 99853 | D158: ='SEPE contratos'!M176 -> 1284209 | E158: =Iass!B164 -> 90.442 | F158: =Iass!N164 -> 95.951 | G158: =Iass!Y164 -> 94.25852779 | H158: =Iass!Z164 -> 5 | I158: ='Comision Europea'!R59 -> 16.73333333 | J158: ='Comision Europea'!S59 -> 10.25833333 | K158: ='Comision Europea'!T59 -> 18.6 | L158: ='Comision Europea'!U59 -> 21.36666667 | M158: ='Comision Europea'!V59 -> 8.258333333 | N158: ='Comision Europea'!W59 -> 10.50833333 | O158: ='Comision Europea'!X59 -> -3.925 | P158: =ETT!C161 -> 271117 | Q158: =DNIs!B157 -> 44006.55969 | R158: =sabi!B157*1000 -> 265102575 | U158: 16651884 | V158: 97.12580501 | W158: 17530948.82 | X158: 4447711 | Y158: 16651884 | Z158: 17530948.82 | AA158: 14456052.41 | AB158: 10995594.94 | AC158: 3460443.672 | AL158: 2.422444228 | AM158: 2.441628783 | AN158: 4447711 | AO158: -5.394783357 | AP158: 21.07960366 | AQ158: 23.93768074 | AR158: 92.78551105 | AS158: 1.271702818 | AT158: 21.11159476 | AU158: 0 | AV158: 0
A159: 2015-01-01 | B159: ='SEPE contratos'!E177 -> 1367795 | C159: ='SEPE contratos'!H177 -> 120239 | D159: ='SEPE contratos'!M177 -> 1247556 | E159: =Iass!B165 -> 83.154 | F159: =Iass!N165 -> 90.395 | G159: =Iass!Y165 -> 91.98960119 | H159: =Iass!Z165 -> -1.4 | I159: ='Comision Europea'!R60 -> 14.9 | J159: ='Comision Europea'!S60 -> 9.266666667 | K159: ='Comision Europea'!T60 -> 17 | L159: ='Comision Europea'!U60 -> 18.45833333 | M159: ='Comision Europea'!V60 -> 11.78333333 | N159: ='Comision Europea'!W60 -> 11.43333333 | O159: ='Comision Europea'!X60 -> -3.925 | P159: =ETT!C162 -> 231337 | Q159: =DNIs!B158 -> 47340.89207 | R159: =sabi!B158*1000 -> 254411913.5 | S159: 199796888.3 | T159: 160218 | U159: 16589693 | V159: 97.3625495 | W159: 17421903.58 | X159: 4525691 | Y159: 16589693 | Z159: 17421903.58 | AA159: 14363382.66 | AB159: 10986227.89 | AC159: 3377168.979 | AL159: 3.03117232 | AM159: 2.762381095 | AN159: 4525691 | AO159: -5.997463877 | AP159: 21.43314562 | AQ159: 23.51235123 | AR159: 91.20928209 | AS159: 1.401792222 | AT159: 18.5432157 | AU159: 78.53283505 | AV159: 69.2574037
A160: 2015-02-01 | B160: ='SEPE contratos'!E178 -> 1226950 | C160: ='SEPE contratos'!H178 -> 120281 | D160: ='SEPE contratos'!M178 -> 1106669 | E160: =Iass!B166 -> 84.774 | F160: =Iass!N166 -> 89.092 | G160: =Iass!Y166 -> 95.15332465 | H160: =Iass!Z166 -> 3.8 | I160: ='Comision Europea'!R61 -> 17.75 | J160: ='Comision Europea'!S61 -> 12.98333333 | K160: ='Comision Europea'!T61 -> 18.74166667 | L160: ='Comision Europea'!U61 -> 21.56666667 | M160: ='Comision Europea'!V61 -> 17.84166667 | N160: ='Comision Europea'!W61 -> 14.98333333 | O160: ='Comision Europea'!X61 -> -2.241666667 | P160: =ETT!C163 -> 209171 | Q160: =DNIs!B159 -> 38885.20872 | R160: =sabi!B159*1000 -> 259368347.3 | S160: 205269817 | T160: 144598 | U160: 16705373 | V160: 97.77042229 | W160: 17419314.58 | X160: 4512153 | Y160: 16705373 | Z160: 17419314.58 | AA160: 14363103.23 | AB160: 10992190.21 | AC160: 3370923.571 | AL160: 3.320615172 | AM160: 3.036333918 | AN160: 4512153 | AO160: -6.240703869 | AP160: 21.26615987 | AQ160: 23.46932636 | AR160: 90.19674803 | AS160: 1.153547623 | AT160: 18.90095412 | AU160: 79.14220034 | AV160: 69.12908577
A161: 2015-03-01 | B161: ='SEPE contratos'!E179 -> 1441775 | C161: ='SEPE contratos'!H179 -> 144291 | D161: ='SEPE contratos'!M179 -> 1297484 | E161: =Iass!B167 -> 92.791 | F161: =Iass!N167 -> 93.722 | G161: =Iass!Y167 -> 99.00663665 | H161: =Iass!Z167 -> 1.9 | I161: ='Comision Europea'!R62 -> 20.11666667 | J161: ='Comision Europea'!S62 -> 15.45 | K161: ='Comision Europea'!T62 -> 19.95 | L161: ='Comision Europea'!U62 -> 24.98333333 | M161: ='Comision Europea'!V62 -> 20.41666667 | N161: ='Comision Europea'!W62 -> 18.53333333 | O161: ='Comision Europea'!X62 -> -0.675 | P161: =ETT!C164 -> 247535 | Q161: =DNIs!B160 -> 42125.10114 | R161: =sabi!B160*1000 -> 283896575.8 | S161: 228958857 | T161: 172644 | U161: 16826434 | V161: 98.1280672 | W161: 17523181.84 | X161: 4451939 | Y161: 16826434 | Z161: 17523181.84 | AA161: 14455214.11 | AB161: 11013481.9 | AC161: 3441707.449 | AL161: 3.42177349 | AM161: 3.264100786 | AN161: 4451939 | AO161: -7.171322135 | AP161: 20.92236563 | AQ161: 23.80945327 | AR161: 89.99212776 | AS161: 1.223959379 | AT161: 19.07807726 | AU161: 80.64868565 | AV161: 69.74528855
A162: 2015-04-01 | B162: ='SEPE contratos'!E180 -> 1440381 | C162: ='SEPE contratos'!H180 -> 123459 | D162: ='SEPE contratos'!M180 -> 1316922 | E162: =Iass!B168 -> 89.795 | F162: =Iass!N168 -> 96.703 | G162: =Iass!Y168 -> 92.85647808 | H162: =Iass!Z168 -> 3.5 | I162: ='Comision Europea'!R63 -> 22.375 | J162: ='Comision Europea'!S63 -> 18.15833333 | K162: ='Comision Europea'!T63 -> 20.15833333 | L162: ='Comision Europea'!U63 -> 28.85833333 | M162: ='Comision Europea'!V63 -> 19.575 | N162: ='Comision Europea'!W63 -> 22 | O162: ='Comision Europea'!X63 -> 0.25 | P162: =ETT!C165 -> 236995 | Q162: =DNIs!B161 -> 43407.06471 | R162: =sabi!B161*1000 -> 274730232.7 | S162: 222199034 | T162: 169105 | U162: 16980816 | V162: 98.41393296 | W162: 17733505.35 | X162: 4333016 | Y162: 16980816 | Z162: 17733505.35 | AA162: 14639715.32 | AB162: 11050102.97 | AC162: 3589520.613 | AL162: 3.410072546 | AM162: 3.438951105 | AN162: 4333016 | AO162: -7.499197853 | AP162: 20.32959629 | AQ162: 24.5190602 | AR162: 91.42872615 | AS162: 1.209271916 | AT162: 17.99613037 | AU162: 80.87898876 | AV162: 71.35382603
A163: 2015-05-01 | B163: ='SEPE contratos'!E181 -> 1573293 | C163: ='SEPE contratos'!H181 -> 124605 | D163: ='SEPE contratos'!M181 -> 1448688 | E163: =Iass!B169 -> 99.077 | F163: =Iass!N169 -> 103.064 | G163: =Iass!Y169 -> 96.13152992 | H163: =Iass!Z169 -> 0 | I163: ='Comision Europea'!R64 -> 26.33333333 | J163: ='Comision Europea'!S64 -> 22.625 | K163: ='Comision Europea'!T64 -> 24.38333333 | L163: ='Comision Europea'!U64 -> 32.03333333 | M163: ='Comision Europea'!V64 -> 22.80833333 | N163: ='Comision Europea'!W64 -> 22.78333333 | O163: ='Comision Europea'!X64 -> 1.108333333 | P163: =ETT!C166 -> 271494 | Q163: =DNIs!B162 -> 47475.4734 | R163: =sabi!B162*1000 -> 303128762.9 | S163: 243556211.6 | T163: 183107 | U163: 17248258 | V163: 98.74373546 | W163: 17885832.21 | X163: 4215031 | Y163: 17248258 | Z163: 17885832.21 | AA163: 14777779.13 | AB163: 11065181.01 | AC163: 3712483.444 | AL163: 3.63443931 | AM163: 3.5915981 | AN163: 4215031 | AO163: -7.815483604 | AP163: 19.63832756 | AQ163: 25.12206612 | AR163: 92.07998764 | AS163: 1.278806333 | AT163: 18.74068122 | AU163: 80.34744355 | AV163: 67.44421608
A164: 2015-06-01 | B164: ='SEPE contratos'!E182 -> 1726117 | C164: ='SEPE contratos'!H182 -> 126856 | D164: ='SEPE contratos'!M182 -> 1599261 | E164: =Iass!B170 -> 107.239 | F164: =Iass!N170 -> 104.929 | G164: =Iass!Y170 -> 102.2014886 | H164: =Iass!Z170 -> 5.7 | I164: ='Comision Europea'!R65 -> 28.83333333 | J164: ='Comision Europea'!S65 -> 26.925 | K164: ='Comision Europea'!T65 -> 27.56666667 | L164: ='Comision Europea'!U65 -> 32.05833333 | M164: ='Comision Europea'!V65 -> 24.95833333 | N164: ='Comision Europea'!W65 -> 20.79166667 | O164: ='Comision Europea'!X65 -> -0.025 | P164: =ETT!C167 -> 286927 | Q164: =DNIs!B163 -> 48882.07762 | R164: =sabi!B163*1000 -> 328100622.8 | S164: 270713085.8 | T164: 200905 | U164: 17075016 | V164: 99.09809421 | W164: 17980162.44 | X164: 4120304 | Y164: 17075016 | Z164: 17980162.44 | AA164: 14869405.55 | AB164: 11058716.02 | AC164: 3810595.943 | AL164: 3.136238706 | AM164: 3.710906594 | AN164: 4120304 | AO164: -7.402677169 | AP164: 19.43968763 | AQ164: 25.62709 | AR164: 92.65078787 | AS164: 1.282793515 | AT164: 17.9412241 | AU164: 82.50916549 | AV164: 70.01955201
A165: 2015-07-01 | B165: ='SEPE contratos'!E183 -> 1795713 | C165: ='SEPE contratos'!H183 -> 123839 | D165: ='SEPE contratos'!M183 -> 1671874 | E165: =Iass!B171 -> 121.408 | F165: =Iass!N171 -> 104.613 | G165: =Iass!Y171 -> 116.0544101 | H165: =Iass!Z171 -> 4.8 | I165: ='Comision Europea'!R66 -> 31.60833333 | J165: ='Comision Europea'!S66 -> 32.075 | K165: ='Comision Europea'!T66 -> 30.3 | L165: ='Comision Europea'!U66 -> 32.5 | M165: ='Comision Europea'!V66 -> 29.28333333 | N165: ='Comision Europea'!W66 -> 25.93333333 | O165: ='Comision Europea'!X66 -> -1.775 | P165: =ETT!C168 -> 265407 | Q165: =DNIs!B164 -> 50968.8528 | R165: =sabi!B164*1000 -> 371451061.7 | S165: 301814967.8 | T165: 193688 | U165: 17127908 | V165: 99.4544269 | W165: 18016496.03 | X165: 4046276 | Y165: 17127908 | Z165: 18016496.03 | AA165: 14914594.57 | AB165: 11030707.99 | AC165: 3883858.109 | AL165: 3.148490903 | AM165: 3.78111956 | AN165: 4046276 | AO165: -8.45239442 | AP165: 19.10947784 | AQ165: 26.04065494 | AR165: 93.1036307 | AS165: 1.312325305 | AT165: 15.87482071 | AU165: 81.25295602 | AV165: 72.97772855
A166: 2015-08-01 | B166: ='SEPE contratos'!E184 -> 1248146 | C166: ='SEPE contratos'!H184 -> 80290 | D166: ='SEPE contratos'!M184 -> 1167856 | E166: =Iass!B172 -> 95.63 | F166: =Iass!N172 -> 94.74 | G166: =Iass!Y172 -> 100.9394131 | H166: =Iass!Z172 -> 5.6 | I166: ='Comision Europea'!R67 -> 35.85833333 | J166: ='Comision Europea'!S67 -> 36.55 | K166: ='Comision Europea'!T67 -> 36.5 | L166: ='Comision Europea'!U67 -> 34.55833333 | M166: ='Comision Europea'!V67 -> 37.625 | N166: ='Comision Europea'!W67 -> 26.68333333 | O166: ='Comision Europea'!X67 -> -0.7666666667 | P166: =ETT!C169 -> 229251 | Q166: =DNIs!B165 -> 41665.53651 | R166: =sabi!B165*1000 -> 292582573.1 | S166: 242881829.1 | T166: 174696 | U166: 16983303 | V166: 99.79679719 | W166: 18049732.41 | X166: 4067955 | Y166: 16983303 | Z166: 18049732.41 | AA166: 14951620.9 | AB166: 11030074.99 | AC166: 3921555.069 | AL166: 2.240589976 | AM166: 3.872682951 | AN166: 4067955 | AO166: -8.129645229 | AP166: 19.32404705 | AQ166: 26.22829388 | AR166: 93.56725896 | AS166: 1.062474854 | AT166: 19.63007426 | AU166: 83.01308807 | AV166: 76.20293914
A167: 2015-09-01 | B167: ='SEPE contratos'!E185 -> 1795742 | C167: ='SEPE contratos'!H185 -> 152928 | D167: ='SEPE contratos'!M185 -> 1642814 | E167: =Iass!B173 -> 109.757 | F167: =Iass!N173 -> 102.219 | G167: =Iass!Y173 -> 107.3743629 | H167: =Iass!Z173 -> 3.4 | I167: ='Comision Europea'!R68 -> 34.45833333 | J167: ='Comision Europea'!S68 -> 34.15 | K167: ='Comision Europea'!T68 -> 31.49166667 | L167: ='Comision Europea'!U68 -> 37.76666667 | M167: ='Comision Europea'!V68 -> 36.94166667 | N167: ='Comision Europea'!W68 -> 26.25833333 | O167: ='Comision Europea'!X68 -> 2.225 | P167: =ETT!C170 -> 260489 | Q167: =DNIs!B166 -> 49358.08259 | R167: =sabi!B166*1000 -> 335804511.9 | S167: 268733230.1 | T167: 185882 | U167: 17072551 | V167: 100.1251738 | W167: 18079871.56 | X167: 4094042 | Y167: 17072551 | Z167: 18079871.56 | AA167: 14980484.53 | AB167: 11056817.01 | AC167: 3923686.822 | AL167: 3.058683241 | AM167: 3.985200633 | AN167: 4094042 | AO167: -7.950445741 | AP167: 19.34199802 | AQ167: 26.19198875 | AR167: 91.48385458 | AS167: 1.257951637 | AT167: 15.85626857 | AU167: 80.02668831 | AV167: 71.35886736
A168: 2015-10-01 | B168: ='SEPE contratos'!E186 -> 1760610 | C168: ='SEPE contratos'!H186 -> 151652 | D168: ='SEPE contratos'!M186 -> 1608958 | E168: =Iass!B174 -> 106.443 | F168: =Iass!N174 -> 107.047 | G168: =Iass!Y174 -> 99.43576186 | H168: =Iass!Z174 -> 4.9 | I168: ='Comision Europea'!R69 -> 34.70833333 | J168: ='Comision Europea'!S69 -> 34.58333333 | K168: ='Comision Europea'!T69 -> 31.19166667 | L168: ='Comision Europea'!U69 -> 38.375 | M168: ='Comision Europea'!V69 -> 34.25 | N168: ='Comision Europea'!W69 -> 28.15833333 | O168: ='Comision Europea'!X69 -> 1.941666667 | P168: =ETT!C171 -> 298803 | Q168: =DNIs!B167 -> 52592.62234 | R168: =sabi!B167*1000 -> 325665239.2 | S168: 261992577.1 | T168: 199180 | U168: 17209036 | V168: 100.4516008 | W168: 18106913.5 | X168: 4176369 | Y168: 17209036 | Z168: 18106913.5 | AA168: 15001185.45 | AB168: 11110934.05 | AC168: 3890253.367 | AL168: 3.82467862 | AM168: 4.127720408 | AN168: 4176369 | AO168: -7.741333621 | AP168: 19.52906199 | AQ168: 25.93297296 | AR168: 91.38639449 | AS168: 1.351907379 | AT168: 18.57121193 | AU168: 80.44843157 | AV168: 66.65930396
A169: 2015-11-01 | B169: ='SEPE contratos'!E187 -> 1604843 | C169: ='SEPE contratos'!H187 -> 132867 | D169: ='SEPE contratos'!M187 -> 1471976 | E169: =Iass!B175 -> 104.852 | F169: =Iass!N175 -> 107.937 | G169: =Iass!Y175 -> 97.14185127 | H169: =Iass!Z175 -> 8.9 | I169: ='Comision Europea'!R70 -> 38.78333333 | J169: ='Comision Europea'!S70 -> 39.55833333 | K169: ='Comision Europea'!T70 -> 35.20833333 | L169: ='Comision Europea'!U70 -> 41.61666667 | M169: ='Comision Europea'!V70 -> 39.3 | N169: ='Comision Europea'!W70 -> 30.16666667 | O169: ='Comision Europea'!X70 -> 2.566666667 | P169: =ETT!C172 -> 296266 | Q169: =DNIs!B168 -> 50579.6375 | R169: =sabi!B168*1000 -> 320797531.7 | S169: 260565964.7 | T169: 192380 | U169: 17208793 | V169: 100.7345941 | W169: 18104138.86 | X169: 4149298 | Y169: 17208793 | Z169: 18104138.86 | AA169: 14997071.6 | AB169: 11148212.77 | AC169: 3848854.978 | AL169: 2.85456683 | AM169: 4.131475979 | AN169: 4149298 | AO169: -8.040972351 | AP169: 19.4272887 | AQ169: 25.6640435 | AR169: 91.72087238 | AS169: 1.314147656 | AT169: 20.12709446 | AU169: 81.22442943 | AV169: 64.93488959
A170: 2015-12-01 | B170: ='SEPE contratos'!E188 -> 1594915 | C170: ='SEPE contratos'!H188 -> 107858 | D170: ='SEPE contratos'!M188 -> 1487057 | E170: =Iass!B176 -> 105.078 | F170: =Iass!N176 -> 105.538 | G170: =Iass!Y176 -> 99.56413804 | H170: =Iass!Z176 -> 6.2 | I170: ='Comision Europea'!R71 -> 41.76666667 | J170: ='Comision Europea'!S71 -> 46.925 | K170: ='Comision Europea'!T71 -> 35.23333333 | L170: ='Comision Europea'!U71 -> 43.18333333 | M170: ='Comision Europea'!V71 -> 39.90833333 | N170: ='Comision Europea'!W71 -> 31.85 | O170: ='Comision Europea'!X71 -> 2.916666667 | P170: =ETT!C173 -> 275116 | Q170: =DNIs!B169 -> 49064.45061 | R170: =sabi!B169*1000 -> 321488984.8 | S170: 250421099.1 | T170: 182052 | U170: 17180590 | V170: 101.0142516 | W170: 18071547.64 | X170: 4093508 | Y170: 17180590 | Z170: 18071547.64 | AA170: 14968142.95 | AB170: 11168653.17 | AC170: 3799491.654 | AL170: 3.175052144 | AM170: 4.003515442 | AN170: 4093508 | AO170: -7.963714369 | AP170: 19.24174647 | AQ170: 25.38385468 | AR170: 93.23738256 | AS170: 1.291342502 | AT170: 18.50070307 | AU170: 77.89414598 | AV170: 66.17281438
A171: 2016-01-01 | B171: ='SEPE contratos'!E189 -> 1396929 | C171: ='SEPE contratos'!H189 -> 125612 | D171: ='SEPE contratos'!M189 -> 1271317 | E171: =Iass!B177 -> 90.872 | F171: =Iass!N177 -> 100.075 | G171: =Iass!Y177 -> 90.80389708 | H171: =Iass!Z177 -> -1.4 | I171: ='Comision Europea'!R72 -> 45.40833333 | J171: ='Comision Europea'!S72 -> 50.7 | K171: ='Comision Europea'!T72 -> 39.61666667 | L171: ='Comision Europea'!U72 -> 45.975 | M171: ='Comision Europea'!V72 -> 39.45 | N171: ='Comision Europea'!W72 -> 33.25 | O171: ='Comision Europea'!X72 -> 1.875 | P171: =ETT!C174 -> 264702 | Q171: =DNIs!B170 -> 50330.70687 | R171: =sabi!B170*1000 -> 288384902 | S171: 227000351.3 | T171: 175552 | U171: 17112224 | V171: 101.0076441 | W171: 18009139.83 | X171: 4150755 | Y171: 17112224 | Z171: 18009139.83 | AA171: 14914399.52 | AB171: 11172255.25 | AC171: 3742163.396 | AL171: 3.149732789 | AM171: 3.743836388 | AN171: 4150755 | AO171: -8.284613333 | AP171: 19.52104171 | AQ171: 25.09094241 | AR171: 91.00798967 | AS171: 1.344962834 | AT171: 20.82108554 | AU171: 78.7143674 | AV171: 66.32061715
A172: 2016-02-01 | B172: ='SEPE contratos'!E190 -> 1377480 | C172: ='SEPE contratos'!H190 -> 139364 | D172: ='SEPE contratos'!M190 -> 1238116 | E172: =Iass!B178 -> 95.472 | F172: =Iass!N178 -> 97.505 | G172: =Iass!Y178 -> 97.91497872 | H172: =Iass!Z178 -> 3.2 | I172: ='Comision Europea'!R73 -> 46.55833333 | J172: ='Comision Europea'!S73 -> 51.18333333 | K172: ='Comision Europea'!T73 -> 40.84166667 | L172: ='Comision Europea'!U73 -> 47.70833333 | M172: ='Comision Europea'!V73 -> 39.40833333 | N172: ='Comision Europea'!W73 -> 32.60833333 | O172: ='Comision Europea'!X73 -> 1.075 | P172: =ETT!C175 -> 243391 | Q172: =DNIs!B171 -> 42846.49758 | R172: =sabi!B171*1000 -> 302983134.1 | S172: 241066786.2 | T172: 165959 | U172: 17136666 | V172: 101.2440255 | W172: 18008883.01 | X172: 4152986 | Y172: 17136666 | Z172: 18008883.01 | AA172: 14916489.02 | AB172: 11190139.33 | AC172: 3726358.784 | AL172: 2.581762167 | AM172: 3.552816032 | AN172: 4152986 | AO172: -7.959991605 | AP172: 19.50706381 | AQ172: 24.98147371 | AR172: 89.88268432 | AS172: 1.14982212 | AT172: 19.65817419 | AU172: 79.56442423 | AV172: 68.18616958
A173: 2016-03-01 | B173: ='SEPE contratos'!E191 -> 1508881 | C173: ='SEPE contratos'!H191 -> 150726 | D173: ='SEPE contratos'!M191 -> 1358155 | E173: =Iass!B179 -> 103.392 | F173: =Iass!N179 -> 101.212 | G173: =Iass!Y179 -> 102.1538948 | H173: =Iass!Z179 -> 3.4 | I173: ='Comision Europea'!R74 -> 46.15 | J173: ='Comision Europea'!S74 -> 51.16666667 | K173: ='Comision Europea'!T74 -> 39.80833333 | L173: ='Comision Europea'!U74 -> 47.53333333 | M173: ='Comision Europea'!V74 -> 38.4 | N173: ='Comision Europea'!W74 -> 32.01666667 | O173: ='Comision Europea'!X74 -> -0.9333333333 | P173: =ETT!C176 -> 266262 | Q173: =DNIs!B172 -> 45640.06345 | R173: =sabi!B172*1000 -> 328117481.6 | S173: 250361676.6 | T173: 183929 | U173: 17263972 | V173: 101.494142 | W173: 18070777.17 | X173: 4094770 | Y173: 17263972 | Z173: 18070777.17 | AA173: 14974411.45 | AB173: 11222305.41 | AC173: 3752077.82 | AL173: 2.600301407 | AM173: 3.430287457 | AN173: 4094770 | AO173: -8.022773897 | AP173: 19.17140064 | AQ173: 25.05659626 | AR173: 90.01074306 | AS173: 1.216394372 | AT173: 19.6046843 | AU173: 76.30244978 | AV173: 69.07820117
A174: 2016-04-01 | B174: ='SEPE contratos'!E192 -> 1541729 | C174: ='SEPE contratos'!H192 -> 145896 | D174: ='SEPE contratos'!M192 -> 1395833 | E174: =Iass!B180 -> 103.226 | F174: =Iass!N180 -> 104.853 | G174: =Iass!Y180 -> 98.44830382 | H174: =Iass!Z180 -> 6.6 | I174: ='Comision Europea'!R75 -> 44.90833333 | J174: ='Comision Europea'!S75 -> 47.81666667 | K174: ='Comision Europea'!T75 -> 38.96666667 | L174: ='Comision Europea'!U75 -> 48 | M174: ='Comision Europea'!V75 -> 36.35 | N174: ='Comision Europea'!W75 -> 33.49166667 | O174: ='Comision Europea'!X75 -> 1.825 | P174: =ETT!C177 -> 273915 | Q174: =DNIs!B173 -> 48194.92166 | R174: =sabi!B173*1000 -> 327590675.8 | S174: 263007210.8 | T174: 189564 | U174: 17536670 | V174: 101.7386461 | W174: 18194822.31 | X174: 4011171 | Y174: 17536670 | Z174: 18194822.31 | AA174: 15088166.81 | AB174: 11268753.49 | AC174: 3819320.503 | AL174: 3.273423374 | AM174: 3.378295168 | AN174: 4011171 | AO174: -7.427736247 | AP174: 18.61518748 | AQ174: 25.31335019 | AR174: 90.53685829 | AS174: 1.261871624 | AT174: 19.62376588 | AU174: 80.28531645 | AV174: 69.20541044
A175: 2016-05-01 | B175: ='SEPE contratos'!E193 -> 1748449 | C175: ='SEPE contratos'!H193 -> 145760 | D175: ='SEPE contratos'!M193 -> 1602689 | E175: =Iass!B181 -> 110.941 | F175: =Iass!N181 -> 111.403 | G175: =Iass!Y181 -> 99.58528944 | H175: =Iass!Z181 -> 3.9 | I175: ='Comision Europea'!R76 -> 43.11666667 | J175: ='Comision Europea'!S76 -> 46.81666667 | K175: ='Comision Europea'!T76 -> 36.24166667 | L175: ='Comision Europea'!U76 -> 46.35 | M175: ='Comision Europea'!V76 -> 37.90833333 | N175: ='Comision Europea'!W76 -> 33.73333333 | O175: ='Comision Europea'!X76 -> 1.466666667 | P175: =ETT!C178 -> 311082 | Q175: =DNIs!B174 -> 51042.63527 | R175: =sabi!B174*1000 -> 352074449.9 | S175: 270004703.6 | T175: 211534 | U175: 17598892 | V175: 102.0175993 | W175: 18305466.86 | X175: 3891403 | Y175: 17598892 | Z175: 18305466.86 | AA175: 15191330.54 | AB175: 11289775.39 | AC175: 3901440.796 | AL175: 2.03286616 | AM175: 3.315515512 | AN175: 3891403 | AO175: -7.677950649 | AP175: 18.10772258 | AQ175: 25.68202163 | AR175: 91.66346859 | AS175: 1.308302187 | AT175: 19.41000406 | AU175: 76.68966143 | AV175: 67.99943423
A176: 2016-06-01 | B176: ='SEPE contratos'!E194 -> 1920340 | C176: ='SEPE contratos'!H194 -> 148395 | D176: ='SEPE contratos'!M194 -> 1771945 | E176: =Iass!B182 -> 116.785 | F176: =Iass!N182 -> 114.262 | G176: =Iass!Y182 -> 102.2080832 | H176: =Iass!Z182 -> 0 | I176: ='Comision Europea'!R77 -> 39.99166667 | J176: ='Comision Europea'!S77 -> 42.43333333 | K176: ='Comision Europea'!T77 -> 31.025 | L176: ='Comision Europea'!U77 -> 46.55 | M176: ='Comision Europea'!V77 -> 35.9 | N176: ='Comision Europea'!W77 -> 34.475 | O176: ='Comision Europea'!X77 -> 3.608333333 | P176: =ETT!C179 -> 318281 | Q176: =DNIs!B175 -> 54251.46093 | R176: =sabi!B175*1000 -> 370620551.8 | S176: 290023474.2 | T176: 217649 | U176: 17569070 | V176: 102.3247779 | W176: 18402710.82 | X176: 3767054 | Y176: 17569070 | Z176: 18402710.82 | AA176: 15283902.64 | AB176: 11285371.12 | AC176: 3998438.701 | AL176: 2.893432135 | AM176: 3.256050186 | AN176: 3767054 | AO176: -8.573396526 | AP176: 17.65575603 | AQ176: 26.16111077 | AR176: 92.27246217 | AS176: 1.356816122 | AT176: 17.96223923 | AU176: 78.25347862 | AV176: 68.38265558
A177: 2016-07-01 | B177: ='SEPE contratos'!E195 -> 1816271 | C177: ='SEPE contratos'!H195 -> 137390 | D177: ='SEPE contratos'!M195 -> 1678881 | E177: =Iass!B183 -> 125.652 | F177: =Iass!N183 -> 114.806 | G177: =Iass!Y183 -> 109.4472414 | H177: =Iass!Z183 -> -6.2 | I177: ='Comision Europea'!R78 -> 41.24166667 | J177: ='Comision Europea'!S78 -> 40.075 | K177: ='Comision Europea'!T78 -> 31.825 | L177: ='Comision Europea'!U78 -> 51.86666667 | M177: ='Comision Europea'!V78 -> 37.96666667 | N177: ='Comision Europea'!W78 -> 37.3 | O177: ='Comision Europea'!X78 -> 6.358333333 | P177: =ETT!C180 -> 285853 | Q177: =DNIs!B176 -> 54396.74465 | R177: =sabi!B176*1000 -> 398760230.9 | S177: 306913963.3 | T177: 205096 | U177: 17805681 | V177: 102.6549184 | W177: 18486554.19 | X177: 3683061 | Y177: 17805681 | Z177: 18486554.19 | AA177: 15365883.12 | AB177: 11255540.68 | AC177: 4110314.217 | AL177: 3.95712658 | AM177: 3.218048262 | AN177: 3683061 | AO177: -8.976525576 | AP177: 17.13949099 | AQ177: 26.74961267 | AR177: 92.43560019 | AS177: 1.32342059 | AT177: 17.02640032 | AU177: 76.96704423 | AV177: 71.74876597
A178: 2016-08-01 | B178: ='SEPE contratos'!E196 -> 1451789 | C178: ='SEPE contratos'!H196 -> 105129 | D178: ='SEPE contratos'!M196 -> 1346660 | E178: =Iass!B184 -> 109.368 | F178: =Iass!N184 -> 106.118 | G178: =Iass!Y184 -> 103.0626284 | H178: =Iass!Z184 -> 2.4 | I178: ='Comision Europea'!R79 -> 39.48333333 | J178: ='Comision Europea'!S79 -> 38.1 | K178: ='Comision Europea'!T79 -> 28.75833333 | L178: ='Comision Europea'!U79 -> 51.65 | M178: ='Comision Europea'!V79 -> 31.81666667 | N178: ='Comision Europea'!W79 -> 38.13333333 | O178: ='Comision Europea'!X79 -> 5.716666667 | P178: =ETT!C181 -> 258953 | Q178: =DNIs!B177 -> 48717.33297 | R178: =sabi!B177*1000 -> 347082489.2 | S178: 282512008.1 | T178: 198154 | U178: 17452445 | V178: 102.911006 | W178: 18538224.39 | X178: 3697496 | Y178: 17452445 | Z178: 18538224.39 | AA178: 15415415.9 | AB178: 11245652.56 | AC178: 4169772.433 | AL178: 2.76237196 | AM178: 3.120549879 | AN178: 3697496 | AO178: -9.106762489 | AP178: 17.48229936 | AQ178: 27.04936708 | AR178: 92.75865846 | AS178: 1.168345126 | AT178: 19.22927836 | AU178: 81.39621469 | AV178: 76.521222
A179: 2016-09-01 | B179: ='SEPE contratos'!E197 -> 1907000 | C179: ='SEPE contratos'!H197 -> 171012 | D179: ='SEPE contratos'!M197 -> 1735988 | E179: =Iass!B185 -> 119.089 | F179: =Iass!N185 -> 114.053 | G179: =Iass!Y185 -> 104.415491 | H179: =Iass!Z185 -> -3.1 | I179: ='Comision Europea'!R80 -> 38.95833333 | J179: ='Comision Europea'!S80 -> 36.06666667 | K179: ='Comision Europea'!T80 -> 28.7 | L179: ='Comision Europea'!U80 -> 52.16666667 | M179: ='Comision Europea'!V80 -> 33.60833333 | N179: ='Comision Europea'!W80 -> 41.39166667 | O179: ='Comision Europea'!X80 -> 4.525 | P179: =ETT!C182 -> 296811 | Q179: =DNIs!B178 -> 53931.91299 | R179: =sabi!B178*1000 -> 377932361.9 | S179: 299676331.1 | T179: 207943 | U179: 17603313 | V179: 103.0996975 | W179: 18557721.42 | X179: 3720297 | Y179: 17603313 | Z179: 18557721.42 | AA179: 15432500.99 | AB179: 11255706.76 | AC179: 4176813.35 | AL179: 3.108861704 | AM179: 2.970805053 | AN179: 3720297 | AO179: -9.1289977 | AP179: 17.44684413 | AQ179: 27.06504509 | AR179: 91.03240692 | AS179: 1.291221524 | AT179: 17.09752602 | AU179: 79.29364122 | AV179: 70.05906115
A180: 2016-10-01 | B180: ='SEPE contratos'!E198 -> 1867360 | C180: ='SEPE contratos'!H198 -> 166830 | D180: ='SEPE contratos'!M198 -> 1700530 | E180: =Iass!B186 -> 113.93 | F180: =Iass!N186 -> 115.544 | G180: =Iass!Y186 -> 98.60312954 | H180: =Iass!Z186 -> -0.9 | I180: ='Comision Europea'!R81 -> 38.875 | J180: ='Comision Europea'!S81 -> 35.38333333 | K180: ='Comision Europea'!T81 -> 28.01666667 | L180: ='Comision Europea'!U81 -> 53.3 | M180: ='Comision Europea'!V81 -> 36.31666667 | N180: ='Comision Europea'!W81 -> 41.60833333 | O180: ='Comision Europea'!X81 -> 5.35 | P180: =ETT!C183 -> 332326 | Q180: =DNIs!B179 -> 56386.86481 | R180: =sabi!B179*1000 -> 361560127.3 | S180: 281198921.8 | T180: 225634 | U180: 17666175 | V180: 103.2345206 | W180: 18545045.29 | X180: 3764982 | Y180: 17666175 | Z180: 18545045.29 | AA180: 15417138.38 | AB180: 11285703.29 | AC180: 4131436.968 | AL180: 2.656389353 | AM180: 2.770408616 | AN180: 3764982 | AO180: -9.850350867 | AP180: 17.56779627 | AQ180: 26.79769011 | AR180: 91.06599692 | AS180: 1.364824521 | AT180: 19.54249557 | AU180: 77.77376447 | AV180: 67.89537984
A181: 2016-11-01 | B181: ='SEPE contratos'!E199 -> 1743708 | C181: ='SEPE contratos'!H199 -> 154854 | D181: ='SEPE contratos'!M199 -> 1588854 | E181: =Iass!B187 -> 119.699 | F181: =Iass!N187 -> 120.356 | G181: =Iass!Y187 -> 99.45411945 | H181: =Iass!Z187 -> 2.7 | I181: ='Comision Europea'!R82 -> 36.40833333 | J181: ='Comision Europea'!S82 -> 32.13333333 | K181: ='Comision Europea'!T82 -> 24.65833333 | L181: ='Comision Europea'!U82 -> 52.5 | M181: ='Comision Europea'!V82 -> 32.95833333 | N181: ='Comision Europea'!W82 -> 44.36666667 | O181: ='Comision Europea'!X82 -> 7.275 | P181: =ETT!C184 -> 323282 | Q181: =DNIs!B180 -> 59538.49215 | R181: =sabi!B180*1000 -> 379868214.5 | S181: 302079308.2 | T181: 220328 | U181: 17734106 | V181: 103.4305393 | W181: 18514167.29 | X181: 3789823 | Y181: 17734106 | Z181: 18514167.29 | AA181: 15389493.95 | AB181: 11313299.96 | AC181: 4076190.146 | AL181: 3.052584804 | AM181: 2.676285347 | AN181: 3789823 | AO181: -8.663513684 | AP181: 17.607487 | AQ181: 26.4868368 | AR181: 91.11926997 | AS181: 1.460640697 | AT181: 20.34686636 | AU181: 79.5221334 | AV181: 68.15350066
A182: 2016-12-01 | B182: ='SEPE contratos'!E200 -> 1699018 | C182: ='SEPE contratos'!H200 -> 122294 | D182: ='SEPE contratos'!M200 -> 1576724 | E182: =Iass!B188 -> 117.117 | F182: =Iass!N188 -> 115.708 | G182: =Iass!Y188 -> 101.2177205 | H182: =Iass!Z188 -> 1.9 | I182: ='Comision Europea'!R83 -> 37.10833333 | J182: ='Comision Europea'!S83 -> 31.71666667 | K182: ='Comision Europea'!T83 -> 25.41666667 | L182: ='Comision Europea'!U83 -> 54.25 | M182: ='Comision Europea'!V83 -> 31.24166667 | N182: ='Comision Europea'!W83 -> 44.84166667 | O182: ='Comision Europea'!X83 -> 9.9 | P182: =ETT!C185 -> 306679 | Q182: =DNIs!B181 -> 54645.36668 | R182: =sabi!B181*1000 -> 371674163.3 | S182: 276641661.9 | T182: 208182 | U182: 17741897 | V182: 103.7186701 | W182: 18465087.42 | X182: 3702974 | Y182: 17741897 | Z182: 18465087.42 | AA182: 15349567.67 | AB182: 11338496.75 | AC182: 4011072.886 | AL182: 3.267099675 | AM182: 2.677264248 | AN182: 3702974 | AO182: -9.540325804 | AP182: 17.26741093 | AQ182: 26.13150398 | AR182: 92.80207744 | AS182: 1.362362845 | AT182: 19.45039208 | AU182: 74.43123284 | AV182: 67.88270472
A183: 2017-01-01 | B183: ='SEPE contratos'!E201 -> 1633592 | C183: ='SEPE contratos'!H201 -> 150162 | D183: ='SEPE contratos'!M201 -> 1483430 | E183: =Iass!B189 -> 109.866 | F183: =Iass!N189 -> 111.443 | G183: =Iass!Y189 -> 98.58492682 | H183: =Iass!Z189 -> 9.5 | I183: ='Comision Europea'!R84 -> 35.76666667 | J183: ='Comision Europea'!S84 -> 30.53333333 | K183: ='Comision Europea'!T84 -> 23.75833333 | L183: ='Comision Europea'!U84 -> 53.06666667 | M183: ='Comision Europea'!V84 -> 33.09166667 | N183: ='Comision Europea'!W84 -> 41.70833333 | O183: ='Comision Europea'!X84 -> 12.06666667 | P183: =ETT!C186 -> 316513 | Q183: =DNIs!B182 -> 58051.08056 | R183: =sabi!B182*1000 -> 350142722.7 | S183: 264975684.5 | T183: 212821 | U183: 17603835 | V183: 103.7953692 | W183: 18397805.68 | X183: 3760231 | Y183: 17603835 | Z183: 18397805.68 | AA183: 15297359.56 | AB183: 11361293.68 | AC183: 3936085.187 | AL183: 2.872864451 | AM183: 2.759914975 | AN183: 3760231 | AO183: -9.4085052 | AP183: 17.60072731 | AQ183: 25.73048749 | AR183: 90.8078639 | AS183: 1.474843094 | AT183: 21.33656458 | AU183: 75.67647914 | AV183: 67.23926031
A184: 2017-02-01 | B184: ='SEPE contratos'!E202 -> 1452528 | C184: ='SEPE contratos'!H202 -> 151072 | D184: ='SEPE contratos'!M202 -> 1301456 | E184: =Iass!B190 -> 109.441 | F184: =Iass!N190 -> 107.75 | G184: =Iass!Y190 -> 101.5693735 | H184: =Iass!Z190 -> 4.1 | I184: ='Comision Europea'!R85 -> 35.18333333 | J184: ='Comision Europea'!S85 -> 29.71666667 | K184: ='Comision Europea'!T85 -> 25 | L184: ='Comision Europea'!U85 -> 50.9 | M184: ='Comision Europea'!V85 -> 30.9 | N184: ='Comision Europea'!W85 -> 40.125 | O184: ='Comision Europea'!X85 -> 12.35833333 | P184: =ETT!C187 -> 266143 | Q184: =DNIs!B183 -> 47839.47493 | R184: =sabi!B183*1000 -> 348788248.6 | S184: 264704995.4 | T184: 177524 | U184: 17728908 | V184: 104.1295899 | W184: 18411355.99 | X184: 3750876 | Y184: 17728908 | Z184: 18411355.99 | AA184: 15316887.86 | AB184: 11388897.65 | AC184: 3927999.372 | AL184: 3.455993132 | AM184: 2.850108248 | AN184: 3750876 | AO184: -9.682430906 | AP184: 17.46235437 | AQ184: 25.64489215 | AR184: 89.59937433 | AS184: 1.217909434 | AT184: 20.44963487 | AU184: 75.89275054 | AV184: 66.70248701
A185: 2017-03-01 | B185: ='SEPE contratos'!E203 -> 1732773 | C185: ='SEPE contratos'!H203 -> 178428 | D185: ='SEPE contratos'!M203 -> 1554345 | E185: =Iass!B191 -> 126.072 | F185: =Iass!N191 -> 112.384 | G185: =Iass!Y191 -> 112.1796697 | H185: =Iass!Z191 -> 10.9 | I185: ='Comision Europea'!R86 -> 33.45 | J185: ='Comision Europea'!S86 -> 26.78333333 | K185: ='Comision Europea'!T86 -> 21.10833333 | L185: ='Comision Europea'!U86 -> 52.51666667 | M185: ='Comision Europea'!V86 -> 26.675 | N185: ='Comision Europea'!W86 -> 39.68333333 | O185: ='Comision Europea'!X86 -> 13.46666667 | P185: =ETT!C188 -> 296002 | Q185: =DNIs!B184 -> 53293.37002 | R185: =sabi!B184*1000 -> 401791212.4 | S185: 305008132.4 | T185: 201316 | U185: 17852834 | V185: 104.4809496 | W185: 18505738.33 | X185: 3702317 | Y185: 17852834 | Z185: 18505738.33 | AA185: 15408152.58 | AB185: 11421308.67 | AC185: 3986815.441 | AL185: 3.410929999 | AM185: 2.942837492 | AN185: 3702317 | AO185: -9.584250153 | AP185: 17.17601978 | AQ185: 25.87471418 | AR185: 89.70274814 | AS185: 1.336740333 | AT185: 19.04351994 | AU185: 75.91209637 | AV185: 68.01170262
A186: 2017-04-01 | B186: ='SEPE contratos'!E204 -> 1604476 | C186: ='SEPE contratos'!H204 -> 151448 | D186: ='SEPE contratos'!M204 -> 1453028 | E186: =Iass!B192 -> 113.685 | F186: =Iass!N192 -> 113.543 | G186: =Iass!Y192 -> 100.1250628 | H186: =Iass!Z192 -> 1.8 | I186: ='Comision Europea'!R87 -> 33.26666667 | J186: ='Comision Europea'!S87 -> 26.53333333 | K186: ='Comision Europea'!T87 -> 19.13333333 | L186: ='Comision Europea'!U87 -> 54.175 | M186: ='Comision Europea'!V87 -> 25.55 | N186: ='Comision Europea'!W87 -> 41.80833333 | O186: ='Comision Europea'!X87 -> 12.90833333 | P186: =ETT!C189 -> 300996 | Q186: =DNIs!B185 -> 54158.30323 | R186: =sabi!B185*1000 -> 362313868.1 | S186: 273144021.8 | T186: 208427 | U186: 18184000 | V186: 104.8329169 | W186: 18680952.72 | X186: 3573036 | Y186: 18184000 | Z186: 18680952.72 | AA186: 15571153.73 | AB186: 11458526.73 | AC186: 4112533.394 | AL186: 3.691293729 | AM186: 3.041391727 | AN186: 3573036 | AO186: -10.92287015 | AP186: 16.42243916 | AQ186: 26.41123109 | AR186: 90.56090587 | AS186: 1.316908534 | AT186: 20.71508601 | AU186: 75.38878465 | AV186: 69.24577071
A187: 2017-05-01 | B187: ='SEPE contratos'!E205 -> 2027569 | C187: ='SEPE contratos'!H205 -> 167267 | D187: ='SEPE contratos'!M205 -> 1860302 | E187: =Iass!B193 -> 136.22 | F187: =Iass!N193 -> 124.492 | G187: =Iass!Y193 -> 109.4206857 | H187: =Iass!Z193 -> 11.1 | I187: ='Comision Europea'!R88 -> 33.84166667 | J187: ='Comision Europea'!S88 -> 25.83333333 | K187: ='Comision Europea'!T88 -> 21.575 | L187: ='Comision Europea'!U88 -> 54.16666667 | M187: ='Comision Europea'!V88 -> 21.89166667 | N187: ='Comision Europea'!W88 -> 41.30833333 | O187: ='Comision Europea'!X88 -> 12.90833333 | P187: =ETT!C190 -> 374096 | Q187: =DNIs!B186 -> 63478.77723 | R187: =sabi!B186*1000 -> 434132868.2 | S187: 337304801.4 | T187: 259778 | U187: 18261899 | V187: 105.152895 | W187: 18824016.78 | X187: 3461128 | Y187: 18261899 | Z187: 18824016.78 | AA187: 15701263.72 | AB187: 11487011.2 | AC187: 4214137.837 | AL187: 3.767322397 | AM187: 3.073289036 | AN187: 3461128 | AO187: -11.05706605 | AP187: 15.93299129 | AQ187: 26.83948192 | AR187: 91.75036707 | AS187: 1.506328926 | AT187: 20.10942309 | AU187: 77.69621379 | AV187: 69.44153372
A188: 2017-06-01 | B188: ='SEPE contratos'!E206 -> 2089520 | C188: ='SEPE contratos'!H206 -> 166462 | D188: ='SEPE contratos'!M206 -> 1923058 | E188: =Iass!B194 -> 140.501 | F188: =Iass!N194 -> 128.18 | G188: =Iass!Y194 -> 109.612264 | H188: =Iass!Z194 -> 8.1 | I188: ='Comision Europea'!R89 -> 31.10833333 | J188: ='Comision Europea'!S89 -> 23.13333333 | K188: ='Comision Europea'!T89 -> 20.26666667 | L188: ='Comision Europea'!U89 -> 49.975 | M188: ='Comision Europea'!V89 -> 20.14166667 | N188: ='Comision Europea'!W89 -> 39.3 | O188: ='Comision Europea'!X89 -> 11.9 | P188: =ETT!C191 -> 363611 | Q188: =DNIs!B187 -> 64198.84857 | R188: =sabi!B187*1000 -> 447776406.6 | S188: 344041052.3 | T188: 257775 | U188: 18196843 | V188: 105.4312338 | W188: 18934930.5 | X188: 3362811 | Y188: 18196843 | Z188: 18934930.5 | AA188: 15798482.56 | AB188: 11506762.07 | AC188: 4291628.769 | AL188: 3.573171488 | AM188: 3.035878483 | AN188: 3362811 | AO188: -10.73101155 | AP188: 15.59770393 | AQ188: 27.16481633 | AR188: 92.03348137 | AS188: 1.49590871 | AT188: 18.90795805 | AU188: 76.83322463 | AV188: 70.89306979
A189: 2017-07-01 | B189: ='SEPE contratos'!E207 -> 1928639 | C189: ='SEPE contratos'!H207 -> 151998 | D189: ='SEPE contratos'!M207 -> 1776641 | E189: =Iass!B195 -> 142.09 | F189: =Iass!N195 -> 124.773 | G189: =Iass!Y195 -> 113.8788039 | H189: =Iass!Z195 -> 4.4 | I189: ='Comision Europea'!R90 -> 30.29166667 | J189: ='Comision Europea'!S90 -> 22.275 | K189: ='Comision Europea'!T90 -> 19.975 | L189: ='Comision Europea'!U90 -> 48.66666667 | M189: ='Comision Europea'!V90 -> 14.73333333 | N189: ='Comision Europea'!W90 -> 38.725 | O189: ='Comision Europea'!X90 -> 11.46666667 | P189: =ETT!C192 -> 331594 | Q189: =DNIs!B188 -> 63332.37428 | R189: =sabi!B188*1000 -> 452840546.4 | S189: 367511664.9 | T189: 251060 | U189: 18276939 | V189: 105.6585672 | W189: 19013693.89 | X189: 3335924 | Y189: 18276939 | Z189: 19013693.89 | AA189: 15862810.24 | AB189: 11517779.35 | AC189: 4345006.19 | AL189: 2.646672149 | AM189: 2.925966795 | AN189: 3335924 | AO189: -9.425230807 | AP189: 15.43490097 | AQ189: 27.39115027 | AR189: 92.11889835 | AS189: 1.457589967 | AT189: 18.66409702 | AU189: 81.15696967 | AV189: 75.7130708
A190: 2017-08-01 | B190: ='SEPE contratos'!E208 -> 1536400 | C190: ='SEPE contratos'!H208 -> 115382 | D190: ='SEPE contratos'!M208 -> 1421018 | E190: =Iass!B196 -> 126.674 | F190: =Iass!N196 -> 116.772 | G190: =Iass!Y196 -> 108.4797725 | H190: =Iass!Z196 -> 5.8 | I190: ='Comision Europea'!R91 -> 33.34166667 | J190: ='Comision Europea'!S91 -> 25.08333333 | K190: ='Comision Europea'!T91 -> 23.475 | L190: ='Comision Europea'!U91 -> 51.50833333 | M190: ='Comision Europea'!V91 -> 17.25833333 | N190: ='Comision Europea'!W91 -> 38.64166667 | O190: ='Comision Europea'!X91 -> 13.99166667 | P190: =ETT!C193 -> 285704 | Q190: =DNIs!B189 -> 55471.69178 | R190: =sabi!B189*1000 -> 403709785.2 | S190: 326471103.6 | T190: 218139 | U190: 18040193 | V190: 105.8938965 | W190: 19060014.32 | X190: 3382324 | Y190: 18040193 | Z190: 19060014.32 | AA190: 15911809.48 | AB190: 11545899.16 | AC190: 4365920.903 | AL190: 3.367711515 | AM190: 2.898514542 | AN190: 3382324 | AO190: -8.52393079 | AP190: 15.78863959 | AQ190: 27.43824269 | AR190: 92.49010674 | AS190: 1.27056108 | AT190: 20.10558628 | AU190: 80.86777075 | AV190: 76.35139865
A191: 2017-09-01 | B191: ='SEPE contratos'!E209 -> 1993267 | C191: ='SEPE contratos'!H209 -> 192690 | D191: ='SEPE contratos'!M209 -> 1800577 | E191: =Iass!B197 -> 138.463 | F191: =Iass!N197 -> 125.359 | G191: =Iass!Y197 -> 110.4531785 | H191: =Iass!Z197 -> 6.4 | I191: ='Comision Europea'!R92 -> 35.24166667 | J191: ='Comision Europea'!S92 -> 28.03333333 | K191: ='Comision Europea'!T92 -> 28 | L191: ='Comision Europea'!U92 -> 49.74166667 | M191: ='Comision Europea'!V92 -> 15.46666667 | N191: ='Comision Europea'!W92 -> 37.76666667 | O191: ='Comision Europea'!X92 -> 12.225 | P191: =ETT!C194 -> 325618 | Q191: =DNIs!B190 -> 62234.73744 | R191: =sabi!B190*1000 -> 441281304.7 | S191: 342733767.4 | T191: 241468 | U191: 18400141 | V191: 106.1388506 | W191: 19073891.78 | X191: 3410182 | Y191: 18400141 | Z191: 19073891.78 | AA191: 15945480.27 | AB191: 11591121.49 | AC191: 4354372.907 | AL191: 4.526579741 | AM191: 2.947780855 | AN191: 3410182 | AO191: -8.335759215 | AP191: 15.63563272 | AQ191: 27.30788181 | AR191: 90.3329559 | AS191: 1.429246846 | AT191: 18.08409193 | AU191: 77.66786486 | AV191: 74.15683408
A192: 2017-10-01 | B192: ='SEPE contratos'!E210 -> 2032184 | C192: ='SEPE contratos'!H210 -> 202542 | D192: ='SEPE contratos'!M210 -> 1829642 | E192: =Iass!B198 -> 135.969 | F192: =Iass!N198 -> 129.227 | G192: =Iass!Y198 -> 105.217176 | H192: =Iass!Z198 -> 7.5 | I192: ='Comision Europea'!R93 -> 36.41666667 | J192: ='Comision Europea'!S93 -> 28.68333333 | K192: ='Comision Europea'!T93 -> 31.59166667 | L192: ='Comision Europea'!U93 -> 49 | M192: ='Comision Europea'!V93 -> 17.54166667 | N192: ='Comision Europea'!W93 -> 37.225 | O192: ='Comision Europea'!X93 -> 11.89166667 | P192: =ETT!C195 -> 362397 | Q192: =DNIs!B191 -> 64754.02396 | R192: =sabi!B191*1000 -> 433332931.7 | S192: 348193713.7 | T192: 262469 | U192: 18281362 | V192: 106.4007245 | W192: 19055326.28 | X192: 3467026 | Y192: 18281362 | Z192: 19055326.28 | AA192: 15963822.62 | AB192: 11653446.36 | AC192: 4310362.201 | AL192: 3.482287479 | AM192: 3.067001108 | AN192: 3467026 | AO192: -7.913875817 | AP192: 15.94153093 | AQ192: 27.00081493 | AR192: 90.03328439 | AS192: 1.502287301 | AT192: 19.80698956 | AU192: 80.35246996 | AV192: 72.4258203
A193: 2017-11-01 | B193: ='SEPE contratos'!E211 -> 1818339 | C193: ='SEPE contratos'!H211 -> 170732 | D193: ='SEPE contratos'!M211 -> 1647607 | E193: =Iass!B199 -> 139.298 | F193: =Iass!N199 -> 130.72 | G193: =Iass!Y199 -> 106.5621175 | H193: =Iass!Z199 -> 7.8 | I193: ='Comision Europea'!R94 -> 35.66666667 | J193: ='Comision Europea'!S94 -> 28.825 | K193: ='Comision Europea'!T94 -> 32.8 | L193: ='Comision Europea'!U94 -> 45.38333333 | M193: ='Comision Europea'!V94 -> 18.90833333 | N193: ='Comision Europea'!W94 -> 32.38333333 | O193: ='Comision Europea'!X94 -> 9.741666667 | P193: =ETT!C196 -> 335660 | Q193: =DNIs!B192 -> 63412.12536 | R193: =sabi!B192*1000 -> 443942448 | S193: 360609182.7 | T193: 236691 | U193: 18364819 | V193: 106.6516138 | W193: 19007990.2 | X193: 3474281 | Y193: 18364819 | Z193: 19007990.2 | AA193: 15937491.24 | AB193: 11681742.81 | AC193: 4255737.874 | AL193: 3.556497294 | AM193: 3.11423929 | AN193: 3474281 | AO193: -8.326035279 | AP193: 15.90853561 | AQ193: 26.70268369 | AR193: 90.61055172 | AS193: 1.490038326 | AT193: 20.37257671 | AU193: 81.2288134 | AV193: 70.51510457
A194: 2017-12-01 | B194: ='SEPE contratos'!E212 -> 1652016 | C194: ='SEPE contratos'!H212 -> 131067 | D194: ='SEPE contratos'!M212 -> 1520949 | E194: =Iass!B200 -> 128.479 | F194: =Iass!N200 -> 126.086 | G194: =Iass!Y200 -> 101.8979109 | H194: =Iass!Z200 -> 0.7 | I194: ='Comision Europea'!R95 -> 35.49166667 | J194: ='Comision Europea'!S95 -> 29.075 | K194: ='Comision Europea'!T95 -> 34.35 | L194: ='Comision Europea'!U95 -> 43.04166667 | M194: ='Comision Europea'!V95 -> 19.34166667 | N194: ='Comision Europea'!W95 -> 31.01666667 | O194: ='Comision Europea'!X95 -> 5.325 | P194: =ETT!C197 -> 314153 | Q194: =DNIs!B193 -> 58388.19262 | R194: =sabi!B193*1000 -> 409462316.6 | S194: 316170671.8 | T194: 228084 | U194: 18331107 | V194: 106.9216595 | W194: 18931883.52 | X194: 3412781 | Y194: 18331107 | Z194: 18931883.52 | AA194: 15866486.14 | AB194: 11676010.84 | AC194: 4190499.925 | AL194: 3.321009022 | AM194: 3.088151307 | AN194: 3412781 | AO194: -7.836754997 | AP194: 15.6953577 | AQ194: 26.41101431 | AR194: 92.06623907 | AS194: 1.393346705 | AT194: 20.6550647 | AU194: 77.21606091 | AV194: 72.60284002
A195: 2018-01-01 | B195: ='SEPE contratos'!E213 -> 1749911 | C195: ='SEPE contratos'!H213 -> 172953 | D195: ='SEPE contratos'!M213 -> 1576958 | E195: =Iass!B201 -> 130.448 | F195: =Iass!N201 -> 121.174 | G195: =Iass!Y201 -> 107.653457 | H195: =Iass!Z201 -> 10 | I195: ='Comision Europea'!R96 -> 35.58333333 | J195: ='Comision Europea'!S96 -> 28.26666667 | K195: ='Comision Europea'!T96 -> 34.4 | L195: ='Comision Europea'!U96 -> 44.04166667 | M195: ='Comision Europea'!V96 -> 19.56666667 | N195: ='Comision Europea'!W96 -> 31.58333333 | O195: ='Comision Europea'!X96 -> 4.2 | P195: =ETT!C198 -> 342985 | Q195: =DNIs!B194 -> 64885.64073 | R195: =sabi!B194*1000 -> 415737154.3 | S195: 318216828.3 | T195: 238456 | U195: 18211901 | V195: 106.9000788 | W195: 18827006.26 | X195: 3476528 | Y195: 18211901 | Z195: 18827006.26 | AA195: 15750807.32 | AB195: 11636250.46 | AC195: 4114648.353 | AL195: 3.454167799 | AM195: 2.991183224 | AN195: 3476528 | AO195: -7.544829028 | AP195: 16.02941366 | AQ195: 26.1234124 | AR195: 90.11646878 | AS195: 1.576942552 | AT195: =P195/D195*100 -> 21.74978661 | AU195: 76.54279272 | AV195: 69.52374011
A196: 2018-02-01 | B196: ='SEPE contratos'!E214 -> 1546402 | C196: ='SEPE contratos'!H214 -> 174287 | D196: ='SEPE contratos'!M214 -> 1372115 | E196: =Iass!B202 -> 124.111 | F196: =Iass!N202 -> 116.26 | G196: =Iass!Y202 -> 106.7529675 | H196: =Iass!Z202 -> 5.5 | I196: ='Comision Europea'!R97 -> 37.24166667 | J196: ='Comision Europea'!S97 -> 30.40833333 | K196: ='Comision Europea'!T97 -> 34.75 | L196: ='Comision Europea'!U97 -> 46.525 | M196: ='Comision Europea'!V97 -> 18.88333333 | N196: ='Comision Europea'!W97 -> 33.64166667 | O196: ='Comision Europea'!X97 -> 5.991666667 | P196: =ETT!C199 -> 280698 | Q196: =DNIs!B195 -> 52346.53837 | R196: =sabi!B195*1000 -> 395541165.5 | S196: 304349801.1 | T196: 196310 | U196: 18314467 | V196: 107.1455462 | W196: =Z196 -> 18836182.25 | X196: =AN196 -> 3470248 | Y196: =U196 -> 18314467 | Z196: 18836182.25 | AA196: 15752932.12 | AB196: 11650872.52 | AC196: 4102174.195 | AL196: 3.302848658 | AM196: 2.896349 | AN196: 3470248 | AO196: -7.481665616 | AP196: 15.92973789 | AQ196: =AC196/AA196*100 -> 26.04070254 | AR196: =D196/B196*100 -> 88.72951535 | AS196: =Q196/AC196*100 -> 1.27606815 | AT196: =P196/D196*100 -> 20.45732318 | AU196: =S196/R196*100 -> 76.94516466 | AV196: =T196/P196*100 -> 69.9363729
A197: 2018-03-01 | B197: ='SEPE contratos'!E215 -> 1646846 | C197: ='SEPE contratos'!H215 -> 193448 | D197: ='SEPE contratos'!M215 -> 1453398 | E197: =Iass!B203 -> 134.701 | F197: =Iass!N203 -> 119.694 | G197: =Iass!Y203 -> 112.5378047 | H197: =Iass!Z203 -> 0.3 | I197: ='Comision Europea'!R98 -> 40.05 | J197: ='Comision Europea'!S98 -> 32.23333333 | K197: ='Comision Europea'!T98 -> 40.05 | L197: ='Comision Europea'!U98 -> 47.83333333 | M197: ='Comision Europea'!V98 -> 21.90833333 | N197: ='Comision Europea'!W98 -> 37.71666667 | O197: ='Comision Europea'!X98 -> 9.55 | P197: =ETT!C200 -> 306027 | Q197: =DNIs!B196 -> 56537.11813 | R197: =sabi!B196*1000 -> 429291445 | S197: 324418942.1 | T197: 215600 | U197: 18542644 | V197: 107.4020609 | W197: 18959411.5 | X197: 3422551 | Y197: 18542644 | Z197: 18959411.5 | AA197: 15872860.55 | AB197: 11719877.02 | AC197: 4153077.452 | AL197: 3.863868336 | AM197: 2.795831421 | AN197: 3422551 | AO197: -7.556511233 | AP197: 15.58170096 | AQ197: 26.16464397 | AR197: 88.25342503 | AS197: 1.361330695 | AT197: 21.05596678 | AU197: 75.57079132 | AV197: 70.45130005
A198: 2018-04-01 | B198: ='SEPE contratos'!E216 -> 1772557 | C198: ='SEPE contratos'!H216 -> 189671 | D198: ='SEPE contratos'!M216 -> 1582886 | E198: =Iass!B204 -> 135.545 | F198: =Iass!N204 -> 122.977 | G198: =Iass!Y204 -> 110.2197972 | H198: =Iass!Z204 -> 10.9 | I198: ='Comision Europea'!R99 -> 40.28333333 | J198: ='Comision Europea'!S99 -> 31.975 | K198: ='Comision Europea'!T99 -> 41.76666667 | L198: ='Comision Europea'!U99 -> 47.08333333 | M198: ='Comision Europea'!V99 -> 26.21666667 | N198: ='Comision Europea'!W99 -> 36.25833333 | O198: ='Comision Europea'!X99 -> 9.175 | P198: =ETT!C201 -> 335215 | Q198: =DNIs!B197 -> 60424.75053 | R198: =sabi!B197*1000 -> 431981269 | S198: 327624029.8 | T198: 237825 | U198: 18659703 | V198: 107.6394334 | W198: 19196694 | X198: 3335868 | Y198: 18659703 | Z198: 19196694 | AA198: 16110592.61 | AB198: 11843263.98 | AC198: 4267358.122 | AL198: 2.616052574 | AM198: 2.677132959 | AN198: 3335868 | AO198: -6.637716497 | AP198: 15.16608957 | AQ198: 26.48790287 | AR198: 89.29958247 | AS198: 1.415975618 | AT198: 21.17745687 | AU198: 75.84218422 | AV198: 70.94700416
A199: 2018-05-01 | B199: ='SEPE contratos'!E217 -> 2058400 | C199: ='SEPE contratos'!H217 -> 200078 | D199: ='SEPE contratos'!M217 -> 1858322 | E199: =Iass!B205 -> 150.065 | F199: =Iass!N205 -> 131.139 | G199: =Iass!Y205 -> 114.4320149 | H199: =Iass!Z205 -> 4.9 | I199: ='Comision Europea'!R100 -> 42.025 | J199: ='Comision Europea'!S100 -> 32.35 | K199: ='Comision Europea'!T100 -> 43.61666667 | L199: ='Comision Europea'!U100 -> 50.09166667 | M199: ='Comision Europea'!V100 -> 32.125 | N199: ='Comision Europea'!W100 -> 39.84166667 | O199: ='Comision Europea'!X100 -> 12.06666667 | P199: =ETT!C202 -> 375424 | Q199: =DNIs!B198 -> 66632.29158 | R199: =sabi!B198*1000 -> 478256439.8 | S199: 361922689.8 | T199: 261334 | U199: 18832943 | V199: 107.8828261 | W199: 19366569.13 | X199: 3252130 | Y199: 18832943 | Z199: 19366569.13 | AA199: 16280056.17 | AB199: 11916887.73 | AC199: 4363159.698 | AL199: 3.126969435 | AM199: 2.596154033 | AN199: 3252130 | AO199: -6.038436024 | AP199: 14.72546638 | AQ199: 26.80064278 | AR199: 90.27992616 | AS199: 1.527156836 | AT199: 20.20231155 | AU199: 75.67544516 | AV199: 69.61036055
A200: 2018-06-01 | B200: ='SEPE contratos'!E218 -> 2055762 | C200: ='SEPE contratos'!H218 -> 192972 | D200: ='SEPE contratos'!M218 -> 1862790 | E200: =Iass!B206 -> 151.65 | F200: =Iass!N206 -> 134.836 | G200: =Iass!Y206 -> 112.4699635 | H200: =Iass!Z206 -> 2.7 | I200: ='Comision Europea'!R101 -> 44.64166667 | J200: ='Comision Europea'!S101 -> 34.29166667 | K200: ='Comision Europea'!T101 -> 46.66666667 | L200: ='Comision Europea'!U101 -> 52.95 | M200: ='Comision Europea'!V101 -> 32.825 | N200: ='Comision Europea'!W101 -> 41.75833333 | O200: ='Comision Europea'!X101 -> 12.06666667 | P200: =ETT!C203 -> 368785 | Q200: =DNIs!B199 -> 68343.61777 | R200: =sabi!B199*1000 -> 483307827.3 | S200: 363364629.6 | T200: 268829 | U200: 18967952 | V200: 108.1233941 | W200: 19469036.88 | X200: 3162162 | Y200: 18967952 | Z200: 19469036.88 | AA200: 16381251.23 | AB200: 11940748.29 | AC200: 4440482.18 | AL200: 4.237597698 | AM200: 2.553475107 | AN200: 3162162 | AO200: -5.966704641 | AP200: 14.28895486 | AQ200: 27.10710018 | AR200: 90.61311572 | AS200: 1.539103525 | AT200: 19.79745436 | AU200: 75.18285637 | AV200: 72.89586073
... 63 more rows

Sheet Prevision (hidden)
C1: CPDs | E1: 2018 | F1: 2019 | H1: Facturación | J1: =E1 -> 2018 | K1: =F1 -> 2019 | O1: Facturación y CPDs | AS1: cierre datos de ABRIL desde fuente ASEMPLEO | BM1: ultimo mes para formulas
A2: ene | B2: 2018-01-01 | C2: =((AVERAGE(P$39:P$50)/AVERAGE(P$27:P$38))-1) -> 0.09922508307 | D2: Media de medias | E2: =AVERAGE(C2:C13) -> 0.1001931736 | F2: =AVERAGE(C14:C25) -> 0.05188300112 | H2: =((AVERAGE(O$39:O$50)/AVERAGE(O$27:O$38))-1) -> 0.1257718506 | I2: =D2 -> Media de medias | J2: =AVERAGE(H2:H13) -> 0.1070459198 | K2: =AVERAGE(H14:H25) -> 0.04958750411 | P2: 2018-01-01 | R2: 2018-02-01 | T2: 2018-03-01 | V2: 2018-04-01 | X2: 2018-05-01 | Z2: 2018-06-01 | AB2: 2018-07-01 | AD2: 2018-08-01 | AF2: 2018-09-01 | AH2: 2018-10-01 | AJ2: 2018-11-01 | AL2: 2018-12-01 | AN2: 2019-01-01 | AP2: 2019-02-01 | AR2: 2019-03-01 | AT2: 2019-04-01 | AV2: 2019-05-01 | AX2: 2019-06-01 | AZ2: 2019-07-01 | BB2: 2019-08-01 | BD2: 2019-09-01 | BF2: 2019-10-01 | BH2: 2019-11-01 | BJ2: 2019-12-01 | BL2: 2020-01-01 | BM2: fact | BN2: cpd's
A3: feb | B3: 2018-02-01 | C3: =((AVERAGE(R$39:R$50)/AVERAGE(R$27:R$38))-1) -> 0.1264685038 | D3: Máx | E3: =MAX(C2:C13) -> 0.1264685038 | F3: =MAX(C14:C25) -> 0.0827940116 | H3: =((AVERAGE(Q$39:Q$50)/AVERAGE(Q$27:Q$38))-1) -> 0.147220237 | I3: =D3 -> Máx | J3: =MAX(H2:H13) -> 0.147220237 | K3: =MAX(H14:H25) -> 0.08695100031 | N3: 2015-01-01 | O3: =$AS3 -> 199796888.3 | P3: =$AT3 -> 160218 | Q3: =$AS3 -> 199796888.3 | R3: =$AT3 -> 160218 | S3: =$AS3 -> 199796888.3 | T3: =$AT3 -> 160218 | U3: =$AS3 -> 199796888.3 | V3: =$AT3 -> 160218 | W3: =$AS3 -> 199796888.3 | X3: =$AT3 -> 160218 | Y3: =$AS3 -> 199796888.3 | Z3: =$AT3 -> 160218 | AA3: =$AS3 -> 199796888.3 | AB3: =$AT3 -> 160218 | AC3: =$AS3 -> 199796888.3 | AD3: =$AT3 -> 160218 | AE3: =$AS3 -> 199796888.3 | AF3: =$AT3 -> 160218 | AG3: =$AS3 -> 199796888.3 | AH3: =$AT3 -> 160218 | AI3: =$AS3 -> 199796888.3 | AJ3: =$AT3 -> 160218 | AK3: =$AS3 -> 199796888.3 | AL3: =$AT3 -> 160218 | AM3: =$AS3 -> 199796888.3 | AN3: =$AT3 -> 160218 | AO3: =$AS3 -> 199796888.3 | AP3: =$AT3 -> 160218 | AQ3: =$AS3 -> 199796888.3 | AR3: =$AT3 -> 160218 | AS3: 199796888.3 | AT3: 160218 | AU3: =$AS3 -> 199796888.3 | AV3: =$AT3 -> 160218 | AW3: =$AU3 -> 199796888.3 | AX3: =$AV3 -> 160218 | AY3: =$AW3 -> 199796888.3 | AZ3: =$AX3 -> 160218 | BA3: =$AY3 -> 199796888.3 | BB3: =$AZ3 -> 160218 | BC3: =$BA3 -> 199796888.3 | BD3: =$BB3 -> 160218 | BE3: =$BC3 -> 199796888.3 | BF3: =$BD3 -> 160218 | BG3: =$BE3 -> 199796888.3 | BH3: =$BF3 -> 160218 | BI3: =$BG3 -> 199796888.3 | BJ3: =$BH3 -> 160218
A4: mar | B4: 2018-03-01 | C4: =((AVERAGE(T$39:T$50)/AVERAGE(T$27:T$38))-1) -> 0.1188766156 | D4: Mín | E4: =MIN(C2:C13) -> 0.07734332753 | F4: =MIN(C14:C25) -> 0.02570670742 | H4: =((AVERAGE(S$39:S$50)/AVERAGE(S$27:S$38))-1) -> 0.1433903596 | I4: =D4 -> Mín | J4: =MIN(H2:H13) -> 0.06251679922 | K4: =MIN(H14:H25) -> 0.03075785285 | N4: 2015-02-01 | O4: 205269817 | P4: 144598 | Q4: =$AS4 -> 205269817 | R4: =$AT4 -> 144598 | S4: =$AS4 -> 205269817 | T4: =$AT4 -> 144598 | U4: =$AS4 -> 205269817 | V4: =$AT4 -> 144598 | W4: =$AS4 -> 205269817 | X4: =$AT4 -> 144598 | Y4: =$AS4 -> 205269817 | Z4: =$AT4 -> 144598 | AA4: =$AS4 -> 205269817 | AB4: =$AT4 -> 144598 | AC4: =$AS4 -> 205269817 | AD4: =$AT4 -> 144598 | AE4: =$AS4 -> 205269817 | AF4: =$AT4 -> 144598 | AG4: =$AS4 -> 205269817 | AH4: =$AT4 -> 144598 | AI4: =$AS4 -> 205269817 | AJ4: =$AT4 -> 144598 | AK4: =$AS4 -> 205269817 | AL4: =$AT4 -> 144598 | AM4: =$AS4 -> 205269817 | AN4: =$AT4 -> 144598 | AO4: =$AS4 -> 205269817 | AP4: =$AT4 -> 144598 | AQ4: =$AS4 -> 205269817 | AR4: =$AT4 -> 144598 | AS4: 205269817 | AT4: 144598 | AU4: =$AS4 -> 205269817 | AV4: =$AT4 -> 144598 | AW4: =$AU4 -> 205269817 | AX4: =$AV4 -> 144598 | AY4: =$AW4 -> 205269817 | AZ4: 144598 | BA4: =$AY4 -> 205269817 | BB4: =$AZ4 -> 144598 | BC4: =$BA4 -> 205269817 | BD4: =$BB4 -> 144598 | BE4: 205269817 | BF4: 144598 | BG4: =$BE4 -> 205269817 | BH4: =$BF4 -> 144598 | BI4: =$BG4 -> 205269817 | BJ4: =$BH4 -> 144598
A5: abr | B5: 2018-04-01 | C5: =((AVERAGE(V$39:V$50)/AVERAGE(V$27:V$38))-1) -> 0.1158405878 | D5: Media anual | E5: =C13 -> 0.08783031494 | F5: =C25 -> 0.03638500232 | G5: a Dic | H5: =((AVERAGE(U$39:U$50)/AVERAGE(U$27:U$38))-1) -> 0.1391643077 | I5: =D5 -> Media anual | J5: =H13 -> 0.06251679922 | K5: =H25 -> 0.03136690848 | L5: =G5 -> a Dic | N5: 2015-03-01 | O5: 228958857 | P5: 172644 | Q5: 228958857 | R5: 172644 | S5: 228958857 | T5: 172644 | U5: 228958857 | V5: 172644 | W5: 228958857 | X5: 172644 | Y5: 228958857 | Z5: 172644 | AA5: 228958857 | AB5: 172644 | AC5: 228958857 | AD5: 172644 | AE5: 228958857 | AF5: 172644 | AG5: 228958857 | AH5: 172644 | AI5: 228958857 | AJ5: 172644 | AK5: 228958857 | AL5: 172644 | AM5: 228958857 | AN5: 172644 | AO5: 228958857 | AP5: 172644 | AQ5: 228958857 | AR5: 172644 | AS5: 228958857 | AT5: 172644 | AU5: 228958857 | AV5: 172644 | AW5: 228958857 | AX5: 172644 | AY5: 228958857 | AZ5: 172644 | BA5: 228958857 | BB5: 172644 | BC5: 228958857 | BD5: 172644 | BE5: 228958857 | BF5: 172644 | BG5: 228958857 | BH5: 172644 | BI5: 228958857 | BJ5: 172644
A6: may | B6: 2018-05-01 | C6: =((AVERAGE(X$39:X$50)/AVERAGE(X$27:X$38))-1) -> 0.1188529808 | H6: =((AVERAGE(W$39:W$50)/AVERAGE(W$27:W$38))-1) -> 0.1444799452 | N6: 2015-04-01 | O6: 222199034 | P6: 169105 | Q6: 222199034 | R6: 169105 | S6: 222199034 | T6: 169105 | U6: 222199034 | V6: 169105 | W6: 222199034 | X6: 169105 | Y6: 222199034 | Z6: 169105 | AA6: 222199034 | AB6: 169105 | AC6: 222199034 | AD6: 169105 | AE6: 222199034 | AF6: 169105 | AG6: 222199034 | AH6: 169105 | AI6: 222199034 | AJ6: 169105 | AK6: 222199034 | AL6: 169105 | AM6: 222199034 | AN6: 169105 | AO6: 222199034 | AP6: 169105 | AQ6: 222199034 | AR6: 169105 | AS6: 222199034 | AT6: 169105 | AU6: 222199034 | AV6: 169105 | AW6: 222199034 | AX6: 169105 | AY6: 222199034 | AZ6: 169105 | BA6: 222199034 | BB6: 169105 | BC6: 222199034 | BD6: 169105 | BE6: 222199034 | BF6: 169105 | BG6: 222199034 | BH6: 169105 | BI6: 222199034 | BJ6: 169105
A7: jun | B7: 2018-06-01 | C7: =((AVERAGE(Z$39:Z$50)/AVERAGE(Z$27:Z$38))-1) -> 0.09562258439 | H7: =((AVERAGE(Y$39:Y$50)/AVERAGE(Y$27:Y$38))-1) -> 0.1209448282 | N7: 2015-05-01 | O7: 243556211.6 | P7: 183107 | Q7: 243556211.6 | R7: 183107 | S7: 243556211.6 | T7: 183107 | U7: 243556211.6 | V7: 183107 | W7: 243556211.6 | X7: 183107 | Y7: 243556211.6 | Z7: 183107 | AA7: 243556211.6 | AB7: 183107 | AC7: 243556211.6 | AD7: 183107 | AE7: 243556211.6 | AF7: 183107 | AG7: 243556211.6 | AH7: 183107 | AI7: 243556211.6 | AJ7: 183107 | AK7: 243556211.6 | AL7: 183107 | AM7: 243556211.6 | AN7: 183107 | AO7: 243556211.6 | AP7: 183107 | AQ7: 243556211.6 | AR7: 183107 | AS7: 243556211.6 | AT7: 183107 | AU7: 243556211.6 | AV7: 183107 | AW7: 243556211.6 | AX7: 183107 | AY7: 243556211.6 | AZ7: 183107 | BA7: 243556211.6 | BB7: 183107 | BC7: 243556211.6 | BD7: 183107 | BE7: 243556211.6 | BF7: 183107 | BG7: 243556211.6 | BH7: 183107 | BI7: 243556211.6 | BJ7: 183107
A8: jul | B8: 2018-07-01 | C8: =((AVERAGE(AB$39:AB$50)/AVERAGE(AB$27:AB$38))-1) -> 0.09516823169 | H8: =((AVERAGE(AA$39:AA$50)/AVERAGE(AA$27:AA$38))-1) -> 0.1107817087 | N8: 2015-06-01 | O8: 270713085.8 | P8: 200905 | Q8: 270713085.8 | R8: 200905 | S8: 270713085.8 | T8: 200905 | U8: 270713085.8 | V8: 200905 | W8: 270713085.8 | X8: 200905 | Y8: 270713085.8 | Z8: 200905 | AA8: 270713085.8 | AB8: 200905 | AC8: 270713085.8 | AD8: 200905 | AE8: 270713085.8 | AF8: 200905 | AG8: 270713085.8 | AH8: 200905 | AI8: 270713085.8 | AJ8: 200905 | AK8: 270713085.8 | AL8: 200905 | AM8: 270713085.8 | AN8: 200905 | AO8: 270713085.8 | AP8: 200905 | AQ8: 270713085.8 | AR8: 200905 | AS8: 270713085.8 | AT8: 200905 | AU8: 270713085.8 | AV8: 200905 | AW8: 270713085.8 | AX8: 200905 | AY8: 270713085.8 | AZ8: 200905 | BA8: 270713085.8 | BB8: 200905 | BC8: 270713085.8 | BD8: 200905 | BE8: 270713085.8 | BF8: 200905 | BG8: 270713085.8 | BH8: 200905 | BI8: 270713085.8 | BJ8: 200905
A9: ago | B9: 2018-08-01 | C9: =((AVERAGE(AD$39:AD$50)/AVERAGE(AD$27:AD$38))-1) -> 0.09633039489 | H9: =((AVERAGE(AC$39:AC$50)/AVERAGE(AC$27:AC$38))-1) -> 0.09482182254 | N9: 2015-07-01 | O9: 301814967.8 | P9: 193688 | Q9: 301814967.8 | R9: 193688 | S9: 301814967.8 | T9: 193688 | U9: 301814967.8 | V9: 193688 | W9: 301814967.8 | X9: 193688 | Y9: 301814967.8 | Z9: 193688 | AA9: 301814967.8 | AB9: 193688 | AC9: 301814967.8 | AD9: 193688 | AE9: 301814967.8 | AF9: 193688 | AG9: 301814967.8 | AH9: 193688 | AI9: 301814967.8 | AJ9: 193688 | AK9: 301814967.8 | AL9: 193688 | AM9: 301814967.8 | AN9: 193688 | AO9: 301814967.8 | AP9: 193688 | AQ9: 301814967.8 | AR9: 193688 | AS9: 301814967.8 | AT9: 193688 | AU9: 301814967.8 | AV9: 193688 | AW9: 301814967.8 | AX9: 193688 | AY9: 301814967.8 | AZ9: 193688 | BA9: 301814967.8 | BB9: 193688 | BC9: 301814967.8 | BD9: 193688 | BE9: 301814967.8 | BF9: 193688 | BG9: 301814967.8 | BH9: 193688 | BI9: 301814967.8 | BJ9: 193688
A10: sep | B10: 2018-09-01 | C10: =((AVERAGE(AF$39:AF$50)/AVERAGE(AF$27:AF$38))-1) -> 0.08466306836 | H10: =((AVERAGE(AE$39:AE$50)/AVERAGE(AE$27:AE$38))-1) -> 0.06949895464 | N10: 2015-08-01 | O10: 242881829.1 | P10: 174696 | Q10: 242881829.1 | R10: 174696 | S10: 242881829.1 | T10: 174696 | U10: 242881829.1 | V10: 174696 | W10: 242881829.1 | X10: 174696 | Y10: 242881829.1 | Z10: 174696 | AA10: 242881829.1 | AB10: 174696 | AC10: 242881829.1 | AD10: 174696 | AE10: 242881829.1 | AF10: 174696 | AG10: 242881829.1 | AH10: 174696 | AI10: 242881829.1 | AJ10: 174696 | AK10: 242881829.1 | AL10: 174696 | AM10: 242881829.1 | AN10: 174696 | AO10: 242881829.1 | AP10: 174696 | AQ10: 242881829.1 | AR10: 174696 | AS10: 242881829.1 | AT10: 174696 | AU10: 242881829.1 | AV10: 174696 | AW10: 242881829.1 | AX10: 174696 | AY10: 242881829.1 | AZ10: 174696 | BA10: 242881829.1 | BB10: 174696 | BC10: 242881829.1 | BD10: 174696 | BE10: 242881829.1 | BF10: 174696 | BG10: 242881829.1 | BH10: 174696 | BI10: 242881829.1 | BJ10: 174696
A11: oct | B11: 2018-10-01 | C11: =((AVERAGE(AH$39:AH$50)/AVERAGE(AH$27:AH$38))-1) -> 0.07734332753 | H11: =((AVERAGE(AG$39:AG$50)/AVERAGE(AG$27:AG$38))-1) -> 0.06293994777 | N11: 2015-09-01 | O11: 268733230.1 | P11: 185882 | Q11: 268733230.1 | R11: 185882 | S11: 268733230.1 | T11: 185882 | U11: 268733230.1 | V11: 185882 | W11: 268733230.1 | X11: 185882 | Y11: 268733230.1 | Z11: 185882 | AA11: 268733230.1 | AB11: 185882 | AC11: 268733230.1 | AD11: 185882 | AE11: 268733230.1 | AF11: 185882 | AG11: 268733230.1 | AH11: 185882 | AI11: 268733230.1 | AJ11: 185882 | AK11: 268733230.1 | AL11: 185882 | AM11: 268733230.1 | AN11: 185882 | AO11: 268733230.1 | AP11: 185882 | AQ11: 268733230.1 | AR11: 185882 | AS11: 268733230.1 | AT11: 185882 | AU11: 268733230.1 | AV11: 185882 | AW11: 268733230.1 | AX11: 185882 | AY11: 268733230.1 | AZ11: 185882 | BA11: 268733230.1 | BB11: 185882 | BC11: 268733230.1 | BD11: 185882 | BE11: 268733230.1 | BF11: 185882 | BG11: 268733230.1 | BH11: 185882 | BI11: 268733230.1 | BJ11: 185882
A12: nov | B12: 2018-11-01 | C12: =((AVERAGE(AJ$39:AJ$50)/AVERAGE(AJ$27:AJ$38))-1) -> 0.08609639013 | H12: =((AVERAGE(AI$39:AI$50)/AVERAGE(AI$27:AI$38))-1) -> 0.0630202769 | N12: 2015-10-01 | O12: 261992577.1 | P12: 199180 | Q12: 261992577.1 | R12: 199180 | S12: 261992577.1 | T12: 199180 | U12: 261992577.1 | V12: 199180 | W12: 261992577.1 | X12: 199180 | Y12: 261992577.1 | Z12: 199180 | AA12: 261992577.1 | AB12: 199180 | AC12: 261992577.1 | AD12: 199180 | AE12: 261992577.1 | AF12: 199180 | AG12: 261992577.1 | AH12: 199180 | AI12: 261992577.1 | AJ12: 199180 | AK12: 261992577.1 | AL12: 199180 | AM12: 261992577.1 | AN12: 199180 | AO12: 261992577.1 | AP12: 199180 | AQ12: 261992577.1 | AR12: 199180 | AS12: 261992577.1 | AT12: 199180 | AU12: 261992577.1 | AV12: 199180 | AW12: 261992577.1 | AX12: 199180 | AY12: 261992577.1 | AZ12: 199180 | BA12: 261992577.1 | BB12: 199180 | BC12: 261992577.1 | BD12: 199180 | BE12: 261992577.1 | BF12: 199180 | BG12: 261992577.1 | BH12: 199180 | BI12: 261992577.1 | BJ12: 199180
A13: dic | B13: 2018-12-01 | C13: =((AVERAGE(AL$39:AL$50)/AVERAGE(AL$27:AL$38))-1) -> 0.08783031494 | H13: =((AVERAGE(AK$39:AK$50)/AVERAGE(AK$27:AK$38))-1) -> 0.06251679922 | N13: 2015-11-01 | O13: 260565964.7 | P13: 192380 | Q13: 260565964.7 | R13: 192380 | S13: 260565964.7 | T13: 192380 | U13: 260565964.7 | V13: 192380 | W13: 260565964.7 | X13: 192380 | Y13: 260565964.7 | Z13: 192380 | AA13: 260565964.7 | AB13: 192380 | AC13: 260565964.7 | AD13: 192380 | AE13: 260565964.7 | AF13: 192380 | AG13: 260565964.7 | AH13: 192380 | AI13: 260565964.7 | AJ13: 192380 | AK13: 260565964.7 | AL13: 192380 | AM13: 260565964.7 | AN13: 192380 | AO13: 260565964.7 | AP13: 192380 | AQ13: 260565964.7 | AR13: 192380 | AS13: 260565964.7 | AT13: 192380 | AU13: 260565964.7 | AV13: 192380 | AW13: 260565964.7 | AX13: 192380 | AY13: 260565964.7 | AZ13: 192380 | BA13: 260565964.7 | BB13: 192380 | BC13: 260565964.7 | BD13: 192380 | BE13: 260565964.7 | BF13: 192380 | BG13: 260565964.7 | BH13: 192380 | BI13: 260565964.7 | BJ13: 192380
A14: =D55 -> 0.079 | B14: 2019-01-01 | C14: =((AVERAGE(AN$51:AN$62)/AVERAGE(AN$39:AN$50))-1) -> 0.06912679816 | G14: =K55 -> 0.06 | H14: =((AVERAGE(AM$51:AM$62)/AVERAGE(AM$39:AM$50))-1) -> 0.06498293612 | N14: 2015-12-01 | O14: 250421099.1 | P14: 182052 | Q14: 250421099.1 | R14: 182052 | S14: 250421099.1 | T14: 182052 | U14: 250421099.1 | V14: 182052 | W14: 250421099.1 | X14: 182052 | Y14: 250421099.1 | Z14: 182052 | AA14: 250421099.1 | AB14: 182052 | AC14: 250421099.1 | AD14: 182052 | AE14: 250421099.1 | AF14: 182052 | AG14: 250421099.1 | AH14: 182052 | AI14: 250421099.1 | AJ14: 182052 | AK14: 250421099.1 | AL14: 182052 | AM14: 250421099.1 | AN14: 182052 | AO14: 250421099.1 | AP14: 182052 | AQ14: 250421099.1 | AR14: 182052 | AS14: 250421099.1 | AT14: 182052 | AU14: 250421099.1 | AV14: 182052 | AW14: 250421099.1 | AX14: 182052 | AY14: 250421099.1 | AZ14: 182052 | BA14: 250421099.1 | BB14: 182052 | BC14: 250421099.1 | BD14: 182052 | BE14: 250421099.1 | BF14: 182052 | BG14: 250421099.1 | BH14: 182052 | BI14: 250421099.1 | BJ14: 182052
A15: =A14 -> 0.079 | B15: 2019-02-01 | C15: =((AVERAGE(AP$51:AP$62)/AVERAGE(AP$39:AP$50))-1) -> 0.0827940116 | G15: =G14 -> 0.06 | H15: =((AVERAGE(AO$51:AO$62)/AVERAGE(AO$39:AO$50))-1) -> 0.08695100031 | N15: 2016-01-01 | O15: 227000351.3 | P15: 175552 | Q15: 227000351.3 | R15: 175552 | S15: 227000351.3 | T15: 175552 | U15: 227000351.3 | V15: 175552 | W15: 227000351.3 | X15: 175552 | Y15: 227000351.3 | Z15: 175552 | AA15: 227000351.3 | AB15: 175552 | AC15: 227000351.3 | AD15: 175552 | AE15: 227000351.3 | AF15: 175552 | AG15: 227000351.3 | AH15: 175552 | AI15: 227000351.3 | AJ15: 175552 | AK15: 227000351.3 | AL15: 175552 | AM15: 227000351.3 | AN15: 175552 | AO15: 227000351.3 | AP15: 175552 | AQ15: 227000351.3 | AR15: 175552 | AS15: 227000351.3 | AT15: 175552 | AU15: 227000351.3 | AV15: 175552 | AW15: 227000351.3 | AX15: 175552 | AY15: 227000351.3 | AZ15: 175552 | BA15: 227000351.3 | BB15: 175552 | BC15: 227000351.3 | BD15: 175552 | BE15: 227000351.3 | BF15: 175552 | BG15: 227000351.3 | BH15: 175552 | BI15: 227000351.3 | BJ15: 175552
A16: =A15 -> 0.079 | B16: 2019-03-01 | C16: =((AVERAGE(AR$51:AR$62)/AVERAGE(AR$39:AR$50))-1) -> 0.06910721029 | G16: =G15 -> 0.06 | H16: =((AVERAGE(AQ$51:AQ$62)/AVERAGE(AQ$39:AQ$50))-1) -> 0.07496788525 | N16: 2016-02-01 | O16: 241066786.2 | P16: 165959 | Q16: 241066786.2 | R16: 165959 | S16: 241066786.2 | T16: 165959 | U16: 241066786.2 | V16: 165959 | W16: 241066786.2 | X16: 165959 | Y16: 241066786.2 | Z16: 165959 | AA16: 241066786.2 | AB16: 165959 | AC16: 241066786.2 | AD16: 165959 | AE16: 241066786.2 | AF16: 165959 | AG16: 241066786.2 | AH16: 165959 | AI16: 241066786.2 | AJ16: 165959 | AK16: 241066786.2 | AL16: 165959 | AM16: 241066786.2 | AN16: 165959 | AO16: 241066786.2 | AP16: 165959 | AQ16: 241066786.2 | AR16: 165959 | AS16: 241066786.2 | AT16: 165959 | AU16: 241066786.2 | AV16: 165959 | AW16: 241066786.2 | AX16: 165959 | AY16: 241066786.2 | AZ16: 165959 | BA16: 241066786.2 | BB16: 165959 | BC16: 241066786.2 | BD16: 165959 | BE16: 241066786.2 | BF16: 165959 | BG16: 241066786.2 | BH16: 165959 | BI16: 241066786.2 | BJ16: 165959
A17: 0.079 | B17: 2019-04-01 | C17: =((AVERAGE(AT$51:AT$62)/AVERAGE(AT$39:AT$50))-1) -> 0.07005307258 | G17: 0.06 | H17: =((AVERAGE(AS$51:AS$62)/AVERAGE(AS$39:AS$50))-1) -> 0.04986642124 | N17: 2016-03-01 | O17: 250361676.6 | P17: 183929 | Q17: 250361676.6 | R17: 183929 | S17: 250361676.6 | T17: 183929 | U17: 250361676.6 | V17: 183929 | W17: 250361676.6 | X17: 183929 | Y17: 250361676.6 | Z17: 183929 | AA17: 250361676.6 | AB17: 183929 | AC17: 250361676.6 | AD17: 183929 | AE17: 250361676.6 | AF17: 183929 | AG17: 250361676.6 | AH17: 183929 | AI17: 250361676.6 | AJ17: 183929 | AK17: 250361676.6 | AL17: 183929 | AM17: 250361676.6 | AN17: 183929 | AO17: 250361676.6 | AP17: 183929 | AQ17: 250361676.6 | AR17: 183929 | AS17: 250361676.6 | AT17: 183929 | AU17: 250361676.6 | AV17: 183929 | AW17: 250361676.6 | AX17: 183929 | AY17: 250361676.6 | AZ17: 183929 | BA17: 250361676.6 | BB17: 183929 | BC17: 250361676.6 | BD17: 183929 | BE17: 250361676.6 | BF17: 183929 | BG17: 250361676.6 | BH17: 183929 | BI17: 250361676.6 | BJ17: 183929
A18: 0.079 | B18: 2019-05-01 | C18: =((AVERAGE(AV$51:AV$62)/AVERAGE(AV$39:AV$50))-1) -> 0.071458609 | G18: 0.06 | H18: =((AVERAGE(AU$51:AU$62)/AVERAGE(AU$39:AU$50))-1) -> 0.06866676909 | N18: 2016-04-01 | O18: 263007210.8 | P18: 189564 | Q18: 263007210.8 | R18: 189564 | S18: 263007210.8 | T18: 189564 | U18: 263007210.8 | V18: 189564 | W18: 263007210.8 | X18: 189564 | Y18: 263007210.8 | Z18: 189564 | AA18: 263007210.8 | AB18: 189564 | AC18: 263007210.8 | AD18: 189564 | AE18: 263007210.8 | AF18: 189564 | AG18: 263007210.8 | AH18: 189564 | AI18: 263007210.8 | AJ18: 189564 | AK18: 263007210.8 | AL18: 189564 | AM18: 263007210.8 | AN18: 189564 | AO18: 263007210.8 | AP18: 189564 | AQ18: 263007210.8 | AR18: 189564 | AS18: 263007210.8 | AT18: 189564 | AU18: 263007210.8 | AV18: 189564 | AW18: 263007210.8 | AX18: 189564 | AY18: 263007210.8 | AZ18: 189564 | BA18: 263007210.8 | BB18: 189564 | BC18: 263007210.8 | BD18: 189564 | BE18: 263007210.8 | BF18: 189564 | BG18: 263007210.8 | BH18: 189564 | BI18: 263007210.8 | BJ18: 189564
A19: 0.079 | B19: 2019-06-01 | C19: =((AVERAGE(AX$51:AX$62)/AVERAGE(AX$39:AX$50))-1) -> 0.04430468887 | G19: 0.06 | H19: =((AVERAGE(AW$51:AW$62)/AVERAGE(AW$39:AW$50))-1) -> 0.03818768865 | N19: 2016-05-01 | O19: 270004703.6 | P19: 211534 | Q19: 270004703.6 | R19: 211534 | S19: 270004703.6 | T19: 211534 | U19: 270004703.6 | V19: 211534 | W19: 270004703.6 | X19: 211534 | Y19: 270004703.6 | Z19: 211534 | AA19: 270004703.6 | AB19: 211534 | AC19: 270004703.6 | AD19: 211534 | AE19: 270004703.6 | AF19: 211534 | AG19: 270004703.6 | AH19: 211534 | AI19: 270004703.6 | AJ19: 211534 | AK19: 270004703.6 | AL19: 211534 | AM19: 270004703.6 | AN19: 211534 | AO19: 270004703.6 | AP19: 211534 | AQ19: 270004703.6 | AR19: 211534 | AS19: 270004703.6 | AT19: 211534 | AU19: 270004703.6 | AV19: 211534 | AW19: 270004703.6 | AX19: 211534 | AY19: 270004703.6 | AZ19: 211534 | BA19: 270004703.6 | BB19: 211534 | BC19: 270004703.6 | BD19: 211534 | BE19: 270004703.6 | BF19: 211534 | BG19: 270004703.6 | BH19: 211534 | BI19: 270004703.6 | BJ19: 211534
A20: 0.079 | B20: 2019-07-01 | C20: =((AVERAGE(AZ$51:AZ$62)/AVERAGE(AZ$39:AZ$50))-1) -> 0.05061577391 | G20: 0.06 | H20: =((AVERAGE(AY$51:AY$62)/AVERAGE(AY$39:AY$50))-1) -> 0.04438198096 | N20: 2016-06-01 | O20: 290023474.2 | P20: 217649 | Q20: 290023474.2 | R20: 217649 | S20: 290023474.2 | T20: 217649 | U20: 290023474.2 | V20: 217649 | W20: 290023474.2 | X20: 217649 | Y20: 290023474.2 | Z20: 217649 | AA20: 290023474.2 | AB20: 217649 | AC20: 290023474.2 | AD20: 217649 | AE20: 290023474.2 | AF20: 217649 | AG20: 290023474.2 | AH20: 217649 | AI20: 290023474.2 | AJ20: 217649 | AK20: 290023474.2 | AL20: 217649 | AM20: 290023474.2 | AN20: 217649 | AO20: 290023474.2 | AP20: 217649 | AQ20: 290023474.2 | AR20: 217649 | AS20: 290023474.2 | AT20: 217649 | AU20: 290023474.2 | AV20: 217649 | AW20: 290023474.2 | AX20: 217649 | AY20: 290023474.2 | AZ20: 217649 | BA20: 290023474.2 | BB20: 217649 | BC20: 290023474.2 | BD20: 217649 | BE20: 290023474.2 | BF20: 217649 | BG20: 290023474.2 | BH20: 217649 | BI20: 290023474.2 | BJ20: 217649
A21: 0.079 | B21: 2019-08-01 | C21: =((AVERAGE(BB$51:BB$62)/AVERAGE(BB$39:BB$50))-1) -> 0.03366580633 | G21: 0.06 | H21: =((AVERAGE(BA$51:BA$62)/AVERAGE(BA$39:BA$50))-1) -> 0.04031285234 | N21: 2016-07-01 | O21: 306913963.3 | P21: 205096 | Q21: 306913963.3 | R21: 205096 | S21: 306913963.3 | T21: 205096 | U21: 306913963.3 | V21: 205096 | W21: 306913963.3 | X21: 205096 | Y21: 306913963.3 | Z21: 205096 | AA21: 306913963.3 | AB21: 205096 | AC21: 306913963.3 | AD21: 205096 | AE21: 306913963.3 | AF21: 205096 | AG21: 306913963.3 | AH21: 205096 | AI21: 306913963.3 | AJ21: 205096 | AK21: 306913963.3 | AL21: 205096 | AM21: 306913963.3 | AN21: 205096 | AO21: 306913963.3 | AP21: 205096 | AQ21: 306913963.3 | AR21: 205096 | AS21: 306913963.3 | AT21: 205096 | AU21: 306913963.3 | AV21: 205096 | AW21: 306913963.3 | AX21: 205096 | AY21: 306913963.3 | AZ21: 205096 | BA21: 306913963.3 | BB21: 205096 | BC21: 306913963.3 | BD21: 205096 | BE21: 306913963.3 | BF21: 205096 | BG21: 306913963.3 | BH21: 205096 | BI21: 306913963.3 | BJ21: 205096
A22: 0.079 | B22: 2019-09-01 | C22: =((AVERAGE(BD$51:BD$62)/AVERAGE(BD$39:BD$50))-1) -> 0.03407781254 | G22: 0.06 | H22: =((AVERAGE(BC$51:BC$62)/AVERAGE(BC$39:BC$50))-1) -> 0.03226757384 | N22: 2016-08-01 | O22: 282512008.1 | P22: 198154 | Q22: 282512008.1 | R22: 198154 | S22: 282512008.1 | T22: 198154 | U22: 282512008.1 | V22: 198154 | W22: 282512008.1 | X22: 198154 | Y22: 282512008.1 | Z22: 198154 | AA22: 282512008.1 | AB22: 198154 | AC22: 282512008.1 | AD22: 198154 | AE22: 282512008.1 | AF22: 198154 | AG22: 282512008.1 | AH22: 198154 | AI22: 282512008.1 | AJ22: 198154 | AK22: 282512008.1 | AL22: 198154 | AM22: 282512008.1 | AN22: 198154 | AO22: 282512008.1 | AP22: 198154 | AQ22: 282512008.1 | AR22: 198154 | AS22: 282512008.1 | AT22: 198154 | AU22: 282512008.1 | AV22: 198154 | AW22: 282512008.1 | AX22: 198154 | AY22: 282512008.1 | AZ22: 198154 | BA22: 282512008.1 | BB22: 198154 | BC22: 282512008.1 | BD22: 198154 | BE22: 282512008.1 | BF22: 198154 | BG22: 282512008.1 | BH22: 198154 | BI22: 282512008.1 | BJ22: 198154
A23: 0.079 | B23: 2019-10-01 | C23: =((AVERAGE(BF$51:BF$62)/AVERAGE(BF$39:BF$50))-1) -> 0.02570670742 | G23: 0.06 | H23: =((AVERAGE(BE$51:BE$62)/AVERAGE(BE$39:BE$50))-1) -> 0.03075785285 | N23: 2016-09-01 | O23: 299676331.1 | P23: 207943 | Q23: 299676331.1 | R23: 207943 | S23: 299676331.1 | T23: 207943 | U23: 299676331.1 | V23: 207943 | W23: 299676331.1 | X23: 207943 | Y23: 299676331.1 | Z23: 207943 | AA23: 299676331.1 | AB23: 207943 | AC23: 299676331.1 | AD23: 207943 | AE23: 299676331.1 | AF23: 207943 | AG23: 299676331.1 | AH23: 207943 | AI23: 299676331.1 | AJ23: 207943 | AK23: 299676331.1 | AL23: 207943 | AM23: 299676331.1 | AN23: 207943 | AO23: 299676331.1 | AP23: 207943 | AQ23: 299676331.1 | AR23: 207943 | AS23: 299676331.1 | AT23: 207943 | AU23: 299676331.1 | AV23: 207943 | AW23: 299676331.1 | AX23: 207943 | AY23: 299676331.1 | AZ23: 207943 | BA23: 299676331.1 | BB23: 207943 | BC23: 299676331.1 | BD23: 207943 | BE23: 299676331.1 | BF23: 207943 | BG23: 299676331.1 | BH23: 207943 | BI23: 299676331.1 | BJ23: 207943
A24: 0.079 | B24: 2019-11-01 | C24: =((AVERAGE(BH$51:BH$62)/AVERAGE(BH$39:BH$50))-1) -> 0.03530052044 | G24: 0.06 | H24: =((AVERAGE(BG$51:BG$62)/AVERAGE(BG$39:BG$50))-1) -> 0.03234018023 | N24: 2016-10-01 | O24: 281198921.8 | P24: 225634 | Q24: 281198921.8 | R24: 225634 | S24: 281198921.8 | T24: 225634 | U24: 281198921.8 | V24: 225634 | W24: 281198921.8 | X24: 225634 | Y24: 281198921.8 | Z24: 225634 | AA24: 281198921.8 | AB24: 225634 | AC24: 281198921.8 | AD24: 225634 | AE24: 281198921.8 | AF24: 225634 | AG24: 281198921.8 | AH24: 225634 | AI24: 281198921.8 | AJ24: 225634 | AK24: 281198921.8 | AL24: 225634 | AM24: 281198921.8 | AN24: 225634 | AO24: 281198921.8 | AP24: 225634 | AQ24: 281198921.8 | AR24: 225634 | AS24: 281198921.8 | AT24: 225634 | AU24: 281198921.8 | AV24: 225634 | AW24: 281198921.8 | AX24: 225634 | AY24: 281198921.8 | AZ24: 225634 | BA24: 281198921.8 | BB24: 225634 | BC24: 281198921.8 | BD24: 225634 | BE24: 281198921.8 | BF24: 225634 | BG24: 281198921.8 | BH24: 225634 | BI24: 281198921.8 | BJ24: 225634
A25: 0.079 | B25: 2019-12-01 | C25: =((AVERAGE(BJ$51:BJ$62)/AVERAGE(BJ$39:BJ$50))-1) -> 0.03638500232 | G25: 0.06 | H25: =((AVERAGE(BI$51:BI$62)/AVERAGE(BI$39:BI$50))-1) -> 0.03136690848 | N25: 2016-11-01 | O25: 302079308.2 | P25: 220328 | Q25: 302079308.2 | R25: 220328 | S25: 302079308.2 | T25: 220328 | U25: 302079308.2 | V25: 220328 | W25: 302079308.2 | X25: 220328 | Y25: 302079308.2 | Z25: 220328 | AA25: 302079308.2 | AB25: 220328 | AC25: 302079308.2 | AD25: 220328 | AE25: 302079308.2 | AF25: 220328 | AG25: 302079308.2 | AH25: 220328 | AI25: 302079308.2 | AJ25: 220328 | AK25: 302079308.2 | AL25: 220328 | AM25: 302079308.2 | AN25: 220328 | AO25: 302079308.2 | AP25: 220328 | AQ25: 302079308.2 | AR25: 220328 | AS25: 302079308.2 | AT25: 220328 | AU25: 302079308.2 | AV25: 220328 | AW25: 302079308.2 | AX25: 220328 | AY25: 302079308.2 | AZ25: 220328 | BA25: 302079308.2 | BB25: 220328 | BC25: 302079308.2 | BD25: 220328 | BE25: 302079308.2 | BF25: 220328 | BG25: 302079308.2 | BH25: 220328 | BI25: 302079308.2 | BJ25: 220328
N26: 2016-12-01 | O26: 276641661.9 | P26: 208182 | Q26: 276641661.9 | R26: 208182 | S26: 276641661.9 | T26: 208182 | U26: 276641661.9 | V26: 208182 | W26: 276641661.9 | X26: 208182 | Y26: 276641661.9 | Z26: 208182 | AA26: 276641661.9 | AB26: 208182 | AC26: 276641661.9 | AD26: 208182 | AE26: 276641661.9 | AF26: 208182 | AG26: 276641661.9 | AH26: 208182 | AI26: 276641661.9 | AJ26: 208182 | AK26: 276641661.9 | AL26: 208182 | AM26: 276641661.9 | AN26: 208182 | AO26: 276641661.9 | AP26: 208182 | AQ26: 276641661.9 | AR26: 208182 | AS26: 276641661.9 | AT26: 208182 | AU26: 276641661.9 | AV26: 208182 | AW26: 276641661.9 | AX26: 208182 | AY26: 276641661.9 | AZ26: 208182 | BA26: 276641661.9 | BB26: 208182 | BC26: 276641661.9 | BD26: 208182 | BE26: 276641661.9 | BF26: 208182 | BG26: 276641661.9 | BH26: 208182 | BI26: 276641661.9 | BJ26: 208182
N27: 2017-01-01 | O27: 264975684.5 | P27: 212821 | Q27: 264975684.5 | R27: 212821 | S27: 264975684.5 | T27: 212821 | U27: 264975684.5 | V27: 212821 | W27: 264975684.5 | X27: 212821 | Y27: 264975684.5 | Z27: 212821 | AA27: 264975684.5 | AB27: 212821 | AC27: 264975684.5 | AD27: 212821 | AE27: 264975684.5 | AF27: 212821 | AG27: 264975684.5 | AH27: 212821 | AI27: 264975684.5 | AJ27: 212821 | AK27: 264975684.5 | AL27: 212821 | AM27: 264975684.5 | AN27: 212821 | AO27: 264975684.5 | AP27: 212821 | AQ27: 264975684.5 | AR27: 212821 | AS27: 264975684.5 | AT27: 212821 | AU27: 264975684.5 | AV27: 212821 | AW27: 264975684.5 | AX27: 212821 | AY27: 264975684.5 | AZ27: 212821 | BA27: 264975684.5 | BB27: 212821 | BC27: 264975684.5 | BD27: 212821 | BE27: 264975684.5 | BF27: 212821 | BG27: 264975684.5 | BH27: 212821 | BI27: 264975684.5 | BJ27: 212821
N28: 2017-02-01 | O28: 264704995.4 | P28: 177524 | Q28: 264704995.4 | R28: 177524 | S28: 264704995.4 | T28: 177524 | U28: 264704995.4 | V28: 177524 | W28: 264704995.4 | X28: 177524 | Y28: 264704995.4 | Z28: 177524 | AA28: 264704995.4 | AB28: 177524 | AC28: 264704995.4 | AD28: 177524 | AE28: 264704995.4 | AF28: 177524 | AG28: 264704995.4 | AH28: 177524 | AI28: 264704995.4 | AJ28: 177524 | AK28: 264704995.4 | AL28: 177524 | AM28: 264704995.4 | AN28: 177524 | AO28: 264704995.4 | AP28: 177524 | AQ28: 264704995.4 | AR28: 177524 | AS28: 264704995.4 | AT28: 177524 | AU28: 264704995.4 | AV28: 177524 | AW28: 264704995.4 | AX28: 177524 | AY28: 264704995.4 | AZ28: 177524 | BA28: 264704995.4 | BB28: 177524 | BC28: 264704995.4 | BD28: 177524 | BE28: 264704995.4 | BF28: 177524 | BG28: 264704995.4 | BH28: 177524 | BI28: 264704995.4 | BJ28: 177524
N29: 2017-03-01 | O29: 305008132.4 | P29: 201316 | Q29: 305008132.4 | R29: 201316 | S29: 305008132.4 | T29: 201316 | U29: 305008132.4 | V29: 201316 | W29: 305008132.4 | X29: 201316 | Y29: 305008132.4 | Z29: 201316 | AA29: 305008132.4 | AB29: 201316 | AC29: 305008132.4 | AD29: 201316 | AE29: 305008132.4 | AF29: 201316 | AG29: 305008132.4 | AH29: 201316 | AI29: 305008132.4 | AJ29: 201316 | AK29: 305008132.4 | AL29: 201316 | AM29: 305008132.4 | AN29: 201316 | AO29: 305008132.4 | AP29: 201316 | AQ29: 305008132.4 | AR29: 201316 | AS29: 305008132.4 | AT29: 201316 | AU29: 305008132.4 | AV29: 201316 | AW29: 305008132.4 | AX29: 201316 | AY29: 305008132.4 | AZ29: 201316 | BA29: 305008132.4 | BB29: 201316 | BC29: 305008132.4 | BD29: 201316 | BE29: 305008132.4 | BF29: 201316 | BG29: 305008132.4 | BH29: 201316 | BI29: 305008132.4 | BJ29: 201316
N30: 2017-04-01 | O30: 273144021.8 | P30: 208427 | Q30: 273144021.8 | R30: 208427 | S30: 273144021.8 | T30: 208427 | U30: 273144021.8 | V30: 208427 | W30: 273144021.8 | X30: 208427 | Y30: 273144021.8 | Z30: 208427 | AA30: 273144021.8 | AB30: 208427 | AC30: 273144021.8 | AD30: 208427 | AE30: 273144021.8 | AF30: 208427 | AG30: 273144021.8 | AH30: 208427 | AI30: 273144021.8 | AJ30: 208427 | AK30: 273144021.8 | AL30: 208427 | AM30: 273144021.8 | AN30: 208427 | AO30: 273144021.8 | AP30: 208427 | AQ30: 273144021.8 | AR30: 208427 | AS30: 273144021.8 | AT30: 208427 | AU30: 273144021.8 | AV30: 208427 | AW30: 273144021.8 | AX30: 208427 | AY30: 273144021.8 | AZ30: 208427 | BA30: 273144021.8 | BB30: 208427 | BC30: 273144021.8 | BD30: 208427 | BE30: 273144021.8 | BF30: 208427 | BG30: 273144021.8 | BH30: 208427 | BI30: 273144021.8 | BJ30: 208427
N31: 2017-05-01 | O31: 337304801.4 | P31: 259778 | Q31: 337304801.4 | R31: 259778 | S31: 337304801.4 | T31: 259778 | U31: 337304801.4 | V31: 259778 | W31: 337304801.4 | X31: 259778 | Y31: 337304801.4 | Z31: 259778 | AA31: 337304801.4 | AB31: 259778 | AC31: 337304801.4 | AD31: 259778 | AE31: 337304801.4 | AF31: 259778 | AG31: 337304801.4 | AH31: 259778 | AI31: 337304801.4 | AJ31: 259778 | AK31: 337304801.4 | AL31: 259778 | AM31: 337304801.4 | AN31: 259778 | AO31: 337304801.4 | AP31: 259778 | AQ31: 337304801.4 | AR31: 259778 | AS31: 337304801.4 | AT31: 259778 | AU31: 337304801.4 | AV31: 259778 | AW31: 337304801.4 | AX31: 259778 | AY31: 337304801.4 | AZ31: 259778 | BA31: 337304801.4 | BB31: 259778 | BC31: 337304801.4 | BD31: 259778 | BE31: 337304801.4 | BF31: 259778 | BG31: 337304801.4 | BH31: 259778 | BI31: 337304801.4 | BJ31: 259778
N32: 2017-06-01 | O32: 344041052.3 | P32: 257775 | Q32: 344041052.3 | R32: 257775 | S32: 344041052.3 | T32: 257775 | U32: 344041052.3 | V32: 257775 | W32: 344041052.3 | X32: 257775 | Y32: 344041052.3 | Z32: 257775 | AA32: 344041052.3 | AB32: 257775 | AC32: 344041052.3 | AD32: 257775 | AE32: 344041052.3 | AF32: 257775 | AG32: 344041052.3 | AH32: 257775 | AI32: 344041052.3 | AJ32: 257775 | AK32: 344041052.3 | AL32: 257775 | AM32: 344041052.3 | AN32: 257775 | AO32: 344041052.3 | AP32: 257775 | AQ32: 344041052.3 | AR32: 257775 | AS32: 344041052.3 | AT32: 257775 | AU32: 344041052.3 | AV32: 257775 | AW32: 344041052.3 | AX32: 257775 | AY32: 344041052.3 | AZ32: 257775 | BA32: 344041052.3 | BB32: 257775 | BC32: 344041052.3 | BD32: 257775 | BE32: 344041052.3 | BF32: 257775 | BG32: 344041052.3 | BH32: 257775 | BI32: 344041052.3 | BJ32: 257775
N33: 2017-07-01 | O33: 367511664.9 | P33: 251060 | Q33: 367511664.9 | R33: 251060 | S33: 367511664.9 | T33: 251060 | U33: 367511664.9 | V33: 251060 | W33: 367511664.9 | X33: 251060 | Y33: 367511664.9 | Z33: 251060 | AA33: 367511664.9 | AB33: 251060 | AC33: 367511664.9 | AD33: 251060 | AE33: 367511664.9 | AF33: 251060 | AG33: 367511664.9 | AH33: 251060 | AI33: 367511664.9 | AJ33: 251060 | AK33: 367511664.9 | AL33: 251060 | AM33: 367511664.9 | AN33: 251060 | AO33: 367511664.9 | AP33: 251060 | AQ33: 367511664.9 | AR33: 251060 | AS33: 367511664.9 | AT33: 251060 | AU33: 367511664.9 | AV33: 251060 | AW33: 367511664.9 | AX33: 251060 | AY33: 367511664.9 | AZ33: 251060 | BA33: 367511664.9 | BB33: 251060 | BC33: 367511664.9 | BD33: 251060 | BE33: 367511664.9 | BF33: 251060 | BG33: 367511664.9 | BH33: 251060 | BI33: 367511664.9 | BJ33: 251060
N34: 2017-08-01 | O34: 326471103.6 | P34: 218139 | Q34: 326471103.6 | R34: 218139 | S34: 326471103.6 | T34: 218139 | U34: 326471103.6 | V34: 218139 | W34: 326471103.6 | X34: 218139 | Y34: 326471103.6 | Z34: 218139 | AA34: 326471103.6 | AB34: 218139 | AC34: 326471103.6 | AD34: 218139 | AE34: 326471103.6 | AF34: 218139 | AG34: 326471103.6 | AH34: 218139 | AI34: 326471103.6 | AJ34: 218139 | AK34: 326471103.6 | AL34: 218139 | AM34: 326471103.6 | AN34: 218139 | AO34: 326471103.6 | AP34: 218139 | AQ34: 326471103.6 | AR34: 218139 | AS34: 326471103.6 | AT34: 218139 | AU34: 326471103.6 | AV34: 218139 | AW34: 326471103.6 | AX34: 218139 | AY34: 326471103.6 | AZ34: 218139 | BA34: 326471103.6 | BB34: 218139 | BC34: 326471103.6 | BD34: 218139 | BE34: 326471103.6 | BF34: 218139 | BG34: 326471103.6 | BH34: 218139 | BI34: 326471103.6 | BJ34: 218139
N35: 2017-09-01 | O35: 342733767.4 | P35: 241468 | Q35: 342733767.4 | R35: 241468 | S35: 342733767.4 | T35: 241468 | U35: 342733767.4 | V35: 241468 | W35: 342733767.4 | X35: 241468 | Y35: 342733767.4 | Z35: 241468 | AA35: 342733767.4 | AB35: 241468 | AC35: 342733767.4 | AD35: 241468 | AE35: 342733767.4 | AF35: 241468 | AG35: 342733767.4 | AH35: 241468 | AI35: 342733767.4 | AJ35: 241468 | AK35: 342733767.4 | AL35: 241468 | AM35: 342733767.4 | AN35: 241468 | AO35: 342733767.4 | AP35: 241468 | AQ35: 342733767.4 | AR35: 241468 | AS35: 342733767.4 | AT35: 241468 | AU35: 342733767.4 | AV35: 241468 | AW35: 342733767.4 | AX35: 241468 | AY35: 342733767.4 | AZ35: 241468 | BA35: 342733767.4 | BB35: 241468 | BC35: 342733767.4 | BD35: 241468 | BE35: 342733767.4 | BF35: 241468 | BG35: 342733767.4 | BH35: 241468 | BI35: 342733767.4 | BJ35: 241468
N36: 2017-10-01 | O36: 348193713.7 | P36: 262469 | Q36: 348193713.7 | R36: 262469 | S36: 348193713.7 | T36: 262469 | U36: 348193713.7 | V36: 262469 | W36: 348193713.7 | X36: 262469 | Y36: 348193713.7 | Z36: 262469 | AA36: 348193713.7 | AB36: 262469 | AC36: 348193713.7 | AD36: 262469 | AE36: 348193713.7 | AF36: 262469 | AG36: 348193713.7 | AH36: 262469 | AI36: 348193713.7 | AJ36: 262469 | AK36: 348193713.7 | AL36: 262469 | AM36: 348193713.7 | AN36: 262469 | AO36: 348193713.7 | AP36: 262469 | AQ36: 348193713.7 | AR36: 262469 | AS36: 348193713.7 | AT36: 262469 | AU36: 348193713.7 | AV36: 262469 | AW36: 348193713.7 | AX36: 262469 | AY36: 348193713.7 | AZ36: 262469 | BA36: 348193713.7 | BB36: 262469 | BC36: 348193713.7 | BD36: 262469 | BE36: 348193713.7 | BF36: 262469 | BG36: 348193713.7 | BH36: 262469 | BI36: 348193713.7 | BJ36: 262469
N37: 2017-11-01 | O37: 360609182.7 | P37: 236691 | Q37: 360609182.7 | R37: 236691 | S37: 360609182.7 | T37: 236691 | U37: 360609182.7 | V37: 236691 | W37: 360609182.7 | X37: 236691 | Y37: 360609182.7 | Z37: 236691 | AA37: 360609182.7 | AB37: 236691 | AC37: 360609182.7 | AD37: 236691 | AE37: 360609182.7 | AF37: 236691 | AG37: 360609182.7 | AH37: 236691 | AI37: 360609182.7 | AJ37: 236691 | AK37: 360609182.7 | AL37: 236691 | AM37: 360609182.7 | AN37: 236691 | AO37: 360609182.7 | AP37: 236691 | AQ37: 360609182.7 | AR37: 236691 | AS37: 360609182.7 | AT37: 236691 | AU37: 360609182.7 | AV37: 236691 | AW37: 360609182.7 | AX37: 236691 | AY37: 360609182.7 | AZ37: 236691 | BA37: 360609182.7 | BB37: 236691 | BC37: 360609182.7 | BD37: 236691 | BE37: 360609182.7 | BF37: 236691 | BG37: 360609182.7 | BH37: 236691 | BI37: 360609182.7 | BJ37: 236691
N38: 2017-12-01 | O38: 316170671.8 | P38: 228084 | Q38: 316170671.8 | R38: 228084 | S38: 316170671.8 | T38: 228084 | U38: 316170671.8 | V38: 228084 | W38: 316170671.8 | X38: 228084 | Y38: 316170671.8 | Z38: 228084 | AA38: 316170671.8 | AB38: 228084 | AC38: 316170671.8 | AD38: 228084 | AE38: 316170671.8 | AF38: 228084 | AG38: 316170671.8 | AH38: 228084 | AI38: 316170671.8 | AJ38: 228084 | AK38: 316170671.8 | AL38: 228084 | AM38: 316170671.8 | AN38: 228084 | AO38: 316170671.8 | AP38: 228084 | AQ38: 316170671.8 | AR38: 228084 | AS38: 316170671.8 | AT38: 228084 | AU38: 316170671.8 | AV38: 228084 | AW38: 316170671.8 | AX38: 228084 | AY38: 316170671.8 | AZ38: 228084 | BA38: 316170671.8 | BB38: 228084 | BC38: 316170671.8 | BD38: 228084 | BE38: 316170671.8 | BF38: 228084 | BG38: 316170671.8 | BH38: 228084 | BI38: 316170671.8 | BJ38: 228084
D39: CDPs | I39: Facturación | N39: 2018-01-01 | O39: 318216828.3 | P39: 238456 | Q39: 318216828.3 | R39: 238456 | S39: 318216828.3 | T39: 238456 | U39: 318216828.3 | V39: 238456 | W39: 318216828.3 | X39: 238456 | Y39: 318216828.3 | Z39: 238456 | AA39: 318216828.3 | AB39: 238456 | AC39: 318216828.3 | AD39: 238456 | AE39: 318216828.3 | AF39: 238456 | AG39: 318216828.3 | AH39: 238456 | AI39: 318216828.3 | AJ39: 238456 | AK39: 318216828.3 | AL39: 238456 | AM39: 318216828.3 | AN39: 238456 | AO39: 318216828.3 | AP39: 238456 | AQ39: 318216828.3 | AR39: 238456 | AS39: 318216828.3 | AT39: 238456 | AU39: 318216828.3 | AV39: 238456 | AW39: 318216828.3 | AX39: 238456 | AY39: 318216828.3 | AZ39: 238456 | BA39: 318216828.3 | BB39: 238456 | BC39: 318216828.3 | BD39: 238456 | BE39: 318216828.3 | BF39: 238456 | BG39: 318216828.3 | BH39: 238456 | BI39: 318216828.3 | BJ39: 238456 | BM39: =BI39 -> 318216828.3 | BN39: =BJ39 -> 238456 | BO39: =N39 -> 2018-01-01
N40: 2018-02-01 | O40: 304555743.5 | P40: 192625.813 | Q40: 304349801.1 | R40: 196310 | S40: 304349801.1 | T40: 196310 | U40: 304349801.1 | V40: 196310 | W40: 304349801.1 | X40: 196310 | Y40: 304349801.1 | Z40: 196310 | AA40: 304349801.1 | AB40: 196310 | AC40: 304349801.1 | AD40: 196310 | AE40: 304349801.1 | AF40: 196310 | AG40: 304349801.1 | AH40: 196310 | AI40: 304349801.1 | AJ40: 196310 | AK40: 304349801.1 | AL40: 196310 | AM40: 304349801.1 | AN40: 196310 | AO40: 304349801.1 | AP40: 196310 | AQ40: 304349801.1 | AR40: 196310 | AS40: 304349801.1 | AT40: 196310 | AU40: 304349801.1 | AV40: 196310 | AW40: 304349801.1 | AX40: 196310 | AY40: 304349801.1 | AZ40: 196310 | BA40: 304349801.1 | BB40: 196310 | BC40: 304349801.1 | BD40: 196310 | BE40: 304349801.1 | BF40: 196310 | BG40: 304349801.1 | BH40: 196310 | BI40: 304349801.1 | BJ40: 196310 | BM40: =BI40 -> 304349801.1 | BN40: =BJ40 -> 196310 | BO40: 2018-02-01
N41: 2018-03-01 | O41: 330855614.5 | P41: 216676.8045 | Q41: 332425308.4 | R41: 219513.6927 | S41: 324418942.1 | T41: 215600 | U41: 324418942.1 | V41: 215600 | W41: 324418942.1 | X41: 215600 | Y41: 324418942.1 | Z41: 215600 | AA41: 324418942.1 | AB41: 215600 | AC41: 324418942.1 | AD41: 215600 | AE41: 324418942.1 | AF41: 215600 | AG41: 324418942.1 | AH41: 215600 | AI41: 324418942.1 | AJ41: 215600 | AK41: 324418942.1 | AL41: 215600 | AM41: 324418942.1 | AN41: 215600 | AO41: 324418942.1 | AP41: 215600 | AQ41: 324418942.1 | AR41: 215600 | AS41: 324418942.1 | AT41: 215600 | AU41: 324418942.1 | AV41: 215600 | AW41: 324418942.1 | AX41: 215600 | AY41: 324418942.1 | AZ41: 215600 | BA41: 324418942.1 | BB41: 215600 | BC41: 324418942.1 | BD41: 215600 | BE41: 324418942.1 | BF41: 215600 | BG41: 324418942.1 | BH41: 215600 | BI41: 324418942.1 | BJ41: 215600 | BM41: 324418942.1 | BN41: 215600 | BO41: 2018-03-01
N42: 2018-04-01 | O42: 319537850.8 | P42: 226135.7929 | Q42: 326121317.8 | R42: 233837.4659 | S42: 329305227.5 | T42: 234597.4448 | U42: 327624029.8 | V42: 237825 | W42: 327624029.8 | X42: 237825 | Y42: 327624029.8 | Z42: 237825 | AA42: 327624029.8 | AB42: 237825 | AC42: 327624029.8 | AD42: 237825 | AE42: 327624029.8 | AF42: 237825 | AG42: 327624029.8 | AH42: 237825 | AI42: 327624029.8 | AJ42: 237825 | AK42: 327624029.8 | AL42: 237825 | AM42: 327624029.8 | AN42: 237825 | AO42: 327624029.8 | AP42: 237825 | AQ42: 327624029.8 | AR42: 237825 | AS42: 327624029.8 | AT42: 237825 | AU42: 327624029.8 | AV42: 237825 | AW42: 327624029.8 | AX42: 237825 | AY42: 327624029.8 | AZ42: 237825 | BA42: 327624029.8 | BB42: 237825 | BC42: 327624029.8 | BD42: 237825 | BE42: 327624029.8 | BF42: 237825 | BG42: 327624029.8 | BH42: 237825 | BI42: 327624029.8 | BJ42: 237825 | BM42: 327624029.8 | BN42: 237825 | BO42: 2018-04-01
N43: 2018-05-01 | O43: 377065853.4 | P43: 273408.3363 | Q43: 382945177.9 | R43: 282043.5569 | S43: 382215518.4 | T43: 279953.6651 | U43: 380226822.4 | V43: 276993.2258 | W43: 361922689.8 | X43: 261334 | Y43: 361922689.8 | Z43: 261334 | AA43: 361922689.8 | AB43: 261334 | AC43: 361922689.8 | AD43: 261334 | AE43: 361922689.8 | AF43: 261334 | AG43: 361922689.8 | AH43: 261334 | AI43: 361922689.8 | AJ43: 261334 | AK43: 361922689.8 | AL43: 261334 | AM43: 361922689.8 | AN43: 261334 | AO43: 361922689.8 | AP43: 261334 | AQ43: 361922689.8 | AR43: 261334 | AS43: 361922689.8 | AT43: 261334 | AU43: 361922689.8 | AV43: 261334 | AW43: 361922689.8 | AX43: 261334 | AY43: 361922689.8 | AZ43: 261334 | BA43: 361922689.8 | BB43: 261334 | BC43: 361922689.8 | BD43: 261334 | BE43: 361922689.8 | BF43: 261334 | BG43: 361922689.8 | BH43: 261334 | BI43: 361922689.8 | BJ43: 261334 | BM43: 361922689.8 | BN43: 261334 | BO43: 2018-05-01
N44: 2018-06-01 | O44: 385890219.4 | P44: 278821.7236 | Q44: 393563103.6 | R44: 286218.0783 | S44: 393132779 | T44: 284206.0825 | U44: 390302758.9 | V44: 282272.3614 | W44: 394199608.7 | X44: 285295.2265 | Y44: 363364629.6 | Z44: 268829 | AA44: 363364629.6 | AB44: 268829 | AC44: 363364629.6 | AD44: 268829 | AE44: 363364629.6 | AF44: 268829 | AG44: 363364629.6 | AH44: 268829 | AI44: 363364629.6 | AJ44: 268829 | AK44: 363364629.6 | AL44: 268829 | AM44: 363364629.6 | AN44: 268829 | AO44: 363364629.6 | AP44: 268829 | AQ44: 363364629.6 | AR44: 268829 | AS44: 363364629.6 | AT44: 268829 | AU44: 363364629.6 | AV44: 268829 | AW44: 363364629.6 | AX44: 268829 | AY44: 363364629.6 | AZ44: 268829 | BA44: 363364629.6 | BB44: 268829 | BC44: 363364629.6 | BD44: 268829 | BE44: 363364629.6 | BF44: 268829 | BG44: 363364629.6 | BH44: 268829 | BI44: 363364629.6 | BJ44: 268829 | BM44: 363364629.6 | BN44: 268829 | BO44: =N44 -> 2018-06-01
N45: 2018-07-01 | O45: 423701952.7 | P45: 271881.7446 | Q45: 438799146.3 | R45: 280716.6126 | S45: 437061903.6 | T45: 279200.2525 | U45: 434193986 | V45: 277762.467 | W45: 440348496.6 | X45: 281863.3797 | Y45: 432213664.3 | Z45: 273545.8087 | AA45: 392011058.3 | AB45: 277776 | AC45: 392011058.3 | AD45: 277776 | AE45: 392011058.3 | AF45: 277776 | AG45: 392011058.3 | AH45: 277776 | AI45: 392011058.3 | AJ45: 277776 | AK45: 392011058.3 | AL45: 277776 | AM45: 392011058.3 | AN45: 277776 | AO45: 392011058.3 | AP45: 277776 | AQ45: 392011058.3 | AR45: 277776 | AS45: 392011058.3 | AT45: 277776 | AU45: 392011058.3 | AV45: 277776 | AW45: 392011058.3 | AX45: 277776 | AY45: 392011058.3 | AZ45: 277776 | BA45: 392011058.3 | BB45: 277776 | BC45: 392011058.3 | BD45: 277776 | BE45: 392011058.3 | BF45: 277776 | BG45: 392011058.3 | BH45: 277776 | BI45: 392011058.3 | BJ45: 277776 | BM45: 392011058.3 | BN45: 277776 | BO45: 2018-07-01
N46: 2018-08-01 | O46: 358215702.5 | P46: 235964.9404 | Q46: 367897151.7 | R46: 243031.5168 | S46: 365986714.1 | T46: 240672.0478 | U46: 363425656.9 | V46: 239138.9548 | W46: 368105679.4 | X46: 242286.899 | Y46: 356390252.4 | Z46: 233871.2245 | AA46: 357164128.9 | AB46: 234720.4759 | AC46: 336995840.3 | AD46: 233598 | AE46: 336995840.3 | AF46: 233598 | AG46: 336995840.3 | AH46: 233598 | AI46: 336995840.3 | AJ46: 233598 | AK46: 336995840.3 | AL46: 233598 | AM46: 336995840.3 | AN46: 233598 | AO46: 336995840.3 | AP46: 233598 | AQ46: 336995840.3 | AR46: 233598 | AS46: 336995840.3 | AT46: 233598 | AU46: 336995840.3 | AV46: 233598 | AW46: 336995840.3 | AX46: 233598 | AY46: 336995840.3 | AZ46: 233598 | BA46: 336995840.3 | BB46: 233598 | BC46: 336995840.3 | BD46: 233598 | BE46: 336995840.3 | BF46: 233598 | BG46: 336995840.3 | BH46: 233598 | BI46: 336995840.3 | BJ46: 233598 | BM46: 336995840.3 | BN46: 233598 | BO46: 2018-08-01
N47: 2018-09-01 | O47: 385952898.5 | P47: 271160.4379 | Q47: 395956739.4 | R47: 278295.3696 | S47: 395042698.5 | T47: 275971.0132 | U47: 393298515.5 | V47: 274934.1552 | W47: 399858876.1 | X47: 278168.9972 | Y47: 388416164 | Z47: 270368.1548 | AA47: 387828519.8 | AB47: 267428.2164 | AC47: 373485510.3 | AD47: 268883.4064 | AE47: 334706100.2 | AF47: 254363 | AG47: 334706100.2 | AH47: 254363 | AI47: 334706100.2 | AJ47: 254363 | AK47: 334706100.2 | AL47: 254363 | AM47: 334706100.2 | AN47: 254363 | AO47: 334706100.2 | AP47: 254363 | AQ47: 334706100.2 | AR47: 254363 | AS47: 334706100.2 | AT47: 254363 | AU47: 334706100.2 | AV47: 254363 | AW47: 334706100.2 | AX47: 254363 | AY47: 334706100.2 | AZ47: 254363 | BA47: 334706100.2 | BB47: 254363 | BC47: 334706100.2 | BD47: 254363 | BE47: 334706100.2 | BF47: 254363 | BG47: 334706100.2 | BH47: 254363 | BI47: 334706100.2 | BJ47: 254363 | BM47: 334706100.2 | BN47: 254363 | BO47: 2018-09-01
N48: 2018-10-01 | O48: 392777528.5 | P48: 295682.8763 | Q48: 401375858 | R48: 303987.0818 | S48: 400470893.8 | T48: 301584.0279 | U48: 399338199.8 | V48: 300465.7269 | W48: 405661150.6 | X48: 304446.7639 | Y48: 395880720.7 | Z48: 296265.1656 | AA48: 396895811.5 | AB48: 295181.2602 | AC48: 385124570.7 | AD48: 296298.2491 | AE48: 364083180.6 | AF48: 292731.4651 | AG48: 362127342.7 | AH48: 291630 | AI48: 362127342.7 | AJ48: 291630 | AK48: 362127342.7 | AL48: 291630 | AM48: 362127342.7 | AN48: 291630 | AO48: 362127342.7 | AP48: 291630 | AQ48: 362127342.7 | AR48: 291630 | AS48: 362127342.7 | AT48: 291630 | AU48: 362127342.7 | AV48: 291630 | AW48: 362127342.7 | AX48: 291630 | AY48: 362127342.7 | AZ48: 291630 | BA48: 362127342.7 | BB48: 291630 | BC48: 362127342.7 | BD48: 291630 | BE48: 362127342.7 | BF48: 291630 | BG48: 362127342.7 | BH48: 291630 | BI48: 362127342.7 | BJ48: 291630 | BM48: 362127342.7 | BN48: 291630 | BO48: 2018-10-01
N49: 2018-11-01 | O49: 385658218.5 | P49: 269357.5933 | Q49: 395944096.8 | R49: 276269.6946 | S49: 393525741.9 | T49: 273650.9151 | U49: 393047219.2 | V49: 272662.0192 | W49: 397998407.4 | X49: 276024.4306 | Y49: 389721202 | Z49: 268225.643 | AA49: 388283846.9 | AB49: 267275.1218 | AC49: 384639544.7 | AD49: 268232.7191 | AE49: 361341274.9 | AF49: 260696.7243 | AG49: 349951453.8 | AH49: 250919.9277 | AI49: 355289050.6 | AJ49: 271921 | AK49: 355289050.6 | AL49: 271921 | AM49: 355289050.6 | AN49: 271921 | AO49: 355289050.6 | AP49: 271921 | AQ49: 355289050.6 | AR49: 271921 | AS49: 355289050.6 | AT49: 271921 | AU49: 355289050.6 | AV49: 271921 | AW49: 355289050.6 | AX49: 271921 | AY49: 355289050.6 | AZ49: 271921 | BA49: 355289050.6 | BB49: 271921 | BC49: 355289050.6 | BD49: 271921 | BE49: 355289050.6 | BF49: 271921 | BG49: 355289050.6 | BH49: 271921 | BI49: 355289050.6 | BJ49: 271921 | BM49: 355289050.6 | BN49: 271921 | BO49: 2018-11-01
N50: 2018-12-01 | O50: 352771275.7 | P50: 258799.8132 | Q50: 360200079 | R50: 265363.4695 | S50: 359319204.5 | T50: 262921.2469 | U50: 358329521.6 | V50: 262336.8531 | W50: 364537594.1 | X50: 265446.872 | Y50: 354092532.5 | Z50: 258415.0071 | AA50: 355394330.4 | AB50: 257057.9368 | AC50: 343861744.1 | AD50: 257853.0378 | AE50: 329465772.4 | AF50: 251326.298 | AG50: 317553556.6 | AH50: 242034.6332 | AI50: 312525296.7 | AJ50: 245153.08 | AK50: 310586470.2 | AL50: 249931 | AM50: 310586470.2 | AN50: 249931 | AO50: 310586470.2 | AP50: 249931 | AQ50: 310586470.2 | AR50: 249931 | AS50: 310586470.2 | AT50: 249931 | AU50: 310586470.2 | AV50: 249931 | AW50: 310586470.2 | AX50: 249931 | AY50: 310586470.2 | AZ50: 249931 | BA50: 310586470.2 | BB50: 249931 | BC50: 310586470.2 | BD50: 249931 | BE50: 310586470.2 | BF50: 249931 | BG50: 310586470.2 | BH50: 249931 | BI50: 310586470.2 | BJ50: 249931 | BM50: 310586470.2 | BN50: 249931 | BO50: 2018-12-01
B51: Control | N51: 2019-01-01 | O51: 336991446.2 | P51: 252693.6235 | Q51: 347930899.2 | R51: 262156.5613 | S51: 346386941 | T51: 259540.1558 | U51: 346249254.4 | V51: 258998.8231 | W51: 352599871.1 | X51: 262582.8701 | Y51: 344051906.8 | Z51: 255787.8108 | AA51: 344587657.9 | AB51: 254887.0206 | AC51: 337383447 | AD51: 256532.2675 | AE51: 320681508.1 | AF51: 248904.9953 | AG51: 310358881.1 | AH51: 239769.1699 | AI51: 303253936.5 | AJ51: 243295.2549 | AK51: 314658967.4 | AL51: 250678.2772 | AM51: 327669711.7 | AN51: 249801 | AO51: 327669711.7 | AP51: 249801 | AQ51: 327669711.7 | AR51: 249801 | AS51: 327669711.7 | AT51: 249801 | AU51: 327669711.7 | AV51: 249801 | AW51: 327669711.7 | AX51: 249801 | AY51: 327669711.7 | AZ51: 249801 | BA51: 327669711.7 | BB51: 249801 | BC51: 327669711.7 | BD51: 249801 | BE51: 327669711.7 | BF51: 249801 | BG51: 327669711.7 | BH51: 249801 | BI51: 327669711.7 | BJ51: 249801 | BM51: 327669711.7 | BN51: 249801 | BO51: 2019-01-01
A52: iAnual | D52: p | H52: iAnual | K52: p | N52: 2019-02-01 | O52: 332968878.5 | P52: 215832.551 | Q52: 339551176.7 | R52: 221903.8503 | S52: 336312682 | T52: 219967.4203 | U52: 335883244.8 | V52: 219571.9367 | W52: 340832071 | X52: 222384.5985 | Y52: 333407222 | Z52: 216586.5927 | AA52: 329142121.1 | AB52: 216028.8403 | AC52: 328631292.9 | AD52: 217351.9261 | AE52: 313988893.7 | AF52: 210200.6682 | AG52: 303431838.3 | AH52: 202482.8008 | AI52: 294458527.2 | AJ52: 204783.248 | AK52: 307636255.3 | AL52: 213262.8624 | AM52: 306958052.6 | AN52: 208091.6706 | AO52: 305837745.2 | AP52: 201433 | AQ52: 305837745.2 | AR52: =$AT52 -> 201433 | AS52: 305837745.2 | AT52: 201433 | AU52: =$AS52 -> 305837745.2 | AV52: 201433 | AW52: 305837745.2 | AX52: 201433 | AY52: 305837745.2 | AZ52: 201433 | BA52: 305837745.2 | BB52: 201433 | BC52: 305837745.2 | BD52: 201433 | BE52: 305837745.2 | BF52: 201433 | BG52: 305837745.2 | BH52: 201433 | BI52: 305837745.2 | BJ52: 201433 | BM52: 305837745.2 | BN52: 201433 | BO52: 2019-02-01
B53: 2017 | C53: 2018 | D53: 2019 | I53: 2017 | J53: 2018 | K53: 2019 | N53: 2019-03-01 | O53: 360910958.5 | P53: 241061.2416 | Q53: 365619596.5 | R53: 245157.1418 | S53: 360827992.4 | T53: 242380.3848 | U53: 357640132.8 | V53: 240923.0376 | W53: 363778394.3 | X53: 243928.5537 | Y53: 354869559 | Z53: 237707.8709 | AA53: 352371899.5 | AB53: 237115.551 | AC53: 348534817.4 | AD53: 238852.8259 | AE53: 335010884 | AF53: 231300.6815 | AG53: 323944605.6 | AH53: 223113.6859 | AI53: 317074078.7 | AJ53: 225137.7686 | AK53: 328141339.8 | AL53: 232643.4992 | AM53: 330435510.2 | AN53: 228780.1849 | AO53: 342606618.5 | AP53: 232794.9655 | AQ53: 323862465 | AR53: 224512 | AS53: 323862465 | AT53: 224512 | AU53: =$AS53 -> 323862465 | AV53: 224512 | AW53: =$AU53 -> 323862465 | AX53: 224512 | AY53: =$AW53 -> 323862465 | AZ53: =$AX53 -> 224512 | BA53: 323862465 | BB53: 224512 | BC53: 323862465 | BD53: 224512 | BE53: 323862465 | BF53: 224512 | BG53: 323862465 | BH53: 224512 | BI53: 323862465 | BJ53: 224512 | BM53: 323862465 | BN53: 224512 | BO53: 2019-03-01
A54: CPDs | B54: 0.112 | C54: 0.109 | D54: 0.11 | E54: Sector | H54: Fact | I54: 0.172 | J54: 0.097 | K54: 0.076 | L54: Sector | N54: 2019-04-01 | O54: 353086000.1 | P54: 250115.4645 | Q54: 361986660.2 | R54: 259088.5233 | S54: 362840638.8 | T54: 257846.1341 | U54: 358338680.9 | V54: 257721.7164 | W54: 369182314.2 | X54: 263739.2358 | Y54: 359717417.6 | Z54: 257140.6758 | AA54: 359228035.9 | AB54: 256764.4502 | AC54: 354541722.7 | AD54: 259700.5724 | AE54: 340683697.6 | AF54: 251290.7652 | AG54: 329833781.8 | AH54: 242521.7939 | AI54: 324233014.1 | AJ54: 244873.2638 | AK54: 336437594 | AL54: 253158.1056 | AM54: 336193588 | AN54: 247620.1126 | AO54: 347070045.3 | AP54: 252148.3987 | AQ54: 335113122.2 | AR54: 246063.7405 | AS54: 322516955.3 | AT54: 253926 | AU54: =$AS54 -> 322516955.3 | AV54: 253926 | AW54: =$AU54 -> 322516955.3 | AX54: =$AV54 -> 253926 | AY54: =$AW54 -> 322516955.3 | AZ54: =$AX54 -> 253926 | BA54: 322516955.3 | BB54: 253926 | BC54: 322516955.3 | BD54: 253926 | BE54: 322516955.3 | BF54: 253926 | BG54: 322516955.3 | BH54: 253926 | BI54: 322516955.3 | BJ54: 253926 | BM54: 322516955.3 | BN54: 253926 | BO54: 2019-04-01
A55: CPDs | B55: 0.144 | C55: 0.088 | D55: 0.079 | E55: Asempleo | H55: Fact | I55: 0.17 | J55: 0.063 | K55: 0.06 | L55: Asempleo | N55: 2019-05-01 | O55: 409828200.6 | P55: 299602.4389 | Q55: 419522342.2 | R55: 310163.5671 | S55: 415363171.9 | T55: 305025.8164 | U55: 413681999.4 | V55: 302955.4836 | W55: 426705541.3 | X55: 308850.0275 | Y55: 396347941.5 | Z55: 288687.0207 | AA55: 397791783.8 | AB55: 288347.5496 | AC55: 390706942.6 | AD55: 291052.9186 | AE55: 374661848.7 | AF55: 281342.4566 | AG55: 362638255.8 | AH55: 271568.1703 | AI55: 355595682.7 | AJ55: 273838.9542 | AK55: 369564944.4 | AL55: 283222.9941 | AM55: 368273507.8 | AN55: 276650.5908 | AO55: 377909287.5 | AP55: 281584.8936 | AQ55: 371560098.3 | AR55: 276975.3611 | AS55: 354711577.9 | AT55: 275202.1545 | AU55: 367643444.6 | AV55: 271955 | AW55: =$AU55 -> 367643444.6 | AX55: =$AV55 -> 271955 | AY55: 367643444.6 | AZ55: 271955 | BA55: 367643444.6 | BB55: 271955 | BC55: 367643444.6 | BD55: 271955 | BE55: 367643444.6 | BF55: 271955 | BG55: 367643444.6 | BH55: 271955 | BI55: 367643444.6 | BJ55: 271955 | BM55: 367643444.6 | BN55: 271955 | BO55: 2019-05-01
N56: 2019-06-01 | O56: 425039225.8 | P56: 306959.4745 | Q56: 435273100.7 | R56: 316045.2135 | S56: 431656951.8 | T56: 311153.9055 | U56: 430843504.5 | V56: 311158.4495 | W56: 440636269.1 | X56: 316360.5892 | Y56: 413419787.8 | Z56: 302038.2367 | AA56: 412724895 | AB56: 300280.7312 | AC56: 403392874.2 | AD56: 304671.0439 | AE56: 390735786.5 | AF56: 295065.418 | AG56: 378970969.9 | AH56: 285324.8116 | AI56: 376629869.1 | AJ56: 287231.0006 | AK56: 387438923.6 | AL56: 296455.5944 | AM56: 385618636.3 | AN56: 290215.7294 | AO56: 396680288.9 | AP56: 295704.3173 | AQ56: 392392518 | AR56: 291876.0986 | AS56: 376571415.4 | AT56: 290450.5798 | AU56: 391467160.6 | AV56: 291088.3746 | AW56: 359918540.2 | AX56: 274286 | AY56: =$AW56 -> 359918540.2 | AZ56: =$AX56 -> 274286 | BA56: 359918540.2 | BB56: 274286 | BC56: 359918540.2 | BD56: 274286 | BE56: 359918540.2 | BF56: 274286 | BG56: 359918540.2 | BH56: 274286 | BI56: 359918540.2 | BJ56: 274286 | BM56: 359918540.2 | BN56: 274286 | BO56: 2019-06-01
C57: =E5-C55 -> -0.0001696850577 | D57: =F5-D55 -> -0.04261499768 | E57: =L57 -> may | F57: parece que | J57: =J5-J55 -> -0.0004832007777 | K57: =K5-K55 -> -0.02863309152 | L57: may | M57: parece que | N57: 2019-07-01 | O57: 463241654.8 | P57: 295575.1111 | Q57: 483142175.9 | R57: 306310.3441 | S57: 477421035.1 | T57: 302222.3471 | U57: 476003024.3 | V57: 302160.943 | W57: 487404095.6 | X57: 308233.5569 | Y57: 469799073.4 | Z57: 295251.9821 | AA57: 438499022.8 | AB57: 297500.9017 | AC57: 446441672.6 | AD57: 309164.0926 | AE57: 436556101.7 | AF57: 300135.9768 | AG57: 423877964.1 | AH57: 290468.6047 | AI57: 425160670.9 | AJ57: 292274.8259 | AK57: 437279031.1 | AL57: 301699.7584 | AM57: 433589513.3 | AN57: 294859.3106 | AO57: 443071045.3 | AP57: 300329.435 | AQ57: 437948779.1 | AR57: 295820.4327 | AS57: 424394110.6 | AT57: 295009.5098 | AU57: 438058392.9 | AV57: 299144.54 | AW57: 408591899.4 | AX57: 284725.3553 | AY57: 419298301.4 | AZ57: 291354 | BA57: =$AY57 -> 419298301.4 | BB57: 291354 | BC57: =$BA57 -> 419298301.4 | BD57: =$BB57 -> 291354 | BE57: 419298301.4 | BF57: 291354 | BG57: 419298301.4 | BH57: 291354 | BI57: 419298301.4 | BJ57: 291354 | BM57: 419298301.4 | BN57: 291354 | BO57: 2019-07-01
C58: =C13-C55 -> -0.0001696850577 | E58: dic | J58: =H13-J55 -> -0.0004832007777 | L58: dic | N58: 2019-08-01 | O58: 390686712.8 | P58: 256132.5324 | Q58: 404343837.2 | R58: 264953.1898 | S58: 398712610.2 | T58: 260087.0088 | U58: 397080199.4 | V58: 259629.0126 | W58: 406500142.1 | X58: 264432.9814 | Y58: 387237637.8 | Z58: 252331.1545 | AA58: 386862547.7 | AB58: 254703.5817 | AC58: 381398362.1 | AD58: 265003.6423 | AE58: 367008171.1 | AF58: 256409.4611 | AG58: 356722655.6 | AH58: 248498.6059 | AI58: 359355670.9 | AJ58: 249785.4461 | AK58: 367931033.8 | AL58: 257655.8654 | AM58: 363884704 | AN58: 251737.5631 | AO58: 371386997.7 | AP58: 256135.2393 | AQ58: 370595739.4 | AR58: 253516.2696 | AS58: 360133709.6 | AT58: 253055.4435 | AU58: 369437525 | AV58: 254609.9917 | AW58: 347041608.1 | AX58: 241547.3937 | AY58: 348783123.2 | AZ58: 244375.37 | BA58: =BA93 -> 343156055.5 | BB58: =BB93 -> 230288 | BC58: 343156055.5 | BD58: 230288 | BE58: =$BC58 -> 343156055.5 | BF58: =$BD58 -> 230288 | BG58: 343156055.5 | BH58: 230288 | BI58: =$BG58 -> 343156055.5 | BJ58: 230288 | BM58: 343156055.5 | BN58: 230288 | BO58: 2019-08-01
C59: OK | J59: OK | N59: 2019-09-01 | O59: 427360862.7 | P59: 297452.6167 | Q59: 441012737 | R59: 306647.1609 | S59: 436639973.7 | T59: 301555.6939 | U59: 436219362.2 | V59: 302044.6464 | W59: 447663755.5 | X59: 307209.0232 | Y59: 426881748.8 | Z59: 294364.0568 | AA59: 427726022.7 | AB59: 294186.1271 | AC59: 417782679.7 | AD59: 302295.5772 | AE59: 390055031.4 | AF59: 293651.4688 | AG59: 372069918.6 | AH59: 277564.9337 | AI59: 375759158.6 | AJ59: 279081.1128 | AK59: 383365737.3 | AL59: 287244.9753 | AM59: 379365701 | AN59: 281020.8113 | AO59: 387133551.6 | AP59: 285761.0703 | AQ59: 386427107.4 | AR59: 282817.0028 | AS59: 376651311.5 | AT59: 282464.2199 | AU59: 384037585.7 | AV59: 282364.5452 | AW59: 367508166.9 | AX59: 270945.8489 | AY59: 370284412.4 | AZ59: 272608.0788 | BA59: =BA94 -> 366805732 | BB59: =BB94 -> 261416.1463 | BC59: =BC94 -> 361129306.9 | BD59: =BD94 -> 266525 | BE59: =$BC59 -> 361129306.9 | BF59: =$BD59 -> 266525 | BG59: 361129306.9 | BH59: 266525 | BI59: 361129306.9 | BJ59: 266525 | BM59: 361129306.9 | BN59: 266525 | BO59: 2019-09-01
